Workbook

Sheet Arkusz1 (hidden)
A1: 1. Czas realizacji Projektu = 8 miesięcy, całkowite koszty = 320 j.p.
A2: 2. Miesięczne koszty realizacji = 40 j.p.
A3: 3. WSZYSTKIE KOSZTY REGULOWANE NA KONIEC DANEGO MIESIĄCA
B4: (W PODANYM PRZYKŁADZIE, KOSZT = WYDATEK)
A5: 4. Wartość robót do faktury: koszty + Zysk = 20% (wsp. 1,20) | I5: Kwota zysku = 0,20 * 320,0 = 64,0 j.p.
A6: 5 Fakturowanie miesięczne
A7: 6. Zapłata po 14 dniach od daty złożenia faktury
D10: MIESIĄC
D11: 1 | E11: 2 | F11: 3 | G11: 4 | H11: 5 | I11: 6 | J11: 7 | K11: 8 | L11: 9
A12: Przychody | E12: 48 | F12: 48 | G12: 48 | H12: 48 | I12: 48 | J12: 48 | K12: 48 | L12: 48 | M12: Wpływy = | O12: =SUM(D12:L12) -> 384
A13: Wydatki (=koszty) | D13: 40 | E13: 40 | F13: 40 | G13: 40 | H13: 40 | I13: 40 | J13: 40 | K13: 40 | M13: Wydatki = | O13: =SUM(D13:K13) -> 320
A14: Saldo =
A15: nadwyżka/niedobór śr. finans. | D15: =D12-D13 -> -40 | E15: =E12-E13 -> 8 | F15: 8 | G15: 8 | H15: 8 | I15: 8 | J15: 8 | K15: 8 | L15: 48 | M15: =SUM(D15:L15) -> 64 | Q15: NPV | R15: =NPV(6%,D15:L15) -> 32.80645787
Q16: IRR | R16: =IRR(D15:L15) -> 0.2 | T16: i,% | U16: 0.01 | V16: 0.02 | W16: 0.03 | X16: 0.04 | Y16: … | Z16: 0.2 | AA16: 0.21 | AB16: … | AC16: 0.99
A17: Saldo skumulowane | D17: =D15 -> -40 | E17: =D17+E15 -> -32 | F17: =E17+F15 -> -24 | G17: -16 | H17: -8 | I17: 0 | J17: 8 | K17: 16 | L17: 64 | M17: Zysk = | O17: =O12-O13 -> 64 | T17: NPV | U17: =NPV(U16,D15:L15) -> 57.5769811 | V17: =NPV(V16,D15:L15) -> 51.70928076 | W17: =NPV(W16,D15:L15) -> 46.34359892 | X17: =NPV(X16,D15:L15) -> 41.43227615 | Y17: … | Z17: =NPV(Z16,D15:L15) -> 2.960594732e-15 | AA17: =NPV(AA16,D15:L15) -> -1.231595221 | AB17: … | AC17: =NPV(AC16,D15:L15) -> -15.97457592
B19: nadwyżka środków: przychody w danym miesiącu są wyższe, niż wydatki w tym miesiącu
B20: niedobór środków: tyle pieniędzy brakuje do pokrycia wydatków w danym miesiącu
B21: minimalna wartość ujemnego salda skumulowanego: całkowita kwota, którą wykonawca
B22: musi zainwestować w realizację kontraktu (środki własne - np. nadwyżki z poprzednich miesięcy,
B23: nadwyżki z innych kontraktów lub kredyty)
C25: od drugiego miesiąca, samofinansowanie kontraktu (wykonawca "obraca" pięniędzmi z faktur,
C26: opłaconych przez zamawiającego)
A36: 1. Czas realizacji Projektu = 8 miesięcy
A37: 2. Miesięczne koszty realizacji: zmienne, w nawiązaniu do harmonogramu robót
A38: 3. KOSZTY REGULOWANE NA KONIEC DANEGO MIESIĄCA
A39: 4. Wartość robót do faktury: koszty + Zysk = 20% (wsp. 1,20)
A40: 5 Fakturowanie miesięczne
A41: 6. Zapłata po 14 dniach od daty złożenia faktury
D43: MIESIĄC
D44: 1 | E44: 2 | F44: 3 | G44: 4 | H44: 5 | I44: 6 | J44: 7 | K44: 8 | L44: 9
A45: Przychody | E45: =1.2*D46 -> 48 | F45: =1.2*E46 -> 48 | G45: 72 | H45: 96 | I45: 60 | J45: 36 | K45: 12 | L45: 12 | M45: Wpływy = | O45: =SUM(D45:L45) -> 384
A46: Wydatki (=koszty) | D46: 40 | E46: 40 | F46: 60 | G46: 80 | H46: 50 | I46: 30 | J46: 10 | K46: 10 | M46: Wydatki = | O46: =SUM(D46:K46) -> 320
A47: Saldo =
A48: nadwyżka/niedobór śr. finans. | D48: =D45-D46 -> -40 | E48: =E45-E46 -> 8 | F48: -12 | G48: -8 | H48: 46 | I48: 30 | J48: 26 | K48: 2 | L48: 12 | M48: =SUM(D48:L48) -> 64 | Q48: NPV | R48: =NPV(6%,D48:L48) -> 34.14372519
Q49: IRR | R49: =IRR(D48:L48) -> 0.2 | T49: i,% | U49: 0.01 | V49: 0.02 | W49: 0.03 | X49: 0.04 | Y49: … | Z49: 0.2 | AA49: 0.21 | AB49: … | AC49: 0.99
A50: Saldo skumulowane | D50: =D48 -> -40 | E50: =D50+E48 -> -32 | F50: =E50+F48 -> -44 | G50: -52 | H50: -6 | I50: 24 | J50: 50 | K50: 52 | L50: 64 | M50: Zysk = | O50: =O45-O46 -> 64 | T50: NPV | U50: =NPV(U49,D48:L48) -> 58.00197591 | V50: =NPV(V49,D48:L48) -> 52.46039985 | W50: =NPV(W49,D48:L48) -> 47.33694986 | X50: =NPV(X49,D48:L48) -> 42.59688847 | Y50: … | Z50: =NPV(Z49,D48:L48) -> -4.81096644e-15 | AA50: =NPV(AA49,D48:L48) -> -1.365397592 | AB50: … | AC50: =NPV(AC49,D48:L48) -> -17.91312991
C52: okres od 1 do 4 miesiąca:
C53: całkowite zapotrzebowanie na środki finansowe: - 40 - 12 - 8 = - 60 j.p.
C54: nadwyżka w drugim miesiącu realizacji: 8 j.p.
C55: brakuje: - 60 + 8 = - 52 j.p. (tyle należy zainwestować w realizację kontraktu)
A62: 1. Czas realizacji Projektu = 8 miesięcy
A63: 2. Miesięczne koszty realizacji: zmienne
A64: 3. KOSZTY REGULOWANE NA KONIEC DANEGO MIESIĄCA
A65: 4. Wartość robót do faktury: koszty + Zysk = 20% (wsp. 1,20)
A66: 5 Fakturowanie miesięczne
A67: 6. Zaliczka | C67: 50 | D67: j.p.
A68: 7. Spłata zaliczki w równych częściach z czterech kolejnych faktur
A69: 7. Zapłata po 14 dniach od daty złożenia faktury
D72: MIESIĄC
D73: 1 | E73: 2 | F73: 3 | G73: 4 | H73: 5 | I73: 6 | J73: 7 | K73: 8 | L73: 9
A74: Przychody | D74: =C67 -> 50 | E74: =1.2*D76 -> 48 | F74: =1.2*E76 -> 48 | G74: 72 | H74: 96 | I74: 60 | J74: 36 | K74: 12 | L74: 12 | M74: Wpływy = | O74: =SUM(D74:L74) -> 434
A75: Spłata zaliczki | E75: =D74/4 -> 12.5 | F75: =E75 -> 12.5 | G75: =F75 -> 12.5 | H75: =G75 -> 12.5 | M75: w tym zaliczka = | O75: =SUM(E75:L75) -> 50
A76: Wydatki (=koszty) | D76: 40 | E76: 40 | F76: 60 | G76: 80 | H76: 50 | I76: 30 | J76: 10 | K76: 10 | M76: Wydatki = | O76: =SUM(D76:K76) -> 320
A77: Saldo =
A78: nadwyżka/niedobór śr. finans. | D78: =D74-D75-D76 -> 10 | E78: =E74-E75-E76 -> -4.5 | F78: =F74-F75-F76 -> -24.5 | G78: -20.5 | H78: 33.5 | I78: 30 | J78: 26 | K78: 2 | L78: 12 | M78: =SUM(D78:L78) -> 64 | Q78: NPV | R78: =NPV(6%,D78:L78) -> 40.45144202
Q79: IRR | R79: =IRR(D78:L78) ->  | T79: i,% | U79: 0.01 | V79: 0.02 | W79: 0.03 | X79: 0.04 | Y79: … | Z79: 0.2 | AA79: … | AB79: … | AC79: 0.99
A80: Saldo skumulowane | D80: =D78 -> 10 | E80: =D80+E78 -> 5.5 | F80: =E80+F78 -> -19 | G80: -39.5 | H80: -6 | I80: 24 | J80: 50 | K80: 52 | L80: 64 | M80: Zysk = | O80: =O74-O75-O76 -> 64 | T80: NPV | U80: =NPV(U79,D78:L78) -> 59.21527354 | V80: =NPV(V79,D78:L78) -> 54.81666579 | W80: =NPV(W79,D78:L78) -> 50.77022167 | X80: =NPV(X79,D78:L78) -> 47.04526318 | Y80: … | Z80: =NPV(Z79,D78:L78) -> 14.70068158 | AA80: … | AB80: ... | AC80: =NPV(AC79,D78:L78) -> 1.272227321
A94: 1. Czas realizacji Projektu = 8 miesięcy
A95: 2. Miesięczne koszty realizacji: zmienne
A96: 3. KOSZTY REGULOWANE NA KONIEC DANEGO MIESIĄCA
A97: 4. Wartość robót do faktury: koszty + Zysk = 20% (wsp. 1,20)
A98: 5 Fakturowanie miesięczne
A99: 6. Zaliczka | C99: =100 -> 100 | D99: j.p.
A100: 7. Spłata zaliczki w równych częściach z czterech kolejnych faktur
A101: 7. Zapłata po 14 dniach od daty złożenia faktury
D104: MIESIĄC
D105: 1 | E105: 2 | F105: 3 | G105: 4 | H105: 5 | I105: 6 | J105: 7 | K105: 8 | L105: 9
A106: Przychody | D106: =C99 -> 100 | E106: =1.2*D108 -> 48 | F106: =1.2*E108 -> 48 | G106: 72 | H106: 96 | I106: 60 | J106: 36 | K106: 12 | L106: 12 | M106: Wpływy = | O106: =SUM(D106:L106) -> 484
A107: Spłata zaliczki | E107: =D106/4 -> 25 | F107: =E107 -> 25 | G107: =F107 -> 25 | H107: =G107 -> 25 | M107: w tym zaliczka = | O107: =SUM(E107:L107) -> 100
A108: Wydatki (=koszty) | D108: 40 | E108: 40 | F108: 60 | G108: 80 | H108: 50 | I108: 30 | J108: 10 | K108: 10 | M108: Koszty = | O108: =SUM(D108:K108) -> 320
A109: Saldo =
A110: nadwyżka/niedobór śr. finans. | D110: =D106-D107-D108 -> 60 | E110: =E106-E107-E108 -> -17 | F110: =F106-F107-F108 -> -37 | G110: -33 | H110: 21 | I110: 30 | J110: 26 | K110: 2 | L110: 12 | M110: =SUM(D110:L110) -> 64 | Q110: NPV | R110: =NPV(6%,D110:L110) -> 46.75915885
Q111: IRR | R111: =IRR(D110:L110) ->  | T111: i,% | U111: 0.01 | V111: 0.02 | W111: 0.03 | X111: 0.04 | Y111: … | Z111: 0.2 | AA111: … | AB111: … | AC111: 0.99
A112: Saldo skumulowane | D112: =D110 -> 60 | E112: =D112+E110 -> 43 | F112: =E112+F110 -> 6 | G112: -27 | H112: -6 | I112: 24 | J112: 50 | K112: 52 | L112: 64 | M112: Zysk = | O112: =O106-O107-O108 -> 64 | T112: NPV | U112: =NPV(U111,D110:L110) -> 60.42857117 | V112: =NPV(V111,D110:L110) -> 57.17293174 | W112: =NPV(W111,D110:L110) -> 54.20349348 | X112: =NPV(X111,D110:L110) -> 51.49363789 | Y112: … | Z112: =NPV(Z111,D110:L110) -> 29.40136317 | AA112: … | AB112: … | AC112: =NPV(AC111,D110:L110) -> 20.45758455

Sheet AON
A6: ID | B6: Name
A7: 1 | B7: Start
A8: 2 | B8: Excavation
A9: 3 | B9: Foundations
A10: 4 | B10: Cellars
A11: 5 | B11: Structure
A12: 6 | B12: Roof structure
A13: 7 | B13: Roof covering
A14: 8 | B14: External Installations
A15: 9 | B15: Foundation covering
A16: 10 | B16: Partition walls
A17: 11 | B17: Internal plasters
A18: 12 | B18: Facade
A19: 13 | B19: Electrical installations
A20: 14 | B20: Sanitary installations
A21: 15 | B21: Painting
A22: 16 | B22: Terrain architecture
A23: 17 | B23: Finish

Sheet Robocizna (hidden)
B2: C9 =D9 * 1.78 (ZUS+pod. od wynagrodzeń itd.)
C7: stawka | D7: wyn.zas.
A8: Kod | B8: Opis | C8: zł/rg | D8: zł/rg
A9: R1 | B9: Robotnicy | C9: =D9*1.78 -> 23.14 | D9: 13
A10: R2 | B10: Murarze | C10: =D10*1.78 -> 27.59 | D10: 15.5
A11: R3 | B11: Cieśle | C11: 29.37 | D11: 16.5
A12: R4 | B12: Tynkarze | C12: 28.48 | D12: 16
A13: R5 | B13: Zbrojarze | C13: 28.48 | D13: 16
A14: R6 | B14: Betoniarze | C14: 27.59 | D14: 15.5
A15: R7 | B15: Elektrycy | C15: 30.26 | D15: 17
A16: R8 | B16: Hydraulicy | C16: 29.37 | D16: 16.5
A17: R9 | B17: Malarze | C17: 23.14 | D17: 13
A18: R10 | B18: Blacharze | C18: 32.04 | D18: 18

Sheet Sprzęt (hidden)
B2: C9 =D9 * 1.10 (koszty ogólne bazy sprzętu)
C7: stawka | D7: koszt
A8: Kod | B8: Opis | C8: zł/mg | D8: zł/mg
A9: S1 | B9: Spycharka | C9: =D9*1.1 -> 330 | D9: 300
A10: S2 | B10: Koparka | C10: 363 | D10: 330
A11: S3 | B11: Żuraw | C11: 275 | D11: 250
A12: S4 | B12: Pompa do betonu | C12: 154 | D12: 140
A13: S5 | B13: Wyciąg | C13: 55 | D13: 50
A14: S6 | B14: Agregat tynkarski | C14: 104.5 | D14: 95
A15: S7 | B15: Rusztowania | C15: 165 | D15: 150
A16: S8 | B16: Dźwig | C16: 418 | D16: 380
A17: S9 | B17: Rusztowania | C17: 132 | D17: 120
A18: S10 | B18: Samochód | C18: 143 | D18: 130

Sheet Brygady (hidden)
O1: Wybór
C2: Koszty dla 8-godzinnego dnia pracy | K2: CRB-12A | O2: R5
O3: S10
C7: Koszt | D7: Zasób 1 | F7: Zasób 2 | H7: Zasób 3 | J7: Zasób 4 | L7: Zasób 5 | N7: koszt | O7: koszt | P7: koszt | Q7: koszt | R7: koszt
A8: Kod | B8: Opis | C8: zmianowy brygady | D8: ilość | E8: kod | F8: ilość | G8: kod | H8: ilość | I8: kod | J8: ilość | K8: kod | L8: ilość | M8: kod | N8: Zas. 1 | O8: Zas. 2 | P8: Zas.3 | Q8: Zas. 4 | R8: Zas.5
A9: BR-01 | B9: Wykopy | C9: =SUM(N9:R9)*8 -> 9646.72 | D9: 1 | E9: S8 | F9: 1 | G9: S2 | H9: 6 | I9: R1 | J9: 2 | K9: S10 | N9: =IF(LEFT(E9,1)="R",VLOOKUP(E9,Robocizna!$A:$C,3,FALSE),IF(LEFT(E9,1)="S",VLOOKUP(E9,Sprzęt!$A:$C,3,FALSE),0))*D9 -> 418 | O9: =IF(LEFT(G9,1)="R",VLOOKUP(G9,Robocizna!$A:$C,3,FALSE),IF(LEFT(G9,1)="S",VLOOKUP(G9,Sprzęt!$A:$C,3,FALSE),0))*F9 -> 363 | P9: =IF(LEFT(I9,1)="R",VLOOKUP(I9,Robocizna!$A:$C,3,FALSE),IF(LEFT(I9,1)="S",VLOOKUP(I9,Sprzęt!$A:$C,3,FALSE),0))*H9 -> 138.84 | Q9: =IF(LEFT(K9,1)="R",VLOOKUP(K9,Robocizna!$A:$C,3,FALSE),IF(LEFT(K9,1)="S",VLOOKUP(K9,Sprzęt!$A:$C,3,FALSE),0))*J9 -> 286 | R9: =IF(LEFT(M9,1)="R",VLOOKUP(M9,Robocizna!$A:$C,3,FALSE),IF(LEFT(M9,1)="S",VLOOKUP(M9,Sprzęt!$A:$C,3,FALSE),0))*L9 -> 0
A10: BR-02 | B10: Fundamenty | C10: =SUM(N10:R10)*8 -> 3944.72 | D10: 6 | E10: R1 | F10: 2 | G10: R5 | H10: 2 | I10: R6 | J10: 3 | K10: R3 | L10: 1 | M10: S4 | N10: =IF(LEFT(E10,1)="R",VLOOKUP(E10,Robocizna!$A:$C,3,FALSE),IF(LEFT(E10,1)="S",VLOOKUP(E10,Sprzęt!$A:$C,3,FALSE),0))*D10 -> 138.84 | O10: =IF(LEFT(G10,1)="R",VLOOKUP(G10,Robocizna!$A:$C,3,FALSE),IF(LEFT(G10,1)="S",VLOOKUP(G10,Sprzęt!$A:$C,3,FALSE),0))*F10 -> 56.96 | P10: =IF(LEFT(I10,1)="R",VLOOKUP(I10,Robocizna!$A:$C,3,FALSE),IF(LEFT(I10,1)="S",VLOOKUP(I10,Sprzęt!$A:$C,3,FALSE),0))*H10 -> 55.18 | Q10: =IF(LEFT(K10,1)="R",VLOOKUP(K10,Robocizna!$A:$C,3,FALSE),IF(LEFT(K10,1)="S",VLOOKUP(K10,Sprzęt!$A:$C,3,FALSE),0))*J10 -> 88.11 | R10: =IF(LEFT(M10,1)="R",VLOOKUP(M10,Robocizna!$A:$C,3,FALSE),IF(LEFT(M10,1)="S",VLOOKUP(M10,Sprzęt!$A:$C,3,FALSE),0))*L10 -> 154
A11: BR-03 | B11: Piwnice | C11: 1772.88 | D11: 6 | E11: R1 | F11: 3 | G11: R2 | N11: =IF(LEFT(E11,1)="R",VLOOKUP(E11,Robocizna!$A:$C,3,FALSE),IF(LEFT(E11,1)="S",VLOOKUP(E11,Sprzęt!$A:$C,3,FALSE),0))*D11 -> 138.84 | O11: =IF(LEFT(G11,1)="R",VLOOKUP(G11,Robocizna!$A:$C,3,FALSE),IF(LEFT(G11,1)="S",VLOOKUP(G11,Sprzęt!$A:$C,3,FALSE),0))*F11 -> 82.77 | P11: =IF(LEFT(I11,1)="R",VLOOKUP(I11,Robocizna!$A:$C,3,FALSE),IF(LEFT(I11,1)="S",VLOOKUP(I11,Sprzęt!$A:$C,3,FALSE),0))*H11 -> 0 | Q11: =IF(LEFT(K11,1)="R",VLOOKUP(K11,Robocizna!$A:$C,3,FALSE),IF(LEFT(K11,1)="S",VLOOKUP(K11,Sprzęt!$A:$C,3,FALSE),0))*J11 -> 0 | R11: =IF(LEFT(M11,1)="R",VLOOKUP(M11,Robocizna!$A:$C,3,FALSE),IF(LEFT(M11,1)="S",VLOOKUP(M11,Sprzęt!$A:$C,3,FALSE),0))*L11 -> 0
A12: BR-04 | B12: Konstrukcja nadziemna | C12: 9751.84 | D12: 5 | E12: S9 | F12: 6 | G12: R1 | H12: 2 | I12: S4 | J12: 2 | K12: R5 | L12: 2 | M12: R6 | N12: =IF(LEFT(E12,1)="R",VLOOKUP(E12,Robocizna!$A:$C,3,FALSE),IF(LEFT(E12,1)="S",VLOOKUP(E12,Sprzęt!$A:$C,3,FALSE),0))*D12 -> 660 | O12: =IF(LEFT(G12,1)="R",VLOOKUP(G12,Robocizna!$A:$C,3,FALSE),IF(LEFT(G12,1)="S",VLOOKUP(G12,Sprzęt!$A:$C,3,FALSE),0))*F12 -> 138.84 | P12: =IF(LEFT(I12,1)="R",VLOOKUP(I12,Robocizna!$A:$C,3,FALSE),IF(LEFT(I12,1)="S",VLOOKUP(I12,Sprzęt!$A:$C,3,FALSE),0))*H12 -> 308 | Q12: =IF(LEFT(K12,1)="R",VLOOKUP(K12,Robocizna!$A:$C,3,FALSE),IF(LEFT(K12,1)="S",VLOOKUP(K12,Sprzęt!$A:$C,3,FALSE),0))*J12 -> 56.96 | R12: =IF(LEFT(M12,1)="R",VLOOKUP(M12,Robocizna!$A:$C,3,FALSE),IF(LEFT(M12,1)="S",VLOOKUP(M12,Sprzęt!$A:$C,3,FALSE),0))*L12 -> 55.18
A13: BR-05 | B13: Konstruckja dachu | C13: 2255.6 | D13: 6 | E13: R1 | F13: 3 | G13: R3 | H13: 1 | I13: S5 | N13: =IF(LEFT(E13,1)="R",VLOOKUP(E13,Robocizna!$A:$C,3,FALSE),IF(LEFT(E13,1)="S",VLOOKUP(E13,Sprzęt!$A:$C,3,FALSE),0))*D13 -> 138.84 | O13: =IF(LEFT(G13,1)="R",VLOOKUP(G13,Robocizna!$A:$C,3,FALSE),IF(LEFT(G13,1)="S",VLOOKUP(G13,Sprzęt!$A:$C,3,FALSE),0))*F13 -> 88.11 | P13: =IF(LEFT(I13,1)="R",VLOOKUP(I13,Robocizna!$A:$C,3,FALSE),IF(LEFT(I13,1)="S",VLOOKUP(I13,Sprzęt!$A:$C,3,FALSE),0))*H13 -> 55 | Q13: =IF(LEFT(K13,1)="R",VLOOKUP(K13,Robocizna!$A:$C,3,FALSE),IF(LEFT(K13,1)="S",VLOOKUP(K13,Sprzęt!$A:$C,3,FALSE),0))*J13 -> 0 | R13: =IF(LEFT(M13,1)="R",VLOOKUP(M13,Robocizna!$A:$C,3,FALSE),IF(LEFT(M13,1)="S",VLOOKUP(M13,Sprzęt!$A:$C,3,FALSE),0))*L13 -> 0
A14: BR-06 | B14: Pokrycie dachu | C14: 2576 | D14: 6 | E14: R1 | F14: 1 | G14: S5 | H14: 4 | I14: R10 | N14: =IF(LEFT(E14,1)="R",VLOOKUP(E14,Robocizna!$A:$C,3,FALSE),IF(LEFT(E14,1)="S",VLOOKUP(E14,Sprzęt!$A:$C,3,FALSE),0))*D14 -> 138.84 | O14: =IF(LEFT(G14,1)="R",VLOOKUP(G14,Robocizna!$A:$C,3,FALSE),IF(LEFT(G14,1)="S",VLOOKUP(G14,Sprzęt!$A:$C,3,FALSE),0))*F14 -> 55 | P14: =IF(LEFT(I14,1)="R",VLOOKUP(I14,Robocizna!$A:$C,3,FALSE),IF(LEFT(I14,1)="S",VLOOKUP(I14,Sprzęt!$A:$C,3,FALSE),0))*H14 -> 128.16 | Q14: =IF(LEFT(K14,1)="R",VLOOKUP(K14,Robocizna!$A:$C,3,FALSE),IF(LEFT(K14,1)="S",VLOOKUP(K14,Sprzęt!$A:$C,3,FALSE),0))*J14 -> 0 | R14: =IF(LEFT(M14,1)="R",VLOOKUP(M14,Robocizna!$A:$C,3,FALSE),IF(LEFT(M14,1)="S",VLOOKUP(M14,Sprzęt!$A:$C,3,FALSE),0))*L14 -> 0
A15: BR-07 | B15: Przyłącza | C15: 3608.88 | D15: 3 | E15: R8 | F15: 1 | G15: S2 | N15: =IF(LEFT(E15,1)="R",VLOOKUP(E15,Robocizna!$A:$C,3,FALSE),IF(LEFT(E15,1)="S",VLOOKUP(E15,Sprzęt!$A:$C,3,FALSE),0))*D15 -> 88.11 | O15: =IF(LEFT(G15,1)="R",VLOOKUP(G15,Robocizna!$A:$C,3,FALSE),IF(LEFT(G15,1)="S",VLOOKUP(G15,Sprzęt!$A:$C,3,FALSE),0))*F15 -> 363 | P15: =IF(LEFT(I15,1)="R",VLOOKUP(I15,Robocizna!$A:$C,3,FALSE),IF(LEFT(I15,1)="S",VLOOKUP(I15,Sprzęt!$A:$C,3,FALSE),0))*H15 -> 0 | Q15: =IF(LEFT(K15,1)="R",VLOOKUP(K15,Robocizna!$A:$C,3,FALSE),IF(LEFT(K15,1)="S",VLOOKUP(K15,Sprzęt!$A:$C,3,FALSE),0))*J15 -> 0 | R15: =IF(LEFT(M15,1)="R",VLOOKUP(M15,Robocizna!$A:$C,3,FALSE),IF(LEFT(M15,1)="S",VLOOKUP(M15,Sprzęt!$A:$C,3,FALSE),0))*L15 -> 0
A16: BR-08 | B16: Zasypka fundamentów | C16: 6654.72 | D16: 6 | E16: R1 | F16: 1 | G16: S1 | H16: 1 | I16: S2 | N16: =IF(LEFT(E16,1)="R",VLOOKUP(E16,Robocizna!$A:$C,3,FALSE),IF(LEFT(E16,1)="S",VLOOKUP(E16,Sprzęt!$A:$C,3,FALSE),0))*D16 -> 138.84 | O16: =IF(LEFT(G16,1)="R",VLOOKUP(G16,Robocizna!$A:$C,3,FALSE),IF(LEFT(G16,1)="S",VLOOKUP(G16,Sprzęt!$A:$C,3,FALSE),0))*F16 -> 330 | P16: =IF(LEFT(I16,1)="R",VLOOKUP(I16,Robocizna!$A:$C,3,FALSE),IF(LEFT(I16,1)="S",VLOOKUP(I16,Sprzęt!$A:$C,3,FALSE),0))*H16 -> 363 | Q16: =IF(LEFT(K16,1)="R",VLOOKUP(K16,Robocizna!$A:$C,3,FALSE),IF(LEFT(K16,1)="S",VLOOKUP(K16,Sprzęt!$A:$C,3,FALSE),0))*J16 -> 0 | R16: =IF(LEFT(M16,1)="R",VLOOKUP(M16,Robocizna!$A:$C,3,FALSE),IF(LEFT(M16,1)="S",VLOOKUP(M16,Sprzęt!$A:$C,3,FALSE),0))*L16 -> 0
A17: BR-09 | B17: Ściany działowe | C17: 1772.88 | D17: 6 | E17: R1 | F17: 3 | G17: R2 | N17: =IF(LEFT(E17,1)="R",VLOOKUP(E17,Robocizna!$A:$C,3,FALSE),IF(LEFT(E17,1)="S",VLOOKUP(E17,Sprzęt!$A:$C,3,FALSE),0))*D17 -> 138.84 | O17: =IF(LEFT(G17,1)="R",VLOOKUP(G17,Robocizna!$A:$C,3,FALSE),IF(LEFT(G17,1)="S",VLOOKUP(G17,Sprzęt!$A:$C,3,FALSE),0))*F17 -> 82.77 | P17: =IF(LEFT(I17,1)="R",VLOOKUP(I17,Robocizna!$A:$C,3,FALSE),IF(LEFT(I17,1)="S",VLOOKUP(I17,Sprzęt!$A:$C,3,FALSE),0))*H17 -> 0 | Q17: =IF(LEFT(K17,1)="R",VLOOKUP(K17,Robocizna!$A:$C,3,FALSE),IF(LEFT(K17,1)="S",VLOOKUP(K17,Sprzęt!$A:$C,3,FALSE),0))*J17 -> 0 | R17: =IF(LEFT(M17,1)="R",VLOOKUP(M17,Robocizna!$A:$C,3,FALSE),IF(LEFT(M17,1)="S",VLOOKUP(M17,Sprzęt!$A:$C,3,FALSE),0))*L17 -> 0
A18: BR-10 | B18: Tynki wewnętrzne | C18: 1519.52 | D18: 3 | E18: R4 | F18: 1 | G18: S6 | N18: =IF(LEFT(E18,1)="R",VLOOKUP(E18,Robocizna!$A:$C,3,FALSE),IF(LEFT(E18,1)="S",VLOOKUP(E18,Sprzęt!$A:$C,3,FALSE),0))*D18 -> 85.44 | O18: =IF(LEFT(G18,1)="R",VLOOKUP(G18,Robocizna!$A:$C,3,FALSE),IF(LEFT(G18,1)="S",VLOOKUP(G18,Sprzęt!$A:$C,3,FALSE),0))*F18 -> 104.5 | P18: =IF(LEFT(I18,1)="R",VLOOKUP(I18,Robocizna!$A:$C,3,FALSE),IF(LEFT(I18,1)="S",VLOOKUP(I18,Sprzęt!$A:$C,3,FALSE),0))*H18 -> 0 | Q18: =IF(LEFT(K18,1)="R",VLOOKUP(K18,Robocizna!$A:$C,3,FALSE),IF(LEFT(K18,1)="S",VLOOKUP(K18,Sprzęt!$A:$C,3,FALSE),0))*J18 -> 0 | R18: =IF(LEFT(M18,1)="R",VLOOKUP(M18,Robocizna!$A:$C,3,FALSE),IF(LEFT(M18,1)="S",VLOOKUP(M18,Sprzęt!$A:$C,3,FALSE),0))*L18 -> 0
A19: BR-11 | B19: Elewacja | C19: 3950.24 | D19: 6 | E19: R1 | F19: 1 | G19: S6 | H19: 1 | I19: S7 | J19: 3 | K19: R4 | N19: =IF(LEFT(E19,1)="R",VLOOKUP(E19,Robocizna!$A:$C,3,FALSE),IF(LEFT(E19,1)="S",VLOOKUP(E19,Sprzęt!$A:$C,3,FALSE),0))*D19 -> 138.84 | O19: =IF(LEFT(G19,1)="R",VLOOKUP(G19,Robocizna!$A:$C,3,FALSE),IF(LEFT(G19,1)="S",VLOOKUP(G19,Sprzęt!$A:$C,3,FALSE),0))*F19 -> 104.5 | P19: =IF(LEFT(I19,1)="R",VLOOKUP(I19,Robocizna!$A:$C,3,FALSE),IF(LEFT(I19,1)="S",VLOOKUP(I19,Sprzęt!$A:$C,3,FALSE),0))*H19 -> 165 | Q19: =IF(LEFT(K19,1)="R",VLOOKUP(K19,Robocizna!$A:$C,3,FALSE),IF(LEFT(K19,1)="S",VLOOKUP(K19,Sprzęt!$A:$C,3,FALSE),0))*J19 -> 85.44 | R19: =IF(LEFT(M19,1)="R",VLOOKUP(M19,Robocizna!$A:$C,3,FALSE),IF(LEFT(M19,1)="S",VLOOKUP(M19,Sprzęt!$A:$C,3,FALSE),0))*L19 -> 0
A20: BR-12 | B20: Instalacje elektryczne | C20: =SUM(N20:R20)*8 -> 1594.88 | D20: 6 | E20: R1 | F20: 2 | G20: R7 | N20: =IF(LEFT(E20,1)="R",VLOOKUP(E20,Robocizna!$A:$C,3,FALSE),IF(LEFT(E20,1)="S",VLOOKUP(E20,Sprzęt!$A:$C,3,FALSE),0))*D20 -> 138.84 | O20: =IF(LEFT(G20,1)="R",VLOOKUP(G20,Robocizna!$A:$C,3,FALSE),IF(LEFT(G20,1)="S",VLOOKUP(G20,Sprzęt!$A:$C,3,FALSE),0))*F20 -> 60.52 | P20: =IF(LEFT(I20,1)="R",VLOOKUP(I20,Robocizna!$A:$C,3,FALSE),IF(LEFT(I20,1)="S",VLOOKUP(I20,Sprzęt!$A:$C,3,FALSE),0))*H20 -> 0 | Q20: =IF(LEFT(K20,1)="R",VLOOKUP(K20,Robocizna!$A:$C,3,FALSE),IF(LEFT(K20,1)="S",VLOOKUP(K20,Sprzęt!$A:$C,3,FALSE),0))*J20 -> 0 | R20: =IF(LEFT(M20,1)="R",VLOOKUP(M20,Robocizna!$A:$C,3,FALSE),IF(LEFT(M20,1)="S",VLOOKUP(M20,Sprzęt!$A:$C,3,FALSE),0))*L20 -> 0
A21: BR-13 | B21: Instalacje sanitarne | C21: =SUM(N21:R21)*8 -> 1580.64 | D21: 6 | E21: R1 | F21: 2 | G21: R8 | N21: =IF(LEFT(E21,1)="R",VLOOKUP(E21,Robocizna!$A:$C,3,FALSE),IF(LEFT(E21,1)="S",VLOOKUP(E21,Sprzęt!$A:$C,3,FALSE),0))*D21 -> 138.84 | O21: =IF(LEFT(G21,1)="R",VLOOKUP(G21,Robocizna!$A:$C,3,FALSE),IF(LEFT(G21,1)="S",VLOOKUP(G21,Sprzęt!$A:$C,3,FALSE),0))*F21 -> 58.74 | P21: =IF(LEFT(I21,1)="R",VLOOKUP(I21,Robocizna!$A:$C,3,FALSE),IF(LEFT(I21,1)="S",VLOOKUP(I21,Sprzęt!$A:$C,3,FALSE),0))*H21 -> 0 | Q21: =IF(LEFT(K21,1)="R",VLOOKUP(K21,Robocizna!$A:$C,3,FALSE),IF(LEFT(K21,1)="S",VLOOKUP(K21,Sprzęt!$A:$C,3,FALSE),0))*J21 -> 0 | R21: =IF(LEFT(M21,1)="R",VLOOKUP(M21,Robocizna!$A:$C,3,FALSE),IF(LEFT(M21,1)="S",VLOOKUP(M21,Sprzęt!$A:$C,3,FALSE),0))*L21 -> 0
A22: BR-14 | B22: Malowanie | C22: =SUM(N22:R22)*8 -> 4491.2 | D22: 6 | E22: R1 | F22: 4 | G22: R9 | H22: 2 | I22: S7 | N22: =IF(LEFT(E22,1)="R",VLOOKUP(E22,Robocizna!$A:$C,3,FALSE),IF(LEFT(E22,1)="S",VLOOKUP(E22,Sprzęt!$A:$C,3,FALSE),0))*D22 -> 138.84 | O22: =IF(LEFT(G22,1)="R",VLOOKUP(G22,Robocizna!$A:$C,3,FALSE),IF(LEFT(G22,1)="S",VLOOKUP(G22,Sprzęt!$A:$C,3,FALSE),0))*F22 -> 92.56 | P22: =IF(LEFT(I22,1)="R",VLOOKUP(I22,Robocizna!$A:$C,3,FALSE),IF(LEFT(I22,1)="S",VLOOKUP(I22,Sprzęt!$A:$C,3,FALSE),0))*H22 -> 330 | Q22: =IF(LEFT(K22,1)="R",VLOOKUP(K22,Robocizna!$A:$C,3,FALSE),IF(LEFT(K22,1)="S",VLOOKUP(K22,Sprzęt!$A:$C,3,FALSE),0))*J22 -> 0 | R22: =IF(LEFT(M22,1)="R",VLOOKUP(M22,Robocizna!$A:$C,3,FALSE),IF(LEFT(M22,1)="S",VLOOKUP(M22,Sprzęt!$A:$C,3,FALSE),0))*L22 -> 0
A23: BR-15 | B23: Zagospodarowanie terenu | C23: =SUM(N23:R23)*8 -> 2254.72 | D23: 6 | E23: R1 | F23: 1 | G23: S10 | N23: =IF(LEFT(E23,1)="R",VLOOKUP(E23,Robocizna!$A:$C,3,FALSE),IF(LEFT(E23,1)="S",VLOOKUP(E23,Sprzęt!$A:$C,3,FALSE),0))*D23 -> 138.84 | O23: =IF(LEFT(G23,1)="R",VLOOKUP(G23,Robocizna!$A:$C,3,FALSE),IF(LEFT(G23,1)="S",VLOOKUP(G23,Sprzęt!$A:$C,3,FALSE),0))*F23 -> 143 | P23: =IF(LEFT(I23,1)="R",VLOOKUP(I23,Robocizna!$A:$C,3,FALSE),IF(LEFT(I23,1)="S",VLOOKUP(I23,Sprzęt!$A:$C,3,FALSE),0))*H23 -> 0 | Q23: =IF(LEFT(K23,1)="R",VLOOKUP(K23,Robocizna!$A:$C,3,FALSE),IF(LEFT(K23,1)="S",VLOOKUP(K23,Sprzęt!$A:$C,3,FALSE),0))*J23 -> 0 | R23: =IF(LEFT(M23,1)="R",VLOOKUP(M23,Robocizna!$A:$C,3,FALSE),IF(LEFT(M23,1)="S",VLOOKUP(M23,Sprzęt!$A:$C,3,FALSE),0))*L23 -> 0

Sheet Materiały (dane) (hidden)
B2: C9 =D9 * 1.10 (koszty zakupu)
C6: Całkowity
C7: koszt materiałów/ | D7: koszt materiałów/
A8: Kod | B8: Opis | C8: jedn. miary roboty | D8: jedn. miary roboty | E8: jedn. miary roboty
A9: M1 | B9: Wykopy | C9: =D9*1.1 -> 3203.75 | D9: =D32 -> 2912.5 | E9: jedn. miary roboty
A10: M2 | B10: Fundamenty | C10: 1249.6 | D10: =D33 -> 1136 | E10: jedn. miary roboty
A11: M3 | B11: Piwnice | C11: 3883 | D11: 3530 | E11: jedn. miary roboty
A12: M4 | B12: Konstrukcja nadziemna | C12: 750.75 | D12: 682.5 | E12: jedn. miary roboty
A13: M5 | B13: Konstrukcja dachu | C13: 4125 | D13: 3750 | E13: jedn. miary roboty
A14: M6 | B14: Pokrycie dachu | C14: 1644.5 | D14: 1495 | E14: jedn. miary roboty
A15: M7 | B15: Przyłącza | C15: 1619.75 | D15: 1472.5 | E15: jedn. miary roboty
A16: M8 | B16: Zasypka fundamentów | C16: 13288 | D16: 12080 | E16: jedn. miary roboty
A17: M9 | B17: Ściany działowe | C17: 7502 | D17: 6820 | E17: jedn. miary roboty
A18: M10 | B18: Tynki wewnętrzne | C18: 1829.85 | D18: 1663.5 | E18: jedn. miary roboty
A19: M11 | B19: Elewacja | C19: 3616.25 | D19: 3287.5 | E19: jedn. miary roboty
A20: M12 | B20: Instalacje elektryczne | C20: 264 | D20: 240 | E20: jedn. miary roboty
A21: M13 | B21: Instalacje sanitarne | C21: 173.25 | D21: 157.5 | E21: jedn. miary roboty
A22: M14 | B22: Malowanie | C22: 1386 | D22: 1260 | E22: jedn. miary roboty
A23: M15 | B23: Zagospodarowanie terenu | C23: 577.5 | D23: 525 | E23: jedn. miary roboty
E28: zużycie/jedn. miary roboty z ubytkami
A30: Kod | B30: Opis | C30: jedn. miary roboty | D30: koszt/jedn. miary roboty | E30: Mat. 1 | G30: Mat. 2 | I30: Mat. 3 | K30: Mat. 4 | M30: Mat. 5
E31: zużycie/jedn. miary roboty | F31: cena jedn. materiału | G31: zużycie/jedn. miary roboty | H31: cena jedn. materiału | I31: zużycie/jedn. miary roboty | J31: cena jedn. materiału | K31: zużycie/jedn. miary roboty | L31: cena jedn. materiału | M31: zużycie/jedn. miary roboty | N31: cena jedn. materiału | O31: Mat. 1 | P31: Mat. 2 | Q31: Mat. 3 | R31: Mat. 4 | S31: Mat. 5
A32: M1 | B32: Wykopy | C32: jedn. miary roboty | D32: =SUM(O32:S32) -> 2912.5 | E32: 1.05 | F32: 150 | G32: 1.05 | H32: 150 | I32: 1.1 | J32: 2100 | K32: 1.15 | L32: 250 | O32: =E32*F32 -> 157.5 | P32: =G32*H32 -> 157.5 | Q32: =I32*J32 -> 2310 | R32: =K32*L32 -> 287.5 | S32: =M32*N32 -> 0
A33: M2 | B33: Fundamenty | C33: jedn. miary roboty | D33: =SUM(O33:S33) -> 1136 | E33: 1.2 | F33: 180 | G33: 1.15 | H33: 800 | O33: =E33*F33 -> 216 | P33: =G33*H33 -> 920 | Q33: =I33*J33 -> 0 | R33: =K33*L33 -> 0 | S33: =M33*N33 -> 0
A34: M3 | B34: Piwnice | C34: jedn. miary roboty | D34: 3530 | E34: 1.1 | F34: 700 | G34: 1.1 | H34: 600 | I34: 1.05 | J34: 2000 | O34: 770 | P34: 660 | Q34: 2100 | R34: 0 | S34: 0
A35: M4 | B35: Konstrukcja nadziemna | C35: jedn. miary roboty | D35: 682.5 | E35: 1.05 | F35: 650 | O35: 682.5 | P35: 0 | Q35: 0 | R35: 0 | S35: 0
A36: M5 | B36: Konstrukcja dachu | C36: jedn. miary roboty | D36: 3750 | E36: 1.25 | F36: 3000 | O36: 3750 | P36: 0 | Q36: 0 | R36: 0 | S36: 0
A37: M6 | B37: Pokrycie dachu | C37: jedn. miary roboty | D37: 1495 | E37: 1.15 | F37: 1300 | O37: 1495 | P37: 0 | Q37: 0 | R37: 0 | S37: 0
A38: M7 | B38: Przyłącza | C38: jedn. miary roboty | D38: 1472.5 | E38: 1.1 | F38: 1100 | G38: 1.05 | H38: 250 | O38: 1210 | P38: 262.5 | Q38: 0 | R38: 0 | S38: 0
A39: M8 | B39: Zasypka fundamentów | C39: jedn. miary roboty | D39: 12080 | E39: 1.15 | F39: 4000 | G39: 1.1 | H39: 6800 | O39: 4600 | P39: 7480 | Q39: 0 | R39: 0 | S39: 0
A40: M9 | B40: Ściany działowe | C40: jedn. miary roboty | D40: 6820 | E40: 1.1 | F40: 6200 | O40: 6820 | P40: 0 | Q40: 0 | R40: 0 | S40: 0
A41: M10 | B41: Tynki wewnętrzne | C41: jedn. miary roboty | D41: 1663.5 | E41: 1.05 | F41: 670 | G41: 1.2 | H41: 800 | O41: 703.5 | P41: 960 | Q41: 0 | R41: 0 | S41: 0
A42: M11 | B42: Elewacja | C42: jedn. miary roboty | D42: 3287.5 | E42: 1.2 | F42: 2500 | G42: 1.15 | H42: 250 | O42: 3000 | P42: 287.5 | Q42: 0 | R42: 0 | S42: 0
A43: M12 | B43: Instalacje elektryczne | C43: jedn. miary roboty | D43: 240 | E43: 1.2 | F43: 200 | O43: 240 | P43: 0 | Q43: 0 | R43: 0 | S43: 0
A44: M13 | B44: Instalacje sanitarne | C44: jedn. miary roboty | D44: 157.5 | E44: 1.05 | F44: 150 | O44: 157.5 | P44: 0 | Q44: 0 | R44: 0 | S44: 0
A45: M14 | B45: Malowanie | C45: jedn. miary roboty | D45: 1260 | E45: 1.05 | F45: 1200 | O45: 1260 | P45: 0 | Q45: 0 | R45: 0 | S45: 0
A46: M15 | B46: Zagospodarowanie terenu | C46: jedn. miary roboty | D46: 525 | E46: 1.05 | F46: 500 | O46: 525 | P46: 0 | Q46: 0 | R46: 0 | S46: 0

Sheet Materiały (hidden)
C6: Całkowity
C7: koszt materiałów/ | D7: koszt materiałów/
A8: Kod | B8: Opis | C8: jedn. miary roboty | D8: jedn. miary roboty | E8: jedn. miary roboty
A9: M1 | B9: Wykopy | C9: =D9*1.1 -> 3203.75 | D9: ='Materiały (dane)'!D9 -> 2912.5 | E9: jedn. miary roboty
A10: M2 | B10: Fundamenty | C10: 1249.6 | D10: ='Materiały (dane)'!D10 -> 1136 | E10: jedn. miary roboty
A11: M3 | B11: Piwnice | C11: 3883 | D11: ='Materiały (dane)'!D11 -> 3530 | E11: jedn. miary roboty
A12: M4 | B12: Konstrukcja nadziemna | C12: 750.75 | D12: ='Materiały (dane)'!D12 -> 682.5 | E12: jedn. miary roboty
A13: M5 | B13: Konstrukcja dachu | C13: 4125 | D13: ='Materiały (dane)'!D13 -> 3750 | E13: jedn. miary roboty
A14: M6 | B14: Pokrycie dachu | C14: 1644.5 | D14: ='Materiały (dane)'!D14 -> 1495 | E14: jedn. miary roboty
A15: M7 | B15: Przyłącza | C15: =D15*1 -> 1472.5 | D15: ='Materiały (dane)'!D15 -> 1472.5 | E15: jedn. miary roboty
A16: M8 | B16: Zasypka fundamentów | C16: =D16*1 -> 12080 | D16: ='Materiały (dane)'!D16 -> 12080 | E16: jedn. miary roboty
A17: M9 | B17: Ściany działowe | C17: 6820 | D17: ='Materiały (dane)'!D17 -> 6820 | E17: jedn. miary roboty
A18: M10 | B18: Tynki wewnętrzne | C18: 1663.5 | D18: ='Materiały (dane)'!D18 -> 1663.5 | E18: jedn. miary roboty
A19: M11 | B19: Elewacja | C19: 3287.5 | D19: ='Materiały (dane)'!D19 -> 3287.5 | E19: jedn. miary roboty
A20: M12 | B20: Instalacje elektryczne | C20: 240 | D20: ='Materiały (dane)'!D20 -> 240 | E20: jedn. miary roboty
A21: M13 | B21: Instalacje sanitarne | C21: 157.5 | D21: ='Materiały (dane)'!D21 -> 157.5 | E21: jedn. miary roboty
A22: M14 | B22: Malowanie | C22: 1260 | D22: ='Materiały (dane)'!D22 -> 1260 | E22: jedn. miary roboty
A23: M15 | B23: Zagospodarowanie terenu | C23: =D23*1 -> 525 | D23: ='Materiały (dane)'!D23 -> 525 | E23: jedn. miary roboty

Sheet Podwykonawcy (hidden)
B2: C9 =E9 * 1.10 (koszty koordynacji działań podwykonawcy)
A8: Kod | B8: Robota | C8: Cena/jedn. miary roboty | D8: Podwykonawca | E8: Cena jedn. Podwyk. | F8: jedn. miary roboty
A9: P1 | B9: Wykopy | C9: =E9*1.1 -> 2585 | D9: Podwykonawca "1" | E9: 2350 | F9: jedn. miary roboty
A10: P2 | B10: Fundamenty | C10: =E10*1.1 -> 1210 | D10: Podwykonawca "2" | E10: 1100 | F10: jedn. miary roboty
A11: P3 | B11: Piwnice | C11: =E11*1.1 -> 3740 | D11: Podwykonawca "3" | E11: 3400 | F11: jedn. miary roboty
A12: P4 | B12: Konstrukcja nadziemna | C12: 880 | D12: Podwykonawca "4" | E12: 800 | F12: jedn. miary roboty
A13: P5 | B13: Konstrukcja dachu | C13: 4070 | D13: Podwykonawca "5" | E13: 3700 | F13: jedn. miary roboty
A14: P6 | B14: Pokrycie dachu | C14: 1265 | D14: Podwykonawca "6" | E14: 1150 | F14: jedn. miary roboty
A15: P7 | B15: Przyłącza | C15: 1650 | D15: Podwykonawca "7" | E15: 1500 | F15: jedn. miary roboty
A16: P8 | B16: Zasypka fundamentów | C16: 7810 | D16: Podwykonawca "8" | E16: 7100 | F16: jedn. miary roboty
A17: P9 | B17: Ściany działowe | C17: 5500 | D17: Podwykonawca "9" | E17: 5000 | F17: jedn. miary roboty
A18: P10 | B18: Tynki wewnętrzne | C18: 1595 | D18: Podwykonawca "10" | E18: 1450 | F18: jedn. miary roboty
A19: P11 | B19: Elewacja | C19: =E19*1.1 -> 3135 | D19: Podwykonawca "11" | E19: 2850 | F19: jedn. miary roboty
A20: P12 | B20: Instalacje elektryczne | C20: =E20*1.1 -> 242 | D20: Podwykonawca "12" | E20: 220 | F20: jedn. miary roboty
A21: P13 | B21: Instalacje sanitarne | C21: =E21*1.1 -> 198 | D21: Podwykonawca "13" | E21: 180 | F21: jedn. miary roboty
A22: P14 | B22: Malowanie | C22: =E22*1.1 -> 1100 | D22: Podwykonawca "14" | E22: 1000 | F22: jedn. miary roboty
A23: P15 | B23: Zagospodarowanie terenu | C23: =E23*1.1 -> 495 | D23: Podwykonawca "15" | E23: 450 | F23: jedn. miary roboty

Sheet Metody (hidden)
M1: Wybór
A2: 1) | B2: 5 dni rob./tydz. | M2: BR-02 | S2: Brygada
A3: 2) | B3: 8 godz./dz.rob. | M3: M4 | S3: Materiały
A4: 3) | B4: Wydajność w godzinach ponadwymiarowych: 0,9 wydajności nominalnej (Nom.wyd.dz.), uzyskiwanej podczas 8-godzinnego czasu pracy . | M4: P1 | S4: Pwyk
A5: 4) | B5: Wynagrodzenie za wydłużony czas pracy: za pierwsze 4 nadgodziny = 1.2 wynagrodzenia zasadniczego,
B6: za każdą następną rozpoczętą godzinę = 1.5 wynagrodzenia zasadniczego.
O7: Koszty | R7: Wsp. wydajności
A8: Robota | B8: Kod metody | C8: Opis metody | D8: Koszt/dz. | E8: Wyd.dz. | F8: koszt jedn. | G8: j.m. | H8: Bryg. | I8: Pwyk | J8: Nom.wyd.dz. | K8: Zużycie materiałów | L8: Materiały | M8: godz./zm. | N8: Wsp.zmianowości | O8: M | P8: R+S | Q8: Pwyk | R8: Zima | S8: Wiosna/lato | T8: Jesień
A9: 1 | B9: CSI-01-1 | C9: Md 1 | D9: =SUM(O9:Q9) -> 326508.236 | E9: =J9+(M9-8)*0.9*J9/8 -> 98 | F9: =IF(E9=0,0,D9/E9) -> 3331.716694 | G9: j.m. | H9: BR-01 | J9: 80 | K9: =+E9 -> 98 | L9: M1 | M9: 10 | N9: =M9+IF(M9<=12,(M9-8)*0.2,4*0.2+(M9-12)*0.5) -> 10.4 | O9: =IF(LEFT(L9,1)="M",VLOOKUP(L9,Materiały!$A:$E,3,FALSE)*K9,0) -> 313967.5 | P9: =IF(LEFT(H9,1)="B",VLOOKUP(H9,Brygady!$A:$D,3,FALSE)/8*$N9,0) -> 12540.736 | Q9: =IF(LEFT(I9,1)="P",VLOOKUP(I9,Podwykonawcy!$A:$F,3,FALSE)*E9,0) -> 0 | R9: 0.8 | S9: 1 | T9: 0.9
B10: CSI-01-2 | C10: Md 2 | D10: 496385.3125 | E10: 85.75 | F10: 5788.75 | G10: j.m. | I10: P1 | J10: 70 | K10: 85.75 | L10: M1 | M10: 10 | N10: =M10+IF(M10<=12,(M10-8)*0.2,4*0.2+(M10-12)*0.5) -> 10.4 | O10: =IF(LEFT(L10,1)="M",VLOOKUP(L10,Materiały!$A:$E,3,FALSE)*K10,0) -> 274721.5625 | P10: =IF(LEFT(H10,1)="B",VLOOKUP(H10,Brygady!$A:$D,3,FALSE)/8*$N10,0) -> 0 | Q10: =IF(LEFT(I10,1)="P",VLOOKUP(I10,Podwykonawcy!$A:$F,3,FALSE)*E10,0) -> 221663.75 | R10: 0.8 | S10: 1 | T10: 0.9
B11: CSI-01-3 | C11: Md 3 | D11: 588521.72 | E11: 100 | F11: 5885.2172 | G11: j.m. | H11: BR-01 | I11: P1 | J11: 100 | K11: 100 | L11: M1 | M11: 8 | N11: 8 | O11: =IF(LEFT(L11,1)="M",VLOOKUP(L11,Materiały!$A:$E,3,FALSE)*K11,0) -> 320375 | P11: =IF(LEFT(H11,1)="B",VLOOKUP(H11,Brygady!$A:$D,3,FALSE)/8*$N11,0) -> 9646.72 | Q11: =IF(LEFT(I11,1)="P",VLOOKUP(I11,Podwykonawcy!$A:$F,3,FALSE)*E11,0) -> 258500 | R11: 0.8 | S11: 1 | T11: 0.9
A12: 2 | B12: CSI-02-1 | C12: Md 4 | D12: 81666.136 | E12: 61.25 | F12: 1333.324669 | G12: j.m. | H12: BR-02 | J12: 50 | K12: 61.25 | L12: M2 | M12: 10 | N12: 10.4 | O12: =IF(LEFT(L12,1)="M",VLOOKUP(L12,Materiały!$A:$E,3,FALSE)*K12,0) -> 76538 | P12: =IF(LEFT(H12,1)="B",VLOOKUP(H12,Brygady!$A:$D,3,FALSE)/8*$N12,0) -> 5128.136 | Q12: =IF(LEFT(I12,1)="P",VLOOKUP(I12,Podwykonawcy!$A:$F,3,FALSE)*E12,0) -> 0 | R12: 0.8 | S12: 1 | T12: 0.9
B13: CSI-02-2 | C13: Md 5 | D13: 188414.72 | E13: 75 | F13: 2512.196267 | G13: j.m. | H13: BR-02 | I13: P2 | J13: 75 | K13: 75 | L13: M2 | M13: 8 | N13: 8 | O13: =IF(LEFT(L13,1)="M",VLOOKUP(L13,Materiały!$A:$E,3,FALSE)*K13,0) -> 93720 | P13: =IF(LEFT(H13,1)="B",VLOOKUP(H13,Brygady!$A:$D,3,FALSE)/8*$N13,0) -> 3944.72 | Q13: =IF(LEFT(I13,1)="P",VLOOKUP(I13,Podwykonawcy!$A:$F,3,FALSE)*E13,0) -> 90750 | R13: 0.8 | S13: 1 | T13: 0.9
B14: CSI-02-3 | C14: Md 6 | D14: 196768 | E14: 80 | F14: 2459.6 | G14: j.m. | I14: P2 | J14: 80 | K14: 80 | L14: M2 | M14: 8 | N14: 8 | O14: =IF(LEFT(L14,1)="M",VLOOKUP(L14,Materiały!$A:$E,3,FALSE)*K14,0) -> 99968 | P14: =IF(LEFT(H14,1)="B",VLOOKUP(H14,Brygady!$A:$D,3,FALSE)/8*$N14,0) -> 0 | Q14: =IF(LEFT(I14,1)="P",VLOOKUP(I14,Podwykonawcy!$A:$F,3,FALSE)*E14,0) -> 96800 | R14: 0.8 | S14: 1 | T14: 0.9
A15: 3 | B15: CSI-03-1 | C15: Md 7 | D15: 425112.858 | E15: 108.75 | F15: 3909.083752 | G15: j.m. | H15: BR-03 | J15: 75 | K15: 108.75 | L15: M3 | M15: 12 | N15: 12.8 | O15: =IF(LEFT(L15,1)="M",VLOOKUP(L15,Materiały!$A:$E,3,FALSE)*K15,0) -> 422276.25 | P15: =IF(LEFT(H15,1)="B",VLOOKUP(H15,Brygady!$A:$D,3,FALSE)/8*$N15,0) -> 2836.608 | Q15: =IF(LEFT(I15,1)="P",VLOOKUP(I15,Podwykonawcy!$A:$F,3,FALSE)*E15,0) -> 0 | R15: 0.8 | S15: 1 | T15: 0.9
B16: CSI-03-2 | C16: Md 8 | D16: 762300 | E16: 100 | F16: 7623 | G16: j.m. | I16: P3 | J16: 100 | K16: 100 | L16: M3 | M16: 8 | N16: 8 | O16: =IF(LEFT(L16,1)="M",VLOOKUP(L16,Materiały!$A:$E,3,FALSE)*K16,0) -> 388300 | P16: =IF(LEFT(H16,1)="B",VLOOKUP(H16,Brygady!$A:$D,3,FALSE)/8*$N16,0) -> 0 | Q16: =IF(LEFT(I16,1)="P",VLOOKUP(I16,Podwykonawcy!$A:$F,3,FALSE)*E16,0) -> 374000 | R16: 0.8 | S16: 1 | T16: 0.9
A17: 4 | B17: CSI-04-1 | C17: Md 9 | D17: 139836.8125 | E17: 85.75 | F17: 1630.75 | G17: j.m. | I17: P4 | J17: 70 | K17: 85.75 | L17: M4 | M17: 10 | N17: 10.4 | O17: =IF(LEFT(L17,1)="M",VLOOKUP(L17,Materiały!$A:$E,3,FALSE)*K17,0) -> 64376.8125 | P17: =IF(LEFT(H17,1)="B",VLOOKUP(H17,Brygady!$A:$D,3,FALSE)/8*$N17,0) -> 0 | Q17: =IF(LEFT(I17,1)="P",VLOOKUP(I17,Podwykonawcy!$A:$F,3,FALSE)*E17,0) -> 75460 | R17: 0.8 | S17: 1 | T17: 0.9
B18: CSI-04-2 | C18: Md 10 | D18: 66058.09 | E18: 75 | F18: 880.7745333 | G18: j.m. | H18: BR-04 | J18: 75 | K18: 75 | L18: M4 | M18: 8 | N18: 8 | O18: =IF(LEFT(L18,1)="M",VLOOKUP(L18,Materiały!$A:$E,3,FALSE)*K18,0) -> 56306.25 | P18: =IF(LEFT(H18,1)="B",VLOOKUP(H18,Brygady!$A:$D,3,FALSE)/8*$N18,0) -> 9751.84 | Q18: =IF(LEFT(I18,1)="P",VLOOKUP(I18,Podwykonawcy!$A:$F,3,FALSE)*E18,0) -> 0 | R18: 0.8 | S18: 1 | T18: 0.9
A19: 5 | B19: CSI-05-1 | C19: Md 11 | D19: 616880.6 | E19: 75 | F19: 8225.074667 | G19: j.m. | H19: BR-05 | I19: P5 | J19: 75 | K19: 75 | L19: M5 | M19: 8 | N19: 8 | O19: =IF(LEFT(L19,1)="M",VLOOKUP(L19,Materiały!$A:$E,3,FALSE)*K19,0) -> 309375 | P19: =IF(LEFT(H19,1)="B",VLOOKUP(H19,Brygady!$A:$D,3,FALSE)/8*$N19,0) -> 2255.6 | Q19: =IF(LEFT(I19,1)="P",VLOOKUP(I19,Podwykonawcy!$A:$F,3,FALSE)*E19,0) -> 305250 | R19: 0.8 | S19: 1 | T19: 0.9
A20: 6 | B20: CSI-06-1 | C20: Md 12 | D20: 264431 | E20: 90 | F20: 2938.122222 | G20: j.m. | H20: BR-06 | I20: P6 | J20: 90 | K20: 90 | L20: M6 | M20: 8 | N20: 8 | O20: =IF(LEFT(L20,1)="M",VLOOKUP(L20,Materiały!$A:$E,3,FALSE)*K20,0) -> 148005 | P20: =IF(LEFT(H20,1)="B",VLOOKUP(H20,Brygady!$A:$D,3,FALSE)/8*$N20,0) -> 2576 | Q20: =IF(LEFT(I20,1)="P",VLOOKUP(I20,Podwykonawcy!$A:$F,3,FALSE)*E20,0) -> 113850 | R20: 0.8 | S20: 1 | T20: 0.9
B21: CSI-06-2 | C21: Md 13 | D21: 134136 | E21: 80 | F21: 1676.7 | G21: j.m. | H21: BR-06 | J21: 80 | K21: 80 | L21: M6 | M21: 8 | N21: 8 | O21: =IF(LEFT(L21,1)="M",VLOOKUP(L21,Materiały!$A:$E,3,FALSE)*K21,0) -> 131560 | P21: =IF(LEFT(H21,1)="B",VLOOKUP(H21,Brygady!$A:$D,3,FALSE)/8*$N21,0) -> 2576 | Q21: =IF(LEFT(I21,1)="P",VLOOKUP(I21,Podwykonawcy!$A:$F,3,FALSE)*E21,0) -> 0 | R21: 0.8 | S21: 1 | T21: 0.9
A22: 7 | B22: CSI-07-1 | C22: Md 14 | D22: 176819.3565 | E22: 55.125 | F22: 3207.607374 | G22: j.m. | H22: BR-07 | I22: P7 | J22: 45 | K22: 55.125 | L22: M7 | M22: 10 | N22: 10.4 | O22: =IF(LEFT(L22,1)="M",VLOOKUP(L22,Materiały!$A:$E,3,FALSE)*K22,0) -> 81171.5625 | P22: =IF(LEFT(H22,1)="B",VLOOKUP(H22,Brygady!$A:$D,3,FALSE)/8*$N22,0) -> 4691.544 | Q22: =IF(LEFT(I22,1)="P",VLOOKUP(I22,Podwykonawcy!$A:$F,3,FALSE)*E22,0) -> 90956.25 | R22: 0.8 | S22: 1 | T22: 0.9
B23: CSI-07-2 | C23: Md 15 | D23: 156125 | E23: 50 | F23: 3122.5 | G23: j.m. | I23: P7 | J23: 50 | K23: 50 | L23: M7 | M23: 8 | N23: 8 | O23: =IF(LEFT(L23,1)="M",VLOOKUP(L23,Materiały!$A:$E,3,FALSE)*K23,0) -> 73625 | P23: =IF(LEFT(H23,1)="B",VLOOKUP(H23,Brygady!$A:$D,3,FALSE)/8*$N23,0) -> 0 | Q23: =IF(LEFT(I23,1)="P",VLOOKUP(I23,Podwykonawcy!$A:$F,3,FALSE)*E23,0) -> 82500 | R23: 0.8 | S23: 1 | T23: 0.9
A24: 8 | B24: CSI-08-1 | C24: Md 16 | D24: 526581.136 | E24: 42.875 | F24: 12281.77577 | G24: j.m. | H24: BR-08 | J24: 35 | K24: 42.875 | L24: M8 | M24: 10 | N24: 10.4 | O24: =IF(LEFT(L24,1)="M",VLOOKUP(L24,Materiały!$A:$E,3,FALSE)*K24,0) -> 517930 | P24: =IF(LEFT(H24,1)="B",VLOOKUP(H24,Brygady!$A:$D,3,FALSE)/8*$N24,0) -> 8651.136 | Q24: =IF(LEFT(I24,1)="P",VLOOKUP(I24,Podwykonawcy!$A:$F,3,FALSE)*E24,0) -> 0 | R24: 0.8 | S24: 1 | T24: 0.9
B25: CSI-08-2 | C25: Md 17 | D25: 802254.72 | E25: 40 | F25: 20056.368 | G25: j.m. | H25: BR-08 | I25: P8 | J25: 40 | K25: 40 | L25: M8 | M25: 8 | N25: 8 | O25: =IF(LEFT(L25,1)="M",VLOOKUP(L25,Materiały!$A:$E,3,FALSE)*K25,0) -> 483200 | P25: =IF(LEFT(H25,1)="B",VLOOKUP(H25,Brygady!$A:$D,3,FALSE)/8*$N25,0) -> 6654.72 | Q25: =IF(LEFT(I25,1)="P",VLOOKUP(I25,Podwykonawcy!$A:$F,3,FALSE)*E25,0) -> 312400 | R25: 0.8 | S25: 1 | T25: 0.9
B26: CSI-08-3 | C26: Md 18 | D26: 795600 | E26: 40 | F26: 19890 | G26: j.m. | I26: P8 | J26: 40 | K26: 40 | L26: M8 | M26: 8 | N26: 8 | O26: =IF(LEFT(L26,1)="M",VLOOKUP(L26,Materiały!$A:$E,3,FALSE)*K26,0) -> 483200 | P26: =IF(LEFT(H26,1)="B",VLOOKUP(H26,Brygady!$A:$D,3,FALSE)/8*$N26,0) -> 0 | Q26: =IF(LEFT(I26,1)="P",VLOOKUP(I26,Podwykonawcy!$A:$F,3,FALSE)*E26,0) -> 312400 | R26: 0.8 | S26: 1 | T26: 0.9
A27: 9 | B27: CSI-09-1 | C27: Md 19 | D27: 494572.88 | E27: 40 | F27: 12364.322 | G27: j.m. | H27: BR-09 | I27: P9 | J27: 40 | K27: 40 | L27: M9 | M27: 8 | N27: 8 | O27: =IF(LEFT(L27,1)="M",VLOOKUP(L27,Materiały!$A:$E,3,FALSE)*K27,0) -> 272800 | P27: =IF(LEFT(H27,1)="B",VLOOKUP(H27,Brygady!$A:$D,3,FALSE)/8*$N27,0) -> 1772.88 | Q27: =IF(LEFT(I27,1)="P",VLOOKUP(I27,Podwykonawcy!$A:$F,3,FALSE)*E27,0) -> 220000 | R27: 0.8 | S27: 1 | T27: 0.9
B28: CSI-09-2 | C28: Md 20 | D28: 554400 | E28: 45 | F28: 12320 | G28: j.m. | I28: P9 | J28: 45 | K28: 45 | L28: M9 | M28: 8 | N28: 8 | O28: =IF(LEFT(L28,1)="M",VLOOKUP(L28,Materiały!$A:$E,3,FALSE)*K28,0) -> 306900 | P28: =IF(LEFT(H28,1)="B",VLOOKUP(H28,Brygady!$A:$D,3,FALSE)/8*$N28,0) -> 0 | Q28: =IF(LEFT(I28,1)="P",VLOOKUP(I28,Podwykonawcy!$A:$F,3,FALSE)*E28,0) -> 247500 | R28: 0.8 | S28: 1 | T28: 0.9
B29: CSI-09-3 | C29: Md 21 | D29: 342772.88 | E29: 50 | F29: 6855.4576 | G29: j.m. | H29: BR-09 | J29: 50 | K29: 50 | L29: M9 | M29: 8 | N29: 8 | O29: =IF(LEFT(L29,1)="M",VLOOKUP(L29,Materiały!$A:$E,3,FALSE)*K29,0) -> 341000 | P29: =IF(LEFT(H29,1)="B",VLOOKUP(H29,Brygady!$A:$D,3,FALSE)/8*$N29,0) -> 1772.88 | Q29: =IF(LEFT(I29,1)="P",VLOOKUP(I29,Podwykonawcy!$A:$F,3,FALSE)*E29,0) -> 0 | R29: 0.8 | S29: 1 | T29: 0.9
A30: 10 | B30: CSI-10-1 | C30: Md 22 | D30: 101329.52 | E30: 60 | F30: 1688.825333 | G30: j.m. | H30: BR-10 | J30: 60 | K30: 60 | L30: M10 | M30: 8 | N30: 8 | O30: =IF(LEFT(L30,1)="M",VLOOKUP(L30,Materiały!$A:$E,3,FALSE)*K30,0) -> 99810 | P30: =IF(LEFT(H30,1)="B",VLOOKUP(H30,Brygady!$A:$D,3,FALSE)/8*$N30,0) -> 1519.52 | Q30: =IF(LEFT(I30,1)="P",VLOOKUP(I30,Podwykonawcy!$A:$F,3,FALSE)*E30,0) -> 0 | R30: 0.8 | S30: 1 | T30: 0.9
B31: CSI-10-2 | C31: Md 23 | D31: 144620.501 | E31: 85.75 | F31: 1686.536455 | G31: j.m. | H31: BR-10 | J31: 70 | K31: 85.75 | L31: M10 | M31: 10 | N31: 10.4 | O31: =IF(LEFT(L31,1)="M",VLOOKUP(L31,Materiały!$A:$E,3,FALSE)*K31,0) -> 142645.125 | P31: =IF(LEFT(H31,1)="B",VLOOKUP(H31,Brygady!$A:$D,3,FALSE)/8*$N31,0) -> 1975.376 | Q31: =IF(LEFT(I31,1)="P",VLOOKUP(I31,Podwykonawcy!$A:$F,3,FALSE)*E31,0) -> 0 | R31: 0.8 | S31: 1 | T31: 0.9
A32: 11 | B32: CSI-11-1 | C32: Md 24 | D32: 269745 | E32: 42 | F32: 6422.5 | G32: j.m. | I32: P11 | J32: 42 | K32: 42 | L32: M11 | M32: 8 | N32: 8 | O32: =IF(LEFT(L32,1)="M",VLOOKUP(L32,Materiały!$A:$E,3,FALSE)*K32,0) -> 138075 | P32: =IF(LEFT(H32,1)="B",VLOOKUP(H32,Brygady!$A:$D,3,FALSE)/8*$N32,0) -> 0 | Q32: =IF(LEFT(I32,1)="P",VLOOKUP(I32,Podwykonawcy!$A:$F,3,FALSE)*E32,0) -> 131670 | R32: 0.8 | S32: 1 | T32: 0.9
B33: CSI-11-2 | C33: Md 25 | D33: 260850.24 | E33: 40 | F33: 6521.256 | G33: j.m. | H33: BR-11 | I33: P11 | J33: 40 | K33: 40 | L33: M11 | M33: 8 | N33: 8 | O33: =IF(LEFT(L33,1)="M",VLOOKUP(L33,Materiały!$A:$E,3,FALSE)*K33,0) -> 131500 | P33: =IF(LEFT(H33,1)="B",VLOOKUP(H33,Brygady!$A:$D,3,FALSE)/8*$N33,0) -> 3950.24 | Q33: =IF(LEFT(I33,1)="P",VLOOKUP(I33,Podwykonawcy!$A:$F,3,FALSE)*E33,0) -> 125400 | R33: 0.8 | S33: 1 | T33: 0.9
A34: 12 | B34: CSI-12-1 | C34: Md 26 | D34: 13833.344 | E34: 49 | F34: 282.3131429 | G34: j.m. | H34: BR-12 | J34: 40 | K34: 49 | L34: M12 | M34: 10 | N34: 10.4 | O34: =IF(LEFT(L34,1)="M",VLOOKUP(L34,Materiały!$A:$E,3,FALSE)*K34,0) -> 11760 | P34: =IF(LEFT(H34,1)="B",VLOOKUP(H34,Brygady!$A:$D,3,FALSE)/8*$N34,0) -> 2073.344 | Q34: =IF(LEFT(I34,1)="P",VLOOKUP(I34,Podwykonawcy!$A:$F,3,FALSE)*E34,0) -> 0 | R34: 0.8 | S34: 1 | T34: 0.9
B35: CSI-12-2 | C35: Md 27 | D35: 18464.88 | E35: 35 | F35: 527.568 | G35: j.m. | H35: BR-12 | I35: P12 | J35: 35 | K35: 35 | L35: M12 | M35: 8 | N35: 8 | O35: =IF(LEFT(L35,1)="M",VLOOKUP(L35,Materiały!$A:$E,3,FALSE)*K35,0) -> 8400 | P35: =IF(LEFT(H35,1)="B",VLOOKUP(H35,Brygady!$A:$D,3,FALSE)/8*$N35,0) -> 1594.88 | Q35: =IF(LEFT(I35,1)="P",VLOOKUP(I35,Podwykonawcy!$A:$F,3,FALSE)*E35,0) -> 8470 | R35: 0.8 | S35: 1 | T35: 0.9
B36: CSI-12-3 | C36: Md 28 | D36: 18464.88 | E36: 35 | F36: 527.568 | G36: j.m. | H36: BR-12 | I36: P12 | J36: 35 | K36: 35 | L36: M12 | M36: 8 | N36: 8 | O36: =IF(LEFT(L36,1)="M",VLOOKUP(L36,Materiały!$A:$E,3,FALSE)*K36,0) -> 8400 | P36: =IF(LEFT(H36,1)="B",VLOOKUP(H36,Brygady!$A:$D,3,FALSE)/8*$N36,0) -> 1594.88 | Q36: =IF(LEFT(I36,1)="P",VLOOKUP(I36,Podwykonawcy!$A:$F,3,FALSE)*E36,0) -> 8470 | R36: 0.8 | S36: 1 | T36: 0.9
A37: 13 | B37: CSI-13-2 | C37: Md 29 | D37: 5913.582 | E37: 24.5 | F37: 241.3706939 | G37: j.m. | H37: BR-13 | J37: 20 | K37: 24.5 | L37: M13 | M37: 10 | N37: 10.4 | O37: =IF(LEFT(L37,1)="M",VLOOKUP(L37,Materiały!$A:$E,3,FALSE)*K37,0) -> 3858.75 | P37: =IF(LEFT(H37,1)="B",VLOOKUP(H37,Brygady!$A:$D,3,FALSE)/8*$N37,0) -> 2054.832 | Q37: =IF(LEFT(I37,1)="P",VLOOKUP(I37,Podwykonawcy!$A:$F,3,FALSE)*E37,0) -> 0 | R37: 0.8 | S37: 1 | T37: 0.9
A38: 14 | B38: CSI-14-1 | C38: Md 30 | D38: 59000 | E38: 25 | F38: 2360 | G38: j.m. | I38: P14 | J38: 25 | K38: 25 | L38: M14 | M38: 8 | N38: 8 | O38: =IF(LEFT(L38,1)="M",VLOOKUP(L38,Materiały!$A:$E,3,FALSE)*K38,0) -> 31500 | P38: =IF(LEFT(H38,1)="B",VLOOKUP(H38,Brygady!$A:$D,3,FALSE)/8*$N38,0) -> 0 | Q38: =IF(LEFT(I38,1)="P",VLOOKUP(I38,Podwykonawcy!$A:$F,3,FALSE)*E38,0) -> 27500 | R38: 0.8 | S38: 1 | T38: 0.9
B39: CSI-14-3 | C39: Md 31 | D39: 29691.2 | E39: 20 | F39: 1484.56 | G39: j.m. | H39: BR-14 | J39: 20 | K39: 20 | L39: M14 | M39: 8 | N39: 8 | O39: =IF(LEFT(L39,1)="M",VLOOKUP(L39,Materiały!$A:$E,3,FALSE)*K39,0) -> 25200 | P39: =IF(LEFT(H39,1)="B",VLOOKUP(H39,Brygady!$A:$D,3,FALSE)/8*$N39,0) -> 4491.2 | Q39: =IF(LEFT(I39,1)="P",VLOOKUP(I39,Podwykonawcy!$A:$F,3,FALSE)*E39,0) -> 0 | R39: 0.8 | S39: 1 | T39: 0.9
A40: 15 | B40: CSI-15-1 | C40: Md 32 | D40: 12754.72 | E40: 20 | F40: 637.736 | G40: j.m. | H40: BR-15 | J40: 20 | K40: 20 | L40: M15 | M40: 8 | N40: 8 | O40: =IF(LEFT(L40,1)="M",VLOOKUP(L40,Materiały!$A:$E,3,FALSE)*K40,0) -> 10500 | P40: =IF(LEFT(H40,1)="B",VLOOKUP(H40,Brygady!$A:$D,3,FALSE)/8*$N40,0) -> 2254.72 | Q40: =IF(LEFT(I40,1)="P",VLOOKUP(I40,Podwykonawcy!$A:$F,3,FALSE)*E40,0) -> 0 | R40: 0.8 | S40: 1 | T40: 0.9

Sheet Koszty (hidden)
J2: Wybór | AC2: Wsp. wyd. jest ustalany na podstawie przewidywanego miesiąca, w którym będzie wykonywana robota
B3: Projekt: | C3: Osiedle | E3: B=roboty ogólnobudowlane | AC3: Wykonywanie robót w okresie jesienno-zimowym powoduje wzrost kosztów R+S i wydłużenie czasu wykonania
B4: Lokalizacja: | C4: Warszawa | E4: E=instalacje elektryczne
B5: Data oferty | C5: 2013-01-01 | E5: S=instalacje sanitarne
B6: Data rozp.: | J6: =3*3*2*2*1*2*2*3*3*2*2*3*2*3*1*2*3*3 -> 1679616 | AS6: 0
AK7: Dane do wyboru metody
A8: Lp | B8: Robota | C8: Ilość | D8: j.m. | E8: WBS1 | F8: WBS2 | G8: WBS3 | H8: WBS4 | I8: Metoda1 | J8: Ilość | K8: Metoda2 | L8: Ilość | M8: Metoda3 | N8: Ilość | O8: Metoda | P8: Mies. | Q8: koszt jedn. | R8: Koszt | T8: Metoda wybrana | U8: Czynność | V8: Ilość | W8: j.m. | X8: Brygada | Y8: Pwyk | Z8: Materiały | AA8: Wyd.dz. | AB8: godz./dz. | AC8: R+S | AD8: Pwyk | AE8: M | AF8: Czas nom. | AG8: Wsp. wyd. | AH8: Czas plan. | AI8: Koszt plan. | AJ8: Koszt jedn. | AK8: Robota | AL8: K1 | AM8: D1 | AN8: K2 | AO8: D2 | AP8: K3 | AQ8: D3
A9: 1 | B9: Wykopy | C9: 800 | D9: mb | E9: B | F9: A1 | G9: W1 | H9: P1 | I9: Md 1 | J9: =+C9 -> 800 | K9: Md 2 | L9: =+C9 -> 800 | M9: Md 3 | N9: =+C9 -> 800 | O9: =#REF! ->  | P9: 1 | Q9: =R9/C9 ->  | R9: =AI9 ->  | T9: =INDEX(I9:N9,1,O9*2-1) ->  | U9: =T9& "\"& E9& "\"&F9& "\"&G9& "\"&H9 ->  | V9: =IF($T9=0,$C9,INDEX(I9:N9,1,$O9*2)) ->  | W9: =IF($T9=0,$D9, VLOOKUP($T9,Metody!$C:$Q,5,0)) ->  | X9: =IF($T9=0,0,IF(VLOOKUP($T9,Metody!$C:$Q,6,0)=0,"",VLOOKUP($T9,Metody!$C:$Q,6,0))) ->  | Y9: =IF($T9=0,0,IF(VLOOKUP($T9,Metody!$C:$Q,7,0)=0,"",VLOOKUP($T9,Metody!$C:$Q,7,0))) ->  | Z9: =IF($T9=0,0,IF(VLOOKUP($T9,Metody!$C:$Q,10,0)=0,"",VLOOKUP($T9,Metody!$C:$Q,10,0))) ->  | AA9: =IF($T9=0,0,VLOOKUP($T9,Metody!$C:$Q,3,0)) ->  | AB9: =IF($T9=0,0,VLOOKUP($T9,Metody!$C:$Q,11,0)) ->  | AC9: =IF($T9=0,0,VLOOKUP($T9,Metody!$C:$Q,14,0)*AH9) ->  | AD9: =IF($T9=0,0,IF(LEFT(Y9,1)="S",VLOOKUP(Y9,Podwykonawcy!$A:$F,3,FALSE)*V9/AG9,0)) ->  | AE9: =IF($T9=0,0,VLOOKUP($T9,Metody!$C:$Q,13,0)*AF9) ->  | AF9: =IF($T9=0,0,IF(V9>0,V9/VLOOKUP(T9,Metody!$C:$E,3,0),0)) ->  | AG9: =IF($T9=0,0,IF(P9<=4,VLOOKUP($T9,Metody!$C:$T,16,0),IF(P9>=9,VLOOKUP($T9,Metody!$C:$T,18,0),VLOOKUP($T9,Metody!$C:$T,17,0)))) ->  | AH9: =IF($T9=0,0,AF9/AG9) ->  | AI9: =SUM(AC9:AE9) ->  | AJ9: =AI9/V9 ->  | AK9: =IF($T9=0,0,$B9) ->  | AL9: =IF($I9<>0,SUM(VLOOKUP($I9,Metody!$C:$Q,14,0)*$AM9,VLOOKUP($I9,Metody!$C:$Q,13,0)*$J9/VLOOKUP($I9,Metody!$C:$E,3,0),IF(VLOOKUP($I9,Metody!$C:$Q,7,0)=0,0,VLOOKUP($I9,Metody!$C:$Q,15,0)*$AM9)),0) -> 2690966.694 | AM9: =IF(J9>0,J9/VLOOKUP($I9,Metody!$C:$E,3,0)/IF(P9<=4,VLOOKUP($I9,Metody!$C:$T,16,0),IF(P9>=9,VLOOKUP($I9,Metody!$C:$T,18,0),VLOOKUP($I9,Metody!$C:$T,17,0))),0) -> 10.20408163 | AN9: =IF($K9<>0,SUM(VLOOKUP($K9,Metody!$C:$Q,14,0)*$AO9,VLOOKUP($K9,Metody!$C:$Q,13,0)*$L9/VLOOKUP($K9,Metody!$C:$E,3,0),IF(VLOOKUP($K9,Metody!$C:$Q,7,0)=0,0,VLOOKUP($K9,Metody!$C:$Q,15,0)*$AO9)),0) -> 5148000 | AO9: =IF(L9>0,L9/VLOOKUP($K9,Metody!$C:$E,3,0)/IF(P9<=4,VLOOKUP($K9,Metody!$C:$T,16,0),IF(P9>=9,VLOOKUP($K9,Metody!$C:$T,18,0),VLOOKUP($K9,Metody!$C:$T,17,0))),0) -> 11.66180758 | AP9: =IF($M9<>0,SUM(VLOOKUP($M9,Metody!$C:$Q,14,0)*$AQ9,VLOOKUP($M9,Metody!$C:$Q,13,0)*$N9/VLOOKUP($M9,Metody!$C:$E,3,0),IF(VLOOKUP($M9,Metody!$C:$Q,7,0)=0,0,VLOOKUP($M9,Metody!$C:$Q,15,0)*$AQ9)),0) -> 5244467.2 | AQ9: =IF(N9>0,N9/VLOOKUP($M9,Metody!$C:$E,3,0)/IF(P9<=4,VLOOKUP($M9,Metody!$C:$T,16,0),IF(P9>=9,VLOOKUP($M9,Metody!$C:$T,18,0),VLOOKUP($M9,Metody!$C:$T,17,0))),0) -> 10
A10: 2 | B10: Fundamenty | C10: 300 | D10: m3 | E10: B | F10: A1 | G10: W1 | H10: P1 | I10: Md 4 | J10: =+C10 -> 300 | K10: Md 5 | L10: =+C10 -> 300 | M10: Md 6 | N10: =+C10 -> 300 | O10: =#REF! ->  | P10: 1 | U10: =T10& "\"& E10& "\"&F10& "\"&G10& "\"&H10 ->  | W10: =IF($T10=0,$D10, VLOOKUP($T10,Metody!$C:$Q,5,0)) ->  | X10: =IF($T10=0,0,IF(VLOOKUP($T10,Metody!$C:$Q,6,0)=0,"",VLOOKUP($T10,Metody!$C:$Q,6,0))) ->  | Y10: =IF($T10=0,0,IF(VLOOKUP($T10,Metody!$C:$Q,7,0)=0,"",VLOOKUP($T10,Metody!$C:$Q,7,0))) ->  | Z10: =IF($T10=0,0,IF(VLOOKUP($T10,Metody!$C:$Q,10,0)=0,"",VLOOKUP($T10,Metody!$C:$Q,10,0))) ->  | AA10: =IF($T10=0,0,VLOOKUP($T10,Metody!$C:$Q,3,0)) ->  | AB10: =IF($T10=0,0,VLOOKUP($T10,Metody!$C:$Q,11,0)) ->  | AC10: =IF($T10=0,0,VLOOKUP($T10,Metody!$C:$Q,14,0)*AH10) ->  | AD10: =IF($T10=0,0,IF(LEFT(Y10,1)="S",VLOOKUP(Y10,Podwykonawcy!$A:$F,3,FALSE)*V10/AG10,0)) ->  | AE10: =IF($T10=0,0,VLOOKUP($T10,Metody!$C:$Q,13,0)*AF10) ->  | AF10: =IF($T10=0,0,IF(V10>0,V10/VLOOKUP(T10,Metody!$C:$E,3,0),0)) ->  | AG10: =IF($T10=0,0,IF(P10<=4,VLOOKUP($T10,Metody!$C:$T,16,0),IF(P10>=9,VLOOKUP($T10,Metody!$C:$T,18,0),VLOOKUP($T10,Metody!$C:$T,17,0)))) ->  | AL10: =IF($I10<>0,SUM(VLOOKUP($I10,Metody!$C:$Q,14,0)*$AM10,VLOOKUP($I10,Metody!$C:$Q,13,0)*$J10/VLOOKUP($I10,Metody!$C:$E,3,0),IF(VLOOKUP($I10,Metody!$C:$Q,7,0)=0,0,VLOOKUP($I10,Metody!$C:$Q,15,0)*$AM10)),0) -> 406276.751 | AM10: =IF(J10>0,J10/VLOOKUP($I10,Metody!$C:$E,3,0)/IF(P10<=4,VLOOKUP($I10,Metody!$C:$T,16,0),IF(P10>=9,VLOOKUP($I10,Metody!$C:$T,18,0),VLOOKUP($I10,Metody!$C:$T,17,0))),0) -> 6.12244898 | AN10: =IF($K10<>0,SUM(VLOOKUP($K10,Metody!$C:$Q,14,0)*$AO10,VLOOKUP($K10,Metody!$C:$Q,13,0)*$L10/VLOOKUP($K10,Metody!$C:$E,3,0),IF(VLOOKUP($K10,Metody!$C:$Q,7,0)=0,0,VLOOKUP($K10,Metody!$C:$Q,15,0)*$AO10)),0) -> 848353.6 | AO10: =IF(L10>0,L10/VLOOKUP($K10,Metody!$C:$E,3,0)/IF(P10<=4,VLOOKUP($K10,Metody!$C:$T,16,0),IF(P10>=9,VLOOKUP($K10,Metody!$C:$T,18,0),VLOOKUP($K10,Metody!$C:$T,17,0))),0) -> 5 | AP10: =IF($M10<>0,SUM(VLOOKUP($M10,Metody!$C:$Q,14,0)*$AQ10,VLOOKUP($M10,Metody!$C:$Q,13,0)*$N10/VLOOKUP($M10,Metody!$C:$E,3,0),IF(VLOOKUP($M10,Metody!$C:$Q,7,0)=0,0,VLOOKUP($M10,Metody!$C:$Q,15,0)*$AQ10)),0) -> 828630 | AQ10: =IF(N10>0,N10/VLOOKUP($M10,Metody!$C:$E,3,0)/IF(P10<=4,VLOOKUP($M10,Metody!$C:$T,16,0),IF(P10>=9,VLOOKUP($M10,Metody!$C:$T,18,0),VLOOKUP($M10,Metody!$C:$T,17,0))),0) -> 4.6875
A11: 3 | B11: Piwnice | C11: 300 | D11: m3 | E11: B | F11: A1 | G11: W1 | H11: P1 | I11: Md 7 | J11: 300 | K11: Md 8 | L11: 300 | O11: =#REF! ->  | P11: 1 | W11: =IF($T11=0,$D11, VLOOKUP($T11,Metody!$C:$Q,5,0)) ->  | X11: =IF($T11=0,0,IF(VLOOKUP($T11,Metody!$C:$Q,6,0)=0,"",VLOOKUP($T11,Metody!$C:$Q,6,0))) ->  | Y11: =IF($T11=0,0,IF(VLOOKUP($T11,Metody!$C:$Q,7,0)=0,"",VLOOKUP($T11,Metody!$C:$Q,7,0))) ->  | Z11: =IF($T11=0,0,IF(VLOOKUP($T11,Metody!$C:$Q,10,0)=0,"",VLOOKUP($T11,Metody!$C:$Q,10,0))) ->  | AA11: =IF($T11=0,0,VLOOKUP($T11,Metody!$C:$Q,3,0)) ->  | AB11: =IF($T11=0,0,VLOOKUP($T11,Metody!$C:$Q,11,0)) ->  | AC11: =IF($T11=0,0,VLOOKUP($T11,Metody!$C:$Q,14,0)*AH11) ->  | AD11: =IF($T11=0,0,IF(LEFT(Y11,1)="S",VLOOKUP(Y11,Podwykonawcy!$A:$F,3,FALSE)*V11/AG11,0)) ->  | AE11: =IF($T11=0,0,VLOOKUP($T11,Metody!$C:$Q,13,0)*AF11) ->  | AF11: =IF($T11=0,0,IF(V11>0,V11/VLOOKUP(T11,Metody!$C:$E,3,0),0)) ->  | AG11: =IF($T11=0,0,IF(P11<=4,VLOOKUP($T11,Metody!$C:$T,16,0),IF(P11>=9,VLOOKUP($T11,Metody!$C:$T,18,0),VLOOKUP($T11,Metody!$C:$T,17,0)))) ->  | AL11: =IF($I11<>0,SUM(VLOOKUP($I11,Metody!$C:$Q,14,0)*$AM11,VLOOKUP($I11,Metody!$C:$Q,13,0)*$J11/VLOOKUP($I11,Metody!$C:$E,3,0),IF(VLOOKUP($I11,Metody!$C:$Q,7,0)=0,0,VLOOKUP($I11,Metody!$C:$Q,15,0)*$AM11)),0) -> 1174681.407 | AM11: =IF(J11>0,J11/VLOOKUP($I11,Metody!$C:$E,3,0)/IF(P11<=4,VLOOKUP($I11,Metody!$C:$T,16,0),IF(P11>=9,VLOOKUP($I11,Metody!$C:$T,18,0),VLOOKUP($I11,Metody!$C:$T,17,0))),0) -> 3.448275862 | AN11: =IF($K11<>0,SUM(VLOOKUP($K11,Metody!$C:$Q,14,0)*$AO11,VLOOKUP($K11,Metody!$C:$Q,13,0)*$L11/VLOOKUP($K11,Metody!$C:$E,3,0),IF(VLOOKUP($K11,Metody!$C:$Q,7,0)=0,0,VLOOKUP($K11,Metody!$C:$Q,15,0)*$AO11)),0) -> 2567400 | AO11: =IF(L11>0,L11/VLOOKUP($K11,Metody!$C:$E,3,0)/IF(P11<=4,VLOOKUP($K11,Metody!$C:$T,16,0),IF(P11>=9,VLOOKUP($K11,Metody!$C:$T,18,0),VLOOKUP($K11,Metody!$C:$T,17,0))),0) -> 3.75 | AP11: =IF($M11<>0,SUM(VLOOKUP($M11,Metody!$C:$Q,14,0)*$AQ11,VLOOKUP($M11,Metody!$C:$Q,13,0)*$N11/VLOOKUP($M11,Metody!$C:$E,3,0),IF(VLOOKUP($M11,Metody!$C:$Q,7,0)=0,0,VLOOKUP($M11,Metody!$C:$Q,15,0)*$AQ11)),0) -> 0 | AQ11: =IF(N11>0,N11/VLOOKUP($M11,Metody!$C:$E,3,0)/IF(P11<=4,VLOOKUP($M11,Metody!$C:$T,16,0),IF(P11>=9,VLOOKUP($M11,Metody!$C:$T,18,0),VLOOKUP($M11,Metody!$C:$T,17,0))),0) -> 0
A12: 4 | B12: Konstrukcja nadziemna | C12: 650 | D12: m3 | E12: B | F12: A1 | G12: W2 | H12: P1 | I12: Md 9 | J12: 650 | K12: Md 10 | L12: 650 | O12: =#REF! ->  | P12: 1 | W12: =IF($T12=0,$D12, VLOOKUP($T12,Metody!$C:$Q,5,0)) ->  | X12: =IF($T12=0,0,IF(VLOOKUP($T12,Metody!$C:$Q,6,0)=0,"",VLOOKUP($T12,Metody!$C:$Q,6,0))) ->  | Y12: =IF($T12=0,0,IF(VLOOKUP($T12,Metody!$C:$Q,7,0)=0,"",VLOOKUP($T12,Metody!$C:$Q,7,0))) ->  | Z12: =IF($T12=0,0,IF(VLOOKUP($T12,Metody!$C:$Q,10,0)=0,"",VLOOKUP($T12,Metody!$C:$Q,10,0))) ->  | AA12: =IF($T12=0,0,VLOOKUP($T12,Metody!$C:$Q,3,0)) ->  | AB12: =IF($T12=0,0,VLOOKUP($T12,Metody!$C:$Q,11,0)) ->  | AC12: =IF($T12=0,0,VLOOKUP($T12,Metody!$C:$Q,14,0)*AH12) ->  | AD12: =IF($T12=0,0,IF(LEFT(Y12,1)="S",VLOOKUP(Y12,Podwykonawcy!$A:$F,3,FALSE)*V12/AG12,0)) ->  | AE12: =IF($T12=0,0,VLOOKUP($T12,Metody!$C:$Q,13,0)*AF12) ->  | AF12: =IF($T12=0,0,IF(V12>0,V12/VLOOKUP(T12,Metody!$C:$E,3,0),0)) ->  | AG12: =IF($T12=0,0,IF(P12<=4,VLOOKUP($T12,Metody!$C:$T,16,0),IF(P12>=9,VLOOKUP($T12,Metody!$C:$T,18,0),VLOOKUP($T12,Metody!$C:$T,17,0)))) ->  | AL12: =IF($I12<>0,SUM(VLOOKUP($I12,Metody!$C:$Q,14,0)*$AM12,VLOOKUP($I12,Metody!$C:$Q,13,0)*$J12/VLOOKUP($I12,Metody!$C:$E,3,0),IF(VLOOKUP($I12,Metody!$C:$Q,7,0)=0,0,VLOOKUP($I12,Metody!$C:$Q,15,0)*$AM12)),0) -> 1202987.5 | AM12: =IF(J12>0,J12/VLOOKUP($I12,Metody!$C:$E,3,0)/IF(P12<=4,VLOOKUP($I12,Metody!$C:$T,16,0),IF(P12>=9,VLOOKUP($I12,Metody!$C:$T,18,0),VLOOKUP($I12,Metody!$C:$T,17,0))),0) -> 9.475218659 | AN12: =IF($K12<>0,SUM(VLOOKUP($K12,Metody!$C:$Q,14,0)*$AO12,VLOOKUP($K12,Metody!$C:$Q,13,0)*$L12/VLOOKUP($K12,Metody!$C:$E,3,0),IF(VLOOKUP($K12,Metody!$C:$Q,7,0)=0,0,VLOOKUP($K12,Metody!$C:$Q,15,0)*$AO12)),0) -> 593632.4333 | AO12: =IF(L12>0,L12/VLOOKUP($K12,Metody!$C:$E,3,0)/IF(P12<=4,VLOOKUP($K12,Metody!$C:$T,16,0),IF(P12>=9,VLOOKUP($K12,Metody!$C:$T,18,0),VLOOKUP($K12,Metody!$C:$T,17,0))),0) -> 10.83333333 | AP12: =IF($M12<>0,SUM(VLOOKUP($M12,Metody!$C:$Q,14,0)*$AQ12,VLOOKUP($M12,Metody!$C:$Q,13,0)*$N12/VLOOKUP($M12,Metody!$C:$E,3,0),IF(VLOOKUP($M12,Metody!$C:$Q,7,0)=0,0,VLOOKUP($M12,Metody!$C:$Q,15,0)*$AQ12)),0) -> 0 | AQ12: =IF(N12>0,N12/VLOOKUP($M12,Metody!$C:$E,3,0)/IF(P12<=4,VLOOKUP($M12,Metody!$C:$T,16,0),IF(P12>=9,VLOOKUP($M12,Metody!$C:$T,18,0),VLOOKUP($M12,Metody!$C:$T,17,0))),0) -> 0
A13: 5 | B13: Konstrukcja dachu | C13: 200 | D13: m2 | E13: B | F13: A2 | G13: W2 | H13: P1 | I13: Md 11 | J13: 200 | O13: =#REF! ->  | P13: 1 | W13: =IF($T13=0,$D13, VLOOKUP($T13,Metody!$C:$Q,5,0)) ->  | X13: =IF($T13=0,0,IF(VLOOKUP($T13,Metody!$C:$Q,6,0)=0,"",VLOOKUP($T13,Metody!$C:$Q,6,0))) ->  | Y13: =IF($T13=0,0,IF(VLOOKUP($T13,Metody!$C:$Q,7,0)=0,"",VLOOKUP($T13,Metody!$C:$Q,7,0))) ->  | Z13: =IF($T13=0,0,IF(VLOOKUP($T13,Metody!$C:$Q,10,0)=0,"",VLOOKUP($T13,Metody!$C:$Q,10,0))) ->  | AA13: =IF($T13=0,0,VLOOKUP($T13,Metody!$C:$Q,3,0)) ->  | AB13: =IF($T13=0,0,VLOOKUP($T13,Metody!$C:$Q,11,0)) ->  | AC13: =IF($T13=0,0,VLOOKUP($T13,Metody!$C:$Q,14,0)*AH13) ->  | AD13: =IF($T13=0,0,IF(LEFT(Y13,1)="S",VLOOKUP(Y13,Podwykonawcy!$A:$F,3,FALSE)*V13/AG13,0)) ->  | AE13: =IF($T13=0,0,VLOOKUP($T13,Metody!$C:$Q,13,0)*AF13) ->  | AF13: =IF($T13=0,0,IF(V13>0,V13/VLOOKUP(T13,Metody!$C:$E,3,0),0)) ->  | AG13: =IF($T13=0,0,IF(P13<=4,VLOOKUP($T13,Metody!$C:$T,16,0),IF(P13>=9,VLOOKUP($T13,Metody!$C:$T,18,0),VLOOKUP($T13,Metody!$C:$T,17,0)))) ->  | AL13: =IF($I13<>0,SUM(VLOOKUP($I13,Metody!$C:$Q,14,0)*$AM13,VLOOKUP($I13,Metody!$C:$Q,13,0)*$J13/VLOOKUP($I13,Metody!$C:$E,3,0),IF(VLOOKUP($I13,Metody!$C:$Q,7,0)=0,0,VLOOKUP($I13,Metody!$C:$Q,15,0)*$AM13)),0) -> 1850018.667 | AM13: =IF(J13>0,J13/VLOOKUP($I13,Metody!$C:$E,3,0)/IF(P13<=4,VLOOKUP($I13,Metody!$C:$T,16,0),IF(P13>=9,VLOOKUP($I13,Metody!$C:$T,18,0),VLOOKUP($I13,Metody!$C:$T,17,0))),0) -> 3.333333333 | AN13: =IF($K13<>0,SUM(VLOOKUP($K13,Metody!$C:$Q,14,0)*$AO13,VLOOKUP($K13,Metody!$C:$Q,13,0)*$L13/VLOOKUP($K13,Metody!$C:$E,3,0),IF(VLOOKUP($K13,Metody!$C:$Q,7,0)=0,0,VLOOKUP($K13,Metody!$C:$Q,15,0)*$AO13)),0) -> 0 | AO13: =IF(L13>0,L13/VLOOKUP($K13,Metody!$C:$E,3,0)/IF(P13<=4,VLOOKUP($K13,Metody!$C:$T,16,0),IF(P13>=9,VLOOKUP($K13,Metody!$C:$T,18,0),VLOOKUP($K13,Metody!$C:$T,17,0))),0) -> 0 | AP13: =IF($M13<>0,SUM(VLOOKUP($M13,Metody!$C:$Q,14,0)*$AQ13,VLOOKUP($M13,Metody!$C:$Q,13,0)*$N13/VLOOKUP($M13,Metody!$C:$E,3,0),IF(VLOOKUP($M13,Metody!$C:$Q,7,0)=0,0,VLOOKUP($M13,Metody!$C:$Q,15,0)*$AQ13)),0) -> 0 | AQ13: =IF(N13>0,N13/VLOOKUP($M13,Metody!$C:$E,3,0)/IF(P13<=4,VLOOKUP($M13,Metody!$C:$T,16,0),IF(P13>=9,VLOOKUP($M13,Metody!$C:$T,18,0),VLOOKUP($M13,Metody!$C:$T,17,0))),0) -> 0
A14: 6 | B14: Pokrycie dachu | C14: 200 | D14: m2 | E14: B | F14: A2 | G14: W2 | H14: P1 | I14: Md 12 | J14: 200 | K14: Md 13 | L14: 200 | O14: =#REF! ->  | P14: 1 | W14: =IF($T14=0,$D14, VLOOKUP($T14,Metody!$C:$Q,5,0)) ->  | X14: =IF($T14=0,0,IF(VLOOKUP($T14,Metody!$C:$Q,6,0)=0,"",VLOOKUP($T14,Metody!$C:$Q,6,0))) ->  | Y14: =IF($T14=0,0,IF(VLOOKUP($T14,Metody!$C:$Q,7,0)=0,"",VLOOKUP($T14,Metody!$C:$Q,7,0))) ->  | Z14: =IF($T14=0,0,IF(VLOOKUP($T14,Metody!$C:$Q,10,0)=0,"",VLOOKUP($T14,Metody!$C:$Q,10,0))) ->  | AA14: =IF($T14=0,0,VLOOKUP($T14,Metody!$C:$Q,3,0)) ->  | AB14: =IF($T14=0,0,VLOOKUP($T14,Metody!$C:$Q,11,0)) ->  | AC14: =IF($T14=0,0,VLOOKUP($T14,Metody!$C:$Q,14,0)*AH14) ->  | AD14: =IF($T14=0,0,IF(LEFT(Y14,1)="S",VLOOKUP(Y14,Podwykonawcy!$A:$F,3,FALSE)*V14/AG14,0)) ->  | AE14: =IF($T14=0,0,VLOOKUP($T14,Metody!$C:$Q,13,0)*AF14) ->  | AF14: =IF($T14=0,0,IF(V14>0,V14/VLOOKUP(T14,Metody!$C:$E,3,0),0)) ->  | AG14: =IF($T14=0,0,IF(P14<=4,VLOOKUP($T14,Metody!$C:$T,16,0),IF(P14>=9,VLOOKUP($T14,Metody!$C:$T,18,0),VLOOKUP($T14,Metody!$C:$T,17,0)))) ->  | AL14: =IF($I14<>0,SUM(VLOOKUP($I14,Metody!$C:$Q,14,0)*$AM14,VLOOKUP($I14,Metody!$C:$Q,13,0)*$J14/VLOOKUP($I14,Metody!$C:$E,3,0),IF(VLOOKUP($I14,Metody!$C:$Q,7,0)=0,0,VLOOKUP($I14,Metody!$C:$Q,15,0)*$AM14)),0) -> 652305.5556 | AM14: =IF(J14>0,J14/VLOOKUP($I14,Metody!$C:$E,3,0)/IF(P14<=4,VLOOKUP($I14,Metody!$C:$T,16,0),IF(P14>=9,VLOOKUP($I14,Metody!$C:$T,18,0),VLOOKUP($I14,Metody!$C:$T,17,0))),0) -> 2.777777778 | AN14: =IF($K14<>0,SUM(VLOOKUP($K14,Metody!$C:$Q,14,0)*$AO14,VLOOKUP($K14,Metody!$C:$Q,13,0)*$L14/VLOOKUP($K14,Metody!$C:$E,3,0),IF(VLOOKUP($K14,Metody!$C:$Q,7,0)=0,0,VLOOKUP($K14,Metody!$C:$Q,15,0)*$AO14)),0) -> 336950 | AO14: =IF(L14>0,L14/VLOOKUP($K14,Metody!$C:$E,3,0)/IF(P14<=4,VLOOKUP($K14,Metody!$C:$T,16,0),IF(P14>=9,VLOOKUP($K14,Metody!$C:$T,18,0),VLOOKUP($K14,Metody!$C:$T,17,0))),0) -> 3.125 | AP14: =IF($M14<>0,SUM(VLOOKUP($M14,Metody!$C:$Q,14,0)*$AQ14,VLOOKUP($M14,Metody!$C:$Q,13,0)*$N14/VLOOKUP($M14,Metody!$C:$E,3,0),IF(VLOOKUP($M14,Metody!$C:$Q,7,0)=0,0,VLOOKUP($M14,Metody!$C:$Q,15,0)*$AQ14)),0) -> 0 | AQ14: =IF(N14>0,N14/VLOOKUP($M14,Metody!$C:$E,3,0)/IF(P14<=4,VLOOKUP($M14,Metody!$C:$T,16,0),IF(P14>=9,VLOOKUP($M14,Metody!$C:$T,18,0),VLOOKUP($M14,Metody!$C:$T,17,0))),0) -> 0
A15: 7 | B15: Przyłącza | C15: 1 | D15: kpl | E15: S | F15: A1 | G15: W3 | H15: P2 | I15: Md 14 | J15: 100 | K15: Md 15 | L15: 100 | O15: =#REF! ->  | P15: 1 | W15: =IF($T15=0,$D15, VLOOKUP($T15,Metody!$C:$Q,5,0)) ->  | X15: =IF($T15=0,0,IF(VLOOKUP($T15,Metody!$C:$Q,6,0)=0,"",VLOOKUP($T15,Metody!$C:$Q,6,0))) ->  | Y15: =IF($T15=0,0,IF(VLOOKUP($T15,Metody!$C:$Q,7,0)=0,"",VLOOKUP($T15,Metody!$C:$Q,7,0))) ->  | Z15: =IF($T15=0,0,IF(VLOOKUP($T15,Metody!$C:$Q,10,0)=0,"",VLOOKUP($T15,Metody!$C:$Q,10,0))) ->  | AA15: =IF($T15=0,0,VLOOKUP($T15,Metody!$C:$Q,3,0)) ->  | AB15: =IF($T15=0,0,VLOOKUP($T15,Metody!$C:$Q,11,0)) ->  | AC15: =IF($T15=0,0,VLOOKUP($T15,Metody!$C:$Q,14,0)*AH15) ->  | AD15: =IF($T15=0,0,IF(LEFT(Y15,1)="S",VLOOKUP(Y15,Podwykonawcy!$A:$F,3,FALSE)*V15/AG15,0)) ->  | AE15: =IF($T15=0,0,VLOOKUP($T15,Metody!$C:$Q,13,0)*AF15) ->  | AF15: =IF($T15=0,0,IF(V15>0,V15/VLOOKUP(T15,Metody!$C:$E,3,0),0)) ->  | AG15: =IF($T15=0,0,IF(P15<=4,VLOOKUP($T15,Metody!$C:$T,16,0),IF(P15>=9,VLOOKUP($T15,Metody!$C:$T,18,0),VLOOKUP($T15,Metody!$C:$T,17,0)))) ->  | AL15: =IF($I15<>0,SUM(VLOOKUP($I15,Metody!$C:$Q,14,0)*$AM15,VLOOKUP($I15,Metody!$C:$Q,13,0)*$J15/VLOOKUP($I15,Metody!$C:$E,3,0),IF(VLOOKUP($I15,Metody!$C:$Q,7,0)=0,0,VLOOKUP($I15,Metody!$C:$Q,15,0)*$AM15)),0) -> 364138.4218 | AM15: =IF(J15>0,J15/VLOOKUP($I15,Metody!$C:$E,3,0)/IF(P15<=4,VLOOKUP($I15,Metody!$C:$T,16,0),IF(P15>=9,VLOOKUP($I15,Metody!$C:$T,18,0),VLOOKUP($I15,Metody!$C:$T,17,0))),0) -> 2.267573696 | AN15: =IF($K15<>0,SUM(VLOOKUP($K15,Metody!$C:$Q,14,0)*$AO15,VLOOKUP($K15,Metody!$C:$Q,13,0)*$L15/VLOOKUP($K15,Metody!$C:$E,3,0),IF(VLOOKUP($K15,Metody!$C:$Q,7,0)=0,0,VLOOKUP($K15,Metody!$C:$Q,15,0)*$AO15)),0) -> 353500 | AO15: =IF(L15>0,L15/VLOOKUP($K15,Metody!$C:$E,3,0)/IF(P15<=4,VLOOKUP($K15,Metody!$C:$T,16,0),IF(P15>=9,VLOOKUP($K15,Metody!$C:$T,18,0),VLOOKUP($K15,Metody!$C:$T,17,0))),0) -> 2.5 | AP15: =IF($M15<>0,SUM(VLOOKUP($M15,Metody!$C:$Q,14,0)*$AQ15,VLOOKUP($M15,Metody!$C:$Q,13,0)*$N15/VLOOKUP($M15,Metody!$C:$E,3,0),IF(VLOOKUP($M15,Metody!$C:$Q,7,0)=0,0,VLOOKUP($M15,Metody!$C:$Q,15,0)*$AQ15)),0) -> 0 | AQ15: =IF(N15>0,N15/VLOOKUP($M15,Metody!$C:$E,3,0)/IF(P15<=4,VLOOKUP($M15,Metody!$C:$T,16,0),IF(P15>=9,VLOOKUP($M15,Metody!$C:$T,18,0),VLOOKUP($M15,Metody!$C:$T,17,0))),0) -> 0
A16: 8 | B16: Zasypka fundamentów | C16: 300 | D16: m3 | E16: B | F16: A1 | G16: W3 | H16: P2 | I16: Md 16 | J16: 300 | K16: Md 17 | L16: 300 | M16: Md 18 | N16: =+C16 -> 300 | O16: =#REF! ->  | P16: 1 | W16: =IF($T16=0,$D16, VLOOKUP($T16,Metody!$C:$Q,5,0)) ->  | X16: =IF($T16=0,0,IF(VLOOKUP($T16,Metody!$C:$Q,6,0)=0,"",VLOOKUP($T16,Metody!$C:$Q,6,0))) ->  | Y16: =IF($T16=0,0,IF(VLOOKUP($T16,Metody!$C:$Q,7,0)=0,"",VLOOKUP($T16,Metody!$C:$Q,7,0))) ->  | Z16: =IF($T16=0,0,IF(VLOOKUP($T16,Metody!$C:$Q,10,0)=0,"",VLOOKUP($T16,Metody!$C:$Q,10,0))) ->  | AA16: =IF($T16=0,0,VLOOKUP($T16,Metody!$C:$Q,3,0)) ->  | AB16: =IF($T16=0,0,VLOOKUP($T16,Metody!$C:$Q,11,0)) ->  | AC16: =IF($T16=0,0,VLOOKUP($T16,Metody!$C:$Q,14,0)*AH16) ->  | AD16: =IF($T16=0,0,IF(LEFT(Y16,1)="S",VLOOKUP(Y16,Podwykonawcy!$A:$F,3,FALSE)*V16/AG16,0)) ->  | AE16: =IF($T16=0,0,VLOOKUP($T16,Metody!$C:$Q,13,0)*AF16) ->  | AF16: =IF($T16=0,0,IF(V16>0,V16/VLOOKUP(T16,Metody!$C:$E,3,0),0)) ->  | AG16: =IF($T16=0,0,IF(P16<=4,VLOOKUP($T16,Metody!$C:$T,16,0),IF(P16>=9,VLOOKUP($T16,Metody!$C:$T,18,0),VLOOKUP($T16,Metody!$C:$T,17,0)))) ->  | AL16: =IF($I16<>0,SUM(VLOOKUP($I16,Metody!$C:$Q,14,0)*$AM16,VLOOKUP($I16,Metody!$C:$Q,13,0)*$J16/VLOOKUP($I16,Metody!$C:$E,3,0),IF(VLOOKUP($I16,Metody!$C:$Q,7,0)=0,0,VLOOKUP($I16,Metody!$C:$Q,15,0)*$AM16)),0) -> 3699665.913 | AM16: =IF(J16>0,J16/VLOOKUP($I16,Metody!$C:$E,3,0)/IF(P16<=4,VLOOKUP($I16,Metody!$C:$T,16,0),IF(P16>=9,VLOOKUP($I16,Metody!$C:$T,18,0),VLOOKUP($I16,Metody!$C:$T,17,0))),0) -> 8.746355685 | AN16: =IF($K16<>0,SUM(VLOOKUP($K16,Metody!$C:$Q,14,0)*$AO16,VLOOKUP($K16,Metody!$C:$Q,13,0)*$L16/VLOOKUP($K16,Metody!$C:$E,3,0),IF(VLOOKUP($K16,Metody!$C:$Q,7,0)=0,0,VLOOKUP($K16,Metody!$C:$Q,15,0)*$AO16)),0) -> 6615138 | AO16: =IF(L16>0,L16/VLOOKUP($K16,Metody!$C:$E,3,0)/IF(P16<=4,VLOOKUP($K16,Metody!$C:$T,16,0),IF(P16>=9,VLOOKUP($K16,Metody!$C:$T,18,0),VLOOKUP($K16,Metody!$C:$T,17,0))),0) -> 9.375 | AP16: =IF($M16<>0,SUM(VLOOKUP($M16,Metody!$C:$Q,14,0)*$AQ16,VLOOKUP($M16,Metody!$C:$Q,13,0)*$N16/VLOOKUP($M16,Metody!$C:$E,3,0),IF(VLOOKUP($M16,Metody!$C:$Q,7,0)=0,0,VLOOKUP($M16,Metody!$C:$Q,15,0)*$AQ16)),0) -> 6552750 | AQ16: =IF(N16>0,N16/VLOOKUP($M16,Metody!$C:$E,3,0)/IF(P16<=4,VLOOKUP($M16,Metody!$C:$T,16,0),IF(P16>=9,VLOOKUP($M16,Metody!$C:$T,18,0),VLOOKUP($M16,Metody!$C:$T,17,0))),0) -> 9.375
A17: 9 | B17: Ściany działowe | C17: 430 | D17: m3 | E17: B | F17: A1 | G17: W3 | H17: P2 | I17: Md 19 | J17: 430 | K17: Md 20 | L17: 430 | M17: Md 21 | N17: =+C17 -> 430 | O17: =#REF! ->  | P17: 1 | W17: =IF($T17=0,$D17, VLOOKUP($T17,Metody!$C:$Q,5,0)) ->  | X17: =IF($T17=0,0,IF(VLOOKUP($T17,Metody!$C:$Q,6,0)=0,"",VLOOKUP($T17,Metody!$C:$Q,6,0))) ->  | Y17: =IF($T17=0,0,IF(VLOOKUP($T17,Metody!$C:$Q,7,0)=0,"",VLOOKUP($T17,Metody!$C:$Q,7,0))) ->  | Z17: =IF($T17=0,0,IF(VLOOKUP($T17,Metody!$C:$Q,10,0)=0,"",VLOOKUP($T17,Metody!$C:$Q,10,0))) ->  | AA17: =IF($T17=0,0,VLOOKUP($T17,Metody!$C:$Q,3,0)) ->  | AB17: =IF($T17=0,0,VLOOKUP($T17,Metody!$C:$Q,11,0)) ->  | AC17: =IF($T17=0,0,VLOOKUP($T17,Metody!$C:$Q,14,0)*AH17) ->  | AD17: =IF($T17=0,0,IF(LEFT(Y17,1)="S",VLOOKUP(Y17,Podwykonawcy!$A:$F,3,FALSE)*V17/AG17,0)) ->  | AE17: =IF($T17=0,0,VLOOKUP($T17,Metody!$C:$Q,13,0)*AF17) ->  | AF17: =IF($T17=0,0,IF(V17>0,V17/VLOOKUP(T17,Metody!$C:$E,3,0),0)) ->  | AG17: =IF($T17=0,0,IF(P17<=4,VLOOKUP($T17,Metody!$C:$T,16,0),IF(P17>=9,VLOOKUP($T17,Metody!$C:$T,18,0),VLOOKUP($T17,Metody!$C:$T,17,0)))) ->  | AL17: =IF($I17<>0,SUM(VLOOKUP($I17,Metody!$C:$Q,14,0)*$AM17,VLOOKUP($I17,Metody!$C:$Q,13,0)*$J17/VLOOKUP($I17,Metody!$C:$E,3,0),IF(VLOOKUP($I17,Metody!$C:$Q,7,0)=0,0,VLOOKUP($I17,Metody!$C:$Q,15,0)*$AM17)),0) -> 5912673.075 | AM17: =IF(J17>0,J17/VLOOKUP($I17,Metody!$C:$E,3,0)/IF(P17<=4,VLOOKUP($I17,Metody!$C:$T,16,0),IF(P17>=9,VLOOKUP($I17,Metody!$C:$T,18,0),VLOOKUP($I17,Metody!$C:$T,17,0))),0) -> 13.4375 | AN17: =IF($K17<>0,SUM(VLOOKUP($K17,Metody!$C:$Q,14,0)*$AO17,VLOOKUP($K17,Metody!$C:$Q,13,0)*$L17/VLOOKUP($K17,Metody!$C:$E,3,0),IF(VLOOKUP($K17,Metody!$C:$Q,7,0)=0,0,VLOOKUP($K17,Metody!$C:$Q,15,0)*$AO17)),0) -> 5888850 | AO17: =IF(L17>0,L17/VLOOKUP($K17,Metody!$C:$E,3,0)/IF(P17<=4,VLOOKUP($K17,Metody!$C:$T,16,0),IF(P17>=9,VLOOKUP($K17,Metody!$C:$T,18,0),VLOOKUP($K17,Metody!$C:$T,17,0))),0) -> 11.94444444 | AP17: =IF($M17<>0,SUM(VLOOKUP($M17,Metody!$C:$Q,14,0)*$AQ17,VLOOKUP($M17,Metody!$C:$Q,13,0)*$N17/VLOOKUP($M17,Metody!$C:$E,3,0),IF(VLOOKUP($M17,Metody!$C:$Q,7,0)=0,0,VLOOKUP($M17,Metody!$C:$Q,15,0)*$AQ17)),0) -> 2951658.46 | AQ17: =IF(N17>0,N17/VLOOKUP($M17,Metody!$C:$E,3,0)/IF(P17<=4,VLOOKUP($M17,Metody!$C:$T,16,0),IF(P17>=9,VLOOKUP($M17,Metody!$C:$T,18,0),VLOOKUP($M17,Metody!$C:$T,17,0))),0) -> 10.75
A18: 10 | B18: Tynki wewnętrzne | C18: 800 | D18: m2 | E18: B | F18: A2 | G18: W4 | H18: P2 | I18: Md 22 | J18: 800 | K18: Md 23 | L18: 800 | O18: =#REF! ->  | P18: 1 | W18: =IF($T18=0,$D18, VLOOKUP($T18,Metody!$C:$Q,5,0)) ->  | X18: =IF($T18=0,0,IF(VLOOKUP($T18,Metody!$C:$Q,6,0)=0,"",VLOOKUP($T18,Metody!$C:$Q,6,0))) ->  | Y18: =IF($T18=0,0,IF(VLOOKUP($T18,Metody!$C:$Q,7,0)=0,"",VLOOKUP($T18,Metody!$C:$Q,7,0))) ->  | Z18: =IF($T18=0,0,IF(VLOOKUP($T18,Metody!$C:$Q,10,0)=0,"",VLOOKUP($T18,Metody!$C:$Q,10,0))) ->  | AA18: =IF($T18=0,0,VLOOKUP($T18,Metody!$C:$Q,3,0)) ->  | AB18: =IF($T18=0,0,VLOOKUP($T18,Metody!$C:$Q,11,0)) ->  | AC18: =IF($T18=0,0,VLOOKUP($T18,Metody!$C:$Q,14,0)*AH18) ->  | AD18: =IF($T18=0,0,IF(LEFT(Y18,1)="S",VLOOKUP(Y18,Podwykonawcy!$A:$F,3,FALSE)*V18/AG18,0)) ->  | AE18: =IF($T18=0,0,VLOOKUP($T18,Metody!$C:$Q,13,0)*AF18) ->  | AF18: =IF($T18=0,0,IF(V18>0,V18/VLOOKUP(T18,Metody!$C:$E,3,0),0)) ->  | AG18: =IF($T18=0,0,IF(P18<=4,VLOOKUP($T18,Metody!$C:$T,16,0),IF(P18>=9,VLOOKUP($T18,Metody!$C:$T,18,0),VLOOKUP($T18,Metody!$C:$T,17,0)))) ->  | AL18: =IF($I18<>0,SUM(VLOOKUP($I18,Metody!$C:$Q,14,0)*$AM18,VLOOKUP($I18,Metody!$C:$Q,13,0)*$J18/VLOOKUP($I18,Metody!$C:$E,3,0),IF(VLOOKUP($I18,Metody!$C:$Q,7,0)=0,0,VLOOKUP($I18,Metody!$C:$Q,15,0)*$AM18)),0) -> 1356125.333 | AM18: =IF(J18>0,J18/VLOOKUP($I18,Metody!$C:$E,3,0)/IF(P18<=4,VLOOKUP($I18,Metody!$C:$T,16,0),IF(P18>=9,VLOOKUP($I18,Metody!$C:$T,18,0),VLOOKUP($I18,Metody!$C:$T,17,0))),0) -> 16.66666667 | AN18: =IF($K18<>0,SUM(VLOOKUP($K18,Metody!$C:$Q,14,0)*$AO18,VLOOKUP($K18,Metody!$C:$Q,13,0)*$L18/VLOOKUP($K18,Metody!$C:$E,3,0),IF(VLOOKUP($K18,Metody!$C:$Q,7,0)=0,0,VLOOKUP($K18,Metody!$C:$Q,15,0)*$AO18)),0) -> 1353836.455 | AO18: =IF(L18>0,L18/VLOOKUP($K18,Metody!$C:$E,3,0)/IF(P18<=4,VLOOKUP($K18,Metody!$C:$T,16,0),IF(P18>=9,VLOOKUP($K18,Metody!$C:$T,18,0),VLOOKUP($K18,Metody!$C:$T,17,0))),0) -> 11.66180758 | AP18: =IF($M18<>0,SUM(VLOOKUP($M18,Metody!$C:$Q,14,0)*$AQ18,VLOOKUP($M18,Metody!$C:$Q,13,0)*$N18/VLOOKUP($M18,Metody!$C:$E,3,0),IF(VLOOKUP($M18,Metody!$C:$Q,7,0)=0,0,VLOOKUP($M18,Metody!$C:$Q,15,0)*$AQ18)),0) -> 0 | AQ18: =IF(N18>0,N18/VLOOKUP($M18,Metody!$C:$E,3,0)/IF(P18<=4,VLOOKUP($M18,Metody!$C:$T,16,0),IF(P18>=9,VLOOKUP($M18,Metody!$C:$T,18,0),VLOOKUP($M18,Metody!$C:$T,17,0))),0) -> 0
A19: 11 | B19: Elewacja | C19: 770 | D19: m2 | E19: B | F19: A2 | G19: W4 | H19: P2 | I19: Md 24 | J19: 770 | K19: Md 25 | L19: 770 | O19: =#REF! ->  | P19: 1 | W19: =IF($T19=0,$D19, VLOOKUP($T19,Metody!$C:$Q,5,0)) ->  | X19: =IF($T19=0,0,IF(VLOOKUP($T19,Metody!$C:$Q,6,0)=0,"",VLOOKUP($T19,Metody!$C:$Q,6,0))) ->  | Y19: =IF($T19=0,0,IF(VLOOKUP($T19,Metody!$C:$Q,7,0)=0,"",VLOOKUP($T19,Metody!$C:$Q,7,0))) ->  | Z19: =IF($T19=0,0,IF(VLOOKUP($T19,Metody!$C:$Q,10,0)=0,"",VLOOKUP($T19,Metody!$C:$Q,10,0))) ->  | AA19: =IF($T19=0,0,VLOOKUP($T19,Metody!$C:$Q,3,0)) ->  | AB19: =IF($T19=0,0,VLOOKUP($T19,Metody!$C:$Q,11,0)) ->  | AC19: =IF($T19=0,0,VLOOKUP($T19,Metody!$C:$Q,14,0)*AH19) ->  | AD19: =IF($T19=0,0,IF(LEFT(Y19,1)="S",VLOOKUP(Y19,Podwykonawcy!$A:$F,3,FALSE)*V19/AG19,0)) ->  | AE19: =IF($T19=0,0,VLOOKUP($T19,Metody!$C:$Q,13,0)*AF19) ->  | AF19: =IF($T19=0,0,IF(V19>0,V19/VLOOKUP(T19,Metody!$C:$E,3,0),0)) ->  | AG19: =IF($T19=0,0,IF(P19<=4,VLOOKUP($T19,Metody!$C:$T,16,0),IF(P19>=9,VLOOKUP($T19,Metody!$C:$T,18,0),VLOOKUP($T19,Metody!$C:$T,17,0)))) ->  | AL19: =IF($I19<>0,SUM(VLOOKUP($I19,Metody!$C:$Q,14,0)*$AM19,VLOOKUP($I19,Metody!$C:$Q,13,0)*$J19/VLOOKUP($I19,Metody!$C:$E,3,0),IF(VLOOKUP($I19,Metody!$C:$Q,7,0)=0,0,VLOOKUP($I19,Metody!$C:$Q,15,0)*$AM19)),0) -> 5548812.5 | AM19: =IF(J19>0,J19/VLOOKUP($I19,Metody!$C:$E,3,0)/IF(P19<=4,VLOOKUP($I19,Metody!$C:$T,16,0),IF(P19>=9,VLOOKUP($I19,Metody!$C:$T,18,0),VLOOKUP($I19,Metody!$C:$T,17,0))),0) -> 22.91666667 | AN19: =IF($K19<>0,SUM(VLOOKUP($K19,Metody!$C:$Q,14,0)*$AO19,VLOOKUP($K19,Metody!$C:$Q,13,0)*$L19/VLOOKUP($K19,Metody!$C:$E,3,0),IF(VLOOKUP($K19,Metody!$C:$Q,7,0)=0,0,VLOOKUP($K19,Metody!$C:$Q,15,0)*$AO19)),0) -> 5643865.15 | AO19: =IF(L19>0,L19/VLOOKUP($K19,Metody!$C:$E,3,0)/IF(P19<=4,VLOOKUP($K19,Metody!$C:$T,16,0),IF(P19>=9,VLOOKUP($K19,Metody!$C:$T,18,0),VLOOKUP($K19,Metody!$C:$T,17,0))),0) -> 24.0625 | AP19: =IF($M19<>0,SUM(VLOOKUP($M19,Metody!$C:$Q,14,0)*$AQ19,VLOOKUP($M19,Metody!$C:$Q,13,0)*$N19/VLOOKUP($M19,Metody!$C:$E,3,0),IF(VLOOKUP($M19,Metody!$C:$Q,7,0)=0,0,VLOOKUP($M19,Metody!$C:$Q,15,0)*$AQ19)),0) -> 0 | AQ19: =IF(N19>0,N19/VLOOKUP($M19,Metody!$C:$E,3,0)/IF(P19<=4,VLOOKUP($M19,Metody!$C:$T,16,0),IF(P19>=9,VLOOKUP($M19,Metody!$C:$T,18,0),VLOOKUP($M19,Metody!$C:$T,17,0))),0) -> 0
A20: 12 | B20: Instalacje elektryczne | C20: 1 | D20: kpl | E20: E | F20: A1 | G20: W5 | H20: P1 | I20: Md 26 | J20: 100 | K20: Md 27 | L20: 100 | M20: Md 28 | N20: 100 | O20: =#REF! ->  | P20: 1 | W20: =IF($T20=0,$D20, VLOOKUP($T20,Metody!$C:$Q,5,0)) ->  | X20: =IF($T20=0,0,IF(VLOOKUP($T20,Metody!$C:$Q,6,0)=0,"",VLOOKUP($T20,Metody!$C:$Q,6,0))) ->  | Y20: =IF($T20=0,0,IF(VLOOKUP($T20,Metody!$C:$Q,7,0)=0,"",VLOOKUP($T20,Metody!$C:$Q,7,0))) ->  | Z20: =IF($T20=0,0,IF(VLOOKUP($T20,Metody!$C:$Q,10,0)=0,"",VLOOKUP($T20,Metody!$C:$Q,10,0))) ->  | AA20: =IF($T20=0,0,VLOOKUP($T20,Metody!$C:$Q,3,0)) ->  | AB20: =IF($T20=0,0,VLOOKUP($T20,Metody!$C:$Q,11,0)) ->  | AC20: =IF($T20=0,0,VLOOKUP($T20,Metody!$C:$Q,14,0)*AH20) ->  | AD20: =IF($T20=0,0,IF(LEFT(Y20,1)="S",VLOOKUP(Y20,Podwykonawcy!$A:$F,3,FALSE)*V20/AG20,0)) ->  | AE20: =IF($T20=0,0,VLOOKUP($T20,Metody!$C:$Q,13,0)*AF20) ->  | AF20: =IF($T20=0,0,IF(V20>0,V20/VLOOKUP(T20,Metody!$C:$E,3,0),0)) ->  | AG20: =IF($T20=0,0,IF(P20<=4,VLOOKUP($T20,Metody!$C:$T,16,0),IF(P20>=9,VLOOKUP($T20,Metody!$C:$T,18,0),VLOOKUP($T20,Metody!$C:$T,17,0)))) ->  | AL20: =IF($I20<>0,SUM(VLOOKUP($I20,Metody!$C:$Q,14,0)*$AM20,VLOOKUP($I20,Metody!$C:$Q,13,0)*$J20/VLOOKUP($I20,Metody!$C:$E,3,0),IF(VLOOKUP($I20,Metody!$C:$Q,7,0)=0,0,VLOOKUP($I20,Metody!$C:$Q,15,0)*$AM20)),0) -> 29289.14286 | AM20: =IF(J20>0,J20/VLOOKUP($I20,Metody!$C:$E,3,0)/IF(P20<=4,VLOOKUP($I20,Metody!$C:$T,16,0),IF(P20>=9,VLOOKUP($I20,Metody!$C:$T,18,0),VLOOKUP($I20,Metody!$C:$T,17,0))),0) -> 2.551020408 | AN20: =IF($K20<>0,SUM(VLOOKUP($K20,Metody!$C:$Q,14,0)*$AO20,VLOOKUP($K20,Metody!$C:$Q,13,0)*$L20/VLOOKUP($K20,Metody!$C:$E,3,0),IF(VLOOKUP($K20,Metody!$C:$Q,7,0)=0,0,VLOOKUP($K20,Metody!$C:$Q,15,0)*$AO20)),0) -> 59946 | AO20: =IF(L20>0,L20/VLOOKUP($K20,Metody!$C:$E,3,0)/IF(P20<=4,VLOOKUP($K20,Metody!$C:$T,16,0),IF(P20>=9,VLOOKUP($K20,Metody!$C:$T,18,0),VLOOKUP($K20,Metody!$C:$T,17,0))),0) -> 3.571428571 | AP20: =IF($M20<>0,SUM(VLOOKUP($M20,Metody!$C:$Q,14,0)*$AQ20,VLOOKUP($M20,Metody!$C:$Q,13,0)*$N20/VLOOKUP($M20,Metody!$C:$E,3,0),IF(VLOOKUP($M20,Metody!$C:$Q,7,0)=0,0,VLOOKUP($M20,Metody!$C:$Q,15,0)*$AQ20)),0) -> 59946 | AQ20: =IF(N20>0,N20/VLOOKUP($M20,Metody!$C:$E,3,0)/IF(P20<=4,VLOOKUP($M20,Metody!$C:$T,16,0),IF(P20>=9,VLOOKUP($M20,Metody!$C:$T,18,0),VLOOKUP($M20,Metody!$C:$T,17,0))),0) -> 3.571428571
A21: 13 | B21: Instalacje sanitarne | C21: 1 | D21: kpl | E21: S | F21: A1 | G21: W5 | H21: P1 | I21: Md 29 | J21: 100 | O21: =#REF! ->  | P21: 1 | W21: =IF($T21=0,$D21, VLOOKUP($T21,Metody!$C:$Q,5,0)) ->  | X21: =IF($T21=0,0,IF(VLOOKUP($T21,Metody!$C:$Q,6,0)=0,"",VLOOKUP($T21,Metody!$C:$Q,6,0))) ->  | Y21: =IF($T21=0,0,IF(VLOOKUP($T21,Metody!$C:$Q,7,0)=0,"",VLOOKUP($T21,Metody!$C:$Q,7,0))) ->  | Z21: =IF($T21=0,0,IF(VLOOKUP($T21,Metody!$C:$Q,10,0)=0,"",VLOOKUP($T21,Metody!$C:$Q,10,0))) ->  | AA21: =IF($T21=0,0,VLOOKUP($T21,Metody!$C:$Q,3,0)) ->  | AB21: =IF($T21=0,0,VLOOKUP($T21,Metody!$C:$Q,11,0)) ->  | AC21: =IF($T21=0,0,VLOOKUP($T21,Metody!$C:$Q,14,0)*AH21) ->  | AD21: =IF($T21=0,0,IF(LEFT(Y21,1)="S",VLOOKUP(Y21,Podwykonawcy!$A:$F,3,FALSE)*V21/AG21,0)) ->  | AE21: =IF($T21=0,0,VLOOKUP($T21,Metody!$C:$Q,13,0)*AF21) ->  | AF21: =IF($T21=0,0,IF(V21>0,V21/VLOOKUP(T21,Metody!$C:$E,3,0),0)) ->  | AG21: =IF($T21=0,0,IF(P21<=4,VLOOKUP($T21,Metody!$C:$T,16,0),IF(P21>=9,VLOOKUP($T21,Metody!$C:$T,18,0),VLOOKUP($T21,Metody!$C:$T,17,0)))) ->  | AL21: =IF($I21<>0,SUM(VLOOKUP($I21,Metody!$C:$Q,14,0)*$AM21,VLOOKUP($I21,Metody!$C:$Q,13,0)*$J21/VLOOKUP($I21,Metody!$C:$E,3,0),IF(VLOOKUP($I21,Metody!$C:$Q,7,0)=0,0,VLOOKUP($I21,Metody!$C:$Q,15,0)*$AM21)),0) -> 26233.83673 | AM21: =IF(J21>0,J21/VLOOKUP($I21,Metody!$C:$E,3,0)/IF(P21<=4,VLOOKUP($I21,Metody!$C:$T,16,0),IF(P21>=9,VLOOKUP($I21,Metody!$C:$T,18,0),VLOOKUP($I21,Metody!$C:$T,17,0))),0) -> 5.102040816 | AN21: =IF($K21<>0,SUM(VLOOKUP($K21,Metody!$C:$Q,14,0)*$AO21,VLOOKUP($K21,Metody!$C:$Q,13,0)*$L21/VLOOKUP($K21,Metody!$C:$E,3,0),IF(VLOOKUP($K21,Metody!$C:$Q,7,0)=0,0,VLOOKUP($K21,Metody!$C:$Q,15,0)*$AO21)),0) -> 0 | AO21: =IF(L21>0,L21/VLOOKUP($K21,Metody!$C:$E,3,0)/IF(P21<=4,VLOOKUP($K21,Metody!$C:$T,16,0),IF(P21>=9,VLOOKUP($K21,Metody!$C:$T,18,0),VLOOKUP($K21,Metody!$C:$T,17,0))),0) -> 0 | AP21: =IF($M21<>0,SUM(VLOOKUP($M21,Metody!$C:$Q,14,0)*$AQ21,VLOOKUP($M21,Metody!$C:$Q,13,0)*$N21/VLOOKUP($M21,Metody!$C:$E,3,0),IF(VLOOKUP($M21,Metody!$C:$Q,7,0)=0,0,VLOOKUP($M21,Metody!$C:$Q,15,0)*$AQ21)),0) -> 0 | AQ21: =IF(N21>0,N21/VLOOKUP($M21,Metody!$C:$E,3,0)/IF(P21<=4,VLOOKUP($M21,Metody!$C:$T,16,0),IF(P21>=9,VLOOKUP($M21,Metody!$C:$T,18,0),VLOOKUP($M21,Metody!$C:$T,17,0))),0) -> 0
A22: 14 | B22: Malowanie | C22: 1300 | D22: m2 | E22: B | F22: A1 | G22: W6 | H22: P2 | I22: Md 30 | J22: 1300 | K22: Md 31 | L22: 1300 | O22: =#REF! ->  | P22: 1 | W22: =IF($T22=0,$D22, VLOOKUP($T22,Metody!$C:$Q,5,0)) ->  | X22: =IF($T22=0,0,IF(VLOOKUP($T22,Metody!$C:$Q,6,0)=0,"",VLOOKUP($T22,Metody!$C:$Q,6,0))) ->  | Y22: =IF($T22=0,0,IF(VLOOKUP($T22,Metody!$C:$Q,7,0)=0,"",VLOOKUP($T22,Metody!$C:$Q,7,0))) ->  | Z22: =IF($T22=0,0,IF(VLOOKUP($T22,Metody!$C:$Q,10,0)=0,"",VLOOKUP($T22,Metody!$C:$Q,10,0))) ->  | AA22: =IF($T22=0,0,VLOOKUP($T22,Metody!$C:$Q,3,0)) ->  | AB22: =IF($T22=0,0,VLOOKUP($T22,Metody!$C:$Q,11,0)) ->  | AC22: =IF($T22=0,0,VLOOKUP($T22,Metody!$C:$Q,14,0)*AH22) ->  | AD22: =IF($T22=0,0,IF(LEFT(Y22,1)="S",VLOOKUP(Y22,Podwykonawcy!$A:$F,3,FALSE)*V22/AG22,0)) ->  | AE22: =IF($T22=0,0,VLOOKUP($T22,Metody!$C:$Q,13,0)*AF22) ->  | AF22: =IF($T22=0,0,IF(V22>0,V22/VLOOKUP(T22,Metody!$C:$E,3,0),0)) ->  | AG22: =IF($T22=0,0,IF(P22<=4,VLOOKUP($T22,Metody!$C:$T,16,0),IF(P22>=9,VLOOKUP($T22,Metody!$C:$T,18,0),VLOOKUP($T22,Metody!$C:$T,17,0)))) ->  | AL22: =IF($I22<>0,SUM(VLOOKUP($I22,Metody!$C:$Q,14,0)*$AM22,VLOOKUP($I22,Metody!$C:$Q,13,0)*$J22/VLOOKUP($I22,Metody!$C:$E,3,0),IF(VLOOKUP($I22,Metody!$C:$Q,7,0)=0,0,VLOOKUP($I22,Metody!$C:$Q,15,0)*$AM22)),0) -> 3425500 | AM22: =IF(J22>0,J22/VLOOKUP($I22,Metody!$C:$E,3,0)/IF(P22<=4,VLOOKUP($I22,Metody!$C:$T,16,0),IF(P22>=9,VLOOKUP($I22,Metody!$C:$T,18,0),VLOOKUP($I22,Metody!$C:$T,17,0))),0) -> 65 | AN22: =IF($K22<>0,SUM(VLOOKUP($K22,Metody!$C:$Q,14,0)*$AO22,VLOOKUP($K22,Metody!$C:$Q,13,0)*$L22/VLOOKUP($K22,Metody!$C:$E,3,0),IF(VLOOKUP($K22,Metody!$C:$Q,7,0)=0,0,VLOOKUP($K22,Metody!$C:$Q,15,0)*$AO22)),0) -> 2002910 | AO22: =IF(L22>0,L22/VLOOKUP($K22,Metody!$C:$E,3,0)/IF(P22<=4,VLOOKUP($K22,Metody!$C:$T,16,0),IF(P22>=9,VLOOKUP($K22,Metody!$C:$T,18,0),VLOOKUP($K22,Metody!$C:$T,17,0))),0) -> 81.25 | AP22: =IF($M22<>0,SUM(VLOOKUP($M22,Metody!$C:$Q,14,0)*$AQ22,VLOOKUP($M22,Metody!$C:$Q,13,0)*$N22/VLOOKUP($M22,Metody!$C:$E,3,0),IF(VLOOKUP($M22,Metody!$C:$Q,7,0)=0,0,VLOOKUP($M22,Metody!$C:$Q,15,0)*$AQ22)),0) -> 0 | AQ22: =IF(N22>0,N22/VLOOKUP($M22,Metody!$C:$E,3,0)/IF(P22<=4,VLOOKUP($M22,Metody!$C:$T,16,0),IF(P22>=9,VLOOKUP($M22,Metody!$C:$T,18,0),VLOOKUP($M22,Metody!$C:$T,17,0))),0) -> 0
A23: 15 | B23: Zagospodarowanie terenu | C23: 100 | D23: m2 | E23: B | F23: A1 | G23: W6 | H23: P2 | I23: Md 32 | J23: =+C23 -> 100 | O23: =#REF! ->  | P23: 1 | W23: =IF($T23=0,$D23, VLOOKUP($T23,Metody!$C:$Q,5,0)) ->  | X23: =IF($T23=0,0,IF(VLOOKUP($T23,Metody!$C:$Q,6,0)=0,"",VLOOKUP($T23,Metody!$C:$Q,6,0))) ->  | Y23: =IF($T23=0,0,IF(VLOOKUP($T23,Metody!$C:$Q,7,0)=0,"",VLOOKUP($T23,Metody!$C:$Q,7,0))) ->  | Z23: =IF($T23=0,0,IF(VLOOKUP($T23,Metody!$C:$Q,10,0)=0,"",VLOOKUP($T23,Metody!$C:$Q,10,0))) ->  | AA23: =IF($T23=0,0,VLOOKUP($T23,Metody!$C:$Q,3,0)) ->  | AB23: =IF($T23=0,0,VLOOKUP($T23,Metody!$C:$Q,11,0)) ->  | AC23: =IF($T23=0,0,VLOOKUP($T23,Metody!$C:$Q,14,0)*AH23) ->  | AD23: =IF($T23=0,0,IF(LEFT(Y23,1)="S",VLOOKUP(Y23,Podwykonawcy!$A:$F,3,FALSE)*V23/AG23,0)) ->  | AE23: =IF($T23=0,0,VLOOKUP($T23,Metody!$C:$Q,13,0)*AF23) ->  | AF23: =IF($T23=0,0,IF(V23>0,V23/VLOOKUP(T23,Metody!$C:$E,3,0),0)) ->  | AG23: =IF($T23=0,0,IF(P23<=4,VLOOKUP($T23,Metody!$C:$T,16,0),IF(P23>=9,VLOOKUP($T23,Metody!$C:$T,18,0),VLOOKUP($T23,Metody!$C:$T,17,0)))) ->  | AL23: =IF($I23<>0,SUM(VLOOKUP($I23,Metody!$C:$Q,14,0)*$AM23,VLOOKUP($I23,Metody!$C:$Q,13,0)*$J23/VLOOKUP($I23,Metody!$C:$E,3,0),IF(VLOOKUP($I23,Metody!$C:$Q,7,0)=0,0,VLOOKUP($I23,Metody!$C:$Q,15,0)*$AM23)),0) -> 66592 | AM23: =IF(J23>0,J23/VLOOKUP($I23,Metody!$C:$E,3,0)/IF(P23<=4,VLOOKUP($I23,Metody!$C:$T,16,0),IF(P23>=9,VLOOKUP($I23,Metody!$C:$T,18,0),VLOOKUP($I23,Metody!$C:$T,17,0))),0) -> 6.25 | AN23: =IF($K23<>0,SUM(VLOOKUP($K23,Metody!$C:$Q,14,0)*$AO23,VLOOKUP($K23,Metody!$C:$Q,13,0)*$L23/VLOOKUP($K23,Metody!$C:$E,3,0),IF(VLOOKUP($K23,Metody!$C:$Q,7,0)=0,0,VLOOKUP($K23,Metody!$C:$Q,15,0)*$AO23)),0) -> 0 | AO23: =IF(L23>0,L23/VLOOKUP($K23,Metody!$C:$E,3,0)/IF(P23<=4,VLOOKUP($K23,Metody!$C:$T,16,0),IF(P23>=9,VLOOKUP($K23,Metody!$C:$T,18,0),VLOOKUP($K23,Metody!$C:$T,17,0))),0) -> 0 | AP23: =IF($M23<>0,SUM(VLOOKUP($M23,Metody!$C:$Q,14,0)*$AQ23,VLOOKUP($M23,Metody!$C:$Q,13,0)*$N23/VLOOKUP($M23,Metody!$C:$E,3,0),IF(VLOOKUP($M23,Metody!$C:$Q,7,0)=0,0,VLOOKUP($M23,Metody!$C:$Q,15,0)*$AQ23)),0) -> 0 | AQ23: =IF(N23>0,N23/VLOOKUP($M23,Metody!$C:$E,3,0)/IF(P23<=4,VLOOKUP($M23,Metody!$C:$T,16,0),IF(P23>=9,VLOOKUP($M23,Metody!$C:$T,18,0),VLOOKUP($M23,Metody!$C:$T,17,0))),0) -> 0

Sheet Schedule
C3: Task | E3: Predecessors | O3: Sucessors | Y3: Method | AA3: Method | AC3: Method | AE3: Method | AG3: Method | AI3: Delay | AJ3: Chosen | AK3: Duration | AL3: Direct | AM3: CPM calculations
Y4: 1 | AA4: 2 | AC4: 3 | AE4: 4 | AG4: 5 | AJ4: method | AL4: Cost | BN4: Month 1 | CI4: Month 2 | DD4: Month 3 | DY4: Month 4 | ET4: Month 5 | FO4: Month 6 | GJ4: Month 7 | HE4: Month 8 | HZ4: Month 9 | IU4: Month 10 | JP4: Month 11 | KK4: Month 12 | LF4: Month 13 | MA4: Month 14 | MV4: Month 15 | NQ4: Month 16 | OL4: Month 17 | PG4: Month 18
C5: ID | D5: Name | E5: P1 | F5: P2 | G5: P3 | H5: P4 | I5: P5 | J5: P6 | K5: P7 | L5: P8 | M5: P9 | N5: P10 | O5: S1 | P5: S2 | Q5: S3 | R5: S4 | S5: S5 | T5: S6 | U5: S7 | V5: S8 | W5: S9 | X5: S10 | Y5: $ x 1000 | Z5: D1 | AA5: $ x 1000 | AB5: D2 | AC5: $ x 1000 | AD5: D3 | AE5: $x 1000 | AF5: D4 | AG5: $ x 1000 | AH5: D5 | AJ5: ID | AM5: F1 | AN5: F2 | AO5: F3 | AP5: F4 | AQ5: F5 | AR5: F6 | AS5: F7 | AT5: F8 | AU5: F9 | AV5: F10 | AW5: T1 | AX5: T2 | AY5: T3 | AZ5: T4 | BA5: T5 | BB5: T6 | BC5: T7 | BD5: T8 | BE5: T9 | BF5: T10 | BG5: ES | BH5: EF | BI5: LS | BJ5: LF | BK5: TS | BN5: 1 | BO5: =BN5+1 -> 2 | BP5: =BO5+1 -> 3 | BQ5: 4 | BR5: 5 | BS5: 6 | BT5: 7 | BU5: 8 | BV5: 9 | BW5: 10 | BX5: 11 | BY5: 12 | BZ5: 13 | CA5: 14 | CB5: 15 | CC5: 16 | CD5: 17 | CE5: 18 | CF5: 19 | CG5: 20 | CH5: 21 | CI5: 22 | CJ5: 23 | CK5: 24 | CL5: 25 | CM5: 26 | CN5: 27 | CO5: 28 | CP5: 29 | CQ5: 30 | CR5: 31 | CS5: 32 | CT5: 33 | CU5: 34 | CV5: 35 | CW5: 36 | CX5: 37 | CY5: 38 | CZ5: 39 | DA5: 40 | DB5: 41 | DC5: 42 | DD5: 43 | DE5: 44 | DF5: 45 | DG5: 46 | DH5: 47 | DI5: 48 | DJ5: 49 | DK5: 50 | DL5: 51 | DM5: 52 | DN5: 53 | DO5: 54 | DP5: 55 | DQ5: 56 | DR5: 57 | DS5: 58 | DT5: 59 | DU5: 60 | DV5: 61 | DW5: 62 | DX5: 63 | DY5: 64 | DZ5: 65 | EA5: 66 | EB5: =EA5+1 -> 67 | EC5: 68 | ED5: 69 | EE5: 70 | EF5: 71 | EG5: 72 | EH5: 73 | EI5: 74 | EJ5: 75 | EK5: 76 | EL5: 77 | EM5: 78 | EN5: 79 | EO5: 80 | EP5: 81 | EQ5: 82 | ER5: 83 | ES5: 84 | ET5: 85 | EU5: 86 | EV5: 87 | EW5: 88 | EX5: 89 | EY5: 90 | EZ5: 91 | FA5: 92 | FB5: 93 | FC5: 94 | FD5: 95 | FE5: 96 | FF5: 97 | FG5: 98 | FH5: 99 | FI5: 100 | FJ5: 101 | FK5: 102 | FL5: 103 | FM5: 104 | FN5: 105 | FO5: 106 | FP5: 107 | FQ5: 108 | FR5: 109 | FS5: 110 | FT5: 111 | FU5: 112 | FV5: 113 | FW5: 114 | FX5: 115 | FY5: 116 | FZ5: 117 | GA5: 118 | GB5: 119 | GC5: 120 | GD5: 121 | GE5: 122 | GF5: 123 | GG5: 124 | GH5: 125 | GI5: 126 | GJ5: 127 | GK5: 128 | GL5: 129 | GM5: 130 | GN5: =GM5+1 -> 131 | GO5: 132 | GP5: 133 | GQ5: 134 | GR5: 135 | GS5: 136 | GT5: 137 | GU5: 138 | GV5: 139 | GW5: 140 | GX5: 141 | GY5: 142 | GZ5: 143 | HA5: 144 | HB5: 145 | HC5: 146 | HD5: 147 | HE5: 148 | HF5: 149 | HG5: 150 | HH5: 151 | HI5: 152 | HJ5: 153 | HK5: 154 | HL5: 155 | HM5: 156 | HN5: 157 | HO5: 158 | HP5: 159 | HQ5: 160 | HR5: 161 | HS5: 162 | HT5: 163 | HU5: 164 | HV5: 165 | HW5: 166 | HX5: 167 | HY5: 168 | HZ5: 169 | IA5: 170 | IB5: 171 | IC5: 172 | ID5: 173 | IE5: 174 | IF5: 175 | IG5: 176 | IH5: 177 | II5: 178 | IJ5: 179 | IK5: 180 | IL5: 181 | IM5: 182 | IN5: 183 | IO5: 184 | IP5: 185 | IQ5: 186 | IR5: 187 | IS5: 188 | IT5: 189 | IU5: 190 | IV5: 191 | IW5: 192 | IX5: 193 | IY5: 194 | IZ5: =IY5+1 -> 195 | JA5: 196 | JB5: 197 | JC5: 198 | JD5: 199 | JE5: 200 | JF5: 201 | JG5: 202 | JH5: 203 | JI5: 204 | JJ5: 205 | JK5: 206 | JL5: 207 | JM5: 208 | JN5: 209 | JO5: 210 | JP5: 211 | JQ5: 212 | JR5: 213 | JS5: 214 | JT5: 215 | JU5: 216 | JV5: 217 | JW5: 218 | JX5: 219 | JY5: 220 | JZ5: 221 | KA5: 222 | KB5: 223 | KC5: 224 | KD5: 225 | KE5: 226 | KF5: 227 | KG5: 228 | KH5: 229 | KI5: 230 | KJ5: 231 | KK5: 232 | KL5: 233 | KM5: 234 | KN5: 235 | KO5: 236 | KP5: 237 | KQ5: 238 | KR5: 239 | KS5: 240 | KT5: 241 | KU5: 242 | KV5: 243 | KW5: 244 | KX5: 245 | KY5: 246 | KZ5: 247 | LA5: 248 | LB5: 249 | LC5: 250 | LD5: 251 | LE5: 252 | LF5: 253 | LG5: 254 | LH5: 255 | LI5: 256 | LJ5: 257 | LK5: 258 | LL5: =LK5+1 -> 259 | LM5: 260 | LN5: 261 | LO5: 262 | LP5: 263 | LQ5: 264 | LR5: 265 | LS5: 266 | LT5: 267 | LU5: 268 | LV5: 269 | LW5: 270 | LX5: 271 | LY5: 272 | LZ5: 273 | MA5: 274 | MB5: 275 | MC5: 276 | MD5: 277 | ME5: 278 | MF5: 279 | MG5: 280 | MH5: 281 | MI5: 282 | MJ5: 283 | MK5: 284 | ML5: 285 | MM5: 286 | MN5: 287 | MO5: 288 | MP5: 289 | MQ5: 290 | MR5: 291 | MS5: 292 | MT5: 293 | MU5: 294 | MV5: 295 | MW5: 296 | MX5: 297 | MY5: 298 | MZ5: 299 | NA5: 300 | NB5: 301 | NC5: 302 | ND5: 303 | NE5: 304 | NF5: 305 | NG5: 306 | NH5: 307 | NI5: 308 | NJ5: 309 | NK5: 310 | NL5: 311 | NM5: 312 | NN5: 313 | NO5: 314 | NP5: 315 | NQ5: 316 | NR5: 317 | NS5: 318 | NT5: 319 | NU5: 320 | NV5: 321 | NW5: 322 | NX5: =NW5+1 -> 323 | NY5: 324 | NZ5: 325 | OA5: 326 | OB5: 327 | OC5: 328 | OD5: 329 | OE5: 330 | OF5: 331 | OG5: 332 | OH5: 333 | OI5: 334 | OJ5: 335 | OK5: 336 | OL5: 337 | OM5: 338 | ON5: 339 | OO5: 340 | OP5: 341 | OQ5: 342 | OR5: 343 | OS5: 344 | OT5: 345 | OU5: 346 | OV5: 347 | OW5: 348 | OX5: 349 | OY5: 350 | OZ5: 351 | PA5: 352 | PB5: 353 | PC5: 354 | PD5: 355 | PE5: 356 | PF5: 357 | PG5: 358 | PH5: 359 | PI5: 360 | PJ5: 361 | PK5: 362 | PL5: 363 | PM5: 364 | PN5: 365 | PO5: 366 | PP5: 367 | PQ5: 368 | PR5: 369 | PS5: 370 | PT5: 371 | PU5: 372 | PV5: 373 | PW5: 374 | PX5: 375 | PY5: 376 | PZ5: 377 | QA5: 378
C6: 1 | D6: Start | O6: 2 | P6: 8 | AJ6: 1 | AK6: =ROUND(INDEX(Y6:AH6,,AJ6*2),0) -> 0 | AL6: =INDEX(Y6:AH6,,AJ6*2-1)*1000 -> 0 | AM6: =IF(E6="",AI6,VLOOKUP(E6,data,58)+AI6) -> 0 | AN6: =IF(F6="",AI6,VLOOKUP(F6,data,58)+AI6) -> 0 | AO6: =IF(G6="",AI6,VLOOKUP(G6,data,58)+AI6) -> 0 | AP6: =IF(H6="",AI6,VLOOKUP(H6,data,58)+AI6) -> 0 | AQ6: =IF(I6="",AI6,VLOOKUP(I6,data,58)+AI6) -> 0 | AR6: =IF(J6="",AI6,VLOOKUP(J6,data,58)+AI6) -> 0 | AS6: =IF(K6="",AI6,VLOOKUP(K6,data,58)+AI6) -> 0 | AT6: =IF(L6="",AI6,VLOOKUP(L6,data,58)+AI6) -> 0 | AU6: =IF(M6="",AI6,VLOOKUP(M6,data,58)+AI6) -> 0 | AV6: =IF(N6="",AI6,VLOOKUP(N6,data,58)+AI6) -> 0 | AW6: =IF(O6="",dur,VLOOKUP(O6,data,59)-VLOOKUP(O6,data,33)) -> 0 | AX6: =IF(P6="",dur,VLOOKUP(P6,data,59)-VLOOKUP(P6,data,33)) -> 99 | AY6: =IF(Q6="",dur,VLOOKUP(Q6,data,59)-VLOOKUP(Q6,data,33)) -> 388 | AZ6: =IF(R6="",dur,VLOOKUP(R6,data,59)-VLOOKUP(R6,data,33)) -> 388 | BA6: =IF(S6="",dur,VLOOKUP(S6,data,59)-VLOOKUP(S6,data,33)) -> 388 | BB6: =IF(T6="",dur,VLOOKUP(T6,data,59)-VLOOKUP(T6,data,33)) -> 388 | BC6: =IF(U6="",dur,VLOOKUP(U6,data,59)-VLOOKUP(U6,data,33)) -> 388 | BD6: =IF(V6="",dur,VLOOKUP(V6,data,59)-VLOOKUP(V6,data,33)) -> 388 | BE6: =IF(W6="",dur,VLOOKUP(W6,data,59)-VLOOKUP(W6,data,33)) -> 388 | BF6: =IF(X6="",dur,VLOOKUP(X6,data,59)-VLOOKUP(X6,data,33)) -> 388 | BG6: =MAX(AM6:AV6) -> 0 | BH6: =BG6+AK6 -> 0 | BI6: =BJ6-AK6 -> 0 | BJ6: =MIN(AW6:BF6) -> 0 | BK6: =BI6-BG6 -> 0 | BL6: 1 | BM6: 1 | BN6: =IF(AND(BN$5>$BG6,BN$5<=$BH6),BN97,0) -> 0 | BO6: 0 | BP6: 0 | BQ6: 0 | BR6: 0 | BS6: 0 | BT6: 0 | BU6: 0 | BV6: 0 | BW6: 0 | BX6: 0 | BY6: 0 | BZ6: 0 | CA6: 0 | CB6: 0 | CC6: 0 | CD6: 0 | CE6: 0 | CF6: 0 | CG6: 0 | CH6: 0 | CI6: 0 | CJ6: 0 | CK6: 0 | CL6: 0 | CM6: 0 | CN6: 0 | CO6: 0 | CP6: 0 | CQ6: 0 | CR6: 0 | CS6: 0 | CT6: 0 | CU6: 0 | CV6: 0 | CW6: 0 | CX6: 0 | CY6: 0 | CZ6: 0 | DA6: 0 | DB6: 0 | DC6: 0 | DD6: 0 | DE6: 0 | DF6: 0 | DG6: 0 | DH6: 0 | DI6: 0 | DJ6: 0 | DK6: 0 | DL6: 0 | DM6: 0 | DN6: 0 | DO6: 0 | DP6: 0 | DQ6: 0 | DR6: 0 | DS6: 0 | DT6: 0 | DU6: 0 | DV6: 0 | DW6: 0 | DX6: 0 | DY6: 0 | DZ6: =IF(AND(DZ$5>$BG6,DZ$5<=$BH6),DZ97,0) -> 0 | EA6: 0 | EB6: 0 | EC6: 0 | ED6: 0 | EE6: 0 | EF6: 0 | EG6: 0 | EH6: 0 | EI6: 0 | EJ6: 0 | EK6: 0 | EL6: 0 | EM6: 0 | EN6: 0 | EO6: 0 | EP6: 0 | EQ6: 0 | ER6: 0 | ES6: 0 | ET6: 0 | EU6: 0 | EV6: 0 | EW6: 0 | EX6: 0 | EY6: 0 | EZ6: 0 | FA6: 0 | FB6: 0 | FC6: 0 | FD6: 0 | FE6: 0 | FF6: 0 | FG6: 0 | FH6: 0 | FI6: 0 | FJ6: 0 | FK6: 0 | FL6: 0 | FM6: 0 | FN6: 0 | FO6: 0 | FP6: 0 | FQ6: 0 | FR6: 0 | FS6: 0 | FT6: 0 | FU6: 0 | FV6: 0 | FW6: 0 | FX6: 0 | FY6: 0 | FZ6: 0 | GA6: 0 | GB6: 0 | GC6: 0 | GD6: 0 | GE6: 0 | GF6: 0 | GG6: 0 | GH6: 0 | GI6: 0 | GJ6: 0 | GK6: 0 | GL6: =IF(AND(GL$5>$BG6,GL$5<=$BH6),GL97,0) -> 0 | GM6: 0 | GN6: 0 | GO6: 0 | GP6: 0 | GQ6: 0 | GR6: 0 | GS6: 0 | GT6: 0 | GU6: 0 | GV6: 0 | GW6: 0 | GX6: 0 | GY6: 0 | GZ6: 0 | HA6: 0 | HB6: 0 | HC6: 0 | HD6: 0 | HE6: 0 | HF6: 0 | HG6: 0 | HH6: 0 | HI6: 0 | HJ6: 0 | HK6: 0 | HL6: 0 | HM6: 0 | HN6: 0 | HO6: 0 | HP6: 0 | HQ6: 0 | HR6: 0 | HS6: 0 | HT6: 0 | HU6: 0 | HV6: 0 | HW6: 0 | HX6: 0 | HY6: 0 | HZ6: 0 | IA6: 0 | IB6: 0 | IC6: 0 | ID6: 0 | IE6: 0 | IF6: 0 | IG6: 0 | IH6: 0 | II6: 0 | IJ6: 0 | IK6: 0 | IL6: 0 | IM6: 0 | IN6: 0 | IO6: 0 | IP6: 0 | IQ6: 0 | IR6: 0 | IS6: 0 | IT6: 0 | IU6: 0 | IV6: 0 | IW6: 0 | IX6: =IF(AND(IX$5>$BG6,IX$5<=$BH6),IX97,0) -> 0 | IY6: 0 | IZ6: 0 | JA6: 0 | JB6: 0 | JC6: 0 | JD6: 0 | JE6: 0 | JF6: 0 | JG6: 0 | JH6: 0 | JI6: 0 | JJ6: 0 | JK6: 0 | JL6: 0 | JM6: 0 | JN6: 0 | JO6: 0 | JP6: 0 | JQ6: 0 | JR6: 0 | JS6: 0 | JT6: 0 | JU6: 0 | JV6: 0 | JW6: 0 | JX6: 0 | JY6: 0 | JZ6: 0 | KA6: 0 | KB6: 0 | KC6: 0 | KD6: 0 | KE6: 0 | KF6: 0 | KG6: 0 | KH6: 0 | KI6: 0 | KJ6: 0 | KK6: 0 | KL6: 0 | KM6: 0 | KN6: 0 | KO6: 0 | KP6: 0 | KQ6: 0 | KR6: 0 | KS6: 0 | KT6: 0 | KU6: 0 | KV6: 0 | KW6: 0 | KX6: 0 | KY6: 0 | KZ6: 0 | LA6: 0 | LB6: 0 | LC6: 0 | LD6: 0 | LE6: 0 | LF6: 0 | LG6: 0 | LH6: 0 | LI6: 0 | LJ6: =IF(AND(LJ$5>$BG6,LJ$5<=$BH6),LJ97,0) -> 0 | LK6: 0 | LL6: 0 | LM6: 0 | LN6: 0 | LO6: 0 | LP6: 0 | LQ6: 0 | LR6: 0 | LS6: 0 | LT6: 0 | LU6: 0 | LV6: 0 | LW6: 0 | LX6: 0 | LY6: 0 | LZ6: 0 | MA6: 0 | MB6: 0 | MC6: 0 | MD6: 0 | ME6: 0 | MF6: 0 | MG6: 0 | MH6: 0 | MI6: 0 | MJ6: 0 | MK6: 0 | ML6: 0 | MM6: 0 | MN6: 0 | MO6: 0 | MP6: 0 | MQ6: 0 | MR6: 0 | MS6: 0 | MT6: 0 | MU6: 0 | MV6: 0 | MW6: 0 | MX6: 0 | MY6: 0 | MZ6: 0 | NA6: 0 | NB6: 0 | NC6: 0 | ND6: 0 | NE6: 0 | NF6: 0 | NG6: 0 | NH6: 0 | NI6: 0 | NJ6: 0 | NK6: 0 | NL6: 0 | NM6: 0 | NN6: 0 | NO6: 0 | NP6: 0 | NQ6: 0 | NR6: 0 | NS6: 0 | NT6: 0 | NU6: 0 | NV6: =IF(AND(NV$5>$BG6,NV$5<=$BH6),NV97,0) -> 0 | NW6: 0 | NX6: 0 | NY6: 0 | NZ6: 0 | OA6: 0 | OB6: 0 | OC6: 0 | OD6: 0 | OE6: 0 | OF6: 0 | OG6: 0 | OH6: 0 | OI6: 0 | OJ6: 0 | OK6: 0 | OL6: 0 | OM6: 0 | ON6: 0 | OO6: 0 | OP6: 0 | OQ6: 0 | OR6: 0 | OS6: 0 | OT6: 0 | OU6: 0 | OV6: 0 | OW6: 0 | OX6: 0 | OY6: 0 | OZ6: 0 | PA6: 0 | PB6: 0 | PC6: 0 | PD6: 0 | PE6: 0 | PF6: 0 | PG6: 0 | PH6: 0 | PI6: 0 | PJ6: 0 | PK6: 0 | PL6: 0 | PM6: 0 | PN6: 0 | PO6: 0 | PP6: 0 | PQ6: 0 | PR6: 0 | PS6: 0 | PT6: 0 | PU6: 0 | PV6: 0 | PW6: 0 | PX6: 0 | PY6: 0 | PZ6: 0 | QA6: 0
C7: 2 | D7: Excavation | E7: 1 | O7: 3 | Y7: 269.096 | Z7: 10 | AA7: 514.8 | AB7: 6 | AJ7: =+pikaia!B34 -> 1 | AK7: =ROUND(INDEX(Y7:AH7,,AJ7*2),0) -> 10 | AL7: =INDEX(Y7:AH7,,AJ7*2-1)*1000 -> 269096 | AM7: 0 | AN7: 0 | AO7: 0 | AP7: 0 | AQ7: 0 | AR7: 0 | AS7: 0 | AT7: 0 | AU7: 0 | AV7: 0 | AW7: 10 | AX7: 388 | AY7: 388 | AZ7: 388 | BA7: 388 | BB7: 388 | BC7: 388 | BD7: 388 | BE7: 388 | BF7: 388 | BG7: 0 | BH7: 10 | BI7: 0 | BJ7: 10 | BK7: 0 | BL7: 2 | BM7: 2 | BN7: =IF(AND(BN$5>$BG7,BN$5<=$BH7),BN98,0) -> 2 | BO7: 2 | BP7: 2 | BQ7: 2 | BR7: 2 | BS7: 2 | BT7: 2 | BU7: 2 | BV7: 2 | BW7: 2 | BX7: 0 | BY7: 0 | BZ7: 0 | CA7: 0 | CB7: 0 | CC7: 0 | CD7: 0 | CE7: 0 | CF7: 0 | CG7: 0 | CH7: 0 | CI7: 0 | CJ7: 0 | CK7: 0 | CL7: 0 | CM7: 0 | CN7: 0 | CO7: 0 | CP7: 0 | CQ7: 0 | CR7: 0 | CS7: 0 | CT7: 0 | CU7: 0 | CV7: 0 | CW7: 0 | CX7: 0 | CY7: 0 | CZ7: 0 | DA7: 0 | DB7: 0 | DC7: 0 | DD7: 0 | DE7: 0 | DF7: 0 | DG7: 0 | DH7: 0 | DI7: 0 | DJ7: 0 | DK7: 0 | DL7: 0 | DM7: 0 | DN7: 0 | DO7: 0 | DP7: 0 | DQ7: 0 | DR7: 0 | DS7: 0 | DT7: 0 | DU7: 0 | DV7: 0 | DW7: 0 | DX7: 0 | DY7: 0 | DZ7: =IF(AND(DZ$5>$BG7,DZ$5<=$BH7),DZ98,0) -> 0 | EA7: 0 | EB7: 0 | EC7: 0 | ED7: 0 | EE7: 0 | EF7: 0 | EG7: 0 | EH7: 0 | EI7: 0 | EJ7: 0 | EK7: 0 | EL7: 0 | EM7: 0 | EN7: 0 | EO7: 0 | EP7: 0 | EQ7: 0 | ER7: 0 | ES7: 0 | ET7: 0 | EU7: 0 | EV7: 0 | EW7: 0 | EX7: 0 | EY7: 0 | EZ7: 0 | FA7: 0 | FB7: 0 | FC7: 0 | FD7: 0 | FE7: 0 | FF7: 0 | FG7: 0 | FH7: 0 | FI7: 0 | FJ7: 0 | FK7: 0 | FL7: 0 | FM7: 0 | FN7: 0 | FO7: 0 | FP7: 0 | FQ7: 0 | FR7: 0 | FS7: 0 | FT7: 0 | FU7: 0 | FV7: 0 | FW7: 0 | FX7: 0 | FY7: 0 | FZ7: 0 | GA7: 0 | GB7: 0 | GC7: 0 | GD7: 0 | GE7: 0 | GF7: 0 | GG7: 0 | GH7: 0 | GI7: 0 | GJ7: 0 | GK7: 0 | GL7: =IF(AND(GL$5>$BG7,GL$5<=$BH7),GL98,0) -> 0 | GM7: 0 | GN7: 0 | GO7: 0 | GP7: 0 | GQ7: 0 | GR7: 0 | GS7: 0 | GT7: 0 | GU7: 0 | GV7: 0 | GW7: 0 | GX7: 0 | GY7: 0 | GZ7: 0 | HA7: 0 | HB7: 0 | HC7: 0 | HD7: 0 | HE7: 0 | HF7: 0 | HG7: 0 | HH7: 0 | HI7: 0 | HJ7: 0 | HK7: 0 | HL7: 0 | HM7: 0 | HN7: 0 | HO7: 0 | HP7: 0 | HQ7: 0 | HR7: 0 | HS7: 0 | HT7: 0 | HU7: 0 | HV7: 0 | HW7: 0 | HX7: 0 | HY7: 0 | HZ7: 0 | IA7: 0 | IB7: 0 | IC7: 0 | ID7: 0 | IE7: 0 | IF7: 0 | IG7: 0 | IH7: 0 | II7: 0 | IJ7: 0 | IK7: 0 | IL7: 0 | IM7: 0 | IN7: 0 | IO7: 0 | IP7: 0 | IQ7: 0 | IR7: 0 | IS7: 0 | IT7: 0 | IU7: 0 | IV7: 0 | IW7: 0 | IX7: =IF(AND(IX$5>$BG7,IX$5<=$BH7),IX98,0) -> 0 | IY7: 0 | IZ7: 0 | JA7: 0 | JB7: 0 | JC7: 0 | JD7: 0 | JE7: 0 | JF7: 0 | JG7: 0 | JH7: 0 | JI7: 0 | JJ7: 0 | JK7: 0 | JL7: 0 | JM7: 0 | JN7: 0 | JO7: 0 | JP7: 0 | JQ7: 0 | JR7: 0 | JS7: 0 | JT7: 0 | JU7: 0 | JV7: 0 | JW7: 0 | JX7: 0 | JY7: 0 | JZ7: 0 | KA7: 0 | KB7: 0 | KC7: 0 | KD7: 0 | KE7: 0 | KF7: 0 | KG7: 0 | KH7: 0 | KI7: 0 | KJ7: 0 | KK7: 0 | KL7: 0 | KM7: 0 | KN7: 0 | KO7: 0 | KP7: 0 | KQ7: 0 | KR7: 0 | KS7: 0 | KT7: 0 | KU7: 0 | KV7: 0 | KW7: 0 | KX7: 0 | KY7: 0 | KZ7: 0 | LA7: 0 | LB7: 0 | LC7: 0 | LD7: 0 | LE7: 0 | LF7: 0 | LG7: 0 | LH7: 0 | LI7: 0 | LJ7: =IF(AND(LJ$5>$BG7,LJ$5<=$BH7),LJ98,0) -> 0 | LK7: 0 | LL7: 0 | LM7: 0 | LN7: 0 | LO7: 0 | LP7: 0 | LQ7: 0 | LR7: 0 | LS7: 0 | LT7: 0 | LU7: 0 | LV7: 0 | LW7: 0 | LX7: 0 | LY7: 0 | LZ7: 0 | MA7: 0 | MB7: 0 | MC7: 0 | MD7: 0 | ME7: 0 | MF7: 0 | MG7: 0 | MH7: 0 | MI7: 0 | MJ7: 0 | MK7: 0 | ML7: 0 | MM7: 0 | MN7: 0 | MO7: 0 | MP7: 0 | MQ7: 0 | MR7: 0 | MS7: 0 | MT7: 0 | MU7: 0 | MV7: 0 | MW7: 0 | MX7: 0 | MY7: 0 | MZ7: 0 | NA7: 0 | NB7: 0 | NC7: 0 | ND7: 0 | NE7: 0 | NF7: 0 | NG7: 0 | NH7: 0 | NI7: 0 | NJ7: 0 | NK7: 0 | NL7: 0 | NM7: 0 | NN7: 0 | NO7: 0 | NP7: 0 | NQ7: 0 | NR7: 0 | NS7: 0 | NT7: 0 | NU7: 0 | NV7: =IF(AND(NV$5>$BG7,NV$5<=$BH7),NV98,0) -> 0 | NW7: 0 | NX7: 0 | NY7: 0 | NZ7: 0 | OA7: 0 | OB7: 0 | OC7: 0 | OD7: 0 | OE7: 0 | OF7: 0 | OG7: 0 | OH7: 0 | OI7: 0 | OJ7: 0 | OK7: 0 | OL7: 0 | OM7: 0 | ON7: 0 | OO7: 0 | OP7: 0 | OQ7: 0 | OR7: 0 | OS7: 0 | OT7: 0 | OU7: 0 | OV7: 0 | OW7: 0 | OX7: 0 | OY7: 0 | OZ7: 0 | PA7: 0 | PB7: 0 | PC7: 0 | PD7: 0 | PE7: 0 | PF7: 0 | PG7: 0 | PH7: 0 | PI7: 0 | PJ7: 0 | PK7: 0 | PL7: 0 | PM7: 0 | PN7: 0 | PO7: 0 | PP7: 0 | PQ7: 0 | PR7: 0 | PS7: 0 | PT7: 0 | PU7: 0 | PV7: 0 | PW7: 0 | PX7: 0 | PY7: 0 | PZ7: 0 | QA7: 0
C8: 3 | D8: Foundations | E8: 2 | O8: 4 | Y8: 406.276 | Z8: 6 | AA8: 848.353 | AB8: 3 | AJ8: =+pikaia!C34 -> 1 | AK8: 6 | AL8: 406276 | AM8: 10 | AN8: 0 | AO8: 0 | AP8: 0 | AQ8: 0 | AR8: 0 | AS8: 0 | AT8: 0 | AU8: 0 | AV8: 0 | AW8: 16 | AX8: 388 | AY8: 388 | AZ8: 388 | BA8: 388 | BB8: 388 | BC8: 388 | BD8: 388 | BE8: 388 | BF8: 388 | BG8: 10 | BH8: 16 | BI8: 10 | BJ8: 16 | BK8: 0 | BL8: 3 | BM8: 3 | BN8: =IF(AND(BN$5>$BG8,BN$5<=$BH8),BN99,0) -> 0 | BO8: 0 | BP8: 0 | BQ8: 0 | BR8: 0 | BS8: 0 | BT8: 0 | BU8: 0 | BV8: 0 | BW8: 0 | BX8: 3 | BY8: 3 | BZ8: 3 | CA8: 3 | CB8: 3 | CC8: 3 | CD8: 0 | CE8: 0 | CF8: 0 | CG8: 0 | CH8: 0 | CI8: 0 | CJ8: 0 | CK8: 0 | CL8: 0 | CM8: 0 | CN8: 0 | CO8: 0 | CP8: 0 | CQ8: 0 | CR8: 0 | CS8: 0 | CT8: 0 | CU8: 0 | CV8: 0 | CW8: 0 | CX8: 0 | CY8: 0 | CZ8: 0 | DA8: 0 | DB8: 0 | DC8: 0 | DD8: 0 | DE8: 0 | DF8: 0 | DG8: 0 | DH8: 0 | DI8: 0 | DJ8: 0 | DK8: 0 | DL8: 0 | DM8: 0 | DN8: 0 | DO8: 0 | DP8: 0 | DQ8: 0 | DR8: 0 | DS8: 0 | DT8: 0 | DU8: 0 | DV8: 0 | DW8: 0 | DX8: 0 | DY8: 0 | DZ8: =IF(AND(DZ$5>$BG8,DZ$5<=$BH8),DZ99,0) -> 0 | EA8: 0 | EB8: 0 | EC8: 0 | ED8: 0 | EE8: 0 | EF8: 0 | EG8: 0 | EH8: 0 | EI8: 0 | EJ8: 0 | EK8: 0 | EL8: 0 | EM8: 0 | EN8: 0 | EO8: 0 | EP8: 0 | EQ8: 0 | ER8: 0 | ES8: 0 | ET8: 0 | EU8: 0 | EV8: 0 | EW8: 0 | EX8: 0 | EY8: 0 | EZ8: 0 | FA8: 0 | FB8: 0 | FC8: 0 | FD8: 0 | FE8: 0 | FF8: 0 | FG8: 0 | FH8: 0 | FI8: 0 | FJ8: 0 | FK8: 0 | FL8: 0 | FM8: 0 | FN8: 0 | FO8: 0 | FP8: 0 | FQ8: 0 | FR8: 0 | FS8: 0 | FT8: 0 | FU8: 0 | FV8: 0 | FW8: 0 | FX8: 0 | FY8: 0 | FZ8: 0 | GA8: 0 | GB8: 0 | GC8: 0 | GD8: 0 | GE8: 0 | GF8: 0 | GG8: 0 | GH8: 0 | GI8: 0 | GJ8: 0 | GK8: 0 | GL8: =IF(AND(GL$5>$BG8,GL$5<=$BH8),GL99,0) -> 0 | GM8: 0 | GN8: 0 | GO8: 0 | GP8: 0 | GQ8: 0 | GR8: 0 | GS8: 0 | GT8: 0 | GU8: 0 | GV8: 0 | GW8: 0 | GX8: 0 | GY8: 0 | GZ8: 0 | HA8: 0 | HB8: 0 | HC8: 0 | HD8: 0 | HE8: 0 | HF8: 0 | HG8: 0 | HH8: 0 | HI8: 0 | HJ8: 0 | HK8: 0 | HL8: 0 | HM8: 0 | HN8: 0 | HO8: 0 | HP8: 0 | HQ8: 0 | HR8: 0 | HS8: 0 | HT8: 0 | HU8: 0 | HV8: 0 | HW8: 0 | HX8: 0 | HY8: 0 | HZ8: 0 | IA8: 0 | IB8: 0 | IC8: 0 | ID8: 0 | IE8: 0 | IF8: 0 | IG8: 0 | IH8: 0 | II8: 0 | IJ8: 0 | IK8: 0 | IL8: 0 | IM8: 0 | IN8: 0 | IO8: 0 | IP8: 0 | IQ8: 0 | IR8: 0 | IS8: 0 | IT8: 0 | IU8: 0 | IV8: 0 | IW8: 0 | IX8: =IF(AND(IX$5>$BG8,IX$5<=$BH8),IX99,0) -> 0 | IY8: 0 | IZ8: 0 | JA8: 0 | JB8: 0 | JC8: 0 | JD8: 0 | JE8: 0 | JF8: 0 | JG8: 0 | JH8: 0 | JI8: 0 | JJ8: 0 | JK8: 0 | JL8: 0 | JM8: 0 | JN8: 0 | JO8: 0 | JP8: 0 | JQ8: 0 | JR8: 0 | JS8: 0 | JT8: 0 | JU8: 0 | JV8: 0 | JW8: 0 | JX8: 0 | JY8: 0 | JZ8: 0 | KA8: 0 | KB8: 0 | KC8: 0 | KD8: 0 | KE8: 0 | KF8: 0 | KG8: 0 | KH8: 0 | KI8: 0 | KJ8: 0 | KK8: 0 | KL8: 0 | KM8: 0 | KN8: 0 | KO8: 0 | KP8: 0 | KQ8: 0 | KR8: 0 | KS8: 0 | KT8: 0 | KU8: 0 | KV8: 0 | KW8: 0 | KX8: 0 | KY8: 0 | KZ8: 0 | LA8: 0 | LB8: 0 | LC8: 0 | LD8: 0 | LE8: 0 | LF8: 0 | LG8: 0 | LH8: 0 | LI8: 0 | LJ8: =IF(AND(LJ$5>$BG8,LJ$5<=$BH8),LJ99,0) -> 0 | LK8: 0 | LL8: 0 | LM8: 0 | LN8: 0 | LO8: 0 | LP8: 0 | LQ8: 0 | LR8: 0 | LS8: 0 | LT8: 0 | LU8: 0 | LV8: 0 | LW8: 0 | LX8: 0 | LY8: 0 | LZ8: 0 | MA8: 0 | MB8: 0 | MC8: 0 | MD8: 0 | ME8: 0 | MF8: 0 | MG8: 0 | MH8: 0 | MI8: 0 | MJ8: 0 | MK8: 0 | ML8: 0 | MM8: 0 | MN8: 0 | MO8: 0 | MP8: 0 | MQ8: 0 | MR8: 0 | MS8: 0 | MT8: 0 | MU8: 0 | MV8: 0 | MW8: 0 | MX8: 0 | MY8: 0 | MZ8: 0 | NA8: 0 | NB8: 0 | NC8: 0 | ND8: 0 | NE8: 0 | NF8: 0 | NG8: 0 | NH8: 0 | NI8: 0 | NJ8: 0 | NK8: 0 | NL8: 0 | NM8: 0 | NN8: 0 | NO8: 0 | NP8: 0 | NQ8: 0 | NR8: 0 | NS8: 0 | NT8: 0 | NU8: 0 | NV8: =IF(AND(NV$5>$BG8,NV$5<=$BH8),NV99,0) -> 0 | NW8: 0 | NX8: 0 | NY8: 0 | NZ8: 0 | OA8: 0 | OB8: 0 | OC8: 0 | OD8: 0 | OE8: 0 | OF8: 0 | OG8: 0 | OH8: 0 | OI8: 0 | OJ8: 0 | OK8: 0 | OL8: 0 | OM8: 0 | ON8: 0 | OO8: 0 | OP8: 0 | OQ8: 0 | OR8: 0 | OS8: 0 | OT8: 0 | OU8: 0 | OV8: 0 | OW8: 0 | OX8: 0 | OY8: 0 | OZ8: 0 | PA8: 0 | PB8: 0 | PC8: 0 | PD8: 0 | PE8: 0 | PF8: 0 | PG8: 0 | PH8: 0 | PI8: 0 | PJ8: 0 | PK8: 0 | PL8: 0 | PM8: 0 | PN8: 0 | PO8: 0 | PP8: 0 | PQ8: 0 | PR8: 0 | PS8: 0 | PT8: 0 | PU8: 0 | PV8: 0 | PW8: 0 | PX8: 0 | PY8: 0 | PZ8: 0 | QA8: 0
C9: 4 | D9: Cellars | E9: 3 | O9: 5 | Y9: 117.468 | Z9: 4 | AA9: 256.74 | AB9: 3 | AJ9: =+pikaia!D34 -> 1 | AK9: 4 | AL9: 117468 | AM9: 16 | AN9: 0 | AO9: 0 | AP9: 0 | AQ9: 0 | AR9: 0 | AS9: 0 | AT9: 0 | AU9: 0 | AV9: 0 | AW9: 20 | AX9: 388 | AY9: 388 | AZ9: 388 | BA9: 388 | BB9: 388 | BC9: 388 | BD9: 388 | BE9: 388 | BF9: 388 | BG9: 16 | BH9: 20 | BI9: 16 | BJ9: 20 | BK9: 0 | BL9: 4 | BM9: 4 | BN9: =IF(AND(BN$5>$BG9,BN$5<=$BH9),BN100,0) -> 0 | BO9: 0 | BP9: 0 | BQ9: 0 | BR9: 0 | BS9: 0 | BT9: 0 | BU9: 0 | BV9: 0 | BW9: 0 | BX9: 0 | BY9: 0 | BZ9: 0 | CA9: 0 | CB9: 0 | CC9: 0 | CD9: 4 | CE9: 4 | CF9: 4 | CG9: 4 | CH9: 0 | CI9: 0 | CJ9: 0 | CK9: 0 | CL9: 0 | CM9: 0 | CN9: 0 | CO9: 0 | CP9: 0 | CQ9: 0 | CR9: 0 | CS9: 0 | CT9: 0 | CU9: 0 | CV9: 0 | CW9: 0 | CX9: 0 | CY9: 0 | CZ9: 0 | DA9: 0 | DB9: 0 | DC9: 0 | DD9: 0 | DE9: 0 | DF9: 0 | DG9: 0 | DH9: 0 | DI9: 0 | DJ9: 0 | DK9: 0 | DL9: 0 | DM9: 0 | DN9: 0 | DO9: 0 | DP9: 0 | DQ9: 0 | DR9: 0 | DS9: 0 | DT9: 0 | DU9: 0 | DV9: 0 | DW9: 0 | DX9: 0 | DY9: 0 | DZ9: =IF(AND(DZ$5>$BG9,DZ$5<=$BH9),DZ100,0) -> 0 | EA9: 0 | EB9: 0 | EC9: 0 | ED9: 0 | EE9: 0 | EF9: 0 | EG9: 0 | EH9: 0 | EI9: 0 | EJ9: 0 | EK9: 0 | EL9: 0 | EM9: 0 | EN9: 0 | EO9: 0 | EP9: 0 | EQ9: 0 | ER9: 0 | ES9: 0 | ET9: 0 | EU9: 0 | EV9: 0 | EW9: 0 | EX9: 0 | EY9: 0 | EZ9: 0 | FA9: 0 | FB9: 0 | FC9: 0 | FD9: 0 | FE9: 0 | FF9: 0 | FG9: 0 | FH9: 0 | FI9: 0 | FJ9: 0 | FK9: 0 | FL9: 0 | FM9: 0 | FN9: 0 | FO9: 0 | FP9: 0 | FQ9: 0 | FR9: 0 | FS9: 0 | FT9: 0 | FU9: 0 | FV9: 0 | FW9: 0 | FX9: 0 | FY9: 0 | FZ9: 0 | GA9: 0 | GB9: 0 | GC9: 0 | GD9: 0 | GE9: 0 | GF9: 0 | GG9: 0 | GH9: 0 | GI9: 0 | GJ9: 0 | GK9: 0 | GL9: =IF(AND(GL$5>$BG9,GL$5<=$BH9),GL100,0) -> 0 | GM9: 0 | GN9: 0 | GO9: 0 | GP9: 0 | GQ9: 0 | GR9: 0 | GS9: 0 | GT9: 0 | GU9: 0 | GV9: 0 | GW9: 0 | GX9: 0 | GY9: 0 | GZ9: 0 | HA9: 0 | HB9: 0 | HC9: 0 | HD9: 0 | HE9: 0 | HF9: 0 | HG9: 0 | HH9: 0 | HI9: 0 | HJ9: 0 | HK9: 0 | HL9: 0 | HM9: 0 | HN9: 0 | HO9: 0 | HP9: 0 | HQ9: 0 | HR9: 0 | HS9: 0 | HT9: 0 | HU9: 0 | HV9: 0 | HW9: 0 | HX9: 0 | HY9: 0 | HZ9: 0 | IA9: 0 | IB9: 0 | IC9: 0 | ID9: 0 | IE9: 0 | IF9: 0 | IG9: 0 | IH9: 0 | II9: 0 | IJ9: 0 | IK9: 0 | IL9: 0 | IM9: 0 | IN9: 0 | IO9: 0 | IP9: 0 | IQ9: 0 | IR9: 0 | IS9: 0 | IT9: 0 | IU9: 0 | IV9: 0 | IW9: 0 | IX9: =IF(AND(IX$5>$BG9,IX$5<=$BH9),IX100,0) -> 0 | IY9: 0 | IZ9: 0 | JA9: 0 | JB9: 0 | JC9: 0 | JD9: 0 | JE9: 0 | JF9: 0 | JG9: 0 | JH9: 0 | JI9: 0 | JJ9: 0 | JK9: 0 | JL9: 0 | JM9: 0 | JN9: 0 | JO9: 0 | JP9: 0 | JQ9: 0 | JR9: 0 | JS9: 0 | JT9: 0 | JU9: 0 | JV9: 0 | JW9: 0 | JX9: 0 | JY9: 0 | JZ9: 0 | KA9: 0 | KB9: 0 | KC9: 0 | KD9: 0 | KE9: 0 | KF9: 0 | KG9: 0 | KH9: 0 | KI9: 0 | KJ9: 0 | KK9: 0 | KL9: 0 | KM9: 0 | KN9: 0 | KO9: 0 | KP9: 0 | KQ9: 0 | KR9: 0 | KS9: 0 | KT9: 0 | KU9: 0 | KV9: 0 | KW9: 0 | KX9: 0 | KY9: 0 | KZ9: 0 | LA9: 0 | LB9: 0 | LC9: 0 | LD9: 0 | LE9: 0 | LF9: 0 | LG9: 0 | LH9: 0 | LI9: 0 | LJ9: =IF(AND(LJ$5>$BG9,LJ$5<=$BH9),LJ100,0) -> 0 | LK9: 0 | LL9: 0 | LM9: 0 | LN9: 0 | LO9: 0 | LP9: 0 | LQ9: 0 | LR9: 0 | LS9: 0 | LT9: 0 | LU9: 0 | LV9: 0 | LW9: 0 | LX9: 0 | LY9: 0 | LZ9: 0 | MA9: 0 | MB9: 0 | MC9: 0 | MD9: 0 | ME9: 0 | MF9: 0 | MG9: 0 | MH9: 0 | MI9: 0 | MJ9: 0 | MK9: 0 | ML9: 0 | MM9: 0 | MN9: 0 | MO9: 0 | MP9: 0 | MQ9: 0 | MR9: 0 | MS9: 0 | MT9: 0 | MU9: 0 | MV9: 0 | MW9: 0 | MX9: 0 | MY9: 0 | MZ9: 0 | NA9: 0 | NB9: 0 | NC9: 0 | ND9: 0 | NE9: 0 | NF9: 0 | NG9: 0 | NH9: 0 | NI9: 0 | NJ9: 0 | NK9: 0 | NL9: 0 | NM9: 0 | NN9: 0 | NO9: 0 | NP9: 0 | NQ9: 0 | NR9: 0 | NS9: 0 | NT9: 0 | NU9: 0 | NV9: =IF(AND(NV$5>$BG9,NV$5<=$BH9),NV100,0) -> 0 | NW9: 0 | NX9: 0 | NY9: 0 | NZ9: 0 | OA9: 0 | OB9: 0 | OC9: 0 | OD9: 0 | OE9: 0 | OF9: 0 | OG9: 0 | OH9: 0 | OI9: 0 | OJ9: 0 | OK9: 0 | OL9: 0 | OM9: 0 | ON9: 0 | OO9: 0 | OP9: 0 | OQ9: 0 | OR9: 0 | OS9: 0 | OT9: 0 | OU9: 0 | OV9: 0 | OW9: 0 | OX9: 0 | OY9: 0 | OZ9: 0 | PA9: 0 | PB9: 0 | PC9: 0 | PD9: 0 | PE9: 0 | PF9: 0 | PG9: 0 | PH9: 0 | PI9: 0 | PJ9: 0 | PK9: 0 | PL9: 0 | PM9: 0 | PN9: 0 | PO9: 0 | PP9: 0 | PQ9: 0 | PR9: 0 | PS9: 0 | PT9: 0 | PU9: 0 | PV9: 0 | PW9: 0 | PX9: 0 | PY9: 0 | PZ9: 0 | QA9: 0
C10: 5 | D10: Structure | E10: 4 | O10: 6 | P10: 10 | Y10: 120.298 | Z10: 18 | AA10: 593.6324333 | AB10: 11 | AJ10: =+pikaia!E34 -> 1 | AK10: 18 | AL10: 120298 | AM10: 20 | AN10: 0 | AO10: 0 | AP10: 0 | AQ10: 0 | AR10: 0 | AS10: 0 | AT10: 0 | AU10: 0 | AV10: 0 | AW10: 299 | AX10: 38 | AY10: 388 | AZ10: 388 | BA10: 388 | BB10: 388 | BC10: 388 | BD10: 388 | BE10: 388 | BF10: 388 | BG10: 20 | BH10: 38 | BI10: 20 | BJ10: 38 | BK10: 0 | BL10: 5 | BM10: 5 | BN10: =IF(AND(BN$5>$BG10,BN$5<=$BH10),BN101,0) -> 0 | BO10: 0 | BP10: 0 | BQ10: 0 | BR10: 0 | BS10: 0 | BT10: 0 | BU10: 0 | BV10: 0 | BW10: 0 | BX10: 0 | BY10: 0 | BZ10: 0 | CA10: 0 | CB10: 0 | CC10: 0 | CD10: 0 | CE10: 0 | CF10: 0 | CG10: 0 | CH10: 5 | CI10: 5 | CJ10: 5 | CK10: 5 | CL10: 5 | CM10: 5 | CN10: 5 | CO10: 5 | CP10: 5 | CQ10: 5 | CR10: 5 | CS10: 5 | CT10: 5 | CU10: 5 | CV10: 5 | CW10: 5 | CX10: 5 | CY10: 5 | CZ10: 0 | DA10: 0 | DB10: 0 | DC10: 0 | DD10: 0 | DE10: 0 | DF10: 0 | DG10: 0 | DH10: 0 | DI10: 0 | DJ10: 0 | DK10: 0 | DL10: 0 | DM10: 0 | DN10: 0 | DO10: 0 | DP10: 0 | DQ10: 0 | DR10: 0 | DS10: 0 | DT10: 0 | DU10: 0 | DV10: 0 | DW10: 0 | DX10: 0 | DY10: 0 | DZ10: =IF(AND(DZ$5>$BG10,DZ$5<=$BH10),DZ101,0) -> 0 | EA10: 0 | EB10: 0 | EC10: 0 | ED10: 0 | EE10: 0 | EF10: 0 | EG10: 0 | EH10: 0 | EI10: 0 | EJ10: 0 | EK10: 0 | EL10: 0 | EM10: 0 | EN10: 0 | EO10: 0 | EP10: 0 | EQ10: 0 | ER10: 0 | ES10: 0 | ET10: 0 | EU10: 0 | EV10: 0 | EW10: 0 | EX10: 0 | EY10: 0 | EZ10: 0 | FA10: 0 | FB10: 0 | FC10: 0 | FD10: 0 | FE10: 0 | FF10: 0 | FG10: 0 | FH10: 0 | FI10: 0 | FJ10: 0 | FK10: 0 | FL10: 0 | FM10: 0 | FN10: 0 | FO10: 0 | FP10: 0 | FQ10: 0 | FR10: 0 | FS10: 0 | FT10: 0 | FU10: 0 | FV10: 0 | FW10: 0 | FX10: 0 | FY10: 0 | FZ10: 0 | GA10: 0 | GB10: 0 | GC10: 0 | GD10: 0 | GE10: 0 | GF10: 0 | GG10: 0 | GH10: 0 | GI10: 0 | GJ10: 0 | GK10: 0 | GL10: =IF(AND(GL$5>$BG10,GL$5<=$BH10),GL101,0) -> 0 | GM10: 0 | GN10: 0 | GO10: 0 | GP10: 0 | GQ10: 0 | GR10: 0 | GS10: 0 | GT10: 0 | GU10: 0 | GV10: 0 | GW10: 0 | GX10: 0 | GY10: 0 | GZ10: 0 | HA10: 0 | HB10: 0 | HC10: 0 | HD10: 0 | HE10: 0 | HF10: 0 | HG10: 0 | HH10: 0 | HI10: 0 | HJ10: 0 | HK10: 0 | HL10: 0 | HM10: 0 | HN10: 0 | HO10: 0 | HP10: 0 | HQ10: 0 | HR10: 0 | HS10: 0 | HT10: 0 | HU10: 0 | HV10: 0 | HW10: 0 | HX10: 0 | HY10: 0 | HZ10: 0 | IA10: 0 | IB10: 0 | IC10: 0 | ID10: 0 | IE10: 0 | IF10: 0 | IG10: 0 | IH10: 0 | II10: 0 | IJ10: 0 | IK10: 0 | IL10: 0 | IM10: 0 | IN10: 0 | IO10: 0 | IP10: 0 | IQ10: 0 | IR10: 0 | IS10: 0 | IT10: 0 | IU10: 0 | IV10: 0 | IW10: 0 | IX10: =IF(AND(IX$5>$BG10,IX$5<=$BH10),IX101,0) -> 0 | IY10: 0 | IZ10: 0 | JA10: 0 | JB10: 0 | JC10: 0 | JD10: 0 | JE10: 0 | JF10: 0 | JG10: 0 | JH10: 0 | JI10: 0 | JJ10: 0 | JK10: 0 | JL10: 0 | JM10: 0 | JN10: 0 | JO10: 0 | JP10: 0 | JQ10: 0 | JR10: 0 | JS10: 0 | JT10: 0 | JU10: 0 | JV10: 0 | JW10: 0 | JX10: 0 | JY10: 0 | JZ10: 0 | KA10: 0 | KB10: 0 | KC10: 0 | KD10: 0 | KE10: 0 | KF10: 0 | KG10: 0 | KH10: 0 | KI10: 0 | KJ10: 0 | KK10: 0 | KL10: 0 | KM10: 0 | KN10: 0 | KO10: 0 | KP10: 0 | KQ10: 0 | KR10: 0 | KS10: 0 | KT10: 0 | KU10: 0 | KV10: 0 | KW10: 0 | KX10: 0 | KY10: 0 | KZ10: 0 | LA10: 0 | LB10: 0 | LC10: 0 | LD10: 0 | LE10: 0 | LF10: 0 | LG10: 0 | LH10: 0 | LI10: 0 | LJ10: =IF(AND(LJ$5>$BG10,LJ$5<=$BH10),LJ101,0) -> 0 | LK10: 0 | LL10: 0 | LM10: 0 | LN10: 0 | LO10: 0 | LP10: 0 | LQ10: 0 | LR10: 0 | LS10: 0 | LT10: 0 | LU10: 0 | LV10: 0 | LW10: 0 | LX10: 0 | LY10: 0 | LZ10: 0 | MA10: 0 | MB10: 0 | MC10: 0 | MD10: 0 | ME10: 0 | MF10: 0 | MG10: 0 | MH10: 0 | MI10: 0 | MJ10: 0 | MK10: 0 | ML10: 0 | MM10: 0 | MN10: 0 | MO10: 0 | MP10: 0 | MQ10: 0 | MR10: 0 | MS10: 0 | MT10: 0 | MU10: 0 | MV10: 0 | MW10: 0 | MX10: 0 | MY10: 0 | MZ10: 0 | NA10: 0 | NB10: 0 | NC10: 0 | ND10: 0 | NE10: 0 | NF10: 0 | NG10: 0 | NH10: 0 | NI10: 0 | NJ10: 0 | NK10: 0 | NL10: 0 | NM10: 0 | NN10: 0 | NO10: 0 | NP10: 0 | NQ10: 0 | NR10: 0 | NS10: 0 | NT10: 0 | NU10: 0 | NV10: =IF(AND(NV$5>$BG10,NV$5<=$BH10),NV101,0) -> 0 | NW10: 0 | NX10: 0 | NY10: 0 | NZ10: 0 | OA10: 0 | OB10: 0 | OC10: 0 | OD10: 0 | OE10: 0 | OF10: 0 | OG10: 0 | OH10: 0 | OI10: 0 | OJ10: 0 | OK10: 0 | OL10: 0 | OM10: 0 | ON10: 0 | OO10: 0 | OP10: 0 | OQ10: 0 | OR10: 0 | OS10: 0 | OT10: 0 | OU10: 0 | OV10: 0 | OW10: 0 | OX10: 0 | OY10: 0 | OZ10: 0 | PA10: 0 | PB10: 0 | PC10: 0 | PD10: 0 | PE10: 0 | PF10: 0 | PG10: 0 | PH10: 0 | PI10: 0 | PJ10: 0 | PK10: 0 | PL10: 0 | PM10: 0 | PN10: 0 | PO10: 0 | PP10: 0 | PQ10: 0 | PR10: 0 | PS10: 0 | PT10: 0 | PU10: 0 | PV10: 0 | PW10: 0 | PX10: 0 | PY10: 0 | PZ10: 0 | QA10: 0
C11: 6 | D11: Roof structure | E11: 5 | O11: 7 | Y11: 185.001 | Z11: 5 | AA11: 199 | AB11: 3 | AJ11: =+pikaia!F34 -> 1 | AK11: 5 | AL11: 185001 | AM11: 38 | AN11: 0 | AO11: 0 | AP11: 0 | AQ11: 0 | AR11: 0 | AS11: 0 | AT11: 0 | AU11: 0 | AV11: 0 | AW11: 304 | AX11: 388 | AY11: 388 | AZ11: 388 | BA11: 388 | BB11: 388 | BC11: 388 | BD11: 388 | BE11: 388 | BF11: 388 | BG11: 38 | BH11: 43 | BI11: 299 | BJ11: 304 | BK11: 261 | BL11: 6 | BM11: 6 | BN11: =IF(AND(BN$5>$BG11,BN$5<=$BH11),BN102,0) -> 0 | BO11: 0 | BP11: 0 | BQ11: 0 | BR11: 0 | BS11: 0 | BT11: 0 | BU11: 0 | BV11: 0 | BW11: 0 | BX11: 0 | BY11: 0 | BZ11: 0 | CA11: 0 | CB11: 0 | CC11: 0 | CD11: 0 | CE11: 0 | CF11: 0 | CG11: 0 | CH11: 0 | CI11: 0 | CJ11: 0 | CK11: 0 | CL11: 0 | CM11: 0 | CN11: 0 | CO11: 0 | CP11: 0 | CQ11: 0 | CR11: 0 | CS11: 0 | CT11: 0 | CU11: 0 | CV11: 0 | CW11: 0 | CX11: 0 | CY11: 0 | CZ11: 6 | DA11: 6 | DB11: 6 | DC11: 6 | DD11: 6 | DE11: 0 | DF11: 0 | DG11: 0 | DH11: 0 | DI11: 0 | DJ11: 0 | DK11: 0 | DL11: 0 | DM11: 0 | DN11: 0 | DO11: 0 | DP11: 0 | DQ11: 0 | DR11: 0 | DS11: 0 | DT11: 0 | DU11: 0 | DV11: 0 | DW11: 0 | DX11: 0 | DY11: 0 | DZ11: =IF(AND(DZ$5>$BG11,DZ$5<=$BH11),DZ102,0) -> 0 | EA11: 0 | EB11: 0 | EC11: 0 | ED11: 0 | EE11: 0 | EF11: 0 | EG11: 0 | EH11: 0 | EI11: 0 | EJ11: 0 | EK11: 0 | EL11: 0 | EM11: 0 | EN11: 0 | EO11: 0 | EP11: 0 | EQ11: 0 | ER11: 0 | ES11: 0 | ET11: 0 | EU11: 0 | EV11: 0 | EW11: 0 | EX11: 0 | EY11: 0 | EZ11: 0 | FA11: 0 | FB11: 0 | FC11: 0 | FD11: 0 | FE11: 0 | FF11: 0 | FG11: 0 | FH11: 0 | FI11: 0 | FJ11: 0 | FK11: 0 | FL11: 0 | FM11: 0 | FN11: 0 | FO11: 0 | FP11: 0 | FQ11: 0 | FR11: 0 | FS11: 0 | FT11: 0 | FU11: 0 | FV11: 0 | FW11: 0 | FX11: 0 | FY11: 0 | FZ11: 0 | GA11: 0 | GB11: 0 | GC11: 0 | GD11: 0 | GE11: 0 | GF11: 0 | GG11: 0 | GH11: 0 | GI11: 0 | GJ11: 0 | GK11: 0 | GL11: =IF(AND(GL$5>$BG11,GL$5<=$BH11),GL102,0) -> 0 | GM11: 0 | GN11: 0 | GO11: 0 | GP11: 0 | GQ11: 0 | GR11: 0 | GS11: 0 | GT11: 0 | GU11: 0 | GV11: 0 | GW11: 0 | GX11: 0 | GY11: 0 | GZ11: 0 | HA11: 0 | HB11: 0 | HC11: 0 | HD11: 0 | HE11: 0 | HF11: 0 | HG11: 0 | HH11: 0 | HI11: 0 | HJ11: 0 | HK11: 0 | HL11: 0 | HM11: 0 | HN11: 0 | HO11: 0 | HP11: 0 | HQ11: 0 | HR11: 0 | HS11: 0 | HT11: 0 | HU11: 0 | HV11: 0 | HW11: 0 | HX11: 0 | HY11: 0 | HZ11: 0 | IA11: 0 | IB11: 0 | IC11: 0 | ID11: 0 | IE11: 0 | IF11: 0 | IG11: 0 | IH11: 0 | II11: 0 | IJ11: 0 | IK11: 0 | IL11: 0 | IM11: 0 | IN11: 0 | IO11: 0 | IP11: 0 | IQ11: 0 | IR11: 0 | IS11: 0 | IT11: 0 | IU11: 0 | IV11: 0 | IW11: 0 | IX11: =IF(AND(IX$5>$BG11,IX$5<=$BH11),IX102,0) -> 0 | IY11: 0 | IZ11: 0 | JA11: 0 | JB11: 0 | JC11: 0 | JD11: 0 | JE11: 0 | JF11: 0 | JG11: 0 | JH11: 0 | JI11: 0 | JJ11: 0 | JK11: 0 | JL11: 0 | JM11: 0 | JN11: 0 | JO11: 0 | JP11: 0 | JQ11: 0 | JR11: 0 | JS11: 0 | JT11: 0 | JU11: 0 | JV11: 0 | JW11: 0 | JX11: 0 | JY11: 0 | JZ11: 0 | KA11: 0 | KB11: 0 | KC11: 0 | KD11: 0 | KE11: 0 | KF11: 0 | KG11: 0 | KH11: 0 | KI11: 0 | KJ11: 0 | KK11: 0 | KL11: 0 | KM11: 0 | KN11: 0 | KO11: 0 | KP11: 0 | KQ11: 0 | KR11: 0 | KS11: 0 | KT11: 0 | KU11: 0 | KV11: 0 | KW11: 0 | KX11: 0 | KY11: 0 | KZ11: 0 | LA11: 0 | LB11: 0 | LC11: 0 | LD11: 0 | LE11: 0 | LF11: 0 | LG11: 0 | LH11: 0 | LI11: 0 | LJ11: =IF(AND(LJ$5>$BG11,LJ$5<=$BH11),LJ102,0) -> 0 | LK11: 0 | LL11: 0 | LM11: 0 | LN11: 0 | LO11: 0 | LP11: 0 | LQ11: 0 | LR11: 0 | LS11: 0 | LT11: 0 | LU11: 0 | LV11: 0 | LW11: 0 | LX11: 0 | LY11: 0 | LZ11: 0 | MA11: 0 | MB11: 0 | MC11: 0 | MD11: 0 | ME11: 0 | MF11: 0 | MG11: 0 | MH11: 0 | MI11: 0 | MJ11: 0 | MK11: 0 | ML11: 0 | MM11: 0 | MN11: 0 | MO11: 0 | MP11: 0 | MQ11: 0 | MR11: 0 | MS11: 0 | MT11: 0 | MU11: 0 | MV11: 0 | MW11: 0 | MX11: 0 | MY11: 0 | MZ11: 0 | NA11: 0 | NB11: 0 | NC11: 0 | ND11: 0 | NE11: 0 | NF11: 0 | NG11: 0 | NH11: 0 | NI11: 0 | NJ11: 0 | NK11: 0 | NL11: 0 | NM11: 0 | NN11: 0 | NO11: 0 | NP11: 0 | NQ11: 0 | NR11: 0 | NS11: 0 | NT11: 0 | NU11: 0 | NV11: =IF(AND(NV$5>$BG11,NV$5<=$BH11),NV102,0) -> 0 | NW11: 0 | NX11: 0 | NY11: 0 | NZ11: 0 | OA11: 0 | OB11: 0 | OC11: 0 | OD11: 0 | OE11: 0 | OF11: 0 | OG11: 0 | OH11: 0 | OI11: 0 | OJ11: 0 | OK11: 0 | OL11: 0 | OM11: 0 | ON11: 0 | OO11: 0 | OP11: 0 | OQ11: 0 | OR11: 0 | OS11: 0 | OT11: 0 | OU11: 0 | OV11: 0 | OW11: 0 | OX11: 0 | OY11: 0 | OZ11: 0 | PA11: 0 | PB11: 0 | PC11: 0 | PD11: 0 | PE11: 0 | PF11: 0 | PG11: 0 | PH11: 0 | PI11: 0 | PJ11: 0 | PK11: 0 | PL11: 0 | PM11: 0 | PN11: 0 | PO11: 0 | PP11: 0 | PQ11: 0 | PR11: 0 | PS11: 0 | PT11: 0 | PU11: 0 | PV11: 0 | PW11: 0 | PX11: 0 | PY11: 0 | PZ11: 0 | QA11: 0
C12: 7 | D12: Roof covering | E12: 6 | O12: 15 | Y12: 336.95 | Z12: 3 | AA12: 366.95 | AB12: 2 | AJ12: =+pikaia!G34 -> 1 | AK12: 3 | AL12: 336950 | AM12: 43 | AN12: 0 | AO12: 0 | AP12: 0 | AQ12: 0 | AR12: 0 | AS12: 0 | AT12: 0 | AU12: 0 | AV12: 0 | AW12: 307 | AX12: 388 | AY12: 388 | AZ12: 388 | BA12: 388 | BB12: 388 | BC12: 388 | BD12: 388 | BE12: 388 | BF12: 388 | BG12: 43 | BH12: 46 | BI12: 304 | BJ12: 307 | BK12: 261 | BL12: 7 | BM12: 7 | BN12: =IF(AND(BN$5>$BG12,BN$5<=$BH12),BN103,0) -> 0 | BO12: 0 | BP12: 0 | BQ12: 0 | BR12: 0 | BS12: 0 | BT12: 0 | BU12: 0 | BV12: 0 | BW12: 0 | BX12: 0 | BY12: 0 | BZ12: 0 | CA12: 0 | CB12: 0 | CC12: 0 | CD12: 0 | CE12: 0 | CF12: 0 | CG12: 0 | CH12: 0 | CI12: 0 | CJ12: 0 | CK12: 0 | CL12: 0 | CM12: 0 | CN12: 0 | CO12: 0 | CP12: 0 | CQ12: 0 | CR12: 0 | CS12: 0 | CT12: 0 | CU12: 0 | CV12: 0 | CW12: 0 | CX12: 0 | CY12: 0 | CZ12: 0 | DA12: 0 | DB12: 0 | DC12: 0 | DD12: 0 | DE12: 7 | DF12: 7 | DG12: 7 | DH12: 0 | DI12: 0 | DJ12: 0 | DK12: 0 | DL12: 0 | DM12: 0 | DN12: 0 | DO12: 0 | DP12: 0 | DQ12: 0 | DR12: 0 | DS12: 0 | DT12: 0 | DU12: 0 | DV12: 0 | DW12: 0 | DX12: 0 | DY12: 0 | DZ12: =IF(AND(DZ$5>$BG12,DZ$5<=$BH12),DZ103,0) -> 0 | EA12: 0 | EB12: 0 | EC12: 0 | ED12: 0 | EE12: 0 | EF12: 0 | EG12: 0 | EH12: 0 | EI12: 0 | EJ12: 0 | EK12: 0 | EL12: 0 | EM12: 0 | EN12: 0 | EO12: 0 | EP12: 0 | EQ12: 0 | ER12: 0 | ES12: 0 | ET12: 0 | EU12: 0 | EV12: 0 | EW12: 0 | EX12: 0 | EY12: 0 | EZ12: 0 | FA12: 0 | FB12: 0 | FC12: 0 | FD12: 0 | FE12: 0 | FF12: 0 | FG12: 0 | FH12: 0 | FI12: 0 | FJ12: 0 | FK12: 0 | FL12: 0 | FM12: 0 | FN12: 0 | FO12: 0 | FP12: 0 | FQ12: 0 | FR12: 0 | FS12: 0 | FT12: 0 | FU12: 0 | FV12: 0 | FW12: 0 | FX12: 0 | FY12: 0 | FZ12: 0 | GA12: 0 | GB12: 0 | GC12: 0 | GD12: 0 | GE12: 0 | GF12: 0 | GG12: 0 | GH12: 0 | GI12: 0 | GJ12: 0 | GK12: 0 | GL12: =IF(AND(GL$5>$BG12,GL$5<=$BH12),GL103,0) -> 0 | GM12: 0 | GN12: 0 | GO12: 0 | GP12: 0 | GQ12: 0 | GR12: 0 | GS12: 0 | GT12: 0 | GU12: 0 | GV12: 0 | GW12: 0 | GX12: 0 | GY12: 0 | GZ12: 0 | HA12: 0 | HB12: 0 | HC12: 0 | HD12: 0 | HE12: 0 | HF12: 0 | HG12: 0 | HH12: 0 | HI12: 0 | HJ12: 0 | HK12: 0 | HL12: 0 | HM12: 0 | HN12: 0 | HO12: 0 | HP12: 0 | HQ12: 0 | HR12: 0 | HS12: 0 | HT12: 0 | HU12: 0 | HV12: 0 | HW12: 0 | HX12: 0 | HY12: 0 | HZ12: 0 | IA12: 0 | IB12: 0 | IC12: 0 | ID12: 0 | IE12: 0 | IF12: 0 | IG12: 0 | IH12: 0 | II12: 0 | IJ12: 0 | IK12: 0 | IL12: 0 | IM12: 0 | IN12: 0 | IO12: 0 | IP12: 0 | IQ12: 0 | IR12: 0 | IS12: 0 | IT12: 0 | IU12: 0 | IV12: 0 | IW12: 0 | IX12: =IF(AND(IX$5>$BG12,IX$5<=$BH12),IX103,0) -> 0 | IY12: 0 | IZ12: 0 | JA12: 0 | JB12: 0 | JC12: 0 | JD12: 0 | JE12: 0 | JF12: 0 | JG12: 0 | JH12: 0 | JI12: 0 | JJ12: 0 | JK12: 0 | JL12: 0 | JM12: 0 | JN12: 0 | JO12: 0 | JP12: 0 | JQ12: 0 | JR12: 0 | JS12: 0 | JT12: 0 | JU12: 0 | JV12: 0 | JW12: 0 | JX12: 0 | JY12: 0 | JZ12: 0 | KA12: 0 | KB12: 0 | KC12: 0 | KD12: 0 | KE12: 0 | KF12: 0 | KG12: 0 | KH12: 0 | KI12: 0 | KJ12: 0 | KK12: 0 | KL12: 0 | KM12: 0 | KN12: 0 | KO12: 0 | KP12: 0 | KQ12: 0 | KR12: 0 | KS12: 0 | KT12: 0 | KU12: 0 | KV12: 0 | KW12: 0 | KX12: 0 | KY12: 0 | KZ12: 0 | LA12: 0 | LB12: 0 | LC12: 0 | LD12: 0 | LE12: 0 | LF12: 0 | LG12: 0 | LH12: 0 | LI12: 0 | LJ12: =IF(AND(LJ$5>$BG12,LJ$5<=$BH12),LJ103,0) -> 0 | LK12: 0 | LL12: 0 | LM12: 0 | LN12: 0 | LO12: 0 | LP12: 0 | LQ12: 0 | LR12: 0 | LS12: 0 | LT12: 0 | LU12: 0 | LV12: 0 | LW12: 0 | LX12: 0 | LY12: 0 | LZ12: 0 | MA12: 0 | MB12: 0 | MC12: 0 | MD12: 0 | ME12: 0 | MF12: 0 | MG12: 0 | MH12: 0 | MI12: 0 | MJ12: 0 | MK12: 0 | ML12: 0 | MM12: 0 | MN12: 0 | MO12: 0 | MP12: 0 | MQ12: 0 | MR12: 0 | MS12: 0 | MT12: 0 | MU12: 0 | MV12: 0 | MW12: 0 | MX12: 0 | MY12: 0 | MZ12: 0 | NA12: 0 | NB12: 0 | NC12: 0 | ND12: 0 | NE12: 0 | NF12: 0 | NG12: 0 | NH12: 0 | NI12: 0 | NJ12: 0 | NK12: 0 | NL12: 0 | NM12: 0 | NN12: 0 | NO12: 0 | NP12: 0 | NQ12: 0 | NR12: 0 | NS12: 0 | NT12: 0 | NU12: 0 | NV12: =IF(AND(NV$5>$BG12,NV$5<=$BH12),NV103,0) -> 0 | NW12: 0 | NX12: 0 | NY12: 0 | NZ12: 0 | OA12: 0 | OB12: 0 | OC12: 0 | OD12: 0 | OE12: 0 | OF12: 0 | OG12: 0 | OH12: 0 | OI12: 0 | OJ12: 0 | OK12: 0 | OL12: 0 | OM12: 0 | ON12: 0 | OO12: 0 | OP12: 0 | OQ12: 0 | OR12: 0 | OS12: 0 | OT12: 0 | OU12: 0 | OV12: 0 | OW12: 0 | OX12: 0 | OY12: 0 | OZ12: 0 | PA12: 0 | PB12: 0 | PC12: 0 | PD12: 0 | PE12: 0 | PF12: 0 | PG12: 0 | PH12: 0 | PI12: 0 | PJ12: 0 | PK12: 0 | PL12: 0 | PM12: 0 | PN12: 0 | PO12: 0 | PP12: 0 | PQ12: 0 | PR12: 0 | PS12: 0 | PT12: 0 | PU12: 0 | PV12: 0 | PW12: 0 | PX12: 0 | PY12: 0 | PZ12: 0 | QA12: 0
C13: 8 | D13: External Installations | E13: 1 | O13: 9 | Y13: 353.5 | Z13: 250 | AA13: 423.5 | AB13: 220 | AJ13: =+pikaia!H34 -> 1 | AK13: 250 | AL13: 353500 | AM13: 0 | AN13: 0 | AO13: 0 | AP13: 0 | AQ13: 0 | AR13: 0 | AS13: 0 | AT13: 0 | AU13: 0 | AV13: 0 | AW13: 349 | AX13: 388 | AY13: 388 | AZ13: 388 | BA13: 388 | BB13: 388 | BC13: 388 | BD13: 388 | BE13: 388 | BF13: 388 | BG13: 0 | BH13: 250 | BI13: 99 | BJ13: 349 | BK13: 99 | BL13: 8 | BM13: 8 | BN13: =IF(AND(BN$5>$BG13,BN$5<=$BH13),BN104,0) -> 8 | BO13: 8 | BP13: 8 | BQ13: 8 | BR13: 8 | BS13: 8 | BT13: 8 | BU13: 8 | BV13: 8 | BW13: 8 | BX13: 8 | BY13: 8 | BZ13: 8 | CA13: 8 | CB13: 8 | CC13: 8 | CD13: 8 | CE13: 8 | CF13: 8 | CG13: 8 | CH13: 8 | CI13: 8 | CJ13: 8 | CK13: 8 | CL13: 8 | CM13: 8 | CN13: 8 | CO13: 8 | CP13: 8 | CQ13: 8 | CR13: 8 | CS13: 8 | CT13: 8 | CU13: 8 | CV13: 8 | CW13: 8 | CX13: 8 | CY13: 8 | CZ13: 8 | DA13: 8 | DB13: 8 | DC13: 8 | DD13: 8 | DE13: 8 | DF13: 8 | DG13: 8 | DH13: 8 | DI13: 8 | DJ13: 8 | DK13: 8 | DL13: 8 | DM13: 8 | DN13: 8 | DO13: 8 | DP13: 8 | DQ13: 8 | DR13: 8 | DS13: 8 | DT13: 8 | DU13: 8 | DV13: 8 | DW13: 8 | DX13: 8 | DY13: 8 | DZ13: =IF(AND(DZ$5>$BG13,DZ$5<=$BH13),DZ104,0) -> 8 | EA13: 8 | EB13: 8 | EC13: 8 | ED13: 8 | EE13: 8 | EF13: 8 | EG13: 8 | EH13: 8 | EI13: 8 | EJ13: 8 | EK13: 8 | EL13: 8 | EM13: 8 | EN13: 8 | EO13: 8 | EP13: 8 | EQ13: 8 | ER13: 8 | ES13: 8 | ET13: 8 | EU13: 8 | EV13: 8 | EW13: 8 | EX13: 8 | EY13: 8 | EZ13: 8 | FA13: 8 | FB13: 8 | FC13: 8 | FD13: 8 | FE13: 8 | FF13: 8 | FG13: 8 | FH13: 8 | FI13: 8 | FJ13: 8 | FK13: 8 | FL13: 8 | FM13: 8 | FN13: 8 | FO13: 8 | FP13: 8 | FQ13: 8 | FR13: 8 | FS13: 8 | FT13: 8 | FU13: 8 | FV13: 8 | FW13: 8 | FX13: 8 | FY13: 8 | FZ13: 8 | GA13: 8 | GB13: 8 | GC13: 8 | GD13: 8 | GE13: 8 | GF13: 8 | GG13: 8 | GH13: 8 | GI13: 8 | GJ13: 8 | GK13: 8 | GL13: =IF(AND(GL$5>$BG13,GL$5<=$BH13),GL104,0) -> 8 | GM13: 8 | GN13: 8 | GO13: 8 | GP13: 8 | GQ13: 8 | GR13: 8 | GS13: 8 | GT13: 8 | GU13: 8 | GV13: 8 | GW13: 8 | GX13: 8 | GY13: 8 | GZ13: 8 | HA13: 8 | HB13: 8 | HC13: 8 | HD13: 8 | HE13: 8 | HF13: 8 | HG13: 8 | HH13: 8 | HI13: 8 | HJ13: 8 | HK13: 8 | HL13: 8 | HM13: 8 | HN13: 8 | HO13: 8 | HP13: 8 | HQ13: 8 | HR13: 8 | HS13: 8 | HT13: 8 | HU13: 8 | HV13: 8 | HW13: 8 | HX13: 8 | HY13: 8 | HZ13: 8 | IA13: 8 | IB13: 8 | IC13: 8 | ID13: 8 | IE13: 8 | IF13: 8 | IG13: 8 | IH13: 8 | II13: 8 | IJ13: 8 | IK13: 8 | IL13: 8 | IM13: 8 | IN13: 8 | IO13: 8 | IP13: 8 | IQ13: 8 | IR13: 8 | IS13: 8 | IT13: 8 | IU13: 8 | IV13: 8 | IW13: 8 | IX13: =IF(AND(IX$5>$BG13,IX$5<=$BH13),IX104,0) -> 8 | IY13: 8 | IZ13: 8 | JA13: 8 | JB13: 8 | JC13: 8 | JD13: 8 | JE13: 8 | JF13: 8 | JG13: 8 | JH13: 8 | JI13: 8 | JJ13: 8 | JK13: 8 | JL13: 8 | JM13: 8 | JN13: 8 | JO13: 8 | JP13: 8 | JQ13: 8 | JR13: 8 | JS13: 8 | JT13: 8 | JU13: 8 | JV13: 8 | JW13: 8 | JX13: 8 | JY13: 8 | JZ13: 8 | KA13: 8 | KB13: 8 | KC13: 8 | KD13: 8 | KE13: 8 | KF13: 8 | KG13: 8 | KH13: 8 | KI13: 8 | KJ13: 8 | KK13: 8 | KL13: 8 | KM13: 8 | KN13: 8 | KO13: 8 | KP13: 8 | KQ13: 8 | KR13: 8 | KS13: 8 | KT13: 8 | KU13: 8 | KV13: 8 | KW13: 8 | KX13: 8 | KY13: 8 | KZ13: 8 | LA13: 8 | LB13: 8 | LC13: 8 | LD13: 0 | LE13: 0 | LF13: 0 | LG13: 0 | LH13: 0 | LI13: 0 | LJ13: =IF(AND(LJ$5>$BG13,LJ$5<=$BH13),LJ104,0) -> 0 | LK13: 0 | LL13: 0 | LM13: 0 | LN13: 0 | LO13: 0 | LP13: 0 | LQ13: 0 | LR13: 0 | LS13: 0 | LT13: 0 | LU13: 0 | LV13: 0 | LW13: 0 | LX13: 0 | LY13: 0 | LZ13: 0 | MA13: 0 | MB13: 0 | MC13: 0 | MD13: 0 | ME13: 0 | MF13: 0 | MG13: 0 | MH13: 0 | MI13: 0 | MJ13: 0 | MK13: 0 | ML13: 0 | MM13: 0 | MN13: 0 | MO13: 0 | MP13: 0 | MQ13: 0 | MR13: 0 | MS13: 0 | MT13: 0 | MU13: 0 | MV13: 0 | MW13: 0 | MX13: 0 | MY13: 0 | MZ13: 0 | NA13: 0 | NB13: 0 | NC13: 0 | ND13: 0 | NE13: 0 | NF13: 0 | NG13: 0 | NH13: 0 | NI13: 0 | NJ13: 0 | NK13: 0 | NL13: 0 | NM13: 0 | NN13: 0 | NO13: 0 | NP13: 0 | NQ13: 0 | NR13: 0 | NS13: 0 | NT13: 0 | NU13: 0 | NV13: =IF(AND(NV$5>$BG13,NV$5<=$BH13),NV104,0) -> 0 | NW13: 0 | NX13: 0 | NY13: 0 | NZ13: 0 | OA13: 0 | OB13: 0 | OC13: 0 | OD13: 0 | OE13: 0 | OF13: 0 | OG13: 0 | OH13: 0 | OI13: 0 | OJ13: 0 | OK13: 0 | OL13: 0 | OM13: 0 | ON13: 0 | OO13: 0 | OP13: 0 | OQ13: 0 | OR13: 0 | OS13: 0 | OT13: 0 | OU13: 0 | OV13: 0 | OW13: 0 | OX13: 0 | OY13: 0 | OZ13: 0 | PA13: 0 | PB13: 0 | PC13: 0 | PD13: 0 | PE13: 0 | PF13: 0 | PG13: 0 | PH13: 0 | PI13: 0 | PJ13: 0 | PK13: 0 | PL13: 0 | PM13: 0 | PN13: 0 | PO13: 0 | PP13: 0 | PQ13: 0 | PR13: 0 | PS13: 0 | PT13: 0 | PU13: 0 | PV13: 0 | PW13: 0 | PX13: 0 | PY13: 0 | PZ13: 0 | QA13: 0
C14: 9 | D14: Foundation covering | E14: 8 | O14: 12 | Y14: 369.966 | Z14: 9 | AA14: 661.513 | AB14: 6 | AJ14: =+pikaia!I34 -> 1 | AK14: 9 | AL14: 369966 | AM14: 250 | AN14: 0 | AO14: 0 | AP14: 0 | AQ14: 0 | AR14: 0 | AS14: 0 | AT14: 0 | AU14: 0 | AV14: 0 | AW14: 358 | AX14: 388 | AY14: 388 | AZ14: 388 | BA14: 388 | BB14: 388 | BC14: 388 | BD14: 388 | BE14: 388 | BF14: 388 | BG14: 250 | BH14: 259 | BI14: 349 | BJ14: 358 | BK14: 99 | BL14: 9 | BM14: 9 | BN14: =IF(AND(BN$5>$BG14,BN$5<=$BH14),BN105,0) -> 0 | BO14: 0 | BP14: 0 | BQ14: 0 | BR14: 0 | BS14: 0 | BT14: 0 | BU14: 0 | BV14: 0 | BW14: 0 | BX14: 0 | BY14: 0 | BZ14: 0 | CA14: 0 | CB14: 0 | CC14: 0 | CD14: 0 | CE14: 0 | CF14: 0 | CG14: 0 | CH14: 0 | CI14: 0 | CJ14: 0 | CK14: 0 | CL14: 0 | CM14: 0 | CN14: 0 | CO14: 0 | CP14: 0 | CQ14: 0 | CR14: 0 | CS14: 0 | CT14: 0 | CU14: 0 | CV14: 0 | CW14: 0 | CX14: 0 | CY14: 0 | CZ14: 0 | DA14: 0 | DB14: 0 | DC14: 0 | DD14: 0 | DE14: 0 | DF14: 0 | DG14: 0 | DH14: 0 | DI14: 0 | DJ14: 0 | DK14: 0 | DL14: 0 | DM14: 0 | DN14: 0 | DO14: 0 | DP14: 0 | DQ14: 0 | DR14: 0 | DS14: 0 | DT14: 0 | DU14: 0 | DV14: 0 | DW14: 0 | DX14: 0 | DY14: 0 | DZ14: =IF(AND(DZ$5>$BG14,DZ$5<=$BH14),DZ105,0) -> 0 | EA14: 0 | EB14: 0 | EC14: 0 | ED14: 0 | EE14: 0 | EF14: 0 | EG14: 0 | EH14: 0 | EI14: 0 | EJ14: 0 | EK14: 0 | EL14: 0 | EM14: 0 | EN14: 0 | EO14: 0 | EP14: 0 | EQ14: 0 | ER14: 0 | ES14: 0 | ET14: 0 | EU14: 0 | EV14: 0 | EW14: 0 | EX14: 0 | EY14: 0 | EZ14: 0 | FA14: 0 | FB14: 0 | FC14: 0 | FD14: 0 | FE14: 0 | FF14: 0 | FG14: 0 | FH14: 0 | FI14: 0 | FJ14: 0 | FK14: 0 | FL14: 0 | FM14: 0 | FN14: 0 | FO14: 0 | FP14: 0 | FQ14: 0 | FR14: 0 | FS14: 0 | FT14: 0 | FU14: 0 | FV14: 0 | FW14: 0 | FX14: 0 | FY14: 0 | FZ14: 0 | GA14: 0 | GB14: 0 | GC14: 0 | GD14: 0 | GE14: 0 | GF14: 0 | GG14: 0 | GH14: 0 | GI14: 0 | GJ14: 0 | GK14: 0 | GL14: =IF(AND(GL$5>$BG14,GL$5<=$BH14),GL105,0) -> 0 | GM14: 0 | GN14: 0 | GO14: 0 | GP14: 0 | GQ14: 0 | GR14: 0 | GS14: 0 | GT14: 0 | GU14: 0 | GV14: 0 | GW14: 0 | GX14: 0 | GY14: 0 | GZ14: 0 | HA14: 0 | HB14: 0 | HC14: 0 | HD14: 0 | HE14: 0 | HF14: 0 | HG14: 0 | HH14: 0 | HI14: 0 | HJ14: 0 | HK14: 0 | HL14: 0 | HM14: 0 | HN14: 0 | HO14: 0 | HP14: 0 | HQ14: 0 | HR14: 0 | HS14: 0 | HT14: 0 | HU14: 0 | HV14: 0 | HW14: 0 | HX14: 0 | HY14: 0 | HZ14: 0 | IA14: 0 | IB14: 0 | IC14: 0 | ID14: 0 | IE14: 0 | IF14: 0 | IG14: 0 | IH14: 0 | II14: 0 | IJ14: 0 | IK14: 0 | IL14: 0 | IM14: 0 | IN14: 0 | IO14: 0 | IP14: 0 | IQ14: 0 | IR14: 0 | IS14: 0 | IT14: 0 | IU14: 0 | IV14: 0 | IW14: 0 | IX14: =IF(AND(IX$5>$BG14,IX$5<=$BH14),IX105,0) -> 0 | IY14: 0 | IZ14: 0 | JA14: 0 | JB14: 0 | JC14: 0 | JD14: 0 | JE14: 0 | JF14: 0 | JG14: 0 | JH14: 0 | JI14: 0 | JJ14: 0 | JK14: 0 | JL14: 0 | JM14: 0 | JN14: 0 | JO14: 0 | JP14: 0 | JQ14: 0 | JR14: 0 | JS14: 0 | JT14: 0 | JU14: 0 | JV14: 0 | JW14: 0 | JX14: 0 | JY14: 0 | JZ14: 0 | KA14: 0 | KB14: 0 | KC14: 0 | KD14: 0 | KE14: 0 | KF14: 0 | KG14: 0 | KH14: 0 | KI14: 0 | KJ14: 0 | KK14: 0 | KL14: 0 | KM14: 0 | KN14: 0 | KO14: 0 | KP14: 0 | KQ14: 0 | KR14: 0 | KS14: 0 | KT14: 0 | KU14: 0 | KV14: 0 | KW14: 0 | KX14: 0 | KY14: 0 | KZ14: 0 | LA14: 0 | LB14: 0 | LC14: 0 | LD14: 9 | LE14: 9 | LF14: 9 | LG14: 9 | LH14: 9 | LI14: 9 | LJ14: =IF(AND(LJ$5>$BG14,LJ$5<=$BH14),LJ105,0) -> 9 | LK14: 9 | LL14: 9 | LM14: 0 | LN14: 0 | LO14: 0 | LP14: 0 | LQ14: 0 | LR14: 0 | LS14: 0 | LT14: 0 | LU14: 0 | LV14: 0 | LW14: 0 | LX14: 0 | LY14: 0 | LZ14: 0 | MA14: 0 | MB14: 0 | MC14: 0 | MD14: 0 | ME14: 0 | MF14: 0 | MG14: 0 | MH14: 0 | MI14: 0 | MJ14: 0 | MK14: 0 | ML14: 0 | MM14: 0 | MN14: 0 | MO14: 0 | MP14: 0 | MQ14: 0 | MR14: 0 | MS14: 0 | MT14: 0 | MU14: 0 | MV14: 0 | MW14: 0 | MX14: 0 | MY14: 0 | MZ14: 0 | NA14: 0 | NB14: 0 | NC14: 0 | ND14: 0 | NE14: 0 | NF14: 0 | NG14: 0 | NH14: 0 | NI14: 0 | NJ14: 0 | NK14: 0 | NL14: 0 | NM14: 0 | NN14: 0 | NO14: 0 | NP14: 0 | NQ14: 0 | NR14: 0 | NS14: 0 | NT14: 0 | NU14: 0 | NV14: =IF(AND(NV$5>$BG14,NV$5<=$BH14),NV105,0) -> 0 | NW14: 0 | NX14: 0 | NY14: 0 | NZ14: 0 | OA14: 0 | OB14: 0 | OC14: 0 | OD14: 0 | OE14: 0 | OF14: 0 | OG14: 0 | OH14: 0 | OI14: 0 | OJ14: 0 | OK14: 0 | OL14: 0 | OM14: 0 | ON14: 0 | OO14: 0 | OP14: 0 | OQ14: 0 | OR14: 0 | OS14: 0 | OT14: 0 | OU14: 0 | OV14: 0 | OW14: 0 | OX14: 0 | OY14: 0 | OZ14: 0 | PA14: 0 | PB14: 0 | PC14: 0 | PD14: 0 | PE14: 0 | PF14: 0 | PG14: 0 | PH14: 0 | PI14: 0 | PJ14: 0 | PK14: 0 | PL14: 0 | PM14: 0 | PN14: 0 | PO14: 0 | PP14: 0 | PQ14: 0 | PR14: 0 | PS14: 0 | PT14: 0 | PU14: 0 | PV14: 0 | PW14: 0 | PX14: 0 | PY14: 0 | PZ14: 0 | QA14: 0
C15: 10 | D15: Partition walls | E15: 5 | O15: 11 | P15: 13 | Q15: 14 | Y15: 588.885 | Z15: 14 | AA15: 888.85 | AB15: 10 | AJ15: =+pikaia!J34 -> 1 | AK15: 14 | AL15: 588885 | AM15: 38 | AN15: 0 | AO15: 0 | AP15: 0 | AQ15: 0 | AR15: 0 | AS15: 0 | AT15: 0 | AU15: 0 | AV15: 0 | AW15: 290 | AX15: 52 | AY15: 302 | AZ15: 388 | BA15: 388 | BB15: 388 | BC15: 388 | BD15: 388 | BE15: 388 | BF15: 388 | BG15: 38 | BH15: 52 | BI15: 38 | BJ15: 52 | BK15: 0 | BL15: 10 | BM15: 10 | BN15: =IF(AND(BN$5>$BG15,BN$5<=$BH15),BN106,0) -> 0 | BO15: 0 | BP15: 0 | BQ15: 0 | BR15: 0 | BS15: 0 | BT15: 0 | BU15: 0 | BV15: 0 | BW15: 0 | BX15: 0 | BY15: 0 | BZ15: 0 | CA15: 0 | CB15: 0 | CC15: 0 | CD15: 0 | CE15: 0 | CF15: 0 | CG15: 0 | CH15: 0 | CI15: 0 | CJ15: 0 | CK15: 0 | CL15: 0 | CM15: 0 | CN15: 0 | CO15: 0 | CP15: 0 | CQ15: 0 | CR15: 0 | CS15: 0 | CT15: 0 | CU15: 0 | CV15: 0 | CW15: 0 | CX15: 0 | CY15: 0 | CZ15: 10 | DA15: 10 | DB15: 10 | DC15: 10 | DD15: 10 | DE15: 10 | DF15: 10 | DG15: 10 | DH15: 10 | DI15: 10 | DJ15: 10 | DK15: 10 | DL15: 10 | DM15: 10 | DN15: 0 | DO15: 0 | DP15: 0 | DQ15: 0 | DR15: 0 | DS15: 0 | DT15: 0 | DU15: 0 | DV15: 0 | DW15: 0 | DX15: 0 | DY15: 0 | DZ15: =IF(AND(DZ$5>$BG15,DZ$5<=$BH15),DZ106,0) -> 0 | EA15: 0 | EB15: 0 | EC15: 0 | ED15: 0 | EE15: 0 | EF15: 0 | EG15: 0 | EH15: 0 | EI15: 0 | EJ15: 0 | EK15: 0 | EL15: 0 | EM15: 0 | EN15: 0 | EO15: 0 | EP15: 0 | EQ15: 0 | ER15: 0 | ES15: 0 | ET15: 0 | EU15: 0 | EV15: 0 | EW15: 0 | EX15: 0 | EY15: 0 | EZ15: 0 | FA15: 0 | FB15: 0 | FC15: 0 | FD15: 0 | FE15: 0 | FF15: 0 | FG15: 0 | FH15: 0 | FI15: 0 | FJ15: 0 | FK15: 0 | FL15: 0 | FM15: 0 | FN15: 0 | FO15: 0 | FP15: 0 | FQ15: 0 | FR15: 0 | FS15: 0 | FT15: 0 | FU15: 0 | FV15: 0 | FW15: 0 | FX15: 0 | FY15: 0 | FZ15: 0 | GA15: 0 | GB15: 0 | GC15: 0 | GD15: 0 | GE15: 0 | GF15: 0 | GG15: 0 | GH15: 0 | GI15: 0 | GJ15: 0 | GK15: 0 | GL15: =IF(AND(GL$5>$BG15,GL$5<=$BH15),GL106,0) -> 0 | GM15: 0 | GN15: 0 | GO15: 0 | GP15: 0 | GQ15: 0 | GR15: 0 | GS15: 0 | GT15: 0 | GU15: 0 | GV15: 0 | GW15: 0 | GX15: 0 | GY15: 0 | GZ15: 0 | HA15: 0 | HB15: 0 | HC15: 0 | HD15: 0 | HE15: 0 | HF15: 0 | HG15: 0 | HH15: 0 | HI15: 0 | HJ15: 0 | HK15: 0 | HL15: 0 | HM15: 0 | HN15: 0 | HO15: 0 | HP15: 0 | HQ15: 0 | HR15: 0 | HS15: 0 | HT15: 0 | HU15: 0 | HV15: 0 | HW15: 0 | HX15: 0 | HY15: 0 | HZ15: 0 | IA15: 0 | IB15: 0 | IC15: 0 | ID15: 0 | IE15: 0 | IF15: 0 | IG15: 0 | IH15: 0 | II15: 0 | IJ15: 0 | IK15: 0 | IL15: 0 | IM15: 0 | IN15: 0 | IO15: 0 | IP15: 0 | IQ15: 0 | IR15: 0 | IS15: 0 | IT15: 0 | IU15: 0 | IV15: 0 | IW15: 0 | IX15: =IF(AND(IX$5>$BG15,IX$5<=$BH15),IX106,0) -> 0 | IY15: 0 | IZ15: 0 | JA15: 0 | JB15: 0 | JC15: 0 | JD15: 0 | JE15: 0 | JF15: 0 | JG15: 0 | JH15: 0 | JI15: 0 | JJ15: 0 | JK15: 0 | JL15: 0 | JM15: 0 | JN15: 0 | JO15: 0 | JP15: 0 | JQ15: 0 | JR15: 0 | JS15: 0 | JT15: 0 | JU15: 0 | JV15: 0 | JW15: 0 | JX15: 0 | JY15: 0 | JZ15: 0 | KA15: 0 | KB15: 0 | KC15: 0 | KD15: 0 | KE15: 0 | KF15: 0 | KG15: 0 | KH15: 0 | KI15: 0 | KJ15: 0 | KK15: 0 | KL15: 0 | KM15: 0 | KN15: 0 | KO15: 0 | KP15: 0 | KQ15: 0 | KR15: 0 | KS15: 0 | KT15: 0 | KU15: 0 | KV15: 0 | KW15: 0 | KX15: 0 | KY15: 0 | KZ15: 0 | LA15: 0 | LB15: 0 | LC15: 0 | LD15: 0 | LE15: 0 | LF15: 0 | LG15: 0 | LH15: 0 | LI15: 0 | LJ15: =IF(AND(LJ$5>$BG15,LJ$5<=$BH15),LJ106,0) -> 0 | LK15: 0 | LL15: 0 | LM15: 0 | LN15: 0 | LO15: 0 | LP15: 0 | LQ15: 0 | LR15: 0 | LS15: 0 | LT15: 0 | LU15: 0 | LV15: 0 | LW15: 0 | LX15: 0 | LY15: 0 | LZ15: 0 | MA15: 0 | MB15: 0 | MC15: 0 | MD15: 0 | ME15: 0 | MF15: 0 | MG15: 0 | MH15: 0 | MI15: 0 | MJ15: 0 | MK15: 0 | ML15: 0 | MM15: 0 | MN15: 0 | MO15: 0 | MP15: 0 | MQ15: 0 | MR15: 0 | MS15: 0 | MT15: 0 | MU15: 0 | MV15: 0 | MW15: 0 | MX15: 0 | MY15: 0 | MZ15: 0 | NA15: 0 | NB15: 0 | NC15: 0 | ND15: 0 | NE15: 0 | NF15: 0 | NG15: 0 | NH15: 0 | NI15: 0 | NJ15: 0 | NK15: 0 | NL15: 0 | NM15: 0 | NN15: 0 | NO15: 0 | NP15: 0 | NQ15: 0 | NR15: 0 | NS15: 0 | NT15: 0 | NU15: 0 | NV15: =IF(AND(NV$5>$BG15,NV$5<=$BH15),NV106,0) -> 0 | NW15: 0 | NX15: 0 | NY15: 0 | NZ15: 0 | OA15: 0 | OB15: 0 | OC15: 0 | OD15: 0 | OE15: 0 | OF15: 0 | OG15: 0 | OH15: 0 | OI15: 0 | OJ15: 0 | OK15: 0 | OL15: 0 | OM15: 0 | ON15: 0 | OO15: 0 | OP15: 0 | OQ15: 0 | OR15: 0 | OS15: 0 | OT15: 0 | OU15: 0 | OV15: 0 | OW15: 0 | OX15: 0 | OY15: 0 | OZ15: 0 | PA15: 0 | PB15: 0 | PC15: 0 | PD15: 0 | PE15: 0 | PF15: 0 | PG15: 0 | PH15: 0 | PI15: 0 | PJ15: 0 | PK15: 0 | PL15: 0 | PM15: 0 | PN15: 0 | PO15: 0 | PP15: 0 | PQ15: 0 | PR15: 0 | PS15: 0 | PT15: 0 | PU15: 0 | PV15: 0 | PW15: 0 | PX15: 0 | PY15: 0 | PZ15: 0 | QA15: 0
C16: 11 | D16: Internal plasters | E16: 10 | O16: 15 | Y16: 135.383 | Z16: 17 | AA16: 531.383 | AB16: 10 | AJ16: =+pikaia!K34 -> 1 | AK16: 17 | AL16: 135383 | AM16: 52 | AN16: 0 | AO16: 0 | AP16: 0 | AQ16: 0 | AR16: 0 | AS16: 0 | AT16: 0 | AU16: 0 | AV16: 0 | AW16: 307 | AX16: 388 | AY16: 388 | AZ16: 388 | BA16: 388 | BB16: 388 | BC16: 388 | BD16: 388 | BE16: 388 | BF16: 388 | BG16: 52 | BH16: 69 | BI16: 290 | BJ16: 307 | BK16: 238 | BL16: 11 | BM16: 11 | BN16: =IF(AND(BN$5>$BG16,BN$5<=$BH16),BN107,0) -> 0 | BO16: 0 | BP16: 0 | BQ16: 0 | BR16: 0 | BS16: 0 | BT16: 0 | BU16: 0 | BV16: 0 | BW16: 0 | BX16: 0 | BY16: 0 | BZ16: 0 | CA16: 0 | CB16: 0 | CC16: 0 | CD16: 0 | CE16: 0 | CF16: 0 | CG16: 0 | CH16: 0 | CI16: 0 | CJ16: 0 | CK16: 0 | CL16: 0 | CM16: 0 | CN16: 0 | CO16: 0 | CP16: 0 | CQ16: 0 | CR16: 0 | CS16: 0 | CT16: 0 | CU16: 0 | CV16: 0 | CW16: 0 | CX16: 0 | CY16: 0 | CZ16: 0 | DA16: 0 | DB16: 0 | DC16: 0 | DD16: 0 | DE16: 0 | DF16: 0 | DG16: 0 | DH16: 0 | DI16: 0 | DJ16: 0 | DK16: 0 | DL16: 0 | DM16: 0 | DN16: 11 | DO16: 11 | DP16: 11 | DQ16: 11 | DR16: 11 | DS16: 11 | DT16: 11 | DU16: 11 | DV16: 11 | DW16: 11 | DX16: 11 | DY16: 11 | DZ16: =IF(AND(DZ$5>$BG16,DZ$5<=$BH16),DZ107,0) -> 11 | EA16: 11 | EB16: 11 | EC16: 11 | ED16: 11 | EE16: 0 | EF16: 0 | EG16: 0 | EH16: 0 | EI16: 0 | EJ16: 0 | EK16: 0 | EL16: 0 | EM16: 0 | EN16: 0 | EO16: 0 | EP16: 0 | EQ16: 0 | ER16: 0 | ES16: 0 | ET16: 0 | EU16: 0 | EV16: 0 | EW16: 0 | EX16: 0 | EY16: 0 | EZ16: 0 | FA16: 0 | FB16: 0 | FC16: 0 | FD16: 0 | FE16: 0 | FF16: 0 | FG16: 0 | FH16: 0 | FI16: 0 | FJ16: 0 | FK16: 0 | FL16: 0 | FM16: 0 | FN16: 0 | FO16: 0 | FP16: 0 | FQ16: 0 | FR16: 0 | FS16: 0 | FT16: 0 | FU16: 0 | FV16: 0 | FW16: 0 | FX16: 0 | FY16: 0 | FZ16: 0 | GA16: 0 | GB16: 0 | GC16: 0 | GD16: 0 | GE16: 0 | GF16: 0 | GG16: 0 | GH16: 0 | GI16: 0 | GJ16: 0 | GK16: 0 | GL16: =IF(AND(GL$5>$BG16,GL$5<=$BH16),GL107,0) -> 0 | GM16: 0 | GN16: 0 | GO16: 0 | GP16: 0 | GQ16: 0 | GR16: 0 | GS16: 0 | GT16: 0 | GU16: 0 | GV16: 0 | GW16: 0 | GX16: 0 | GY16: 0 | GZ16: 0 | HA16: 0 | HB16: 0 | HC16: 0 | HD16: 0 | HE16: 0 | HF16: 0 | HG16: 0 | HH16: 0 | HI16: 0 | HJ16: 0 | HK16: 0 | HL16: 0 | HM16: 0 | HN16: 0 | HO16: 0 | HP16: 0 | HQ16: 0 | HR16: 0 | HS16: 0 | HT16: 0 | HU16: 0 | HV16: 0 | HW16: 0 | HX16: 0 | HY16: 0 | HZ16: 0 | IA16: 0 | IB16: 0 | IC16: 0 | ID16: 0 | IE16: 0 | IF16: 0 | IG16: 0 | IH16: 0 | II16: 0 | IJ16: 0 | IK16: 0 | IL16: 0 | IM16: 0 | IN16: 0 | IO16: 0 | IP16: 0 | IQ16: 0 | IR16: 0 | IS16: 0 | IT16: 0 | IU16: 0 | IV16: 0 | IW16: 0 | IX16: =IF(AND(IX$5>$BG16,IX$5<=$BH16),IX107,0) -> 0 | IY16: 0 | IZ16: 0 | JA16: 0 | JB16: 0 | JC16: 0 | JD16: 0 | JE16: 0 | JF16: 0 | JG16: 0 | JH16: 0 | JI16: 0 | JJ16: 0 | JK16: 0 | JL16: 0 | JM16: 0 | JN16: 0 | JO16: 0 | JP16: 0 | JQ16: 0 | JR16: 0 | JS16: 0 | JT16: 0 | JU16: 0 | JV16: 0 | JW16: 0 | JX16: 0 | JY16: 0 | JZ16: 0 | KA16: 0 | KB16: 0 | KC16: 0 | KD16: 0 | KE16: 0 | KF16: 0 | KG16: 0 | KH16: 0 | KI16: 0 | KJ16: 0 | KK16: 0 | KL16: 0 | KM16: 0 | KN16: 0 | KO16: 0 | KP16: 0 | KQ16: 0 | KR16: 0 | KS16: 0 | KT16: 0 | KU16: 0 | KV16: 0 | KW16: 0 | KX16: 0 | KY16: 0 | KZ16: 0 | LA16: 0 | LB16: 0 | LC16: 0 | LD16: 0 | LE16: 0 | LF16: 0 | LG16: 0 | LH16: 0 | LI16: 0 | LJ16: =IF(AND(LJ$5>$BG16,LJ$5<=$BH16),LJ107,0) -> 0 | LK16: 0 | LL16: 0 | LM16: 0 | LN16: 0 | LO16: 0 | LP16: 0 | LQ16: 0 | LR16: 0 | LS16: 0 | LT16: 0 | LU16: 0 | LV16: 0 | LW16: 0 | LX16: 0 | LY16: 0 | LZ16: 0 | MA16: 0 | MB16: 0 | MC16: 0 | MD16: 0 | ME16: 0 | MF16: 0 | MG16: 0 | MH16: 0 | MI16: 0 | MJ16: 0 | MK16: 0 | ML16: 0 | MM16: 0 | MN16: 0 | MO16: 0 | MP16: 0 | MQ16: 0 | MR16: 0 | MS16: 0 | MT16: 0 | MU16: 0 | MV16: 0 | MW16: 0 | MX16: 0 | MY16: 0 | MZ16: 0 | NA16: 0 | NB16: 0 | NC16: 0 | ND16: 0 | NE16: 0 | NF16: 0 | NG16: 0 | NH16: 0 | NI16: 0 | NJ16: 0 | NK16: 0 | NL16: 0 | NM16: 0 | NN16: 0 | NO16: 0 | NP16: 0 | NQ16: 0 | NR16: 0 | NS16: 0 | NT16: 0 | NU16: 0 | NV16: =IF(AND(NV$5>$BG16,NV$5<=$BH16),NV107,0) -> 0 | NW16: 0 | NX16: 0 | NY16: 0 | NZ16: 0 | OA16: 0 | OB16: 0 | OC16: 0 | OD16: 0 | OE16: 0 | OF16: 0 | OG16: 0 | OH16: 0 | OI16: 0 | OJ16: 0 | OK16: 0 | OL16: 0 | OM16: 0 | ON16: 0 | OO16: 0 | OP16: 0 | OQ16: 0 | OR16: 0 | OS16: 0 | OT16: 0 | OU16: 0 | OV16: 0 | OW16: 0 | OX16: 0 | OY16: 0 | OZ16: 0 | PA16: 0 | PB16: 0 | PC16: 0 | PD16: 0 | PE16: 0 | PF16: 0 | PG16: 0 | PH16: 0 | PI16: 0 | PJ16: 0 | PK16: 0 | PL16: 0 | PM16: 0 | PN16: 0 | PO16: 0 | PP16: 0 | PQ16: 0 | PR16: 0 | PS16: 0 | PT16: 0 | PU16: 0 | PV16: 0 | PW16: 0 | PX16: 0 | PY16: 0 | PZ16: 0 | QA16: 0
C17: 12 | D17: Facade | E17: 9 | O17: 16 | Y17: 554.881 | Z17: 24 | AA17: 564.386 | AB17: 22 | AJ17: =+pikaia!L34 -> 1 | AK17: 24 | AL17: 554881 | AM17: 259 | AN17: 0 | AO17: 0 | AP17: 0 | AQ17: 0 | AR17: 0 | AS17: 0 | AT17: 0 | AU17: 0 | AV17: 0 | AW17: 382 | AX17: 388 | AY17: 388 | AZ17: 388 | BA17: 388 | BB17: 388 | BC17: 388 | BD17: 388 | BE17: 388 | BF17: 388 | BG17: 259 | BH17: 283 | BI17: 358 | BJ17: 382 | BK17: 99 | BL17: 12 | BM17: 12 | BN17: =IF(AND(BN$5>$BG17,BN$5<=$BH17),BN108,0) -> 0 | BO17: 0 | BP17: 0 | BQ17: 0 | BR17: 0 | BS17: 0 | BT17: 0 | BU17: 0 | BV17: 0 | BW17: 0 | BX17: 0 | BY17: 0 | BZ17: 0 | CA17: 0 | CB17: 0 | CC17: 0 | CD17: 0 | CE17: 0 | CF17: 0 | CG17: 0 | CH17: 0 | CI17: 0 | CJ17: 0 | CK17: 0 | CL17: 0 | CM17: 0 | CN17: 0 | CO17: 0 | CP17: 0 | CQ17: 0 | CR17: 0 | CS17: 0 | CT17: 0 | CU17: 0 | CV17: 0 | CW17: 0 | CX17: 0 | CY17: 0 | CZ17: 0 | DA17: 0 | DB17: 0 | DC17: 0 | DD17: 0 | DE17: 0 | DF17: 0 | DG17: 0 | DH17: 0 | DI17: 0 | DJ17: 0 | DK17: 0 | DL17: 0 | DM17: 0 | DN17: 0 | DO17: 0 | DP17: 0 | DQ17: 0 | DR17: 0 | DS17: 0 | DT17: 0 | DU17: 0 | DV17: 0 | DW17: 0 | DX17: 0 | DY17: 0 | DZ17: =IF(AND(DZ$5>$BG17,DZ$5<=$BH17),DZ108,0) -> 0 | EA17: 0 | EB17: 0 | EC17: 0 | ED17: 0 | EE17: 0 | EF17: 0 | EG17: 0 | EH17: 0 | EI17: 0 | EJ17: 0 | EK17: 0 | EL17: 0 | EM17: 0 | EN17: 0 | EO17: 0 | EP17: 0 | EQ17: 0 | ER17: 0 | ES17: 0 | ET17: 0 | EU17: 0 | EV17: 0 | EW17: 0 | EX17: 0 | EY17: 0 | EZ17: 0 | FA17: 0 | FB17: 0 | FC17: 0 | FD17: 0 | FE17: 0 | FF17: 0 | FG17: 0 | FH17: 0 | FI17: 0 | FJ17: 0 | FK17: 0 | FL17: 0 | FM17: 0 | FN17: 0 | FO17: 0 | FP17: 0 | FQ17: 0 | FR17: 0 | FS17: 0 | FT17: 0 | FU17: 0 | FV17: 0 | FW17: 0 | FX17: 0 | FY17: 0 | FZ17: 0 | GA17: 0 | GB17: 0 | GC17: 0 | GD17: 0 | GE17: 0 | GF17: 0 | GG17: 0 | GH17: 0 | GI17: 0 | GJ17: 0 | GK17: 0 | GL17: =IF(AND(GL$5>$BG17,GL$5<=$BH17),GL108,0) -> 0 | GM17: 0 | GN17: 0 | GO17: 0 | GP17: 0 | GQ17: 0 | GR17: 0 | GS17: 0 | GT17: 0 | GU17: 0 | GV17: 0 | GW17: 0 | GX17: 0 | GY17: 0 | GZ17: 0 | HA17: 0 | HB17: 0 | HC17: 0 | HD17: 0 | HE17: 0 | HF17: 0 | HG17: 0 | HH17: 0 | HI17: 0 | HJ17: 0 | HK17: 0 | HL17: 0 | HM17: 0 | HN17: 0 | HO17: 0 | HP17: 0 | HQ17: 0 | HR17: 0 | HS17: 0 | HT17: 0 | HU17: 0 | HV17: 0 | HW17: 0 | HX17: 0 | HY17: 0 | HZ17: 0 | IA17: 0 | IB17: 0 | IC17: 0 | ID17: 0 | IE17: 0 | IF17: 0 | IG17: 0 | IH17: 0 | II17: 0 | IJ17: 0 | IK17: 0 | IL17: 0 | IM17: 0 | IN17: 0 | IO17: 0 | IP17: 0 | IQ17: 0 | IR17: 0 | IS17: 0 | IT17: 0 | IU17: 0 | IV17: 0 | IW17: 0 | IX17: =IF(AND(IX$5>$BG17,IX$5<=$BH17),IX108,0) -> 0 | IY17: 0 | IZ17: 0 | JA17: 0 | JB17: 0 | JC17: 0 | JD17: 0 | JE17: 0 | JF17: 0 | JG17: 0 | JH17: 0 | JI17: 0 | JJ17: 0 | JK17: 0 | JL17: 0 | JM17: 0 | JN17: 0 | JO17: 0 | JP17: 0 | JQ17: 0 | JR17: 0 | JS17: 0 | JT17: 0 | JU17: 0 | JV17: 0 | JW17: 0 | JX17: 0 | JY17: 0 | JZ17: 0 | KA17: 0 | KB17: 0 | KC17: 0 | KD17: 0 | KE17: 0 | KF17: 0 | KG17: 0 | KH17: 0 | KI17: 0 | KJ17: 0 | KK17: 0 | KL17: 0 | KM17: 0 | KN17: 0 | KO17: 0 | KP17: 0 | KQ17: 0 | KR17: 0 | KS17: 0 | KT17: 0 | KU17: 0 | KV17: 0 | KW17: 0 | KX17: 0 | KY17: 0 | KZ17: 0 | LA17: 0 | LB17: 0 | LC17: 0 | LD17: 0 | LE17: 0 | LF17: 0 | LG17: 0 | LH17: 0 | LI17: 0 | LJ17: =IF(AND(LJ$5>$BG17,LJ$5<=$BH17),LJ108,0) -> 0 | LK17: 0 | LL17: 0 | LM17: 12 | LN17: 12 | LO17: 12 | LP17: 12 | LQ17: 12 | LR17: 12 | LS17: 12 | LT17: 12 | LU17: 12 | LV17: 12 | LW17: 12 | LX17: 12 | LY17: 12 | LZ17: 12 | MA17: 12 | MB17: 12 | MC17: 12 | MD17: 12 | ME17: 12 | MF17: 12 | MG17: 12 | MH17: 12 | MI17: 12 | MJ17: 12 | MK17: 0 | ML17: 0 | MM17: 0 | MN17: 0 | MO17: 0 | MP17: 0 | MQ17: 0 | MR17: 0 | MS17: 0 | MT17: 0 | MU17: 0 | MV17: 0 | MW17: 0 | MX17: 0 | MY17: 0 | MZ17: 0 | NA17: 0 | NB17: 0 | NC17: 0 | ND17: 0 | NE17: 0 | NF17: 0 | NG17: 0 | NH17: 0 | NI17: 0 | NJ17: 0 | NK17: 0 | NL17: 0 | NM17: 0 | NN17: 0 | NO17: 0 | NP17: 0 | NQ17: 0 | NR17: 0 | NS17: 0 | NT17: 0 | NU17: 0 | NV17: =IF(AND(NV$5>$BG17,NV$5<=$BH17),NV108,0) -> 0 | NW17: 0 | NX17: 0 | NY17: 0 | NZ17: 0 | OA17: 0 | OB17: 0 | OC17: 0 | OD17: 0 | OE17: 0 | OF17: 0 | OG17: 0 | OH17: 0 | OI17: 0 | OJ17: 0 | OK17: 0 | OL17: 0 | OM17: 0 | ON17: 0 | OO17: 0 | OP17: 0 | OQ17: 0 | OR17: 0 | OS17: 0 | OT17: 0 | OU17: 0 | OV17: 0 | OW17: 0 | OX17: 0 | OY17: 0 | OZ17: 0 | PA17: 0 | PB17: 0 | PC17: 0 | PD17: 0 | PE17: 0 | PF17: 0 | PG17: 0 | PH17: 0 | PI17: 0 | PJ17: 0 | PK17: 0 | PL17: 0 | PM17: 0 | PN17: 0 | PO17: 0 | PP17: 0 | PQ17: 0 | PR17: 0 | PS17: 0 | PT17: 0 | PU17: 0 | PV17: 0 | PW17: 0 | PX17: 0 | PY17: 0 | PZ17: 0 | QA17: 0
C18: 13 | D18: Electrical installations | E18: 10 | O18: 15 | Y18: 29.28914286 | Z18: 255 | AA18: 59.946 | AB18: 183 | AJ18: =+pikaia!M34 -> 1 | AK18: 255 | AL18: 29289.14286 | AM18: 52 | AN18: 0 | AO18: 0 | AP18: 0 | AQ18: 0 | AR18: 0 | AS18: 0 | AT18: 0 | AU18: 0 | AV18: 0 | AW18: 307 | AX18: 388 | AY18: 388 | AZ18: 388 | BA18: 388 | BB18: 388 | BC18: 388 | BD18: 388 | BE18: 388 | BF18: 388 | BG18: 52 | BH18: 307 | BI18: 52 | BJ18: 307 | BK18: 0 | BL18: 13 | BM18: 13 | BN18: =IF(AND(BN$5>$BG18,BN$5<=$BH18),BN109,0) -> 0 | BO18: 0 | BP18: 0 | BQ18: 0 | BR18: 0 | BS18: 0 | BT18: 0 | BU18: 0 | BV18: 0 | BW18: 0 | BX18: 0 | BY18: 0 | BZ18: 0 | CA18: 0 | CB18: 0 | CC18: 0 | CD18: 0 | CE18: 0 | CF18: 0 | CG18: 0 | CH18: 0 | CI18: 0 | CJ18: 0 | CK18: 0 | CL18: 0 | CM18: 0 | CN18: 0 | CO18: 0 | CP18: 0 | CQ18: 0 | CR18: 0 | CS18: 0 | CT18: 0 | CU18: 0 | CV18: 0 | CW18: 0 | CX18: 0 | CY18: 0 | CZ18: 0 | DA18: 0 | DB18: 0 | DC18: 0 | DD18: 0 | DE18: 0 | DF18: 0 | DG18: 0 | DH18: 0 | DI18: 0 | DJ18: 0 | DK18: 0 | DL18: 0 | DM18: 0 | DN18: 13 | DO18: 13 | DP18: 13 | DQ18: 13 | DR18: 13 | DS18: 13 | DT18: 13 | DU18: 13 | DV18: 13 | DW18: 13 | DX18: 13 | DY18: 13 | DZ18: =IF(AND(DZ$5>$BG18,DZ$5<=$BH18),DZ109,0) -> 13 | EA18: 13 | EB18: 13 | EC18: 13 | ED18: 13 | EE18: 13 | EF18: 13 | EG18: 13 | EH18: 13 | EI18: 13 | EJ18: 13 | EK18: 13 | EL18: 13 | EM18: 13 | EN18: 13 | EO18: 13 | EP18: 13 | EQ18: 13 | ER18: 13 | ES18: 13 | ET18: 13 | EU18: 13 | EV18: 13 | EW18: 13 | EX18: 13 | EY18: 13 | EZ18: 13 | FA18: 13 | FB18: 13 | FC18: 13 | FD18: 13 | FE18: 13 | FF18: 13 | FG18: 13 | FH18: 13 | FI18: 13 | FJ18: 13 | FK18: 13 | FL18: 13 | FM18: 13 | FN18: 13 | FO18: 13 | FP18: 13 | FQ18: 13 | FR18: 13 | FS18: 13 | FT18: 13 | FU18: 13 | FV18: 13 | FW18: 13 | FX18: 13 | FY18: 13 | FZ18: 13 | GA18: 13 | GB18: 13 | GC18: 13 | GD18: 13 | GE18: 13 | GF18: 13 | GG18: 13 | GH18: 13 | GI18: 13 | GJ18: 13 | GK18: 13 | GL18: =IF(AND(GL$5>$BG18,GL$5<=$BH18),GL109,0) -> 13 | GM18: 13 | GN18: 13 | GO18: 13 | GP18: 13 | GQ18: 13 | GR18: 13 | GS18: 13 | GT18: 13 | GU18: 13 | GV18: 13 | GW18: 13 | GX18: 13 | GY18: 13 | GZ18: 13 | HA18: 13 | HB18: 13 | HC18: 13 | HD18: 13 | HE18: 13 | HF18: 13 | HG18: 13 | HH18: 13 | HI18: 13 | HJ18: 13 | HK18: 13 | HL18: 13 | HM18: 13 | HN18: 13 | HO18: 13 | HP18: 13 | HQ18: 13 | HR18: 13 | HS18: 13 | HT18: 13 | HU18: 13 | HV18: 13 | HW18: 13 | HX18: 13 | HY18: 13 | HZ18: 13 | IA18: 13 | IB18: 13 | IC18: 13 | ID18: 13 | IE18: 13 | IF18: 13 | IG18: 13 | IH18: 13 | II18: 13 | IJ18: 13 | IK18: 13 | IL18: 13 | IM18: 13 | IN18: 13 | IO18: 13 | IP18: 13 | IQ18: 13 | IR18: 13 | IS18: 13 | IT18: 13 | IU18: 13 | IV18: 13 | IW18: 13 | IX18: =IF(AND(IX$5>$BG18,IX$5<=$BH18),IX109,0) -> 13 | IY18: 13 | IZ18: 13 | JA18: 13 | JB18: 13 | JC18: 13 | JD18: 13 | JE18: 13 | JF18: 13 | JG18: 13 | JH18: 13 | JI18: 13 | JJ18: 13 | JK18: 13 | JL18: 13 | JM18: 13 | JN18: 13 | JO18: 13 | JP18: 13 | JQ18: 13 | JR18: 13 | JS18: 13 | JT18: 13 | JU18: 13 | JV18: 13 | JW18: 13 | JX18: 13 | JY18: 13 | JZ18: 13 | KA18: 13 | KB18: 13 | KC18: 13 | KD18: 13 | KE18: 13 | KF18: 13 | KG18: 13 | KH18: 13 | KI18: 13 | KJ18: 13 | KK18: 13 | KL18: 13 | KM18: 13 | KN18: 13 | KO18: 13 | KP18: 13 | KQ18: 13 | KR18: 13 | KS18: 13 | KT18: 13 | KU18: 13 | KV18: 13 | KW18: 13 | KX18: 13 | KY18: 13 | KZ18: 13 | LA18: 13 | LB18: 13 | LC18: 13 | LD18: 13 | LE18: 13 | LF18: 13 | LG18: 13 | LH18: 13 | LI18: 13 | LJ18: =IF(AND(LJ$5>$BG18,LJ$5<=$BH18),LJ109,0) -> 13 | LK18: 13 | LL18: 13 | LM18: 13 | LN18: 13 | LO18: 13 | LP18: 13 | LQ18: 13 | LR18: 13 | LS18: 13 | LT18: 13 | LU18: 13 | LV18: 13 | LW18: 13 | LX18: 13 | LY18: 13 | LZ18: 13 | MA18: 13 | MB18: 13 | MC18: 13 | MD18: 13 | ME18: 13 | MF18: 13 | MG18: 13 | MH18: 13 | MI18: 13 | MJ18: 13 | MK18: 13 | ML18: 13 | MM18: 13 | MN18: 13 | MO18: 13 | MP18: 13 | MQ18: 13 | MR18: 13 | MS18: 13 | MT18: 13 | MU18: 13 | MV18: 13 | MW18: 13 | MX18: 13 | MY18: 13 | MZ18: 13 | NA18: 13 | NB18: 13 | NC18: 13 | ND18: 13 | NE18: 13 | NF18: 13 | NG18: 13 | NH18: 13 | NI18: 0 | NJ18: 0 | NK18: 0 | NL18: 0 | NM18: 0 | NN18: 0 | NO18: 0 | NP18: 0 | NQ18: 0 | NR18: 0 | NS18: 0 | NT18: 0 | NU18: 0 | NV18: =IF(AND(NV$5>$BG18,NV$5<=$BH18),NV109,0) -> 0 | NW18: 0 | NX18: 0 | NY18: 0 | NZ18: 0 | OA18: 0 | OB18: 0 | OC18: 0 | OD18: 0 | OE18: 0 | OF18: 0 | OG18: 0 | OH18: 0 | OI18: 0 | OJ18: 0 | OK18: 0 | OL18: 0 | OM18: 0 | ON18: 0 | OO18: 0 | OP18: 0 | OQ18: 0 | OR18: 0 | OS18: 0 | OT18: 0 | OU18: 0 | OV18: 0 | OW18: 0 | OX18: 0 | OY18: 0 | OZ18: 0 | PA18: 0 | PB18: 0 | PC18: 0 | PD18: 0 | PE18: 0 | PF18: 0 | PG18: 0 | PH18: 0 | PI18: 0 | PJ18: 0 | PK18: 0 | PL18: 0 | PM18: 0 | PN18: 0 | PO18: 0 | PP18: 0 | PQ18: 0 | PR18: 0 | PS18: 0 | PT18: 0 | PU18: 0 | PV18: 0 | PW18: 0 | PX18: 0 | PY18: 0 | PZ18: 0 | QA18: 0
C19: 14 | D19: Sanitary installations | E19: 10 | O19: 15 | Y19: 26.233 | Z19: 5 | AA19: 38.567 | AB19: 3 | AJ19: =+pikaia!N34 -> 1 | AK19: 5 | AL19: 26233 | AM19: 52 | AN19: 0 | AO19: 0 | AP19: 0 | AQ19: 0 | AR19: 0 | AS19: 0 | AT19: 0 | AU19: 0 | AV19: 0 | AW19: 307 | AX19: 388 | AY19: 388 | AZ19: 388 | BA19: 388 | BB19: 388 | BC19: 388 | BD19: 388 | BE19: 388 | BF19: 388 | BG19: 52 | BH19: 57 | BI19: 302 | BJ19: 307 | BK19: 250 | BL19: 14 | BM19: 14 | BN19: =IF(AND(BN$5>$BG19,BN$5<=$BH19),BN110,0) -> 0 | BO19: 0 | BP19: 0 | BQ19: 0 | BR19: 0 | BS19: 0 | BT19: 0 | BU19: 0 | BV19: 0 | BW19: 0 | BX19: 0 | BY19: 0 | BZ19: 0 | CA19: 0 | CB19: 0 | CC19: 0 | CD19: 0 | CE19: 0 | CF19: 0 | CG19: 0 | CH19: 0 | CI19: 0 | CJ19: 0 | CK19: 0 | CL19: 0 | CM19: 0 | CN19: 0 | CO19: 0 | CP19: 0 | CQ19: 0 | CR19: 0 | CS19: 0 | CT19: 0 | CU19: 0 | CV19: 0 | CW19: 0 | CX19: 0 | CY19: 0 | CZ19: 0 | DA19: 0 | DB19: 0 | DC19: 0 | DD19: 0 | DE19: 0 | DF19: 0 | DG19: 0 | DH19: 0 | DI19: 0 | DJ19: 0 | DK19: 0 | DL19: 0 | DM19: 0 | DN19: 14 | DO19: 14 | DP19: 14 | DQ19: 14 | DR19: 14 | DS19: 0 | DT19: 0 | DU19: 0 | DV19: 0 | DW19: 0 | DX19: 0 | DY19: 0 | DZ19: =IF(AND(DZ$5>$BG19,DZ$5<=$BH19),DZ110,0) -> 0 | EA19: 0 | EB19: 0 | EC19: 0 | ED19: 0 | EE19: 0 | EF19: 0 | EG19: 0 | EH19: 0 | EI19: 0 | EJ19: 0 | EK19: 0 | EL19: 0 | EM19: 0 | EN19: 0 | EO19: 0 | EP19: 0 | EQ19: 0 | ER19: 0 | ES19: 0 | ET19: 0 | EU19: 0 | EV19: 0 | EW19: 0 | EX19: 0 | EY19: 0 | EZ19: 0 | FA19: 0 | FB19: 0 | FC19: 0 | FD19: 0 | FE19: 0 | FF19: 0 | FG19: 0 | FH19: 0 | FI19: 0 | FJ19: 0 | FK19: 0 | FL19: 0 | FM19: 0 | FN19: 0 | FO19: 0 | FP19: 0 | FQ19: 0 | FR19: 0 | FS19: 0 | FT19: 0 | FU19: 0 | FV19: 0 | FW19: 0 | FX19: 0 | FY19: 0 | FZ19: 0 | GA19: 0 | GB19: 0 | GC19: 0 | GD19: 0 | GE19: 0 | GF19: 0 | GG19: 0 | GH19: 0 | GI19: 0 | GJ19: 0 | GK19: 0 | GL19: =IF(AND(GL$5>$BG19,GL$5<=$BH19),GL110,0) -> 0 | GM19: 0 | GN19: 0 | GO19: 0 | GP19: 0 | GQ19: 0 | GR19: 0 | GS19: 0 | GT19: 0 | GU19: 0 | GV19: 0 | GW19: 0 | GX19: 0 | GY19: 0 | GZ19: 0 | HA19: 0 | HB19: 0 | HC19: 0 | HD19: 0 | HE19: 0 | HF19: 0 | HG19: 0 | HH19: 0 | HI19: 0 | HJ19: 0 | HK19: 0 | HL19: 0 | HM19: 0 | HN19: 0 | HO19: 0 | HP19: 0 | HQ19: 0 | HR19: 0 | HS19: 0 | HT19: 0 | HU19: 0 | HV19: 0 | HW19: 0 | HX19: 0 | HY19: 0 | HZ19: 0 | IA19: 0 | IB19: 0 | IC19: 0 | ID19: 0 | IE19: 0 | IF19: 0 | IG19: 0 | IH19: 0 | II19: 0 | IJ19: 0 | IK19: 0 | IL19: 0 | IM19: 0 | IN19: 0 | IO19: 0 | IP19: 0 | IQ19: 0 | IR19: 0 | IS19: 0 | IT19: 0 | IU19: 0 | IV19: 0 | IW19: 0 | IX19: =IF(AND(IX$5>$BG19,IX$5<=$BH19),IX110,0) -> 0 | IY19: 0 | IZ19: 0 | JA19: 0 | JB19: 0 | JC19: 0 | JD19: 0 | JE19: 0 | JF19: 0 | JG19: 0 | JH19: 0 | JI19: 0 | JJ19: 0 | JK19: 0 | JL19: 0 | JM19: 0 | JN19: 0 | JO19: 0 | JP19: 0 | JQ19: 0 | JR19: 0 | JS19: 0 | JT19: 0 | JU19: 0 | JV19: 0 | JW19: 0 | JX19: 0 | JY19: 0 | JZ19: 0 | KA19: 0 | KB19: 0 | KC19: 0 | KD19: 0 | KE19: 0 | KF19: 0 | KG19: 0 | KH19: 0 | KI19: 0 | KJ19: 0 | KK19: 0 | KL19: 0 | KM19: 0 | KN19: 0 | KO19: 0 | KP19: 0 | KQ19: 0 | KR19: 0 | KS19: 0 | KT19: 0 | KU19: 0 | KV19: 0 | KW19: 0 | KX19: 0 | KY19: 0 | KZ19: 0 | LA19: 0 | LB19: 0 | LC19: 0 | LD19: 0 | LE19: 0 | LF19: 0 | LG19: 0 | LH19: 0 | LI19: 0 | LJ19: =IF(AND(LJ$5>$BG19,LJ$5<=$BH19),LJ110,0) -> 0 | LK19: 0 | LL19: 0 | LM19: 0 | LN19: 0 | LO19: 0 | LP19: 0 | LQ19: 0 | LR19: 0 | LS19: 0 | LT19: 0 | LU19: 0 | LV19: 0 | LW19: 0 | LX19: 0 | LY19: 0 | LZ19: 0 | MA19: 0 | MB19: 0 | MC19: 0 | MD19: 0 | ME19: 0 | MF19: 0 | MG19: 0 | MH19: 0 | MI19: 0 | MJ19: 0 | MK19: 0 | ML19: 0 | MM19: 0 | MN19: 0 | MO19: 0 | MP19: 0 | MQ19: 0 | MR19: 0 | MS19: 0 | MT19: 0 | MU19: 0 | MV19: 0 | MW19: 0 | MX19: 0 | MY19: 0 | MZ19: 0 | NA19: 0 | NB19: 0 | NC19: 0 | ND19: 0 | NE19: 0 | NF19: 0 | NG19: 0 | NH19: 0 | NI19: 0 | NJ19: 0 | NK19: 0 | NL19: 0 | NM19: 0 | NN19: 0 | NO19: 0 | NP19: 0 | NQ19: 0 | NR19: 0 | NS19: 0 | NT19: 0 | NU19: 0 | NV19: =IF(AND(NV$5>$BG19,NV$5<=$BH19),NV110,0) -> 0 | NW19: 0 | NX19: 0 | NY19: 0 | NZ19: 0 | OA19: 0 | OB19: 0 | OC19: 0 | OD19: 0 | OE19: 0 | OF19: 0 | OG19: 0 | OH19: 0 | OI19: 0 | OJ19: 0 | OK19: 0 | OL19: 0 | OM19: 0 | ON19: 0 | OO19: 0 | OP19: 0 | OQ19: 0 | OR19: 0 | OS19: 0 | OT19: 0 | OU19: 0 | OV19: 0 | OW19: 0 | OX19: 0 | OY19: 0 | OZ19: 0 | PA19: 0 | PB19: 0 | PC19: 0 | PD19: 0 | PE19: 0 | PF19: 0 | PG19: 0 | PH19: 0 | PI19: 0 | PJ19: 0 | PK19: 0 | PL19: 0 | PM19: 0 | PN19: 0 | PO19: 0 | PP19: 0 | PQ19: 0 | PR19: 0 | PS19: 0 | PT19: 0 | PU19: 0 | PV19: 0 | PW19: 0 | PX19: 0 | PY19: 0 | PZ19: 0 | QA19: 0
C20: 15 | D20: Painting | E20: 7 | F20: 11 | G20: 13 | H20: 14 | O20: 17 | Y20: 200.291 | Z20: 81 | AA20: 229.1 | AB20: 70 | AJ20: =+pikaia!O34 -> 1 | AK20: 81 | AL20: 200291 | AM20: 46 | AN20: 69 | AO20: 307 | AP20: 57 | AQ20: 0 | AR20: 0 | AS20: 0 | AT20: 0 | AU20: 0 | AV20: 0 | AW20: 388 | AX20: 388 | AY20: 388 | AZ20: 388 | BA20: 388 | BB20: 388 | BC20: 388 | BD20: 388 | BE20: 388 | BF20: 388 | BG20: 307 | BH20: 388 | BI20: 307 | BJ20: 388 | BK20: 0 | BL20: 15 | BM20: 15 | BN20: =IF(AND(BN$5>$BG20,BN$5<=$BH20),BN111,0) -> 0 | BO20: 0 | BP20: 0 | BQ20: 0 | BR20: 0 | BS20: 0 | BT20: 0 | BU20: 0 | BV20: 0 | BW20: 0 | BX20: 0 | BY20: 0 | BZ20: 0 | CA20: 0 | CB20: 0 | CC20: 0 | CD20: 0 | CE20: 0 | CF20: 0 | CG20: 0 | CH20: 0 | CI20: 0 | CJ20: 0 | CK20: 0 | CL20: 0 | CM20: 0 | CN20: 0 | CO20: 0 | CP20: 0 | CQ20: 0 | CR20: 0 | CS20: 0 | CT20: 0 | CU20: 0 | CV20: 0 | CW20: 0 | CX20: 0 | CY20: 0 | CZ20: 0 | DA20: 0 | DB20: 0 | DC20: 0 | DD20: 0 | DE20: 0 | DF20: 0 | DG20: 0 | DH20: 0 | DI20: 0 | DJ20: 0 | DK20: 0 | DL20: 0 | DM20: 0 | DN20: 0 | DO20: 0 | DP20: 0 | DQ20: 0 | DR20: 0 | DS20: 0 | DT20: 0 | DU20: 0 | DV20: 0 | DW20: 0 | DX20: 0 | DY20: 0 | DZ20: =IF(AND(DZ$5>$BG20,DZ$5<=$BH20),DZ111,0) -> 0 | EA20: 0 | EB20: 0 | EC20: 0 | ED20: 0 | EE20: 0 | EF20: 0 | EG20: 0 | EH20: 0 | EI20: 0 | EJ20: 0 | EK20: 0 | EL20: 0 | EM20: 0 | EN20: 0 | EO20: 0 | EP20: 0 | EQ20: 0 | ER20: 0 | ES20: 0 | ET20: 0 | EU20: 0 | EV20: 0 | EW20: 0 | EX20: 0 | EY20: 0 | EZ20: 0 | FA20: 0 | FB20: 0 | FC20: 0 | FD20: 0 | FE20: 0 | FF20: 0 | FG20: 0 | FH20: 0 | FI20: 0 | FJ20: 0 | FK20: 0 | FL20: 0 | FM20: 0 | FN20: 0 | FO20: 0 | FP20: 0 | FQ20: 0 | FR20: 0 | FS20: 0 | FT20: 0 | FU20: 0 | FV20: 0 | FW20: 0 | FX20: 0 | FY20: 0 | FZ20: 0 | GA20: 0 | GB20: 0 | GC20: 0 | GD20: 0 | GE20: 0 | GF20: 0 | GG20: 0 | GH20: 0 | GI20: 0 | GJ20: 0 | GK20: 0 | GL20: =IF(AND(GL$5>$BG20,GL$5<=$BH20),GL111,0) -> 0 | GM20: 0 | GN20: 0 | GO20: 0 | GP20: 0 | GQ20: 0 | GR20: 0 | GS20: 0 | GT20: 0 | GU20: 0 | GV20: 0 | GW20: 0 | GX20: 0 | GY20: 0 | GZ20: 0 | HA20: 0 | HB20: 0 | HC20: 0 | HD20: 0 | HE20: 0 | HF20: 0 | HG20: 0 | HH20: 0 | HI20: 0 | HJ20: 0 | HK20: 0 | HL20: 0 | HM20: 0 | HN20: 0 | HO20: 0 | HP20: 0 | HQ20: 0 | HR20: 0 | HS20: 0 | HT20: 0 | HU20: 0 | HV20: 0 | HW20: 0 | HX20: 0 | HY20: 0 | HZ20: 0 | IA20: 0 | IB20: 0 | IC20: 0 | ID20: 0 | IE20: 0 | IF20: 0 | IG20: 0 | IH20: 0 | II20: 0 | IJ20: 0 | IK20: 0 | IL20: 0 | IM20: 0 | IN20: 0 | IO20: 0 | IP20: 0 | IQ20: 0 | IR20: 0 | IS20: 0 | IT20: 0 | IU20: 0 | IV20: 0 | IW20: 0 | IX20: =IF(AND(IX$5>$BG20,IX$5<=$BH20),IX111,0) -> 0 | IY20: 0 | IZ20: 0 | JA20: 0 | JB20: 0 | JC20: 0 | JD20: 0 | JE20: 0 | JF20: 0 | JG20: 0 | JH20: 0 | JI20: 0 | JJ20: 0 | JK20: 0 | JL20: 0 | JM20: 0 | JN20: 0 | JO20: 0 | JP20: 0 | JQ20: 0 | JR20: 0 | JS20: 0 | JT20: 0 | JU20: 0 | JV20: 0 | JW20: 0 | JX20: 0 | JY20: 0 | JZ20: 0 | KA20: 0 | KB20: 0 | KC20: 0 | KD20: 0 | KE20: 0 | KF20: 0 | KG20: 0 | KH20: 0 | KI20: 0 | KJ20: 0 | KK20: 0 | KL20: 0 | KM20: 0 | KN20: 0 | KO20: 0 | KP20: 0 | KQ20: 0 | KR20: 0 | KS20: 0 | KT20: 0 | KU20: 0 | KV20: 0 | KW20: 0 | KX20: 0 | KY20: 0 | KZ20: 0 | LA20: 0 | LB20: 0 | LC20: 0 | LD20: 0 | LE20: 0 | LF20: 0 | LG20: 0 | LH20: 0 | LI20: 0 | LJ20: =IF(AND(LJ$5>$BG20,LJ$5<=$BH20),LJ111,0) -> 0 | LK20: 0 | LL20: 0 | LM20: 0 | LN20: 0 | LO20: 0 | LP20: 0 | LQ20: 0 | LR20: 0 | LS20: 0 | LT20: 0 | LU20: 0 | LV20: 0 | LW20: 0 | LX20: 0 | LY20: 0 | LZ20: 0 | MA20: 0 | MB20: 0 | MC20: 0 | MD20: 0 | ME20: 0 | MF20: 0 | MG20: 0 | MH20: 0 | MI20: 0 | MJ20: 0 | MK20: 0 | ML20: 0 | MM20: 0 | MN20: 0 | MO20: 0 | MP20: 0 | MQ20: 0 | MR20: 0 | MS20: 0 | MT20: 0 | MU20: 0 | MV20: 0 | MW20: 0 | MX20: 0 | MY20: 0 | MZ20: 0 | NA20: 0 | NB20: 0 | NC20: 0 | ND20: 0 | NE20: 0 | NF20: 0 | NG20: 0 | NH20: 0 | NI20: 15 | NJ20: 15 | NK20: 15 | NL20: 15 | NM20: 15 | NN20: 15 | NO20: 15 | NP20: 15 | NQ20: 15 | NR20: 15 | NS20: 15 | NT20: 15 | NU20: 15 | NV20: =IF(AND(NV$5>$BG20,NV$5<=$BH20),NV111,0) -> 15 | NW20: 15 | NX20: 15 | NY20: 15 | NZ20: 15 | OA20: 15 | OB20: 15 | OC20: 15 | OD20: 15 | OE20: 15 | OF20: 15 | OG20: 15 | OH20: 15 | OI20: 15 | OJ20: 15 | OK20: 15 | OL20: 15 | OM20: 15 | ON20: 15 | OO20: 15 | OP20: 15 | OQ20: 15 | OR20: 15 | OS20: 15 | OT20: 15 | OU20: 15 | OV20: 15 | OW20: 15 | OX20: 15 | OY20: 15 | OZ20: 15 | PA20: 15 | PB20: 15 | PC20: 15 | PD20: 15 | PE20: 15 | PF20: 15 | PG20: 15 | PH20: 15 | PI20: 15 | PJ20: 15 | PK20: 15 | PL20: 15 | PM20: 15 | PN20: 15 | PO20: 15 | PP20: 15 | PQ20: 15 | PR20: 15 | PS20: 15 | PT20: 15 | PU20: 15 | PV20: 15 | PW20: 15 | PX20: 15 | PY20: 15 | PZ20: 15 | QA20: 15
C21: 16 | D21: Terrain architecture | E21: 12 | O21: 17 | Y21: 66.592 | Z21: 6 | AA21: 73.45 | AB21: 4 | AJ21: =+pikaia!P34 -> 1 | AK21: 6 | AL21: 66592 | AM21: 283 | AN21: 0 | AO21: 0 | AP21: 0 | AQ21: 0 | AR21: 0 | AS21: 0 | AT21: 0 | AU21: 0 | AV21: 0 | AW21: 388 | AX21: 388 | AY21: 388 | AZ21: 388 | BA21: 388 | BB21: 388 | BC21: 388 | BD21: 388 | BE21: 388 | BF21: 388 | BG21: 283 | BH21: 289 | BI21: 382 | BJ21: 388 | BK21: 99 | BL21: 16 | BM21: 16 | BN21: =IF(AND(BN$5>$BG21,BN$5<=$BH21),BN112,0) -> 0 | BO21: 0 | BP21: 0 | BQ21: 0 | BR21: 0 | BS21: 0 | BT21: 0 | BU21: 0 | BV21: 0 | BW21: 0 | BX21: 0 | BY21: 0 | BZ21: 0 | CA21: 0 | CB21: 0 | CC21: 0 | CD21: 0 | CE21: 0 | CF21: 0 | CG21: 0 | CH21: 0 | CI21: 0 | CJ21: 0 | CK21: 0 | CL21: 0 | CM21: 0 | CN21: 0 | CO21: 0 | CP21: 0 | CQ21: 0 | CR21: 0 | CS21: 0 | CT21: 0 | CU21: 0 | CV21: 0 | CW21: 0 | CX21: 0 | CY21: 0 | CZ21: 0 | DA21: 0 | DB21: 0 | DC21: 0 | DD21: 0 | DE21: 0 | DF21: 0 | DG21: 0 | DH21: 0 | DI21: 0 | DJ21: 0 | DK21: 0 | DL21: 0 | DM21: 0 | DN21: 0 | DO21: 0 | DP21: 0 | DQ21: 0 | DR21: 0 | DS21: 0 | DT21: 0 | DU21: 0 | DV21: 0 | DW21: 0 | DX21: 0 | DY21: 0 | DZ21: =IF(AND(DZ$5>$BG21,DZ$5<=$BH21),DZ112,0) -> 0 | EA21: 0 | EB21: 0 | EC21: 0 | ED21: 0 | EE21: 0 | EF21: 0 | EG21: 0 | EH21: 0 | EI21: 0 | EJ21: 0 | EK21: 0 | EL21: 0 | EM21: 0 | EN21: 0 | EO21: 0 | EP21: 0 | EQ21: 0 | ER21: 0 | ES21: 0 | ET21: 0 | EU21: 0 | EV21: 0 | EW21: 0 | EX21: 0 | EY21: 0 | EZ21: 0 | FA21: 0 | FB21: 0 | FC21: 0 | FD21: 0 | FE21: 0 | FF21: 0 | FG21: 0 | FH21: 0 | FI21: 0 | FJ21: 0 | FK21: 0 | FL21: 0 | FM21: 0 | FN21: 0 | FO21: 0 | FP21: 0 | FQ21: 0 | FR21: 0 | FS21: 0 | FT21: 0 | FU21: 0 | FV21: 0 | FW21: 0 | FX21: 0 | FY21: 0 | FZ21: 0 | GA21: 0 | GB21: 0 | GC21: 0 | GD21: 0 | GE21: 0 | GF21: 0 | GG21: 0 | GH21: 0 | GI21: 0 | GJ21: 0 | GK21: 0 | GL21: =IF(AND(GL$5>$BG21,GL$5<=$BH21),GL112,0) -> 0 | GM21: 0 | GN21: 0 | GO21: 0 | GP21: 0 | GQ21: 0 | GR21: 0 | GS21: 0 | GT21: 0 | GU21: 0 | GV21: 0 | GW21: 0 | GX21: 0 | GY21: 0 | GZ21: 0 | HA21: 0 | HB21: 0 | HC21: 0 | HD21: 0 | HE21: 0 | HF21: 0 | HG21: 0 | HH21: 0 | HI21: 0 | HJ21: 0 | HK21: 0 | HL21: 0 | HM21: 0 | HN21: 0 | HO21: 0 | HP21: 0 | HQ21: 0 | HR21: 0 | HS21: 0 | HT21: 0 | HU21: 0 | HV21: 0 | HW21: 0 | HX21: 0 | HY21: 0 | HZ21: 0 | IA21: 0 | IB21: 0 | IC21: 0 | ID21: 0 | IE21: 0 | IF21: 0 | IG21: 0 | IH21: 0 | II21: 0 | IJ21: 0 | IK21: 0 | IL21: 0 | IM21: 0 | IN21: 0 | IO21: 0 | IP21: 0 | IQ21: 0 | IR21: 0 | IS21: 0 | IT21: 0 | IU21: 0 | IV21: 0 | IW21: 0 | IX21: =IF(AND(IX$5>$BG21,IX$5<=$BH21),IX112,0) -> 0 | IY21: 0 | IZ21: 0 | JA21: 0 | JB21: 0 | JC21: 0 | JD21: 0 | JE21: 0 | JF21: 0 | JG21: 0 | JH21: 0 | JI21: 0 | JJ21: 0 | JK21: 0 | JL21: 0 | JM21: 0 | JN21: 0 | JO21: 0 | JP21: 0 | JQ21: 0 | JR21: 0 | JS21: 0 | JT21: 0 | JU21: 0 | JV21: 0 | JW21: 0 | JX21: 0 | JY21: 0 | JZ21: 0 | KA21: 0 | KB21: 0 | KC21: 0 | KD21: 0 | KE21: 0 | KF21: 0 | KG21: 0 | KH21: 0 | KI21: 0 | KJ21: 0 | KK21: 0 | KL21: 0 | KM21: 0 | KN21: 0 | KO21: 0 | KP21: 0 | KQ21: 0 | KR21: 0 | KS21: 0 | KT21: 0 | KU21: 0 | KV21: 0 | KW21: 0 | KX21: 0 | KY21: 0 | KZ21: 0 | LA21: 0 | LB21: 0 | LC21: 0 | LD21: 0 | LE21: 0 | LF21: 0 | LG21: 0 | LH21: 0 | LI21: 0 | LJ21: =IF(AND(LJ$5>$BG21,LJ$5<=$BH21),LJ112,0) -> 0 | LK21: 0 | LL21: 0 | LM21: 0 | LN21: 0 | LO21: 0 | LP21: 0 | LQ21: 0 | LR21: 0 | LS21: 0 | LT21: 0 | LU21: 0 | LV21: 0 | LW21: 0 | LX21: 0 | LY21: 0 | LZ21: 0 | MA21: 0 | MB21: 0 | MC21: 0 | MD21: 0 | ME21: 0 | MF21: 0 | MG21: 0 | MH21: 0 | MI21: 0 | MJ21: 0 | MK21: 16 | ML21: 16 | MM21: 16 | MN21: 16 | MO21: 16 | MP21: 16 | MQ21: 0 | MR21: 0 | MS21: 0 | MT21: 0 | MU21: 0 | MV21: 0 | MW21: 0 | MX21: 0 | MY21: 0 | MZ21: 0 | NA21: 0 | NB21: 0 | NC21: 0 | ND21: 0 | NE21: 0 | NF21: 0 | NG21: 0 | NH21: 0 | NI21: 0 | NJ21: 0 | NK21: 0 | NL21: 0 | NM21: 0 | NN21: 0 | NO21: 0 | NP21: 0 | NQ21: 0 | NR21: 0 | NS21: 0 | NT21: 0 | NU21: 0 | NV21: =IF(AND(NV$5>$BG21,NV$5<=$BH21),NV112,0) -> 0 | NW21: 0 | NX21: 0 | NY21: 0 | NZ21: 0 | OA21: 0 | OB21: 0 | OC21: 0 | OD21: 0 | OE21: 0 | OF21: 0 | OG21: 0 | OH21: 0 | OI21: 0 | OJ21: 0 | OK21: 0 | OL21: 0 | OM21: 0 | ON21: 0 | OO21: 0 | OP21: 0 | OQ21: 0 | OR21: 0 | OS21: 0 | OT21: 0 | OU21: 0 | OV21: 0 | OW21: 0 | OX21: 0 | OY21: 0 | OZ21: 0 | PA21: 0 | PB21: 0 | PC21: 0 | PD21: 0 | PE21: 0 | PF21: 0 | PG21: 0 | PH21: 0 | PI21: 0 | PJ21: 0 | PK21: 0 | PL21: 0 | PM21: 0 | PN21: 0 | PO21: 0 | PP21: 0 | PQ21: 0 | PR21: 0 | PS21: 0 | PT21: 0 | PU21: 0 | PV21: 0 | PW21: 0 | PX21: 0 | PY21: 0 | PZ21: 0 | QA21: 0
C22: 17 | D22: Finish | E22: 15 | F22: 16 | Y22: =Koszty!AL25/1000 -> 0 | Z22: =Koszty!AM25 -> 0 | AA22: =Koszty!AN25/1000 -> 0 | AB22: 0 | AI22: 0 | AJ22: 1 | AK22: 0 | AL22: 0 | AM22: 388 | AN22: 289 | AO22: 0 | AP22: 0 | AQ22: 0 | AR22: 0 | AS22: 0 | AT22: 0 | AU22: 0 | AV22: 0 | AW22: 388 | AX22: 388 | AY22: 388 | AZ22: 388 | BA22: 388 | BB22: 388 | BC22: 388 | BD22: 388 | BE22: 388 | BF22: 388 | BG22: =MAX(AM22:AV22) -> 388 | BH22: =BG22+AK22 -> 388 | BI22: =BJ22-AK22 -> 388 | BJ22: =MIN(AW22:BF22) -> 388 | BK22: =BI22-BG22 -> 0 | BL22: 17 | BM22: 17 | BN22: =IF(AND(BN$5>$BG22,BN$5<=$BH22),BN113,0) -> 0 | BO22: 0 | BP22: 0 | BQ22: 0 | BR22: 0 | BS22: 0 | BT22: 0 | BU22: 0 | BV22: 0 | BW22: 0 | BX22: 0 | BY22: 0 | BZ22: 0 | CA22: 0 | CB22: 0 | CC22: 0 | CD22: 0 | CE22: 0 | CF22: 0 | CG22: 0 | CH22: 0 | CI22: 0 | CJ22: 0 | CK22: 0 | CL22: 0 | CM22: 0 | CN22: 0 | CO22: 0 | CP22: 0 | CQ22: 0 | CR22: 0 | CS22: 0 | CT22: 0 | CU22: 0 | CV22: 0 | CW22: 0 | CX22: 0 | CY22: 0 | CZ22: 0 | DA22: 0 | DB22: 0 | DC22: 0 | DD22: 0 | DE22: 0 | DF22: 0 | DG22: 0 | DH22: 0 | DI22: 0 | DJ22: 0 | DK22: 0 | DL22: 0 | DM22: 0 | DN22: 0 | DO22: 0 | DP22: 0 | DQ22: 0 | DR22: 0 | DS22: 0 | DT22: 0 | DU22: 0 | DV22: 0 | DW22: 0 | DX22: 0 | DY22: 0 | DZ22: =IF(AND(DZ$5>$BG22,DZ$5<=$BH22),DZ113,0) -> 0 | EA22: =IF(AND(EA$5>$BG22,EA$5<=$BH22),EA113,0) -> 0 | EB22: 0 | EC22: 0 | ED22: 0 | EE22: 0 | EF22: 0 | EG22: =IF(AND(EG$5>$BG22,EG$5<=$BH22),EG113,0) -> 0 | EH22: 0 | EI22: 0 | EJ22: 0 | EK22: 0 | EL22: 0 | EM22: 0 | EN22: 0 | EO22: 0 | EP22: 0 | EQ22: 0 | ER22: 0 | ES22: 0 | ET22: 0 | EU22: 0 | EV22: 0 | EW22: 0 | EX22: 0 | EY22: 0 | EZ22: 0 | FA22: 0 | FB22: 0 | FC22: 0 | FD22: 0 | FE22: 0 | FF22: 0 | FG22: 0 | FH22: 0 | FI22: 0 | FJ22: 0 | FK22: 0 | FL22: 0 | FM22: 0 | FN22: 0 | FO22: 0 | FP22: 0 | FQ22: 0 | FR22: 0 | FS22: 0 | FT22: 0 | FU22: 0 | FV22: 0 | FW22: 0 | FX22: 0 | FY22: 0 | FZ22: 0 | GA22: 0 | GB22: 0 | GC22: 0 | GD22: 0 | GE22: 0 | GF22: 0 | GG22: 0 | GH22: 0 | GI22: 0 | GJ22: 0 | GK22: 0 | GL22: 0 | GM22: 0 | GN22: 0 | GO22: 0 | GP22: 0 | GQ22: 0 | GR22: 0 | GS22: =IF(AND(GS$5>$BG22,GS$5<=$BH22),GS113,0) -> 0 | GT22: 0 | GU22: 0 | GV22: 0 | GW22: 0 | GX22: 0 | GY22: 0 | GZ22: 0 | HA22: 0 | HB22: 0 | HC22: 0 | HD22: 0 | HE22: 0 | HF22: 0 | HG22: 0 | HH22: 0 | HI22: 0 | HJ22: 0 | HK22: 0 | HL22: 0 | HM22: 0 | HN22: 0 | HO22: 0 | HP22: 0 | HQ22: 0 | HR22: 0 | HS22: 0 | HT22: 0 | HU22: 0 | HV22: 0 | HW22: 0 | HX22: 0 | HY22: 0 | HZ22: 0 | IA22: 0 | IB22: 0 | IC22: 0 | ID22: 0 | IE22: 0 | IF22: 0 | IG22: 0 | IH22: 0 | II22: 0 | IJ22: 0 | IK22: 0 | IL22: 0 | IM22: 0 | IN22: 0 | IO22: 0 | IP22: 0 | IQ22: 0 | IR22: 0 | IS22: 0 | IT22: 0 | IU22: 0 | IV22: 0 | IW22: 0 | IX22: 0 | IY22: 0 | IZ22: 0 | JA22: 0 | JB22: 0 | JC22: 0 | JD22: =IF(AND(JD$5>$BG22,JD$5<=$BH22),JD113,0) -> 0 | JE22: =IF(AND(JE$5>$BG22,JE$5<=$BH22),JE113,0) -> 0 | JF22: 0 | JG22: 0 | JH22: 0 | JI22: 0 | JJ22: 0 | JK22: 0 | JL22: 0 | JM22: 0 | JN22: 0 | JO22: 0 | JP22: 0 | JQ22: 0 | JR22: 0 | JS22: 0 | JT22: 0 | JU22: 0 | JV22: 0 | JW22: 0 | JX22: 0 | JY22: 0 | JZ22: 0 | KA22: 0 | KB22: 0 | KC22: 0 | KD22: 0 | KE22: 0 | KF22: 0 | KG22: 0 | KH22: 0 | KI22: 0 | KJ22: 0 | KK22: 0 | KL22: 0 | KM22: 0 | KN22: 0 | KO22: 0 | KP22: 0 | KQ22: 0 | KR22: 0 | KS22: 0 | KT22: 0 | KU22: 0 | KV22: 0 | KW22: 0 | KX22: 0 | KY22: 0 | KZ22: 0 | LA22: 0 | LB22: 0 | LC22: 0 | LD22: 0 | LE22: 0 | LF22: 0 | LG22: 0 | LH22: 0 | LI22: 0 | LJ22: 0 | LK22: 0 | LL22: 0 | LM22: 0 | LN22: 0 | LO22: 0 | LP22: 0 | LQ22: =IF(AND(LQ$5>$BG22,LQ$5<=$BH22),LQ113,0) -> 0 | LR22: 0 | LS22: 0 | LT22: 0 | LU22: 0 | LV22: 0 | LW22: 0 | LX22: 0 | LY22: 0 | LZ22: 0 | MA22: 0 | MB22: 0 | MC22: 0 | MD22: =IF(AND(MD$5>$BG22,MD$5<=$BH22),MD113,0) -> 0 | ME22: 0 | MF22: 0 | MG22: 0 | MH22: 0 | MI22: 0 | MJ22: 0 | MK22: 0 | ML22: 0 | MM22: 0 | MN22: 0 | MO22: 0 | MP22: 0 | MQ22: 0 | MR22: 0 | MS22: 0 | MT22: 0 | MU22: 0 | MV22: 0 | MW22: 0 | MX22: 0 | MY22: 0 | MZ22: 0 | NA22: 0 | NB22: 0 | NC22: 0 | ND22: 0 | NE22: 0 | NF22: 0 | NG22: 0 | NH22: 0 | NI22: 0 | NJ22: =IF(AND(NJ$5>$BG22,NJ$5<=$BH22),NJ113,0) -> 0 | NK22: 0 | NL22: 0 | NM22: 0 | NN22: 0 | NO22: 0 | NP22: 0 | NQ22: 0 | NR22: 0 | NS22: 0 | NT22: 0 | NU22: 0 | NV22: 0 | NW22: 0 | NX22: 0 | NY22: 0 | NZ22: 0 | OA22: 0 | OB22: 0 | OC22: 0 | OD22: 0 | OE22: 0 | OF22: 0 | OG22: 0 | OH22: 0 | OI22: 0 | OJ22: 0 | OK22: 0 | OL22: 0 | OM22: 0 | ON22: 0 | OO22: 0 | OP22: =IF(AND(OP$5>$BG22,OP$5<=$BH22),OP113,0) -> 0 | OQ22: 0 | OR22: 0 | OS22: 0 | OT22: 0 | OU22: 0 | OV22: 0 | OW22: 0 | OX22: 0 | OY22: 0 | OZ22: 0 | PA22: 0 | PB22: 0 | PC22: 0 | PD22: 0 | PE22: 0 | PF22: 0 | PG22: 0 | PH22: 0 | PI22: 0 | PJ22: 0 | PK22: 0 | PL22: 0 | PM22: 0 | PN22: 0 | PO22: 0 | PP22: 0 | PQ22: 0 | PR22: 0 | PS22: 0 | PT22: 0 | PU22: 0 | PV22: =IF(AND(PV$5>$BG22,PV$5<=$BH22),PV113,0) -> 0 | PW22: 0 | PX22: 0 | PY22: 0 | PZ22: 0 | QA22: 0
AJ23: 1
AJ24: 1 | BN24: =IF(AND(BN$5>$BG24,BN$5<=$BH24),BN115,0) -> 0 | BO24: 0 | BP24: 0 | BQ24: 0 | BR24: 0 | BS24: 0 | BT24: 0 | BU24: 0 | BV24: 0 | BW24: 0 | BX24: 0 | BY24: 0 | BZ24: 0 | CA24: 0 | CB24: 0 | CC24: 0 | CD24: 0 | CE24: 0 | CF24: 0 | CG24: 0 | CH24: 0 | CI24: 0 | CJ24: 0 | CK24: 0 | CL24: 0 | CM24: 0 | CN24: 0 | CO24: 0 | CP24: 0 | CQ24: 0 | CR24: 0 | CS24: 0 | CT24: 0 | CU24: 0 | CV24: 0 | CW24: 0 | CX24: 0 | CY24: 0 | CZ24: 0 | DA24: 0 | DB24: 0 | DC24: 0 | DD24: 0 | DE24: 0 | DF24: 0 | DG24: 0 | DH24: 0 | DI24: 0 | DJ24: 0 | DK24: 0 | DL24: 0 | DM24: 0 | DN24: 0 | DO24: 0 | DP24: 0 | DQ24: 0 | DR24: 0 | DS24: 0 | DT24: 0 | DU24: 0 | DV24: 0 | DW24: 0 | DX24: 0 | DY24: 0 | DZ24: =IF(AND(DZ$5>$BG24,DZ$5<=$BH24),DZ115,0) -> 0 | EA24: 0 | EB24: 0 | EC24: 0 | ED24: 0 | EE24: 0 | EF24: 0 | EG24: 0 | EH24: 0 | EI24: 0 | EJ24: 0 | EK24: 0 | EL24: 0 | EM24: 0 | EN24: 0 | EO24: 0 | EP24: 0 | EQ24: 0 | ER24: 0 | ES24: 0 | ET24: 0 | EU24: 0 | EV24: 0 | EW24: 0 | EX24: 0 | EY24: 0 | EZ24: 0 | FA24: 0 | FB24: 0 | FC24: 0 | FD24: 0 | FE24: 0 | FF24: 0 | FG24: 0 | FH24: 0 | FI24: 0 | FJ24: 0 | FK24: 0 | FL24: 0 | FM24: 0 | FN24: 0 | FO24: 0 | FP24: 0 | FQ24: 0 | FR24: 0 | FS24: 0 | FT24: 0 | FU24: 0 | FV24: 0 | FW24: 0 | FX24: 0 | FY24: 0 | FZ24: 0 | GA24: 0 | GB24: 0 | GC24: 0 | GD24: 0 | GE24: 0 | GF24: 0 | GG24: 0 | GH24: 0 | GI24: 0 | GJ24: 0 | GK24: 0 | GL24: 0 | GM24: 0 | GN24: 0 | GO24: 0 | GP24: 0 | GQ24: 0 | GR24: =IF(AND(GR$5>$BG24,GR$5<=$BH24),GR115,0) -> 0 | GS24: 0 | GT24: 0 | GU24: 0 | GV24: 0 | GW24: 0 | GX24: 0 | GY24: 0 | GZ24: 0 | HA24: 0 | HB24: 0 | HC24: 0 | HD24: 0 | HE24: 0 | HF24: 0 | HG24: 0 | HH24: 0 | HI24: 0 | HJ24: 0 | HK24: 0 | HL24: 0 | HM24: 0 | HN24: 0 | HO24: 0 | HP24: 0 | HQ24: 0 | HR24: 0 | HS24: 0 | HT24: 0 | HU24: 0 | HV24: 0 | HW24: 0 | HX24: 0 | HY24: 0 | HZ24: 0 | IA24: 0 | IB24: 0 | IC24: 0 | ID24: 0 | IE24: 0 | IF24: 0 | IG24: 0 | IH24: 0 | II24: 0 | IJ24: 0 | IK24: 0 | IL24: 0 | IM24: 0 | IN24: 0 | IO24: 0 | IP24: 0 | IQ24: 0 | IR24: 0 | IS24: 0 | IT24: 0 | IU24: 0 | IV24: 0 | IW24: 0 | IX24: 0 | IY24: 0 | IZ24: 0 | JA24: 0 | JB24: 0 | JC24: 0 | JD24: =IF(AND(JD$5>$BG24,JD$5<=$BH24),JD115,0) -> 0 | JE24: 0 | JF24: 0 | JG24: 0 | JH24: 0 | JI24: 0 | JJ24: 0 | JK24: 0 | JL24: 0 | JM24: 0 | JN24: 0 | JO24: 0 | JP24: 0 | JQ24: 0 | JR24: 0 | JS24: 0 | JT24: 0 | JU24: 0 | JV24: 0 | JW24: 0 | JX24: 0 | JY24: 0 | JZ24: 0 | KA24: 0 | KB24: 0 | KC24: 0 | KD24: 0 | KE24: 0 | KF24: 0 | KG24: 0 | KH24: 0 | KI24: 0 | KJ24: 0 | KK24: 0 | KL24: 0 | KM24: 0 | KN24: 0 | KO24: 0 | KP24: 0 | KQ24: 0 | KR24: 0 | KS24: 0 | KT24: 0 | KU24: 0 | KV24: 0 | KW24: 0 | KX24: 0 | KY24: 0 | KZ24: 0 | LA24: 0 | LB24: 0 | LC24: 0 | LD24: 0 | LE24: 0 | LF24: 0 | LG24: 0 | LH24: 0 | LI24: 0 | LJ24: 0 | LK24: 0 | LL24: 0 | LM24: 0 | LN24: 0 | LO24: 0 | LP24: =IF(AND(LP$5>$BG24,LP$5<=$BH24),LP115,0) -> 0 | LQ24: 0 | LR24: 0 | LS24: 0 | LT24: 0 | LU24: 0 | LV24: 0 | LW24: 0 | LX24: 0 | LY24: 0 | LZ24: 0 | MA24: 0 | MB24: 0 | MC24: 0 | MD24: 0 | ME24: 0 | MF24: 0 | MG24: 0 | MH24: 0 | MI24: 0 | MJ24: 0 | MK24: 0 | ML24: 0 | MM24: 0 | MN24: 0 | MO24: 0 | MP24: 0 | MQ24: 0 | MR24: 0 | MS24: 0 | MT24: 0 | MU24: 0 | MV24: 0 | MW24: 0 | MX24: 0 | MY24: 0 | MZ24: 0 | NA24: 0 | NB24: 0 | NC24: 0 | ND24: 0 | NE24: 0 | NF24: 0 | NG24: 0 | NH24: 0 | NI24: 0 | NJ24: 0 | NK24: 0 | NL24: 0 | NM24: 0 | NN24: 0 | NO24: 0 | NP24: 0 | NQ24: 0 | NR24: 0 | NS24: 0 | NT24: 0 | NU24: 0 | NV24: 0 | NW24: 0 | NX24: 0 | NY24: 0 | NZ24: 0 | OA24: 0 | OB24: =IF(AND(OB$5>$BG24,OB$5<=$BH24),OB115,0) -> 0 | OC24: =IF(AND(OC$5>$BG24,OC$5<=$BH24),OC115,0) -> 0 | OD24: 0 | OE24: 0 | OF24: 0 | OG24: 0 | OH24: 0 | OI24: 0 | OJ24: 0 | OK24: 0 | OL24: 0 | OM24: 0 | ON24: 0 | OO24: 0 | OP24: 0 | OQ24: 0 | OR24: 0 | OS24: 0 | OT24: 0 | OU24: 0 | OV24: 0 | OW24: 0 | OX24: 0 | OY24: 0 | OZ24: 0 | PA24: 0 | PB24: 0 | PC24: 0 | PD24: 0 | PE24: 0 | PF24: 0 | PG24: 0 | PH24: 0 | PI24: 0 | PJ24: 0 | PK24: 0 | PL24: 0 | PM24: 0 | PN24: 0 | PO24: 0 | PP24: 0 | PQ24: 0 | PR24: 0 | PS24: 0 | PT24: 0 | PU24: 0 | PV24: 0 | PW24: 0 | PX24: 0 | PY24: 0 | PZ24: 0 | QA24: 0
AJ25: 1 | BN25: =IF(AND(BN$5>$BG25,BN$5<=$BH25),BN116,0) -> 0 | BO25: 0 | BP25: 0 | BQ25: 0 | BR25: 0 | BS25: 0 | BT25: 0 | BU25: 0 | BV25: 0 | BW25: 0 | BX25: 0 | BY25: 0 | BZ25: 0 | CA25: 0 | CB25: 0 | CC25: 0 | CD25: 0 | CE25: 0 | CF25: 0 | CG25: 0 | CH25: 0 | CI25: 0 | CJ25: 0 | CK25: 0 | CL25: 0 | CM25: 0 | CN25: 0 | CO25: 0 | CP25: 0 | CQ25: 0 | CR25: 0 | CS25: 0 | CT25: 0 | CU25: 0 | CV25: 0 | CW25: 0 | CX25: 0 | CY25: 0 | CZ25: 0 | DA25: 0 | DB25: 0 | DC25: 0 | DD25: 0 | DE25: 0 | DF25: 0 | DG25: 0 | DH25: 0 | DI25: 0 | DJ25: 0 | DK25: 0 | DL25: 0 | DM25: 0 | DN25: 0 | DO25: 0 | DP25: 0 | DQ25: 0 | DR25: 0 | DS25: 0 | DT25: 0 | DU25: 0 | DV25: 0 | DW25: 0 | DX25: 0 | DY25: 0 | DZ25: =IF(AND(DZ$5>$BG25,DZ$5<=$BH25),DZ116,0) -> 0 | EA25: 0 | EB25: 0 | EC25: 0 | ED25: 0 | EE25: 0 | EF25: 0 | EG25: =IF(AND(EG$5>$BG25,EG$5<=$BH25),EG116,0) -> 0 | EH25: 0 | EI25: 0 | EJ25: 0 | EK25: 0 | EL25: 0 | EM25: 0 | EN25: 0 | EO25: 0 | EP25: 0 | EQ25: 0 | ER25: 0 | ES25: 0 | ET25: 0 | EU25: 0 | EV25: 0 | EW25: 0 | EX25: 0 | EY25: 0 | EZ25: 0 | FA25: 0 | FB25: 0 | FC25: 0 | FD25: 0 | FE25: 0 | FF25: 0 | FG25: 0 | FH25: 0 | FI25: 0 | FJ25: 0 | FK25: 0 | FL25: 0 | FM25: 0 | FN25: 0 | FO25: 0 | FP25: 0 | FQ25: 0 | FR25: 0 | FS25: 0 | FT25: 0 | FU25: 0 | FV25: 0 | FW25: 0 | FX25: 0 | FY25: 0 | FZ25: 0 | GA25: 0 | GB25: 0 | GC25: 0 | GD25: 0 | GE25: 0 | GF25: 0 | GG25: 0 | GH25: 0 | GI25: 0 | GJ25: 0 | GK25: 0 | GL25: 0 | GM25: 0 | GN25: 0 | GO25: 0 | GP25: 0 | GQ25: 0 | GR25: 0 | GS25: 0 | GT25: 0 | GU25: 0 | GV25: 0 | GW25: 0 | GX25: 0 | GY25: 0 | GZ25: 0 | HA25: 0 | HB25: 0 | HC25: 0 | HD25: 0 | HE25: 0 | HF25: 0 | HG25: 0 | HH25: 0 | HI25: 0 | HJ25: 0 | HK25: 0 | HL25: 0 | HM25: 0 | HN25: 0 | HO25: 0 | HP25: 0 | HQ25: 0 | HR25: 0 | HS25: 0 | HT25: 0 | HU25: 0 | HV25: 0 | HW25: 0 | HX25: 0 | HY25: 0 | HZ25: 0 | IA25: 0 | IB25: 0 | IC25: 0 | ID25: 0 | IE25: 0 | IF25: 0 | IG25: 0 | IH25: 0 | II25: 0 | IJ25: 0 | IK25: 0 | IL25: 0 | IM25: 0 | IN25: 0 | IO25: 0 | IP25: 0 | IQ25: 0 | IR25: 0 | IS25: 0 | IT25: 0 | IU25: 0 | IV25: 0 | IW25: 0 | IX25: 0 | IY25: 0 | IZ25: 0 | JA25: 0 | JB25: 0 | JC25: 0 | JD25: =IF(AND(JD$5>$BG25,JD$5<=$BH25),JD116,0) -> 0 | JE25: 0 | JF25: 0 | JG25: 0 | JH25: 0 | JI25: 0 | JJ25: 0 | JK25: 0 | JL25: 0 | JM25: 0 | JN25: 0 | JO25: 0 | JP25: 0 | JQ25: 0 | JR25: 0 | JS25: 0 | JT25: 0 | JU25: 0 | JV25: 0 | JW25: 0 | JX25: 0 | JY25: 0 | JZ25: 0 | KA25: 0 | KB25: 0 | KC25: 0 | KD25: 0 | KE25: 0 | KF25: 0 | KG25: 0 | KH25: 0 | KI25: 0 | KJ25: 0 | KK25: 0 | KL25: 0 | KM25: 0 | KN25: 0 | KO25: 0 | KP25: 0 | KQ25: 0 | KR25: 0 | KS25: 0 | KT25: 0 | KU25: 0 | KV25: 0 | KW25: 0 | KX25: 0 | KY25: 0 | KZ25: 0 | LA25: 0 | LB25: 0 | LC25: 0 | LD25: 0 | LE25: 0 | LF25: 0 | LG25: 0 | LH25: 0 | LI25: 0 | LJ25: 0 | LK25: 0 | LL25: 0 | LM25: 0 | LN25: 0 | LO25: 0 | LP25: 0 | LQ25: 0 | LR25: 0 | LS25: 0 | LT25: 0 | LU25: 0 | LV25: 0 | LW25: 0 | LX25: 0 | LY25: 0 | LZ25: 0 | MA25: 0 | MB25: 0 | MC25: 0 | MD25: 0 | ME25: 0 | MF25: 0 | MG25: 0 | MH25: 0 | MI25: 0 | MJ25: 0 | MK25: 0 | ML25: 0 | MM25: 0 | MN25: 0 | MO25: 0 | MP25: 0 | MQ25: 0 | MR25: 0 | MS25: 0 | MT25: 0 | MU25: 0 | MV25: 0 | MW25: 0 | MX25: 0 | MY25: 0 | MZ25: 0 | NA25: 0 | NB25: 0 | NC25: 0 | ND25: 0 | NE25: 0 | NF25: 0 | NG25: 0 | NH25: 0 | NI25: 0 | NJ25: 0 | NK25: 0 | NL25: 0 | NM25: 0 | NN25: 0 | NO25: 0 | NP25: 0 | NQ25: 0 | NR25: 0 | NS25: 0 | NT25: 0 | NU25: 0 | NV25: 0 | NW25: 0 | NX25: 0 | NY25: 0 | NZ25: 0 | OA25: 0 | OB25: =IF(AND(OB$5>$BG25,OB$5<=$BH25),OB116,0) -> 0 | OC25: 0 | OD25: 0 | OE25: 0 | OF25: 0 | OG25: 0 | OH25: 0 | OI25: 0 | OJ25: 0 | OK25: 0 | OL25: 0 | OM25: 0 | ON25: 0 | OO25: 0 | OP25: 0 | OQ25: 0 | OR25: 0 | OS25: 0 | OT25: 0 | OU25: 0 | OV25: 0 | OW25: 0 | OX25: 0 | OY25: 0 | OZ25: 0 | PA25: 0 | PB25: 0 | PC25: 0 | PD25: 0 | PE25: 0 | PF25: 0 | PG25: 0 | PH25: 0 | PI25: 0 | PJ25: 0 | PK25: 0 | PL25: 0 | PM25: 0 | PN25: 0 | PO25: 0 | PP25: 0 | PQ25: 0 | PR25: 0 | PS25: 0 | PT25: 0 | PU25: 0 | PV25: 0 | PW25: 0 | PX25: 0 | PY25: 0 | PZ25: 0 | QA25: 0
AJ26: 1 | BN26: =IF(AND(BN$5>$BG26,BN$5<=$BH26),BN117,0) -> 0 | BO26: 0 | BP26: 0 | BQ26: 0 | BR26: 0 | BS26: 0 | BT26: 0 | BU26: 0 | BV26: 0 | BW26: 0 | BX26: 0 | BY26: 0 | BZ26: 0 | CA26: 0 | CB26: 0 | CC26: 0 | CD26: 0 | CE26: 0 | CF26: 0 | CG26: 0 | CH26: 0 | CI26: 0 | CJ26: 0 | CK26: 0 | CL26: 0 | CM26: 0 | CN26: 0 | CO26: 0 | CP26: 0 | CQ26: 0 | CR26: 0 | CS26: 0 | CT26: 0 | CU26: 0 | CV26: 0 | CW26: 0 | CX26: 0 | CY26: 0 | CZ26: 0 | DA26: 0 | DB26: 0 | DC26: 0 | DD26: 0 | DE26: 0 | DF26: 0 | DG26: 0 | DH26: 0 | DI26: 0 | DJ26: 0 | DK26: 0 | DL26: 0 | DM26: 0 | DN26: 0 | DO26: 0 | DP26: 0 | DQ26: 0 | DR26: 0 | DS26: 0 | DT26: 0 | DU26: 0 | DV26: 0 | DW26: 0 | DX26: 0 | DY26: 0 | DZ26: =IF(AND(DZ$5>$BG26,DZ$5<=$BH26),DZ117,0) -> 0 | EA26: 0 | EB26: 0 | EC26: 0 | ED26: 0 | EE26: 0 | EF26: 0 | EG26: 0 | EH26: 0 | EI26: 0 | EJ26: 0 | EK26: 0 | EL26: 0 | EM26: 0 | EN26: 0 | EO26: 0 | EP26: 0 | EQ26: 0 | ER26: 0 | ES26: 0 | ET26: 0 | EU26: 0 | EV26: 0 | EW26: 0 | EX26: 0 | EY26: 0 | EZ26: 0 | FA26: 0 | FB26: 0 | FC26: 0 | FD26: 0 | FE26: 0 | FF26: 0 | FG26: 0 | FH26: 0 | FI26: 0 | FJ26: 0 | FK26: 0 | FL26: 0 | FM26: 0 | FN26: 0 | FO26: 0 | FP26: 0 | FQ26: 0 | FR26: 0 | FS26: 0 | FT26: 0 | FU26: 0 | FV26: 0 | FW26: 0 | FX26: 0 | FY26: 0 | FZ26: 0 | GA26: 0 | GB26: 0 | GC26: 0 | GD26: 0 | GE26: 0 | GF26: 0 | GG26: 0 | GH26: 0 | GI26: 0 | GJ26: 0 | GK26: 0 | GL26: 0 | GM26: 0 | GN26: 0 | GO26: 0 | GP26: 0 | GQ26: 0 | GR26: 0 | GS26: 0 | GT26: 0 | GU26: 0 | GV26: 0 | GW26: 0 | GX26: 0 | GY26: 0 | GZ26: 0 | HA26: 0 | HB26: 0 | HC26: 0 | HD26: 0 | HE26: 0 | HF26: 0 | HG26: 0 | HH26: 0 | HI26: 0 | HJ26: 0 | HK26: 0 | HL26: 0 | HM26: 0 | HN26: 0 | HO26: 0 | HP26: 0 | HQ26: 0 | HR26: 0 | HS26: 0 | HT26: 0 | HU26: 0 | HV26: 0 | HW26: 0 | HX26: 0 | HY26: 0 | HZ26: 0 | IA26: 0 | IB26: 0 | IC26: 0 | ID26: 0 | IE26: 0 | IF26: 0 | IG26: 0 | IH26: 0 | II26: 0 | IJ26: 0 | IK26: 0 | IL26: 0 | IM26: 0 | IN26: 0 | IO26: 0 | IP26: 0 | IQ26: 0 | IR26: 0 | IS26: 0 | IT26: 0 | IU26: 0 | IV26: 0 | IW26: 0 | IX26: 0 | IY26: 0 | IZ26: 0 | JA26: 0 | JB26: 0 | JC26: 0 | JD26: 0 | JE26: 0 | JF26: 0 | JG26: 0 | JH26: 0 | JI26: 0 | JJ26: 0 | JK26: 0 | JL26: 0 | JM26: 0 | JN26: 0 | JO26: 0 | JP26: 0 | JQ26: 0 | JR26: 0 | JS26: 0 | JT26: 0 | JU26: 0 | JV26: 0 | JW26: 0 | JX26: 0 | JY26: 0 | JZ26: 0 | KA26: 0 | KB26: 0 | KC26: 0 | KD26: 0 | KE26: 0 | KF26: 0 | KG26: 0 | KH26: 0 | KI26: 0 | KJ26: 0 | KK26: 0 | KL26: 0 | KM26: 0 | KN26: 0 | KO26: 0 | KP26: 0 | KQ26: 0 | KR26: 0 | KS26: 0 | KT26: 0 | KU26: 0 | KV26: 0 | KW26: 0 | KX26: 0 | KY26: 0 | KZ26: 0 | LA26: 0 | LB26: 0 | LC26: 0 | LD26: 0 | LE26: 0 | LF26: 0 | LG26: 0 | LH26: 0 | LI26: 0 | LJ26: 0 | LK26: 0 | LL26: 0 | LM26: 0 | LN26: 0 | LO26: 0 | LP26: 0 | LQ26: 0 | LR26: 0 | LS26: 0 | LT26: 0 | LU26: 0 | LV26: 0 | LW26: 0 | LX26: 0 | LY26: 0 | LZ26: 0 | MA26: 0 | MB26: 0 | MC26: 0 | MD26: 0 | ME26: 0 | MF26: 0 | MG26: 0 | MH26: 0 | MI26: 0 | MJ26: 0 | MK26: 0 | ML26: 0 | MM26: 0 | MN26: 0 | MO26: 0 | MP26: 0 | MQ26: 0 | MR26: 0 | MS26: 0 | MT26: 0 | MU26: 0 | MV26: 0 | MW26: 0 | MX26: 0 | MY26: 0 | MZ26: 0 | NA26: 0 | NB26: 0 | NC26: 0 | ND26: 0 | NE26: 0 | NF26: 0 | NG26: 0 | NH26: 0 | NI26: 0 | NJ26: 0 | NK26: 0 | NL26: 0 | NM26: 0 | NN26: 0 | NO26: 0 | NP26: 0 | NQ26: 0 | NR26: 0 | NS26: 0 | NT26: 0 | NU26: 0 | NV26: 0 | NW26: 0 | NX26: 0 | NY26: 0 | NZ26: 0 | OA26: 0 | OB26: 0 | OC26: 0 | OD26: 0 | OE26: 0 | OF26: 0 | OG26: 0 | OH26: 0 | OI26: 0 | OJ26: 0 | OK26: 0 | OL26: 0 | OM26: 0 | ON26: 0 | OO26: 0 | OP26: 0 | OQ26: 0 | OR26: 0 | OS26: 0 | OT26: 0 | OU26: 0 | OV26: 0 | OW26: 0 | OX26: 0 | OY26: 0 | OZ26: 0 | PA26: 0 | PB26: 0 | PC26: 0 | PD26: 0 | PE26: 0 | PF26: 0 | PG26: 0 | PH26: 0 | PI26: 0 | PJ26: 0 | PK26: 0 | PL26: 0 | PM26: 0 | PN26: 0 | PO26: 0 | PP26: 0 | PQ26: 0 | PR26: 0 | PS26: 0 | PT26: 0 | PU26: 0 | PV26: 0 | PW26: 0 | PX26: 0 | PY26: 0 | PZ26: 0 | QA26: 0
AJ27: 1 | BN27: =IF(AND(BN$5>$BG27,BN$5<=$BH27),BN118,0) -> 0 | BO27: 0 | BP27: 0 | BQ27: 0 | BR27: 0 | BS27: 0 | BT27: 0 | BU27: 0 | BV27: 0 | BW27: 0 | BX27: 0 | BY27: 0 | BZ27: 0 | CA27: 0 | CB27: 0 | CC27: 0 | CD27: 0 | CE27: 0 | CF27: 0 | CG27: 0 | CH27: 0 | CI27: 0 | CJ27: 0 | CK27: 0 | CL27: 0 | CM27: 0 | CN27: 0 | CO27: 0 | CP27: 0 | CQ27: 0 | CR27: 0 | CS27: 0 | CT27: 0 | CU27: 0 | CV27: 0 | CW27: 0 | CX27: 0 | CY27: 0 | CZ27: 0 | DA27: 0 | DB27: 0 | DC27: 0 | DD27: 0 | DE27: 0 | DF27: 0 | DG27: 0 | DH27: 0 | DI27: 0 | DJ27: 0 | DK27: 0 | DL27: 0 | DM27: 0 | DN27: 0 | DO27: 0 | DP27: 0 | DQ27: 0 | DR27: 0 | DS27: 0 | DT27: 0 | DU27: 0 | DV27: 0 | DW27: 0 | DX27: 0 | DY27: 0 | DZ27: 0 | EA27: 0 | EB27: 0 | EC27: 0 | ED27: 0 | EE27: 0 | EF27: 0 | EG27: 0 | EH27: 0 | EI27: 0 | EJ27: 0 | EK27: 0 | EL27: 0 | EM27: 0 | EN27: 0 | EO27: 0 | EP27: 0 | EQ27: 0 | ER27: 0 | ES27: 0 | ET27: 0 | EU27: 0 | EV27: 0 | EW27: 0 | EX27: 0 | EY27: 0 | EZ27: 0 | FA27: 0 | FB27: 0 | FC27: 0 | FD27: 0 | FE27: 0 | FF27: 0 | FG27: 0 | FH27: 0 | FI27: 0 | FJ27: 0 | FK27: 0 | FL27: 0 | FM27: 0 | FN27: 0 | FO27: 0 | FP27: 0 | FQ27: 0 | FR27: 0 | FS27: 0 | FT27: 0 | FU27: 0 | FV27: 0 | FW27: 0 | FX27: 0 | FY27: 0 | FZ27: 0 | GA27: 0 | GB27: 0 | GC27: 0 | GD27: 0 | GE27: 0 | GF27: 0 | GG27: 0 | GH27: 0 | GI27: 0 | GJ27: 0 | GK27: 0 | GL27: 0 | GM27: 0 | GN27: 0 | GO27: 0 | GP27: 0 | GQ27: 0 | GR27: 0 | GS27: 0 | GT27: 0 | GU27: 0 | GV27: 0 | GW27: 0 | GX27: 0 | GY27: 0 | GZ27: 0 | HA27: 0 | HB27: 0 | HC27: 0 | HD27: 0 | HE27: 0 | HF27: 0 | HG27: 0 | HH27: 0 | HI27: 0 | HJ27: 0 | HK27: 0 | HL27: 0 | HM27: 0 | HN27: 0 | HO27: 0 | HP27: 0 | HQ27: 0 | HR27: 0 | HS27: 0 | HT27: 0 | HU27: 0 | HV27: 0 | HW27: 0 | HX27: 0 | HY27: 0 | HZ27: 0 | IA27: 0 | IB27: 0 | IC27: 0 | ID27: 0 | IE27: 0 | IF27: 0 | IG27: 0 | IH27: 0 | II27: 0 | IJ27: 0 | IK27: 0 | IL27: 0 | IM27: 0 | IN27: 0 | IO27: 0 | IP27: 0 | IQ27: 0 | IR27: 0 | IS27: 0 | IT27: 0 | IU27: 0 | IV27: 0 | IW27: 0 | IX27: 0 | IY27: 0 | IZ27: 0 | JA27: 0 | JB27: 0 | JC27: 0 | JD27: 0 | JE27: 0 | JF27: 0 | JG27: 0 | JH27: 0 | JI27: 0 | JJ27: 0 | JK27: 0 | JL27: 0 | JM27: 0 | JN27: 0 | JO27: 0 | JP27: 0 | JQ27: 0 | JR27: 0 | JS27: 0 | JT27: 0 | JU27: 0 | JV27: 0 | JW27: 0 | JX27: 0 | JY27: 0 | JZ27: 0 | KA27: 0 | KB27: 0 | KC27: 0 | KD27: 0 | KE27: 0 | KF27: 0 | KG27: 0 | KH27: 0 | KI27: 0 | KJ27: 0 | KK27: 0 | KL27: 0 | KM27: 0 | KN27: 0 | KO27: 0 | KP27: 0 | KQ27: 0 | KR27: 0 | KS27: 0 | KT27: 0 | KU27: 0 | KV27: 0 | KW27: 0 | KX27: 0 | KY27: 0 | KZ27: 0 | LA27: 0 | LB27: 0 | LC27: 0 | LD27: 0 | LE27: 0 | LF27: 0 | LG27: 0 | LH27: 0 | LI27: 0 | LJ27: 0 | LK27: 0 | LL27: 0 | LM27: 0 | LN27: 0 | LO27: 0 | LP27: 0 | LQ27: 0 | LR27: 0 | LS27: 0 | LT27: 0 | LU27: 0 | LV27: 0 | LW27: 0 | LX27: 0 | LY27: 0 | LZ27: 0 | MA27: 0 | MB27: 0 | MC27: 0 | MD27: 0 | ME27: 0 | MF27: 0 | MG27: 0 | MH27: 0 | MI27: 0 | MJ27: 0 | MK27: 0 | ML27: 0 | MM27: 0 | MN27: 0 | MO27: 0 | MP27: 0 | MQ27: 0 | MR27: 0 | MS27: 0 | MT27: 0 | MU27: 0 | MV27: 0 | MW27: 0 | MX27: 0 | MY27: 0 | MZ27: 0 | NA27: 0 | NB27: 0 | NC27: 0 | ND27: 0 | NE27: 0 | NF27: 0 | NG27: 0 | NH27: 0 | NI27: 0 | NJ27: 0 | NK27: 0 | NL27: 0 | NM27: 0 | NN27: 0 | NO27: 0 | NP27: 0 | NQ27: 0 | NR27: 0 | NS27: 0 | NT27: 0 | NU27: 0 | NV27: 0 | NW27: 0 | NX27: 0 | NY27: 0 | NZ27: 0 | OA27: =IF(AND(OA$5>$BG27,OA$5<=$BH27),OA118,0) -> 0 | OB27: 0 | OC27: 0 | OD27: 0 | OE27: 0 | OF27: 0 | OG27: 0 | OH27: 0 | OI27: 0 | OJ27: 0 | OK27: 0 | OL27: 0 | OM27: 0 | ON27: 0 | OO27: 0 | OP27: 0 | OQ27: 0 | OR27: 0 | OS27: 0 | OT27: 0 | OU27: 0 | OV27: 0 | OW27: 0 | OX27: 0 | OY27: 0 | OZ27: 0 | PA27: 0 | PB27: 0 | PC27: 0 | PD27: 0 | PE27: 0 | PF27: 0 | PG27: 0 | PH27: 0 | PI27: 0 | PJ27: 0 | PK27: 0 | PL27: 0 | PM27: 0 | PN27: 0 | PO27: 0 | PP27: 0 | PQ27: 0 | PR27: 0 | PS27: 0 | PT27: 0 | PU27: 0 | PV27: 0 | PW27: 0 | PX27: 0 | PY27: 0 | PZ27: 0 | QA27: 0
AJ28: 1 | BN28: =IF(AND(BN$5>$BG28,BN$5<=$BH28),BN119,0) -> 0 | BO28: 0 | BP28: 0 | BQ28: 0 | BR28: 0 | BS28: 0 | BT28: 0 | BU28: 0 | BV28: 0 | BW28: 0 | BX28: 0 | BY28: 0 | BZ28: 0 | CA28: 0 | CB28: 0 | CC28: 0 | CD28: 0 | CE28: 0 | CF28: 0 | CG28: 0 | CH28: 0 | CI28: 0 | CJ28: 0 | CK28: 0 | CL28: 0 | CM28: 0 | CN28: 0 | CO28: 0 | CP28: 0 | CQ28: 0 | CR28: 0 | CS28: 0 | CT28: 0 | CU28: 0 | CV28: 0 | CW28: 0 | CX28: 0 | CY28: 0 | CZ28: 0 | DA28: 0 | DB28: 0 | DC28: 0 | DD28: 0 | DE28: 0 | DF28: 0 | DG28: 0 | DH28: 0 | DI28: 0 | DJ28: 0 | DK28: 0 | DL28: 0 | DM28: 0 | DN28: 0 | DO28: 0 | DP28: 0 | DQ28: 0 | DR28: 0 | DS28: 0 | DT28: 0 | DU28: 0 | DV28: 0 | DW28: 0 | DX28: 0 | DY28: 0 | DZ28: 0 | EA28: 0 | EB28: 0 | EC28: 0 | ED28: 0 | EE28: 0 | EF28: 0 | EG28: 0 | EH28: 0 | EI28: 0 | EJ28: 0 | EK28: 0 | EL28: 0 | EM28: 0 | EN28: 0 | EO28: 0 | EP28: 0 | EQ28: 0 | ER28: 0 | ES28: 0 | ET28: 0 | EU28: 0 | EV28: 0 | EW28: 0 | EX28: 0 | EY28: 0 | EZ28: 0 | FA28: 0 | FB28: 0 | FC28: 0 | FD28: 0 | FE28: 0 | FF28: 0 | FG28: 0 | FH28: 0 | FI28: 0 | FJ28: 0 | FK28: 0 | FL28: 0 | FM28: 0 | FN28: 0 | FO28: 0 | FP28: 0 | FQ28: 0 | FR28: 0 | FS28: 0 | FT28: 0 | FU28: 0 | FV28: 0 | FW28: 0 | FX28: 0 | FY28: 0 | FZ28: 0 | GA28: 0 | GB28: 0 | GC28: 0 | GD28: 0 | GE28: 0 | GF28: 0 | GG28: 0 | GH28: 0 | GI28: 0 | GJ28: 0 | GK28: 0 | GL28: 0 | GM28: 0 | GN28: 0 | GO28: 0 | GP28: 0 | GQ28: 0 | GR28: =IF(AND(GR$5>$BG28,GR$5<=$BH28),GR119,0) -> 0 | GS28: 0 | GT28: 0 | GU28: 0 | GV28: 0 | GW28: 0 | GX28: 0 | GY28: 0 | GZ28: 0 | HA28: 0 | HB28: 0 | HC28: 0 | HD28: 0 | HE28: 0 | HF28: 0 | HG28: 0 | HH28: 0 | HI28: 0 | HJ28: 0 | HK28: 0 | HL28: 0 | HM28: 0 | HN28: 0 | HO28: 0 | HP28: 0 | HQ28: 0 | HR28: 0 | HS28: 0 | HT28: 0 | HU28: 0 | HV28: 0 | HW28: 0 | HX28: 0 | HY28: 0 | HZ28: 0 | IA28: 0 | IB28: 0 | IC28: 0 | ID28: 0 | IE28: 0 | IF28: 0 | IG28: 0 | IH28: 0 | II28: 0 | IJ28: 0 | IK28: 0 | IL28: 0 | IM28: 0 | IN28: 0 | IO28: 0 | IP28: 0 | IQ28: 0 | IR28: 0 | IS28: 0 | IT28: 0 | IU28: 0 | IV28: 0 | IW28: 0 | IX28: 0 | IY28: 0 | IZ28: 0 | JA28: 0 | JB28: 0 | JC28: 0 | JD28: 0 | JE28: 0 | JF28: 0 | JG28: 0 | JH28: 0 | JI28: 0 | JJ28: 0 | JK28: 0 | JL28: 0 | JM28: 0 | JN28: 0 | JO28: 0 | JP28: 0 | JQ28: 0 | JR28: 0 | JS28: 0 | JT28: 0 | JU28: 0 | JV28: 0 | JW28: 0 | JX28: 0 | JY28: 0 | JZ28: 0 | KA28: 0 | KB28: 0 | KC28: 0 | KD28: 0 | KE28: 0 | KF28: 0 | KG28: 0 | KH28: 0 | KI28: 0 | KJ28: 0 | KK28: 0 | KL28: 0 | KM28: 0 | KN28: 0 | KO28: 0 | KP28: 0 | KQ28: 0 | KR28: 0 | KS28: 0 | KT28: 0 | KU28: 0 | KV28: 0 | KW28: 0 | KX28: 0 | KY28: 0 | KZ28: 0 | LA28: 0 | LB28: 0 | LC28: 0 | LD28: 0 | LE28: 0 | LF28: 0 | LG28: 0 | LH28: 0 | LI28: 0 | LJ28: 0 | LK28: 0 | LL28: 0 | LM28: 0 | LN28: 0 | LO28: =IF(AND(LO$5>$BG28,LO$5<=$BH28),LO119,0) -> 0 | LP28: 0 | LQ28: 0 | LR28: 0 | LS28: 0 | LT28: 0 | LU28: 0 | LV28: 0 | LW28: 0 | LX28: 0 | LY28: 0 | LZ28: 0 | MA28: 0 | MB28: 0 | MC28: 0 | MD28: 0 | ME28: 0 | MF28: 0 | MG28: 0 | MH28: 0 | MI28: 0 | MJ28: 0 | MK28: 0 | ML28: 0 | MM28: 0 | MN28: 0 | MO28: 0 | MP28: 0 | MQ28: 0 | MR28: 0 | MS28: 0 | MT28: 0 | MU28: 0 | MV28: 0 | MW28: 0 | MX28: 0 | MY28: 0 | MZ28: 0 | NA28: 0 | NB28: 0 | NC28: 0 | ND28: 0 | NE28: 0 | NF28: 0 | NG28: 0 | NH28: 0 | NI28: 0 | NJ28: 0 | NK28: 0 | NL28: 0 | NM28: 0 | NN28: 0 | NO28: 0 | NP28: 0 | NQ28: 0 | NR28: 0 | NS28: 0 | NT28: 0 | NU28: 0 | NV28: 0 | NW28: 0 | NX28: 0 | NY28: 0 | NZ28: 0 | OA28: 0 | OB28: 0 | OC28: 0 | OD28: 0 | OE28: 0 | OF28: 0 | OG28: 0 | OH28: 0 | OI28: 0 | OJ28: 0 | OK28: 0 | OL28: 0 | OM28: 0 | ON28: 0 | OO28: 0 | OP28: 0 | OQ28: 0 | OR28: 0 | OS28: 0 | OT28: 0 | OU28: 0 | OV28: 0 | OW28: 0 | OX28: 0 | OY28: 0 | OZ28: 0 | PA28: 0 | PB28: 0 | PC28: 0 | PD28: 0 | PE28: 0 | PF28: 0 | PG28: 0 | PH28: 0 | PI28: 0 | PJ28: 0 | PK28: 0 | PL28: 0 | PM28: 0 | PN28: 0 | PO28: 0 | PP28: 0 | PQ28: 0 | PR28: 0 | PS28: 0 | PT28: 0 | PU28: 0 | PV28: 0 | PW28: 0 | PX28: 0 | PY28: 0 | PZ28: 0 | QA28: 0
AJ29: 1 | BN29: =IF(AND(BN$5>$BG29,BN$5<=$BH29),BN120,0) -> 0 | BO29: 0 | BP29: 0 | BQ29: 0 | BR29: 0 | BS29: 0 | BT29: 0 | BU29: 0 | BV29: 0 | BW29: 0 | BX29: 0 | BY29: 0 | BZ29: 0 | CA29: 0 | CB29: 0 | CC29: 0 | CD29: 0 | CE29: 0 | CF29: 0 | CG29: 0 | CH29: 0 | CI29: 0 | CJ29: 0 | CK29: 0 | CL29: 0 | CM29: 0 | CN29: 0 | CO29: 0 | CP29: 0 | CQ29: 0 | CR29: 0 | CS29: 0 | CT29: 0 | CU29: 0 | CV29: 0 | CW29: 0 | CX29: 0 | CY29: 0 | CZ29: 0 | DA29: 0 | DB29: 0 | DC29: 0 | DD29: 0 | DE29: 0 | DF29: 0 | DG29: 0 | DH29: 0 | DI29: 0 | DJ29: 0 | DK29: 0 | DL29: 0 | DM29: 0 | DN29: 0 | DO29: 0 | DP29: 0 | DQ29: 0 | DR29: 0 | DS29: 0 | DT29: 0 | DU29: 0 | DV29: 0 | DW29: 0 | DX29: 0 | DY29: 0 | DZ29: 0 | EA29: 0 | EB29: 0 | EC29: 0 | ED29: 0 | EE29: 0 | EF29: 0 | EG29: =IF(AND(EG$5>$BG29,EG$5<=$BH29),EG120,0) -> 0 | EH29: 0 | EI29: 0 | EJ29: 0 | EK29: 0 | EL29: 0 | EM29: 0 | EN29: 0 | EO29: 0 | EP29: 0 | EQ29: 0 | ER29: 0 | ES29: 0 | ET29: 0 | EU29: 0 | EV29: 0 | EW29: 0 | EX29: 0 | EY29: 0 | EZ29: 0 | FA29: 0 | FB29: 0 | FC29: 0 | FD29: 0 | FE29: 0 | FF29: 0 | FG29: 0 | FH29: 0 | FI29: 0 | FJ29: 0 | FK29: 0 | FL29: 0 | FM29: 0 | FN29: 0 | FO29: 0 | FP29: 0 | FQ29: 0 | FR29: 0 | FS29: 0 | FT29: 0 | FU29: 0 | FV29: 0 | FW29: 0 | FX29: 0 | FY29: 0 | FZ29: 0 | GA29: 0 | GB29: 0 | GC29: 0 | GD29: 0 | GE29: 0 | GF29: 0 | GG29: 0 | GH29: 0 | GI29: 0 | GJ29: 0 | GK29: 0 | GL29: 0 | GM29: 0 | GN29: 0 | GO29: 0 | GP29: 0 | GQ29: 0 | GR29: 0 | GS29: 0 | GT29: 0 | GU29: 0 | GV29: 0 | GW29: 0 | GX29: 0 | GY29: 0 | GZ29: 0 | HA29: 0 | HB29: 0 | HC29: 0 | HD29: 0 | HE29: 0 | HF29: 0 | HG29: 0 | HH29: 0 | HI29: 0 | HJ29: 0 | HK29: 0 | HL29: 0 | HM29: 0 | HN29: 0 | HO29: 0 | HP29: 0 | HQ29: 0 | HR29: 0 | HS29: 0 | HT29: 0 | HU29: 0 | HV29: 0 | HW29: 0 | HX29: 0 | HY29: 0 | HZ29: 0 | IA29: 0 | IB29: 0 | IC29: 0 | ID29: 0 | IE29: 0 | IF29: 0 | IG29: 0 | IH29: 0 | II29: 0 | IJ29: 0 | IK29: 0 | IL29: 0 | IM29: 0 | IN29: 0 | IO29: 0 | IP29: 0 | IQ29: 0 | IR29: 0 | IS29: 0 | IT29: 0 | IU29: 0 | IV29: 0 | IW29: 0 | IX29: 0 | IY29: 0 | IZ29: 0 | JA29: 0 | JB29: 0 | JC29: 0 | JD29: =IF(AND(JD$5>$BG29,JD$5<=$BH29),JD120,0) -> 0 | JE29: 0 | JF29: 0 | JG29: 0 | JH29: 0 | JI29: 0 | JJ29: 0 | JK29: 0 | JL29: 0 | JM29: 0 | JN29: 0 | JO29: 0 | JP29: 0 | JQ29: 0 | JR29: 0 | JS29: 0 | JT29: 0 | JU29: 0 | JV29: 0 | JW29: 0 | JX29: 0 | JY29: 0 | JZ29: 0 | KA29: 0 | KB29: 0 | KC29: 0 | KD29: 0 | KE29: 0 | KF29: 0 | KG29: 0 | KH29: 0 | KI29: 0 | KJ29: 0 | KK29: 0 | KL29: 0 | KM29: 0 | KN29: 0 | KO29: 0 | KP29: 0 | KQ29: 0 | KR29: 0 | KS29: 0 | KT29: 0 | KU29: 0 | KV29: 0 | KW29: 0 | KX29: 0 | KY29: 0 | KZ29: 0 | LA29: 0 | LB29: 0 | LC29: 0 | LD29: 0 | LE29: 0 | LF29: 0 | LG29: 0 | LH29: 0 | LI29: 0 | LJ29: 0 | LK29: 0 | LL29: 0 | LM29: 0 | LN29: 0 | LO29: 0 | LP29: 0 | LQ29: 0 | LR29: 0 | LS29: 0 | LT29: 0 | LU29: 0 | LV29: 0 | LW29: 0 | LX29: 0 | LY29: 0 | LZ29: 0 | MA29: 0 | MB29: 0 | MC29: 0 | MD29: 0 | ME29: 0 | MF29: 0 | MG29: 0 | MH29: 0 | MI29: 0 | MJ29: 0 | MK29: 0 | ML29: 0 | MM29: 0 | MN29: 0 | MO29: 0 | MP29: 0 | MQ29: 0 | MR29: 0 | MS29: 0 | MT29: 0 | MU29: 0 | MV29: 0 | MW29: 0 | MX29: 0 | MY29: 0 | MZ29: 0 | NA29: 0 | NB29: 0 | NC29: 0 | ND29: 0 | NE29: 0 | NF29: 0 | NG29: 0 | NH29: 0 | NI29: 0 | NJ29: 0 | NK29: 0 | NL29: 0 | NM29: 0 | NN29: 0 | NO29: 0 | NP29: 0 | NQ29: 0 | NR29: 0 | NS29: 0 | NT29: 0 | NU29: 0 | NV29: 0 | NW29: 0 | NX29: 0 | NY29: 0 | NZ29: 0 | OA29: 0 | OB29: 0 | OC29: 0 | OD29: 0 | OE29: 0 | OF29: 0 | OG29: 0 | OH29: 0 | OI29: 0 | OJ29: 0 | OK29: 0 | OL29: 0 | OM29: 0 | ON29: 0 | OO29: 0 | OP29: 0 | OQ29: 0 | OR29: 0 | OS29: 0 | OT29: 0 | OU29: 0 | OV29: 0 | OW29: 0 | OX29: 0 | OY29: 0 | OZ29: 0 | PA29: 0 | PB29: 0 | PC29: 0 | PD29: 0 | PE29: 0 | PF29: 0 | PG29: 0 | PH29: 0 | PI29: 0 | PJ29: 0 | PK29: 0 | PL29: 0 | PM29: 0 | PN29: 0 | PO29: 0 | PP29: 0 | PQ29: 0 | PR29: 0 | PS29: 0 | PT29: 0 | PU29: 0 | PV29: 0 | PW29: 0 | PX29: 0 | PY29: 0 | PZ29: 0 | QA29: 0
AJ30: 1 | BN30: =IF(AND(BN$5>$BG30,BN$5<=$BH30),BN121,0) -> 0 | BO30: 0 | BP30: 0 | BQ30: 0 | BR30: 0 | BS30: 0 | BT30: 0 | BU30: 0 | BV30: 0 | BW30: 0 | BX30: 0 | BY30: 0 | BZ30: 0 | CA30: 0 | CB30: 0 | CC30: 0 | CD30: 0 | CE30: 0 | CF30: 0 | CG30: 0 | CH30: 0 | CI30: 0 | CJ30: 0 | CK30: 0 | CL30: 0 | CM30: 0 | CN30: 0 | CO30: 0 | CP30: 0 | CQ30: 0 | CR30: 0 | CS30: 0 | CT30: 0 | CU30: 0 | CV30: 0 | CW30: 0 | CX30: 0 | CY30: 0 | CZ30: 0 | DA30: 0 | DB30: 0 | DC30: 0 | DD30: 0 | DE30: 0 | DF30: 0 | DG30: 0 | DH30: 0 | DI30: 0 | DJ30: 0 | DK30: 0 | DL30: 0 | DM30: 0 | DN30: 0 | DO30: 0 | DP30: 0 | DQ30: 0 | DR30: 0 | DS30: 0 | DT30: 0 | DU30: 0 | DV30: 0 | DW30: 0 | DX30: 0 | DY30: 0 | DZ30: =IF(AND(DZ$5>$BG30,DZ$5<=$BH30),DZ121,0) -> 0 | EA30: 0 | EB30: 0 | EC30: 0 | ED30: 0 | EE30: 0 | EF30: 0 | EG30: 0 | EH30: 0 | EI30: 0 | EJ30: 0 | EK30: 0 | EL30: 0 | EM30: 0 | EN30: 0 | EO30: 0 | EP30: 0 | EQ30: 0 | ER30: 0 | ES30: 0 | ET30: 0 | EU30: 0 | EV30: 0 | EW30: 0 | EX30: 0 | EY30: 0 | EZ30: 0 | FA30: 0 | FB30: 0 | FC30: 0 | FD30: 0 | FE30: 0 | FF30: 0 | FG30: 0 | FH30: 0 | FI30: 0 | FJ30: 0 | FK30: 0 | FL30: 0 | FM30: 0 | FN30: 0 | FO30: 0 | FP30: 0 | FQ30: 0 | FR30: 0 | FS30: 0 | FT30: 0 | FU30: 0 | FV30: 0 | FW30: 0 | FX30: 0 | FY30: 0 | FZ30: 0 | GA30: 0 | GB30: 0 | GC30: 0 | GD30: 0 | GE30: 0 | GF30: 0 | GG30: 0 | GH30: 0 | GI30: 0 | GJ30: 0 | GK30: 0 | GL30: 0 | GM30: 0 | GN30: 0 | GO30: 0 | GP30: 0 | GQ30: 0 | GR30: 0 | GS30: 0 | GT30: 0 | GU30: 0 | GV30: 0 | GW30: 0 | GX30: 0 | GY30: 0 | GZ30: 0 | HA30: 0 | HB30: 0 | HC30: 0 | HD30: 0 | HE30: 0 | HF30: 0 | HG30: 0 | HH30: 0 | HI30: 0 | HJ30: 0 | HK30: 0 | HL30: 0 | HM30: 0 | HN30: 0 | HO30: 0 | HP30: 0 | HQ30: 0 | HR30: 0 | HS30: 0 | HT30: 0 | HU30: 0 | HV30: 0 | HW30: 0 | HX30: 0 | HY30: 0 | HZ30: 0 | IA30: 0 | IB30: 0 | IC30: 0 | ID30: 0 | IE30: 0 | IF30: 0 | IG30: 0 | IH30: 0 | II30: 0 | IJ30: 0 | IK30: 0 | IL30: 0 | IM30: 0 | IN30: 0 | IO30: 0 | IP30: 0 | IQ30: 0 | IR30: 0 | IS30: 0 | IT30: 0 | IU30: 0 | IV30: 0 | IW30: 0 | IX30: 0 | IY30: 0 | IZ30: 0 | JA30: 0 | JB30: 0 | JC30: 0 | JD30: 0 | JE30: 0 | JF30: 0 | JG30: 0 | JH30: 0 | JI30: 0 | JJ30: 0 | JK30: 0 | JL30: 0 | JM30: 0 | JN30: 0 | JO30: 0 | JP30: 0 | JQ30: 0 | JR30: 0 | JS30: 0 | JT30: 0 | JU30: 0 | JV30: 0 | JW30: 0 | JX30: 0 | JY30: 0 | JZ30: 0 | KA30: 0 | KB30: 0 | KC30: 0 | KD30: 0 | KE30: 0 | KF30: 0 | KG30: 0 | KH30: 0 | KI30: 0 | KJ30: 0 | KK30: 0 | KL30: 0 | KM30: 0 | KN30: 0 | KO30: 0 | KP30: 0 | KQ30: 0 | KR30: 0 | KS30: 0 | KT30: 0 | KU30: 0 | KV30: 0 | KW30: 0 | KX30: 0 | KY30: 0 | KZ30: 0 | LA30: 0 | LB30: 0 | LC30: 0 | LD30: 0 | LE30: 0 | LF30: 0 | LG30: 0 | LH30: 0 | LI30: 0 | LJ30: 0 | LK30: 0 | LL30: 0 | LM30: 0 | LN30: 0 | LO30: 0 | LP30: 0 | LQ30: 0 | LR30: 0 | LS30: 0 | LT30: 0 | LU30: 0 | LV30: 0 | LW30: 0 | LX30: 0 | LY30: 0 | LZ30: 0 | MA30: 0 | MB30: 0 | MC30: 0 | MD30: 0 | ME30: 0 | MF30: 0 | MG30: 0 | MH30: 0 | MI30: 0 | MJ30: 0 | MK30: 0 | ML30: 0 | MM30: 0 | MN30: 0 | MO30: 0 | MP30: 0 | MQ30: 0 | MR30: 0 | MS30: 0 | MT30: 0 | MU30: 0 | MV30: 0 | MW30: 0 | MX30: 0 | MY30: 0 | MZ30: 0 | NA30: 0 | NB30: 0 | NC30: 0 | ND30: 0 | NE30: 0 | NF30: 0 | NG30: 0 | NH30: 0 | NI30: 0 | NJ30: 0 | NK30: 0 | NL30: 0 | NM30: 0 | NN30: 0 | NO30: 0 | NP30: 0 | NQ30: 0 | NR30: 0 | NS30: 0 | NT30: 0 | NU30: 0 | NV30: 0 | NW30: 0 | NX30: 0 | NY30: 0 | NZ30: 0 | OA30: 0 | OB30: 0 | OC30: 0 | OD30: 0 | OE30: 0 | OF30: 0 | OG30: 0 | OH30: 0 | OI30: 0 | OJ30: 0 | OK30: 0 | OL30: 0 | OM30: 0 | ON30: 0 | OO30: 0 | OP30: 0 | OQ30: 0 | OR30: 0 | OS30: 0 | OT30: 0 | OU30: 0 | OV30: 0 | OW30: 0 | OX30: 0 | OY30: 0 | OZ30: 0 | PA30: 0 | PB30: 0 | PC30: 0 | PD30: 0 | PE30: 0 | PF30: 0 | PG30: 0 | PH30: 0 | PI30: 0 | PJ30: 0 | PK30: 0 | PL30: 0 | PM30: 0 | PN30: 0 | PO30: 0 | PP30: 0 | PQ30: 0 | PR30: 0 | PS30: 0 | PT30: 0 | PU30: 0 | PV30: 0 | PW30: 0 | PX30: 0 | PY30: 0 | PZ30: 0 | QA30: 0
AJ31: 1 | BN31: =IF(AND(BN$5>$BG31,BN$5<=$BH31),BN122,0) -> 0 | BO31: 0 | BP31: 0 | BQ31: 0 | BR31: 0 | BS31: 0 | BT31: 0 | BU31: 0 | BV31: 0 | BW31: 0 | BX31: 0 | BY31: 0 | BZ31: 0 | CA31: 0 | CB31: 0 | CC31: 0 | CD31: 0 | CE31: 0 | CF31: 0 | CG31: 0 | CH31: 0 | CI31: 0 | CJ31: 0 | CK31: 0 | CL31: 0 | CM31: 0 | CN31: 0 | CO31: 0 | CP31: 0 | CQ31: 0 | CR31: 0 | CS31: 0 | CT31: 0 | CU31: 0 | CV31: 0 | CW31: 0 | CX31: 0 | CY31: 0 | CZ31: 0 | DA31: 0 | DB31: 0 | DC31: 0 | DD31: 0 | DE31: 0 | DF31: 0 | DG31: 0 | DH31: 0 | DI31: 0 | DJ31: 0 | DK31: 0 | DL31: 0 | DM31: 0 | DN31: 0 | DO31: 0 | DP31: 0 | DQ31: 0 | DR31: 0 | DS31: 0 | DT31: 0 | DU31: 0 | DV31: 0 | DW31: 0 | DX31: 0 | DY31: 0 | DZ31: 0 | EA31: 0 | EB31: 0 | EC31: 0 | ED31: 0 | EE31: 0 | EF31: 0 | EG31: 0 | EH31: 0 | EI31: 0 | EJ31: 0 | EK31: 0 | EL31: 0 | EM31: 0 | EN31: 0 | EO31: 0 | EP31: 0 | EQ31: 0 | ER31: 0 | ES31: 0 | ET31: 0 | EU31: 0 | EV31: 0 | EW31: 0 | EX31: 0 | EY31: 0 | EZ31: 0 | FA31: 0 | FB31: 0 | FC31: 0 | FD31: 0 | FE31: 0 | FF31: 0 | FG31: 0 | FH31: 0 | FI31: 0 | FJ31: 0 | FK31: 0 | FL31: 0 | FM31: 0 | FN31: 0 | FO31: 0 | FP31: 0 | FQ31: 0 | FR31: 0 | FS31: 0 | FT31: 0 | FU31: 0 | FV31: 0 | FW31: 0 | FX31: 0 | FY31: 0 | FZ31: 0 | GA31: 0 | GB31: 0 | GC31: 0 | GD31: 0 | GE31: 0 | GF31: 0 | GG31: 0 | GH31: 0 | GI31: 0 | GJ31: 0 | GK31: 0 | GL31: 0 | GM31: 0 | GN31: 0 | GO31: 0 | GP31: 0 | GQ31: 0 | GR31: 0 | GS31: 0 | GT31: 0 | GU31: 0 | GV31: 0 | GW31: 0 | GX31: 0 | GY31: 0 | GZ31: 0 | HA31: 0 | HB31: 0 | HC31: 0 | HD31: 0 | HE31: 0 | HF31: 0 | HG31: 0 | HH31: 0 | HI31: 0 | HJ31: 0 | HK31: 0 | HL31: 0 | HM31: 0 | HN31: 0 | HO31: 0 | HP31: 0 | HQ31: 0 | HR31: 0 | HS31: 0 | HT31: 0 | HU31: 0 | HV31: 0 | HW31: 0 | HX31: 0 | HY31: 0 | HZ31: 0 | IA31: 0 | IB31: 0 | IC31: 0 | ID31: 0 | IE31: 0 | IF31: 0 | IG31: 0 | IH31: 0 | II31: 0 | IJ31: 0 | IK31: 0 | IL31: 0 | IM31: 0 | IN31: 0 | IO31: 0 | IP31: 0 | IQ31: 0 | IR31: 0 | IS31: 0 | IT31: 0 | IU31: 0 | IV31: 0 | IW31: 0 | IX31: 0 | IY31: 0 | IZ31: 0 | JA31: 0 | JB31: 0 | JC31: 0 | JD31: 0 | JE31: 0 | JF31: 0 | JG31: 0 | JH31: 0 | JI31: 0 | JJ31: 0 | JK31: 0 | JL31: 0 | JM31: 0 | JN31: 0 | JO31: 0 | JP31: 0 | JQ31: 0 | JR31: 0 | JS31: 0 | JT31: 0 | JU31: 0 | JV31: 0 | JW31: 0 | JX31: 0 | JY31: 0 | JZ31: 0 | KA31: 0 | KB31: 0 | KC31: 0 | KD31: 0 | KE31: 0 | KF31: 0 | KG31: 0 | KH31: 0 | KI31: 0 | KJ31: 0 | KK31: 0 | KL31: 0 | KM31: 0 | KN31: 0 | KO31: 0 | KP31: 0 | KQ31: 0 | KR31: 0 | KS31: 0 | KT31: 0 | KU31: 0 | KV31: 0 | KW31: 0 | KX31: 0 | KY31: 0 | KZ31: 0 | LA31: 0 | LB31: 0 | LC31: 0 | LD31: 0 | LE31: 0 | LF31: 0 | LG31: 0 | LH31: 0 | LI31: 0 | LJ31: 0 | LK31: 0 | LL31: 0 | LM31: 0 | LN31: 0 | LO31: 0 | LP31: 0 | LQ31: 0 | LR31: 0 | LS31: 0 | LT31: 0 | LU31: 0 | LV31: 0 | LW31: 0 | LX31: 0 | LY31: 0 | LZ31: 0 | MA31: 0 | MB31: 0 | MC31: 0 | MD31: 0 | ME31: 0 | MF31: 0 | MG31: 0 | MH31: 0 | MI31: 0 | MJ31: 0 | MK31: 0 | ML31: 0 | MM31: 0 | MN31: 0 | MO31: 0 | MP31: 0 | MQ31: 0 | MR31: 0 | MS31: 0 | MT31: 0 | MU31: 0 | MV31: 0 | MW31: 0 | MX31: 0 | MY31: 0 | MZ31: 0 | NA31: 0 | NB31: 0 | NC31: 0 | ND31: 0 | NE31: 0 | NF31: 0 | NG31: 0 | NH31: 0 | NI31: 0 | NJ31: 0 | NK31: 0 | NL31: 0 | NM31: 0 | NN31: 0 | NO31: 0 | NP31: 0 | NQ31: 0 | NR31: 0 | NS31: 0 | NT31: 0 | NU31: 0 | NV31: 0 | NW31: 0 | NX31: 0 | NY31: 0 | NZ31: 0 | OA31: 0 | OB31: 0 | OC31: 0 | OD31: 0 | OE31: 0 | OF31: 0 | OG31: 0 | OH31: 0 | OI31: 0 | OJ31: 0 | OK31: 0 | OL31: 0 | OM31: 0 | ON31: 0 | OO31: 0 | OP31: 0 | OQ31: 0 | OR31: 0 | OS31: 0 | OT31: 0 | OU31: 0 | OV31: 0 | OW31: 0 | OX31: 0 | OY31: 0 | OZ31: 0 | PA31: 0 | PB31: 0 | PC31: 0 | PD31: 0 | PE31: 0 | PF31: 0 | PG31: 0 | PH31: 0 | PI31: 0 | PJ31: 0 | PK31: 0 | PL31: 0 | PM31: 0 | PN31: 0 | PO31: 0 | PP31: 0 | PQ31: 0 | PR31: =IF(AND(PR$5>$BG31,PR$5<=$BH31),PR122,0) -> 0 | PS31: 0 | PT31: 0 | PU31: 0 | PV31: 0 | PW31: 0 | PX31: 0 | PY31: 0 | PZ31: 0 | QA31: 0
AJ32: 1 | BN32: =IF(AND(BN$5>$BG32,BN$5<=$BH32),BN123,0) -> 0 | BO32: 0 | BP32: 0 | BQ32: 0 | BR32: 0 | BS32: 0 | BT32: 0 | BU32: 0 | BV32: 0 | BW32: 0 | BX32: 0 | BY32: 0 | BZ32: 0 | CA32: 0 | CB32: 0 | CC32: 0 | CD32: 0 | CE32: 0 | CF32: 0 | CG32: 0 | CH32: 0 | CI32: 0 | CJ32: 0 | CK32: 0 | CL32: 0 | CM32: 0 | CN32: 0 | CO32: 0 | CP32: 0 | CQ32: 0 | CR32: 0 | CS32: 0 | CT32: 0 | CU32: 0 | CV32: 0 | CW32: 0 | CX32: 0 | CY32: 0 | CZ32: 0 | DA32: 0 | DB32: 0 | DC32: 0 | DD32: 0 | DE32: 0 | DF32: 0 | DG32: 0 | DH32: 0 | DI32: 0 | DJ32: 0 | DK32: 0 | DL32: 0 | DM32: 0 | DN32: 0 | DO32: 0 | DP32: 0 | DQ32: 0 | DR32: 0 | DS32: 0 | DT32: 0 | DU32: 0 | DV32: 0 | DW32: 0 | DX32: 0 | DY32: 0 | DZ32: 0 | EA32: 0 | EB32: 0 | EC32: 0 | ED32: 0 | EE32: 0 | EF32: 0 | EG32: 0 | EH32: 0 | EI32: 0 | EJ32: 0 | EK32: 0 | EL32: 0 | EM32: 0 | EN32: 0 | EO32: 0 | EP32: 0 | EQ32: 0 | ER32: 0 | ES32: 0 | ET32: 0 | EU32: 0 | EV32: 0 | EW32: 0 | EX32: 0 | EY32: 0 | EZ32: 0 | FA32: 0 | FB32: 0 | FC32: 0 | FD32: 0 | FE32: 0 | FF32: 0 | FG32: 0 | FH32: 0 | FI32: 0 | FJ32: 0 | FK32: 0 | FL32: 0 | FM32: 0 | FN32: 0 | FO32: 0 | FP32: 0 | FQ32: 0 | FR32: 0 | FS32: 0 | FT32: 0 | FU32: 0 | FV32: 0 | FW32: 0 | FX32: 0 | FY32: 0 | FZ32: 0 | GA32: 0 | GB32: 0 | GC32: 0 | GD32: 0 | GE32: 0 | GF32: 0 | GG32: 0 | GH32: 0 | GI32: 0 | GJ32: 0 | GK32: 0 | GL32: 0 | GM32: 0 | GN32: 0 | GO32: 0 | GP32: 0 | GQ32: 0 | GR32: =IF(AND(GR$5>$BG32,GR$5<=$BH32),GR123,0) -> 0 | GS32: 0 | GT32: 0 | GU32: 0 | GV32: 0 | GW32: 0 | GX32: 0 | GY32: 0 | GZ32: 0 | HA32: 0 | HB32: 0 | HC32: 0 | HD32: 0 | HE32: 0 | HF32: 0 | HG32: 0 | HH32: 0 | HI32: 0 | HJ32: 0 | HK32: 0 | HL32: 0 | HM32: 0 | HN32: 0 | HO32: 0 | HP32: 0 | HQ32: 0 | HR32: 0 | HS32: 0 | HT32: 0 | HU32: 0 | HV32: 0 | HW32: 0 | HX32: 0 | HY32: 0 | HZ32: 0 | IA32: 0 | IB32: 0 | IC32: 0 | ID32: 0 | IE32: 0 | IF32: 0 | IG32: 0 | IH32: 0 | II32: 0 | IJ32: 0 | IK32: 0 | IL32: 0 | IM32: 0 | IN32: 0 | IO32: 0 | IP32: 0 | IQ32: 0 | IR32: 0 | IS32: 0 | IT32: 0 | IU32: 0 | IV32: 0 | IW32: 0 | IX32: 0 | IY32: 0 | IZ32: 0 | JA32: 0 | JB32: 0 | JC32: 0 | JD32: 0 | JE32: 0 | JF32: 0 | JG32: 0 | JH32: 0 | JI32: 0 | JJ32: 0 | JK32: 0 | JL32: 0 | JM32: 0 | JN32: 0 | JO32: 0 | JP32: 0 | JQ32: 0 | JR32: 0 | JS32: 0 | JT32: 0 | JU32: 0 | JV32: 0 | JW32: 0 | JX32: 0 | JY32: 0 | JZ32: 0 | KA32: 0 | KB32: 0 | KC32: 0 | KD32: 0 | KE32: 0 | KF32: 0 | KG32: 0 | KH32: 0 | KI32: 0 | KJ32: 0 | KK32: 0 | KL32: 0 | KM32: 0 | KN32: 0 | KO32: 0 | KP32: 0 | KQ32: 0 | KR32: 0 | KS32: 0 | KT32: 0 | KU32: 0 | KV32: 0 | KW32: 0 | KX32: 0 | KY32: 0 | KZ32: 0 | LA32: 0 | LB32: 0 | LC32: 0 | LD32: 0 | LE32: 0 | LF32: 0 | LG32: 0 | LH32: 0 | LI32: 0 | LJ32: 0 | LK32: 0 | LL32: 0 | LM32: 0 | LN32: 0 | LO32: =IF(AND(LO$5>$BG32,LO$5<=$BH32),LO123,0) -> 0 | LP32: 0 | LQ32: 0 | LR32: 0 | LS32: 0 | LT32: 0 | LU32: 0 | LV32: 0 | LW32: 0 | LX32: 0 | LY32: 0 | LZ32: 0 | MA32: 0 | MB32: 0 | MC32: 0 | MD32: 0 | ME32: 0 | MF32: 0 | MG32: 0 | MH32: 0 | MI32: 0 | MJ32: 0 | MK32: 0 | ML32: 0 | MM32: 0 | MN32: 0 | MO32: 0 | MP32: 0 | MQ32: 0 | MR32: 0 | MS32: 0 | MT32: 0 | MU32: 0 | MV32: 0 | MW32: 0 | MX32: 0 | MY32: 0 | MZ32: 0 | NA32: 0 | NB32: 0 | NC32: 0 | ND32: 0 | NE32: 0 | NF32: 0 | NG32: 0 | NH32: 0 | NI32: 0 | NJ32: 0 | NK32: 0 | NL32: 0 | NM32: 0 | NN32: 0 | NO32: 0 | NP32: 0 | NQ32: 0 | NR32: 0 | NS32: 0 | NT32: 0 | NU32: 0 | NV32: 0 | NW32: 0 | NX32: 0 | NY32: 0 | NZ32: 0 | OA32: =IF(AND(OA$5>$BG32,OA$5<=$BH32),OA123,0) -> 0 | OB32: 0 | OC32: 0 | OD32: 0 | OE32: 0 | OF32: 0 | OG32: 0 | OH32: 0 | OI32: 0 | OJ32: 0 | OK32: 0 | OL32: 0 | OM32: 0 | ON32: 0 | OO32: 0 | OP32: 0 | OQ32: 0 | OR32: 0 | OS32: 0 | OT32: 0 | OU32: 0 | OV32: 0 | OW32: 0 | OX32: 0 | OY32: 0 | OZ32: 0 | PA32: 0 | PB32: 0 | PC32: 0 | PD32: 0 | PE32: 0 | PF32: 0 | PG32: 0 | PH32: 0 | PI32: 0 | PJ32: 0 | PK32: 0 | PL32: 0 | PM32: 0 | PN32: 0 | PO32: 0 | PP32: 0 | PQ32: 0 | PR32: 0 | PS32: 0 | PT32: 0 | PU32: 0 | PV32: 0 | PW32: 0 | PX32: 0 | PY32: 0 | PZ32: 0 | QA32: 0
AJ33: 1 | BN33: =IF(AND(BN$5>$BG33,BN$5<=$BH33),BN124,0) -> 0 | BO33: 0 | BP33: 0 | BQ33: 0 | BR33: 0 | BS33: 0 | BT33: 0 | BU33: 0 | BV33: 0 | BW33: 0 | BX33: 0 | BY33: 0 | BZ33: 0 | CA33: 0 | CB33: 0 | CC33: 0 | CD33: 0 | CE33: 0 | CF33: 0 | CG33: 0 | CH33: 0 | CI33: 0 | CJ33: 0 | CK33: 0 | CL33: 0 | CM33: 0 | CN33: 0 | CO33: 0 | CP33: 0 | CQ33: 0 | CR33: 0 | CS33: 0 | CT33: 0 | CU33: 0 | CV33: 0 | CW33: 0 | CX33: 0 | CY33: 0 | CZ33: 0 | DA33: 0 | DB33: 0 | DC33: 0 | DD33: 0 | DE33: 0 | DF33: 0 | DG33: 0 | DH33: 0 | DI33: 0 | DJ33: 0 | DK33: 0 | DL33: 0 | DM33: 0 | DN33: 0 | DO33: 0 | DP33: 0 | DQ33: 0 | DR33: 0 | DS33: 0 | DT33: 0 | DU33: 0 | DV33: 0 | DW33: 0 | DX33: 0 | DY33: 0 | DZ33: 0 | EA33: 0 | EB33: 0 | EC33: 0 | ED33: 0 | EE33: 0 | EF33: 0 | EG33: =IF(AND(EG$5>$BG33,EG$5<=$BH33),EG124,0) -> 0 | EH33: 0 | EI33: 0 | EJ33: 0 | EK33: 0 | EL33: 0 | EM33: 0 | EN33: 0 | EO33: 0 | EP33: 0 | EQ33: 0 | ER33: 0 | ES33: 0 | ET33: 0 | EU33: 0 | EV33: 0 | EW33: 0 | EX33: 0 | EY33: 0 | EZ33: 0 | FA33: 0 | FB33: 0 | FC33: 0 | FD33: 0 | FE33: 0 | FF33: 0 | FG33: 0 | FH33: 0 | FI33: 0 | FJ33: 0 | FK33: 0 | FL33: 0 | FM33: 0 | FN33: 0 | FO33: 0 | FP33: 0 | FQ33: 0 | FR33: 0 | FS33: 0 | FT33: 0 | FU33: 0 | FV33: 0 | FW33: 0 | FX33: 0 | FY33: 0 | FZ33: 0 | GA33: 0 | GB33: 0 | GC33: 0 | GD33: 0 | GE33: 0 | GF33: 0 | GG33: 0 | GH33: 0 | GI33: 0 | GJ33: 0 | GK33: 0 | GL33: 0 | GM33: 0 | GN33: 0 | GO33: 0 | GP33: 0 | GQ33: 0 | GR33: 0 | GS33: 0 | GT33: 0 | GU33: 0 | GV33: 0 | GW33: 0 | GX33: 0 | GY33: 0 | GZ33: 0 | HA33: 0 | HB33: 0 | HC33: 0 | HD33: 0 | HE33: 0 | HF33: 0 | HG33: 0 | HH33: 0 | HI33: 0 | HJ33: 0 | HK33: 0 | HL33: 0 | HM33: 0 | HN33: 0 | HO33: 0 | HP33: 0 | HQ33: 0 | HR33: 0 | HS33: 0 | HT33: 0 | HU33: 0 | HV33: 0 | HW33: 0 | HX33: 0 | HY33: 0 | HZ33: 0 | IA33: 0 | IB33: 0 | IC33: 0 | ID33: 0 | IE33: 0 | IF33: 0 | IG33: 0 | IH33: 0 | II33: 0 | IJ33: 0 | IK33: 0 | IL33: 0 | IM33: 0 | IN33: 0 | IO33: 0 | IP33: 0 | IQ33: 0 | IR33: 0 | IS33: 0 | IT33: 0 | IU33: 0 | IV33: 0 | IW33: 0 | IX33: 0 | IY33: 0 | IZ33: 0 | JA33: 0 | JB33: 0 | JC33: 0 | JD33: =IF(AND(JD$5>$BG33,JD$5<=$BH33),JD124,0) -> 0 | JE33: 0 | JF33: 0 | JG33: 0 | JH33: 0 | JI33: 0 | JJ33: 0 | JK33: 0 | JL33: 0 | JM33: 0 | JN33: 0 | JO33: 0 | JP33: 0 | JQ33: 0 | JR33: 0 | JS33: 0 | JT33: 0 | JU33: 0 | JV33: 0 | JW33: 0 | JX33: 0 | JY33: 0 | JZ33: 0 | KA33: 0 | KB33: 0 | KC33: 0 | KD33: 0 | KE33: 0 | KF33: 0 | KG33: 0 | KH33: 0 | KI33: 0 | KJ33: 0 | KK33: 0 | KL33: 0 | KM33: 0 | KN33: 0 | KO33: 0 | KP33: 0 | KQ33: 0 | KR33: 0 | KS33: 0 | KT33: 0 | KU33: 0 | KV33: 0 | KW33: 0 | KX33: 0 | KY33: 0 | KZ33: 0 | LA33: 0 | LB33: 0 | LC33: 0 | LD33: 0 | LE33: 0 | LF33: 0 | LG33: 0 | LH33: 0 | LI33: 0 | LJ33: 0 | LK33: 0 | LL33: 0 | LM33: 0 | LN33: 0 | LO33: 0 | LP33: 0 | LQ33: 0 | LR33: 0 | LS33: 0 | LT33: 0 | LU33: 0 | LV33: 0 | LW33: 0 | LX33: 0 | LY33: 0 | LZ33: 0 | MA33: 0 | MB33: 0 | MC33: 0 | MD33: 0 | ME33: 0 | MF33: 0 | MG33: 0 | MH33: 0 | MI33: 0 | MJ33: 0 | MK33: 0 | ML33: 0 | MM33: 0 | MN33: 0 | MO33: 0 | MP33: 0 | MQ33: 0 | MR33: 0 | MS33: 0 | MT33: 0 | MU33: 0 | MV33: 0 | MW33: 0 | MX33: 0 | MY33: 0 | MZ33: 0 | NA33: 0 | NB33: 0 | NC33: 0 | ND33: 0 | NE33: 0 | NF33: 0 | NG33: 0 | NH33: 0 | NI33: 0 | NJ33: 0 | NK33: 0 | NL33: 0 | NM33: 0 | NN33: 0 | NO33: 0 | NP33: 0 | NQ33: 0 | NR33: 0 | NS33: 0 | NT33: 0 | NU33: 0 | NV33: 0 | NW33: 0 | NX33: 0 | NY33: 0 | NZ33: 0 | OA33: 0 | OB33: 0 | OC33: 0 | OD33: 0 | OE33: 0 | OF33: 0 | OG33: 0 | OH33: 0 | OI33: 0 | OJ33: 0 | OK33: 0 | OL33: 0 | OM33: 0 | ON33: 0 | OO33: 0 | OP33: 0 | OQ33: 0 | OR33: 0 | OS33: 0 | OT33: 0 | OU33: 0 | OV33: 0 | OW33: 0 | OX33: 0 | OY33: 0 | OZ33: 0 | PA33: 0 | PB33: 0 | PC33: 0 | PD33: 0 | PE33: 0 | PF33: 0 | PG33: 0 | PH33: 0 | PI33: 0 | PJ33: 0 | PK33: 0 | PL33: 0 | PM33: 0 | PN33: 0 | PO33: 0 | PP33: 0 | PQ33: 0 | PR33: 0 | PS33: 0 | PT33: 0 | PU33: 0 | PV33: 0 | PW33: 0 | PX33: 0 | PY33: 0 | PZ33: 0 | QA33: 0
AJ34: 1 | BN34: =IF(AND(BN$5>$BG34,BN$5<=$BH34),BN125,0) -> 0 | BO34: 0 | BP34: 0 | BQ34: 0 | BR34: 0 | BS34: 0 | BT34: 0 | BU34: 0 | BV34: 0 | BW34: 0 | BX34: 0 | BY34: 0 | BZ34: 0 | CA34: 0 | CB34: 0 | CC34: 0 | CD34: 0 | CE34: 0 | CF34: 0 | CG34: 0 | CH34: 0 | CI34: 0 | CJ34: 0 | CK34: 0 | CL34: 0 | CM34: 0 | CN34: 0 | CO34: 0 | CP34: 0 | CQ34: 0 | CR34: 0 | CS34: 0 | CT34: 0 | CU34: 0 | CV34: 0 | CW34: 0 | CX34: 0 | CY34: 0 | CZ34: 0 | DA34: 0 | DB34: 0 | DC34: 0 | DD34: 0 | DE34: 0 | DF34: 0 | DG34: 0 | DH34: 0 | DI34: 0 | DJ34: 0 | DK34: 0 | DL34: 0 | DM34: 0 | DN34: 0 | DO34: 0 | DP34: 0 | DQ34: 0 | DR34: 0 | DS34: 0 | DT34: 0 | DU34: 0 | DV34: 0 | DW34: 0 | DX34: 0 | DY34: 0 | DZ34: =IF(AND(DZ$5>$BG34,DZ$5<=$BH34),DZ125,0) -> 0 | EA34: 0 | EB34: 0 | EC34: 0 | ED34: 0 | EE34: 0 | EF34: 0 | EG34: 0 | EH34: 0 | EI34: 0 | EJ34: 0 | EK34: 0 | EL34: 0 | EM34: 0 | EN34: 0 | EO34: 0 | EP34: 0 | EQ34: 0 | ER34: 0 | ES34: 0 | ET34: 0 | EU34: 0 | EV34: 0 | EW34: 0 | EX34: 0 | EY34: 0 | EZ34: 0 | FA34: 0 | FB34: 0 | FC34: 0 | FD34: 0 | FE34: 0 | FF34: 0 | FG34: 0 | FH34: 0 | FI34: 0 | FJ34: 0 | FK34: 0 | FL34: 0 | FM34: 0 | FN34: 0 | FO34: 0 | FP34: 0 | FQ34: 0 | FR34: 0 | FS34: 0 | FT34: 0 | FU34: 0 | FV34: 0 | FW34: 0 | FX34: 0 | FY34: 0 | FZ34: 0 | GA34: 0 | GB34: 0 | GC34: 0 | GD34: 0 | GE34: 0 | GF34: 0 | GG34: 0 | GH34: 0 | GI34: 0 | GJ34: 0 | GK34: 0 | GL34: 0 | GM34: 0 | GN34: 0 | GO34: 0 | GP34: 0 | GQ34: 0 | GR34: 0 | GS34: 0 | GT34: 0 | GU34: 0 | GV34: 0 | GW34: 0 | GX34: 0 | GY34: 0 | GZ34: 0 | HA34: 0 | HB34: 0 | HC34: 0 | HD34: 0 | HE34: 0 | HF34: 0 | HG34: 0 | HH34: 0 | HI34: 0 | HJ34: 0 | HK34: 0 | HL34: 0 | HM34: 0 | HN34: 0 | HO34: 0 | HP34: 0 | HQ34: 0 | HR34: 0 | HS34: 0 | HT34: 0 | HU34: 0 | HV34: 0 | HW34: 0 | HX34: 0 | HY34: 0 | HZ34: 0 | IA34: 0 | IB34: 0 | IC34: 0 | ID34: 0 | IE34: 0 | IF34: 0 | IG34: 0 | IH34: 0 | II34: 0 | IJ34: 0 | IK34: 0 | IL34: 0 | IM34: 0 | IN34: 0 | IO34: 0 | IP34: 0 | IQ34: 0 | IR34: 0 | IS34: 0 | IT34: 0 | IU34: 0 | IV34: 0 | IW34: 0 | IX34: 0 | IY34: 0 | IZ34: 0 | JA34: 0 | JB34: 0 | JC34: 0 | JD34: 0 | JE34: 0 | JF34: 0 | JG34: 0 | JH34: 0 | JI34: 0 | JJ34: 0 | JK34: 0 | JL34: 0 | JM34: 0 | JN34: 0 | JO34: 0 | JP34: 0 | JQ34: 0 | JR34: 0 | JS34: 0 | JT34: 0 | JU34: 0 | JV34: 0 | JW34: 0 | JX34: 0 | JY34: 0 | JZ34: 0 | KA34: 0 | KB34: 0 | KC34: 0 | KD34: 0 | KE34: 0 | KF34: 0 | KG34: 0 | KH34: 0 | KI34: 0 | KJ34: 0 | KK34: 0 | KL34: 0 | KM34: 0 | KN34: 0 | KO34: 0 | KP34: 0 | KQ34: 0 | KR34: 0 | KS34: 0 | KT34: 0 | KU34: 0 | KV34: 0 | KW34: 0 | KX34: 0 | KY34: 0 | KZ34: 0 | LA34: 0 | LB34: 0 | LC34: 0 | LD34: 0 | LE34: 0 | LF34: 0 | LG34: 0 | LH34: 0 | LI34: 0 | LJ34: 0 | LK34: 0 | LL34: 0 | LM34: 0 | LN34: 0 | LO34: 0 | LP34: 0 | LQ34: 0 | LR34: 0 | LS34: 0 | LT34: 0 | LU34: 0 | LV34: 0 | LW34: 0 | LX34: 0 | LY34: 0 | LZ34: 0 | MA34: 0 | MB34: 0 | MC34: 0 | MD34: 0 | ME34: 0 | MF34: 0 | MG34: 0 | MH34: 0 | MI34: 0 | MJ34: 0 | MK34: 0 | ML34: 0 | MM34: 0 | MN34: 0 | MO34: 0 | MP34: 0 | MQ34: 0 | MR34: 0 | MS34: 0 | MT34: 0 | MU34: 0 | MV34: 0 | MW34: 0 | MX34: 0 | MY34: 0 | MZ34: 0 | NA34: 0 | NB34: 0 | NC34: 0 | ND34: 0 | NE34: 0 | NF34: 0 | NG34: 0 | NH34: 0 | NI34: 0 | NJ34: 0 | NK34: 0 | NL34: 0 | NM34: 0 | NN34: 0 | NO34: 0 | NP34: 0 | NQ34: 0 | NR34: 0 | NS34: 0 | NT34: 0 | NU34: 0 | NV34: 0 | NW34: 0 | NX34: 0 | NY34: 0 | NZ34: 0 | OA34: 0 | OB34: 0 | OC34: 0 | OD34: 0 | OE34: 0 | OF34: 0 | OG34: 0 | OH34: 0 | OI34: 0 | OJ34: 0 | OK34: 0 | OL34: 0 | OM34: 0 | ON34: 0 | OO34: 0 | OP34: 0 | OQ34: 0 | OR34: 0 | OS34: 0 | OT34: 0 | OU34: 0 | OV34: 0 | OW34: 0 | OX34: 0 | OY34: 0 | OZ34: 0 | PA34: 0 | PB34: 0 | PC34: 0 | PD34: 0 | PE34: 0 | PF34: 0 | PG34: 0 | PH34: 0 | PI34: 0 | PJ34: 0 | PK34: 0 | PL34: 0 | PM34: 0 | PN34: 0 | PO34: 0 | PP34: 0 | PQ34: 0 | PR34: 0 | PS34: 0 | PT34: 0 | PU34: 0 | PV34: 0 | PW34: 0 | PX34: 0 | PY34: 0 | PZ34: 0 | QA34: 0
AJ35: 1 | BN35: =IF(AND(BN$5>$BG35,BN$5<=$BH35),BN126,0) -> 0 | BO35: 0 | BP35: 0 | BQ35: 0 | BR35: 0 | BS35: 0 | BT35: 0 | BU35: 0 | BV35: 0 | BW35: 0 | BX35: 0 | BY35: 0 | BZ35: 0 | CA35: 0 | CB35: 0 | CC35: 0 | CD35: 0 | CE35: 0 | CF35: 0 | CG35: 0 | CH35: 0 | CI35: 0 | CJ35: 0 | CK35: 0 | CL35: 0 | CM35: 0 | CN35: 0 | CO35: 0 | CP35: 0 | CQ35: 0 | CR35: 0 | CS35: 0 | CT35: 0 | CU35: 0 | CV35: 0 | CW35: 0 | CX35: 0 | CY35: 0 | CZ35: 0 | DA35: 0 | DB35: 0 | DC35: 0 | DD35: 0 | DE35: 0 | DF35: 0 | DG35: 0 | DH35: 0 | DI35: 0 | DJ35: 0 | DK35: 0 | DL35: 0 | DM35: 0 | DN35: 0 | DO35: 0 | DP35: 0 | DQ35: 0 | DR35: 0 | DS35: 0 | DT35: 0 | DU35: 0 | DV35: 0 | DW35: 0 | DX35: 0 | DY35: 0 | DZ35: 0 | EA35: 0 | EB35: 0 | EC35: 0 | ED35: 0 | EE35: 0 | EF35: 0 | EG35: 0 | EH35: 0 | EI35: 0 | EJ35: 0 | EK35: 0 | EL35: 0 | EM35: 0 | EN35: 0 | EO35: 0 | EP35: 0 | EQ35: 0 | ER35: 0 | ES35: 0 | ET35: 0 | EU35: 0 | EV35: 0 | EW35: 0 | EX35: 0 | EY35: 0 | EZ35: 0 | FA35: 0 | FB35: 0 | FC35: 0 | FD35: 0 | FE35: 0 | FF35: 0 | FG35: 0 | FH35: 0 | FI35: 0 | FJ35: 0 | FK35: 0 | FL35: 0 | FM35: 0 | FN35: 0 | FO35: 0 | FP35: 0 | FQ35: 0 | FR35: 0 | FS35: 0 | FT35: 0 | FU35: 0 | FV35: 0 | FW35: 0 | FX35: 0 | FY35: 0 | FZ35: 0 | GA35: 0 | GB35: 0 | GC35: 0 | GD35: 0 | GE35: 0 | GF35: 0 | GG35: 0 | GH35: 0 | GI35: 0 | GJ35: 0 | GK35: 0 | GL35: 0 | GM35: 0 | GN35: 0 | GO35: 0 | GP35: 0 | GQ35: 0 | GR35: 0 | GS35: 0 | GT35: 0 | GU35: 0 | GV35: 0 | GW35: 0 | GX35: 0 | GY35: 0 | GZ35: 0 | HA35: 0 | HB35: 0 | HC35: 0 | HD35: 0 | HE35: 0 | HF35: 0 | HG35: 0 | HH35: 0 | HI35: 0 | HJ35: 0 | HK35: 0 | HL35: 0 | HM35: 0 | HN35: 0 | HO35: 0 | HP35: 0 | HQ35: 0 | HR35: 0 | HS35: 0 | HT35: 0 | HU35: 0 | HV35: 0 | HW35: 0 | HX35: 0 | HY35: 0 | HZ35: 0 | IA35: 0 | IB35: 0 | IC35: 0 | ID35: 0 | IE35: 0 | IF35: 0 | IG35: 0 | IH35: 0 | II35: 0 | IJ35: 0 | IK35: 0 | IL35: 0 | IM35: 0 | IN35: 0 | IO35: 0 | IP35: 0 | IQ35: 0 | IR35: 0 | IS35: 0 | IT35: 0 | IU35: 0 | IV35: 0 | IW35: 0 | IX35: 0 | IY35: 0 | IZ35: 0 | JA35: 0 | JB35: 0 | JC35: 0 | JD35: 0 | JE35: 0 | JF35: 0 | JG35: 0 | JH35: 0 | JI35: 0 | JJ35: 0 | JK35: 0 | JL35: 0 | JM35: 0 | JN35: 0 | JO35: 0 | JP35: 0 | JQ35: 0 | JR35: 0 | JS35: 0 | JT35: 0 | JU35: 0 | JV35: 0 | JW35: 0 | JX35: 0 | JY35: 0 | JZ35: 0 | KA35: 0 | KB35: 0 | KC35: 0 | KD35: 0 | KE35: 0 | KF35: 0 | KG35: 0 | KH35: 0 | KI35: 0 | KJ35: 0 | KK35: 0 | KL35: 0 | KM35: 0 | KN35: 0 | KO35: 0 | KP35: 0 | KQ35: 0 | KR35: 0 | KS35: 0 | KT35: 0 | KU35: 0 | KV35: 0 | KW35: 0 | KX35: 0 | KY35: 0 | KZ35: 0 | LA35: 0 | LB35: 0 | LC35: 0 | LD35: 0 | LE35: 0 | LF35: 0 | LG35: 0 | LH35: 0 | LI35: 0 | LJ35: 0 | LK35: 0 | LL35: 0 | LM35: 0 | LN35: 0 | LO35: 0 | LP35: 0 | LQ35: 0 | LR35: 0 | LS35: 0 | LT35: 0 | LU35: 0 | LV35: 0 | LW35: 0 | LX35: 0 | LY35: 0 | LZ35: 0 | MA35: 0 | MB35: 0 | MC35: 0 | MD35: 0 | ME35: 0 | MF35: 0 | MG35: 0 | MH35: 0 | MI35: 0 | MJ35: 0 | MK35: 0 | ML35: 0 | MM35: 0 | MN35: 0 | MO35: 0 | MP35: 0 | MQ35: 0 | MR35: 0 | MS35: 0 | MT35: 0 | MU35: 0 | MV35: 0 | MW35: 0 | MX35: 0 | MY35: 0 | MZ35: 0 | NA35: 0 | NB35: 0 | NC35: 0 | ND35: 0 | NE35: 0 | NF35: 0 | NG35: 0 | NH35: 0 | NI35: 0 | NJ35: 0 | NK35: 0 | NL35: 0 | NM35: 0 | NN35: 0 | NO35: 0 | NP35: 0 | NQ35: 0 | NR35: 0 | NS35: 0 | NT35: 0 | NU35: 0 | NV35: 0 | NW35: 0 | NX35: 0 | NY35: 0 | NZ35: 0 | OA35: 0 | OB35: 0 | OC35: 0 | OD35: 0 | OE35: 0 | OF35: 0 | OG35: 0 | OH35: 0 | OI35: 0 | OJ35: 0 | OK35: 0 | OL35: 0 | OM35: 0 | ON35: 0 | OO35: 0 | OP35: 0 | OQ35: 0 | OR35: 0 | OS35: 0 | OT35: 0 | OU35: 0 | OV35: 0 | OW35: 0 | OX35: 0 | OY35: 0 | OZ35: 0 | PA35: 0 | PB35: 0 | PC35: 0 | PD35: 0 | PE35: 0 | PF35: 0 | PG35: 0 | PH35: 0 | PI35: 0 | PJ35: 0 | PK35: 0 | PL35: 0 | PM35: 0 | PN35: 0 | PO35: 0 | PP35: 0 | PQ35: 0 | PR35: 0 | PS35: 0 | PT35: 0 | PU35: 0 | PV35: 0 | PW35: 0 | PX35: 0 | PY35: 0 | PZ35: 0 | QA35: 0
AJ36: 1 | BN36: =IF(AND(BN$5>$BG36,BN$5<=$BH36),BN127,0) -> 0 | BO36: 0 | BP36: 0 | BQ36: 0 | BR36: 0 | BS36: 0 | BT36: 0 | BU36: 0 | BV36: 0 | BW36: 0 | BX36: 0 | BY36: 0 | BZ36: 0 | CA36: 0 | CB36: 0 | CC36: 0 | CD36: 0 | CE36: 0 | CF36: 0 | CG36: 0 | CH36: 0 | CI36: 0 | CJ36: 0 | CK36: 0 | CL36: 0 | CM36: 0 | CN36: 0 | CO36: 0 | CP36: 0 | CQ36: 0 | CR36: 0 | CS36: 0 | CT36: 0 | CU36: 0 | CV36: 0 | CW36: 0 | CX36: 0 | CY36: 0 | CZ36: 0 | DA36: 0 | DB36: 0 | DC36: 0 | DD36: 0 | DE36: 0 | DF36: 0 | DG36: 0 | DH36: 0 | DI36: 0 | DJ36: 0 | DK36: 0 | DL36: 0 | DM36: 0 | DN36: 0 | DO36: 0 | DP36: 0 | DQ36: 0 | DR36: 0 | DS36: 0 | DT36: 0 | DU36: 0 | DV36: 0 | DW36: 0 | DX36: 0 | DY36: 0 | DZ36: 0 | EA36: 0 | EB36: 0 | EC36: 0 | ED36: 0 | EE36: 0 | EF36: 0 | EG36: 0 | EH36: 0 | EI36: 0 | EJ36: 0 | EK36: 0 | EL36: 0 | EM36: 0 | EN36: 0 | EO36: 0 | EP36: 0 | EQ36: 0 | ER36: 0 | ES36: 0 | ET36: 0 | EU36: 0 | EV36: 0 | EW36: 0 | EX36: 0 | EY36: 0 | EZ36: 0 | FA36: 0 | FB36: 0 | FC36: 0 | FD36: 0 | FE36: 0 | FF36: 0 | FG36: 0 | FH36: 0 | FI36: 0 | FJ36: 0 | FK36: 0 | FL36: 0 | FM36: 0 | FN36: 0 | FO36: 0 | FP36: 0 | FQ36: 0 | FR36: 0 | FS36: 0 | FT36: 0 | FU36: 0 | FV36: 0 | FW36: 0 | FX36: 0 | FY36: 0 | FZ36: 0 | GA36: 0 | GB36: 0 | GC36: 0 | GD36: 0 | GE36: 0 | GF36: 0 | GG36: 0 | GH36: 0 | GI36: 0 | GJ36: 0 | GK36: 0 | GL36: 0 | GM36: 0 | GN36: 0 | GO36: 0 | GP36: 0 | GQ36: 0 | GR36: =IF(AND(GR$5>$BG36,GR$5<=$BH36),GR127,0) -> 0 | GS36: 0 | GT36: 0 | GU36: 0 | GV36: 0 | GW36: 0 | GX36: 0 | GY36: 0 | GZ36: 0 | HA36: 0 | HB36: 0 | HC36: 0 | HD36: 0 | HE36: 0 | HF36: 0 | HG36: 0 | HH36: 0 | HI36: 0 | HJ36: 0 | HK36: 0 | HL36: 0 | HM36: 0 | HN36: 0 | HO36: 0 | HP36: 0 | HQ36: 0 | HR36: 0 | HS36: 0 | HT36: 0 | HU36: 0 | HV36: 0 | HW36: 0 | HX36: 0 | HY36: 0 | HZ36: 0 | IA36: 0 | IB36: 0 | IC36: 0 | ID36: 0 | IE36: 0 | IF36: 0 | IG36: 0 | IH36: 0 | II36: 0 | IJ36: 0 | IK36: 0 | IL36: 0 | IM36: 0 | IN36: 0 | IO36: 0 | IP36: 0 | IQ36: 0 | IR36: 0 | IS36: 0 | IT36: 0 | IU36: 0 | IV36: 0 | IW36: 0 | IX36: 0 | IY36: 0 | IZ36: 0 | JA36: 0 | JB36: 0 | JC36: 0 | JD36: 0 | JE36: 0 | JF36: 0 | JG36: 0 | JH36: 0 | JI36: 0 | JJ36: 0 | JK36: 0 | JL36: 0 | JM36: 0 | JN36: 0 | JO36: 0 | JP36: 0 | JQ36: 0 | JR36: 0 | JS36: 0 | JT36: 0 | JU36: 0 | JV36: 0 | JW36: 0 | JX36: 0 | JY36: 0 | JZ36: 0 | KA36: 0 | KB36: 0 | KC36: 0 | KD36: 0 | KE36: 0 | KF36: 0 | KG36: 0 | KH36: 0 | KI36: 0 | KJ36: 0 | KK36: 0 | KL36: 0 | KM36: 0 | KN36: 0 | KO36: 0 | KP36: 0 | KQ36: 0 | KR36: 0 | KS36: 0 | KT36: 0 | KU36: 0 | KV36: 0 | KW36: 0 | KX36: 0 | KY36: 0 | KZ36: 0 | LA36: 0 | LB36: 0 | LC36: 0 | LD36: 0 | LE36: 0 | LF36: 0 | LG36: 0 | LH36: 0 | LI36: 0 | LJ36: 0 | LK36: 0 | LL36: 0 | LM36: 0 | LN36: 0 | LO36: =IF(AND(LO$5>$BG36,LO$5<=$BH36),LO127,0) -> 0 | LP36: 0 | LQ36: 0 | LR36: 0 | LS36: 0 | LT36: 0 | LU36: 0 | LV36: 0 | LW36: 0 | LX36: 0 | LY36: 0 | LZ36: 0 | MA36: 0 | MB36: 0 | MC36: 0 | MD36: 0 | ME36: 0 | MF36: 0 | MG36: 0 | MH36: 0 | MI36: 0 | MJ36: 0 | MK36: 0 | ML36: 0 | MM36: 0 | MN36: 0 | MO36: 0 | MP36: 0 | MQ36: 0 | MR36: 0 | MS36: 0 | MT36: 0 | MU36: 0 | MV36: 0 | MW36: 0 | MX36: 0 | MY36: 0 | MZ36: 0 | NA36: 0 | NB36: 0 | NC36: 0 | ND36: 0 | NE36: 0 | NF36: 0 | NG36: 0 | NH36: 0 | NI36: 0 | NJ36: 0 | NK36: 0 | NL36: 0 | NM36: 0 | NN36: 0 | NO36: 0 | NP36: 0 | NQ36: 0 | NR36: 0 | NS36: 0 | NT36: 0 | NU36: 0 | NV36: 0 | NW36: 0 | NX36: 0 | NY36: 0 | NZ36: 0 | OA36: 0 | OB36: 0 | OC36: 0 | OD36: 0 | OE36: 0 | OF36: 0 | OG36: 0 | OH36: 0 | OI36: 0 | OJ36: 0 | OK36: 0 | OL36: 0 | OM36: 0 | ON36: 0 | OO36: 0 | OP36: 0 | OQ36: 0 | OR36: 0 | OS36: 0 | OT36: 0 | OU36: 0 | OV36: 0 | OW36: 0 | OX36: 0 | OY36: 0 | OZ36: 0 | PA36: 0 | PB36: 0 | PC36: 0 | PD36: 0 | PE36: 0 | PF36: 0 | PG36: 0 | PH36: 0 | PI36: 0 | PJ36: 0 | PK36: 0 | PL36: 0 | PM36: 0 | PN36: 0 | PO36: 0 | PP36: 0 | PQ36: 0 | PR36: =IF(AND(PR$5>$BG36,PR$5<=$BH36),PR127,0) -> 0 | PS36: 0 | PT36: 0 | PU36: 0 | PV36: 0 | PW36: 0 | PX36: 0 | PY36: 0 | PZ36: 0 | QA36: 0
AJ37: 1 | BN37: =IF(AND(BN$5>$BG37,BN$5<=$BH37),BN128,0) -> 0 | BO37: 0 | BP37: 0 | BQ37: 0 | BR37: 0 | BS37: 0 | BT37: 0 | BU37: 0 | BV37: 0 | BW37: 0 | BX37: 0 | BY37: 0 | BZ37: 0 | CA37: 0 | CB37: 0 | CC37: 0 | CD37: 0 | CE37: 0 | CF37: 0 | CG37: 0 | CH37: 0 | CI37: 0 | CJ37: 0 | CK37: 0 | CL37: 0 | CM37: 0 | CN37: 0 | CO37: 0 | CP37: 0 | CQ37: 0 | CR37: 0 | CS37: 0 | CT37: 0 | CU37: 0 | CV37: 0 | CW37: 0 | CX37: 0 | CY37: 0 | CZ37: 0 | DA37: 0 | DB37: 0 | DC37: 0 | DD37: 0 | DE37: 0 | DF37: 0 | DG37: 0 | DH37: 0 | DI37: 0 | DJ37: 0 | DK37: 0 | DL37: 0 | DM37: 0 | DN37: 0 | DO37: 0 | DP37: 0 | DQ37: 0 | DR37: 0 | DS37: 0 | DT37: 0 | DU37: 0 | DV37: 0 | DW37: 0 | DX37: 0 | DY37: 0 | DZ37: 0 | EA37: 0 | EB37: 0 | EC37: 0 | ED37: 0 | EE37: 0 | EF37: 0 | EG37: =IF(AND(EG$5>$BG37,EG$5<=$BH37),EG128,0) -> 0 | EH37: 0 | EI37: 0 | EJ37: 0 | EK37: 0 | EL37: 0 | EM37: 0 | EN37: 0 | EO37: 0 | EP37: 0 | EQ37: 0 | ER37: 0 | ES37: 0 | ET37: 0 | EU37: 0 | EV37: 0 | EW37: 0 | EX37: 0 | EY37: 0 | EZ37: 0 | FA37: 0 | FB37: 0 | FC37: 0 | FD37: 0 | FE37: 0 | FF37: 0 | FG37: 0 | FH37: 0 | FI37: 0 | FJ37: 0 | FK37: 0 | FL37: 0 | FM37: 0 | FN37: 0 | FO37: 0 | FP37: 0 | FQ37: 0 | FR37: 0 | FS37: 0 | FT37: 0 | FU37: 0 | FV37: 0 | FW37: 0 | FX37: 0 | FY37: 0 | FZ37: 0 | GA37: 0 | GB37: 0 | GC37: 0 | GD37: 0 | GE37: 0 | GF37: 0 | GG37: 0 | GH37: 0 | GI37: 0 | GJ37: 0 | GK37: 0 | GL37: 0 | GM37: 0 | GN37: 0 | GO37: 0 | GP37: 0 | GQ37: 0 | GR37: 0 | GS37: 0 | GT37: 0 | GU37: 0 | GV37: 0 | GW37: 0 | GX37: 0 | GY37: 0 | GZ37: 0 | HA37: 0 | HB37: 0 | HC37: 0 | HD37: 0 | HE37: 0 | HF37: 0 | HG37: 0 | HH37: 0 | HI37: 0 | HJ37: 0 | HK37: 0 | HL37: 0 | HM37: 0 | HN37: 0 | HO37: 0 | HP37: 0 | HQ37: 0 | HR37: 0 | HS37: 0 | HT37: 0 | HU37: 0 | HV37: 0 | HW37: 0 | HX37: 0 | HY37: 0 | HZ37: 0 | IA37: 0 | IB37: 0 | IC37: 0 | ID37: 0 | IE37: 0 | IF37: 0 | IG37: 0 | IH37: 0 | II37: 0 | IJ37: 0 | IK37: 0 | IL37: 0 | IM37: 0 | IN37: 0 | IO37: 0 | IP37: 0 | IQ37: 0 | IR37: 0 | IS37: 0 | IT37: 0 | IU37: 0 | IV37: 0 | IW37: 0 | IX37: 0 | IY37: 0 | IZ37: 0 | JA37: 0 | JB37: 0 | JC37: 0 | JD37: =IF(AND(JD$5>$BG37,JD$5<=$BH37),JD128,0) -> 0 | JE37: 0 | JF37: 0 | JG37: 0 | JH37: 0 | JI37: 0 | JJ37: 0 | JK37: 0 | JL37: 0 | JM37: 0 | JN37: 0 | JO37: 0 | JP37: 0 | JQ37: 0 | JR37: 0 | JS37: 0 | JT37: 0 | JU37: 0 | JV37: 0 | JW37: 0 | JX37: 0 | JY37: 0 | JZ37: 0 | KA37: 0 | KB37: 0 | KC37: 0 | KD37: 0 | KE37: 0 | KF37: 0 | KG37: 0 | KH37: 0 | KI37: 0 | KJ37: 0 | KK37: 0 | KL37: 0 | KM37: 0 | KN37: 0 | KO37: 0 | KP37: 0 | KQ37: 0 | KR37: 0 | KS37: 0 | KT37: 0 | KU37: 0 | KV37: 0 | KW37: 0 | KX37: 0 | KY37: 0 | KZ37: 0 | LA37: 0 | LB37: 0 | LC37: 0 | LD37: 0 | LE37: 0 | LF37: 0 | LG37: 0 | LH37: 0 | LI37: 0 | LJ37: 0 | LK37: 0 | LL37: 0 | LM37: 0 | LN37: 0 | LO37: 0 | LP37: 0 | LQ37: 0 | LR37: 0 | LS37: 0 | LT37: 0 | LU37: 0 | LV37: 0 | LW37: 0 | LX37: 0 | LY37: 0 | LZ37: 0 | MA37: 0 | MB37: 0 | MC37: 0 | MD37: 0 | ME37: 0 | MF37: 0 | MG37: 0 | MH37: 0 | MI37: 0 | MJ37: 0 | MK37: 0 | ML37: 0 | MM37: 0 | MN37: 0 | MO37: 0 | MP37: 0 | MQ37: 0 | MR37: 0 | MS37: 0 | MT37: 0 | MU37: 0 | MV37: 0 | MW37: 0 | MX37: 0 | MY37: 0 | MZ37: 0 | NA37: 0 | NB37: 0 | NC37: 0 | ND37: 0 | NE37: 0 | NF37: 0 | NG37: 0 | NH37: 0 | NI37: 0 | NJ37: 0 | NK37: 0 | NL37: 0 | NM37: 0 | NN37: 0 | NO37: 0 | NP37: 0 | NQ37: 0 | NR37: 0 | NS37: 0 | NT37: 0 | NU37: 0 | NV37: 0 | NW37: 0 | NX37: 0 | NY37: 0 | NZ37: 0 | OA37: =IF(AND(OA$5>$BG37,OA$5<=$BH37),OA128,0) -> 0 | OB37: 0 | OC37: 0 | OD37: 0 | OE37: 0 | OF37: 0 | OG37: 0 | OH37: 0 | OI37: 0 | OJ37: 0 | OK37: 0 | OL37: 0 | OM37: 0 | ON37: 0 | OO37: 0 | OP37: 0 | OQ37: 0 | OR37: 0 | OS37: 0 | OT37: 0 | OU37: 0 | OV37: 0 | OW37: 0 | OX37: 0 | OY37: 0 | OZ37: 0 | PA37: 0 | PB37: 0 | PC37: 0 | PD37: 0 | PE37: 0 | PF37: 0 | PG37: 0 | PH37: 0 | PI37: 0 | PJ37: 0 | PK37: 0 | PL37: 0 | PM37: 0 | PN37: 0 | PO37: 0 | PP37: 0 | PQ37: 0 | PR37: 0 | PS37: 0 | PT37: 0 | PU37: 0 | PV37: 0 | PW37: 0 | PX37: 0 | PY37: 0 | PZ37: 0 | QA37: 0
AJ38: 1 | BN38: =IF(AND(BN$5>$BG38,BN$5<=$BH38),BN129,0) -> 0 | BO38: 0 | BP38: 0 | BQ38: 0 | BR38: 0 | BS38: 0 | BT38: 0 | BU38: 0 | BV38: 0 | BW38: 0 | BX38: 0 | BY38: 0 | BZ38: 0 | CA38: 0 | CB38: 0 | CC38: 0 | CD38: 0 | CE38: 0 | CF38: 0 | CG38: 0 | CH38: 0 | CI38: 0 | CJ38: 0 | CK38: 0 | CL38: 0 | CM38: 0 | CN38: 0 | CO38: 0 | CP38: 0 | CQ38: 0 | CR38: 0 | CS38: 0 | CT38: 0 | CU38: 0 | CV38: 0 | CW38: 0 | CX38: 0 | CY38: 0 | CZ38: 0 | DA38: 0 | DB38: 0 | DC38: 0 | DD38: 0 | DE38: 0 | DF38: 0 | DG38: 0 | DH38: 0 | DI38: 0 | DJ38: 0 | DK38: 0 | DL38: 0 | DM38: 0 | DN38: 0 | DO38: 0 | DP38: 0 | DQ38: 0 | DR38: 0 | DS38: 0 | DT38: 0 | DU38: 0 | DV38: 0 | DW38: 0 | DX38: 0 | DY38: 0 | DZ38: =IF(AND(DZ$5>$BG38,DZ$5<=$BH38),DZ129,0) -> 0 | EA38: 0 | EB38: 0 | EC38: 0 | ED38: 0 | EE38: 0 | EF38: 0 | EG38: 0 | EH38: 0 | EI38: 0 | EJ38: 0 | EK38: 0 | EL38: 0 | EM38: 0 | EN38: 0 | EO38: 0 | EP38: 0 | EQ38: 0 | ER38: 0 | ES38: 0 | ET38: 0 | EU38: 0 | EV38: 0 | EW38: 0 | EX38: 0 | EY38: 0 | EZ38: 0 | FA38: 0 | FB38: 0 | FC38: 0 | FD38: 0 | FE38: 0 | FF38: 0 | FG38: 0 | FH38: 0 | FI38: 0 | FJ38: 0 | FK38: 0 | FL38: 0 | FM38: 0 | FN38: 0 | FO38: 0 | FP38: 0 | FQ38: 0 | FR38: 0 | FS38: 0 | FT38: 0 | FU38: 0 | FV38: 0 | FW38: 0 | FX38: 0 | FY38: 0 | FZ38: 0 | GA38: 0 | GB38: 0 | GC38: 0 | GD38: 0 | GE38: 0 | GF38: 0 | GG38: 0 | GH38: 0 | GI38: 0 | GJ38: 0 | GK38: 0 | GL38: 0 | GM38: 0 | GN38: 0 | GO38: 0 | GP38: 0 | GQ38: 0 | GR38: 0 | GS38: 0 | GT38: 0 | GU38: 0 | GV38: 0 | GW38: 0 | GX38: 0 | GY38: 0 | GZ38: 0 | HA38: 0 | HB38: 0 | HC38: 0 | HD38: 0 | HE38: 0 | HF38: 0 | HG38: 0 | HH38: 0 | HI38: 0 | HJ38: 0 | HK38: 0 | HL38: 0 | HM38: 0 | HN38: 0 | HO38: 0 | HP38: 0 | HQ38: 0 | HR38: 0 | HS38: 0 | HT38: 0 | HU38: 0 | HV38: 0 | HW38: 0 | HX38: 0 | HY38: 0 | HZ38: 0 | IA38: 0 | IB38: 0 | IC38: 0 | ID38: 0 | IE38: 0 | IF38: 0 | IG38: 0 | IH38: 0 | II38: 0 | IJ38: 0 | IK38: 0 | IL38: 0 | IM38: 0 | IN38: 0 | IO38: 0 | IP38: 0 | IQ38: 0 | IR38: 0 | IS38: 0 | IT38: 0 | IU38: 0 | IV38: 0 | IW38: 0 | IX38: 0 | IY38: 0 | IZ38: 0 | JA38: 0 | JB38: 0 | JC38: 0 | JD38: 0 | JE38: 0 | JF38: 0 | JG38: 0 | JH38: 0 | JI38: 0 | JJ38: 0 | JK38: 0 | JL38: 0 | JM38: 0 | JN38: 0 | JO38: 0 | JP38: 0 | JQ38: 0 | JR38: 0 | JS38: 0 | JT38: 0 | JU38: 0 | JV38: 0 | JW38: 0 | JX38: 0 | JY38: 0 | JZ38: 0 | KA38: 0 | KB38: 0 | KC38: 0 | KD38: 0 | KE38: 0 | KF38: 0 | KG38: 0 | KH38: 0 | KI38: 0 | KJ38: 0 | KK38: 0 | KL38: 0 | KM38: 0 | KN38: 0 | KO38: 0 | KP38: 0 | KQ38: 0 | KR38: 0 | KS38: 0 | KT38: 0 | KU38: 0 | KV38: 0 | KW38: 0 | KX38: 0 | KY38: 0 | KZ38: 0 | LA38: 0 | LB38: 0 | LC38: 0 | LD38: 0 | LE38: 0 | LF38: 0 | LG38: 0 | LH38: 0 | LI38: 0 | LJ38: 0 | LK38: 0 | LL38: 0 | LM38: 0 | LN38: 0 | LO38: 0 | LP38: 0 | LQ38: 0 | LR38: 0 | LS38: 0 | LT38: 0 | LU38: 0 | LV38: 0 | LW38: 0 | LX38: 0 | LY38: 0 | LZ38: 0 | MA38: 0 | MB38: 0 | MC38: 0 | MD38: 0 | ME38: 0 | MF38: 0 | MG38: 0 | MH38: 0 | MI38: 0 | MJ38: 0 | MK38: 0 | ML38: 0 | MM38: 0 | MN38: 0 | MO38: 0 | MP38: 0 | MQ38: 0 | MR38: 0 | MS38: 0 | MT38: 0 | MU38: 0 | MV38: 0 | MW38: 0 | MX38: 0 | MY38: 0 | MZ38: 0 | NA38: 0 | NB38: 0 | NC38: 0 | ND38: 0 | NE38: 0 | NF38: 0 | NG38: 0 | NH38: 0 | NI38: 0 | NJ38: 0 | NK38: 0 | NL38: 0 | NM38: 0 | NN38: 0 | NO38: 0 | NP38: 0 | NQ38: 0 | NR38: 0 | NS38: 0 | NT38: 0 | NU38: 0 | NV38: 0 | NW38: 0 | NX38: 0 | NY38: 0 | NZ38: 0 | OA38: 0 | OB38: 0 | OC38: 0 | OD38: 0 | OE38: 0 | OF38: 0 | OG38: 0 | OH38: 0 | OI38: 0 | OJ38: 0 | OK38: 0 | OL38: 0 | OM38: 0 | ON38: 0 | OO38: 0 | OP38: 0 | OQ38: 0 | OR38: 0 | OS38: 0 | OT38: 0 | OU38: 0 | OV38: 0 | OW38: 0 | OX38: 0 | OY38: 0 | OZ38: 0 | PA38: 0 | PB38: 0 | PC38: 0 | PD38: 0 | PE38: 0 | PF38: 0 | PG38: 0 | PH38: 0 | PI38: 0 | PJ38: 0 | PK38: 0 | PL38: 0 | PM38: 0 | PN38: 0 | PO38: 0 | PP38: 0 | PQ38: 0 | PR38: 0 | PS38: 0 | PT38: 0 | PU38: 0 | PV38: 0 | PW38: 0 | PX38: 0 | PY38: 0 | PZ38: 0 | QA38: 0
AJ39: 1 | BN39: =IF(AND(BN$5>$BG39,BN$5<=$BH39),BN130,0) -> 0 | BO39: 0 | BP39: 0 | BQ39: 0 | BR39: 0 | BS39: 0 | BT39: 0 | BU39: 0 | BV39: 0 | BW39: 0 | BX39: 0 | BY39: 0 | BZ39: 0 | CA39: 0 | CB39: 0 | CC39: 0 | CD39: 0 | CE39: 0 | CF39: 0 | CG39: 0 | CH39: 0 | CI39: 0 | CJ39: 0 | CK39: 0 | CL39: 0 | CM39: 0 | CN39: 0 | CO39: 0 | CP39: 0 | CQ39: 0 | CR39: 0 | CS39: 0 | CT39: 0 | CU39: 0 | CV39: 0 | CW39: 0 | CX39: 0 | CY39: 0 | CZ39: 0 | DA39: 0 | DB39: 0 | DC39: 0 | DD39: 0 | DE39: 0 | DF39: 0 | DG39: 0 | DH39: 0 | DI39: 0 | DJ39: 0 | DK39: 0 | DL39: 0 | DM39: 0 | DN39: 0 | DO39: 0 | DP39: 0 | DQ39: 0 | DR39: 0 | DS39: 0 | DT39: 0 | DU39: 0 | DV39: 0 | DW39: 0 | DX39: 0 | DY39: 0 | DZ39: 0 | EA39: 0 | EB39: 0 | EC39: 0 | ED39: 0 | EE39: 0 | EF39: 0 | EG39: 0 | EH39: 0 | EI39: 0 | EJ39: 0 | EK39: 0 | EL39: 0 | EM39: 0 | EN39: 0 | EO39: 0 | EP39: 0 | EQ39: 0 | ER39: 0 | ES39: 0 | ET39: 0 | EU39: 0 | EV39: 0 | EW39: 0 | EX39: 0 | EY39: 0 | EZ39: 0 | FA39: 0 | FB39: 0 | FC39: 0 | FD39: 0 | FE39: 0 | FF39: 0 | FG39: 0 | FH39: 0 | FI39: 0 | FJ39: 0 | FK39: 0 | FL39: 0 | FM39: 0 | FN39: 0 | FO39: 0 | FP39: 0 | FQ39: 0 | FR39: 0 | FS39: 0 | FT39: 0 | FU39: 0 | FV39: 0 | FW39: 0 | FX39: 0 | FY39: 0 | FZ39: 0 | GA39: 0 | GB39: 0 | GC39: 0 | GD39: 0 | GE39: 0 | GF39: 0 | GG39: 0 | GH39: 0 | GI39: 0 | GJ39: 0 | GK39: 0 | GL39: 0 | GM39: 0 | GN39: 0 | GO39: 0 | GP39: 0 | GQ39: 0 | GR39: 0 | GS39: 0 | GT39: 0 | GU39: 0 | GV39: 0 | GW39: 0 | GX39: 0 | GY39: 0 | GZ39: 0 | HA39: 0 | HB39: 0 | HC39: 0 | HD39: 0 | HE39: 0 | HF39: 0 | HG39: 0 | HH39: 0 | HI39: 0 | HJ39: 0 | HK39: 0 | HL39: 0 | HM39: 0 | HN39: 0 | HO39: 0 | HP39: 0 | HQ39: 0 | HR39: 0 | HS39: 0 | HT39: 0 | HU39: 0 | HV39: 0 | HW39: 0 | HX39: 0 | HY39: 0 | HZ39: 0 | IA39: 0 | IB39: 0 | IC39: 0 | ID39: 0 | IE39: 0 | IF39: 0 | IG39: 0 | IH39: 0 | II39: 0 | IJ39: 0 | IK39: 0 | IL39: 0 | IM39: 0 | IN39: 0 | IO39: 0 | IP39: 0 | IQ39: 0 | IR39: 0 | IS39: 0 | IT39: 0 | IU39: 0 | IV39: 0 | IW39: 0 | IX39: 0 | IY39: 0 | IZ39: 0 | JA39: 0 | JB39: 0 | JC39: 0 | JD39: 0 | JE39: 0 | JF39: 0 | JG39: 0 | JH39: 0 | JI39: 0 | JJ39: 0 | JK39: 0 | JL39: 0 | JM39: 0 | JN39: 0 | JO39: 0 | JP39: 0 | JQ39: 0 | JR39: 0 | JS39: 0 | JT39: 0 | JU39: 0 | JV39: 0 | JW39: 0 | JX39: 0 | JY39: 0 | JZ39: 0 | KA39: 0 | KB39: 0 | KC39: 0 | KD39: 0 | KE39: 0 | KF39: 0 | KG39: 0 | KH39: 0 | KI39: 0 | KJ39: 0 | KK39: 0 | KL39: 0 | KM39: 0 | KN39: 0 | KO39: 0 | KP39: 0 | KQ39: 0 | KR39: 0 | KS39: 0 | KT39: 0 | KU39: 0 | KV39: 0 | KW39: 0 | KX39: 0 | KY39: 0 | KZ39: 0 | LA39: 0 | LB39: 0 | LC39: 0 | LD39: 0 | LE39: 0 | LF39: 0 | LG39: 0 | LH39: 0 | LI39: 0 | LJ39: 0 | LK39: 0 | LL39: 0 | LM39: 0 | LN39: 0 | LO39: 0 | LP39: 0 | LQ39: 0 | LR39: 0 | LS39: 0 | LT39: 0 | LU39: 0 | LV39: 0 | LW39: 0 | LX39: 0 | LY39: 0 | LZ39: 0 | MA39: 0 | MB39: 0 | MC39: 0 | MD39: 0 | ME39: 0 | MF39: 0 | MG39: 0 | MH39: 0 | MI39: 0 | MJ39: 0 | MK39: 0 | ML39: 0 | MM39: 0 | MN39: 0 | MO39: 0 | MP39: 0 | MQ39: 0 | MR39: 0 | MS39: 0 | MT39: 0 | MU39: 0 | MV39: 0 | MW39: 0 | MX39: 0 | MY39: 0 | MZ39: 0 | NA39: 0 | NB39: 0 | NC39: 0 | ND39: 0 | NE39: 0 | NF39: 0 | NG39: 0 | NH39: 0 | NI39: 0 | NJ39: 0 | NK39: 0 | NL39: 0 | NM39: 0 | NN39: 0 | NO39: 0 | NP39: 0 | NQ39: 0 | NR39: 0 | NS39: 0 | NT39: 0 | NU39: 0 | NV39: 0 | NW39: 0 | NX39: 0 | NY39: 0 | NZ39: 0 | OA39: 0 | OB39: 0 | OC39: 0 | OD39: 0 | OE39: 0 | OF39: 0 | OG39: 0 | OH39: 0 | OI39: 0 | OJ39: 0 | OK39: 0 | OL39: 0 | OM39: 0 | ON39: 0 | OO39: 0 | OP39: 0 | OQ39: 0 | OR39: 0 | OS39: 0 | OT39: 0 | OU39: 0 | OV39: 0 | OW39: 0 | OX39: 0 | OY39: 0 | OZ39: 0 | PA39: 0 | PB39: 0 | PC39: 0 | PD39: 0 | PE39: 0 | PF39: 0 | PG39: 0 | PH39: 0 | PI39: 0 | PJ39: 0 | PK39: 0 | PL39: 0 | PM39: 0 | PN39: 0 | PO39: 0 | PP39: 0 | PQ39: 0 | PR39: 0 | PS39: 0 | PT39: 0 | PU39: 0 | PV39: 0 | PW39: 0 | PX39: 0 | PY39: 0 | PZ39: 0 | QA39: 0
AJ40: 1 | BN40: =IF(AND(BN$5>$BG40,BN$5<=$BH40),BN131,0) -> 0 | BO40: 0 | BP40: 0 | BQ40: 0 | BR40: 0 | BS40: 0 | BT40: 0 | BU40: 0 | BV40: 0 | BW40: 0 | BX40: 0 | BY40: 0 | BZ40: 0 | CA40: 0 | CB40: 0 | CC40: 0 | CD40: 0 | CE40: 0 | CF40: 0 | CG40: 0 | CH40: 0 | CI40: 0 | CJ40: 0 | CK40: 0 | CL40: 0 | CM40: 0 | CN40: 0 | CO40: 0 | CP40: 0 | CQ40: 0 | CR40: 0 | CS40: 0 | CT40: 0 | CU40: 0 | CV40: 0 | CW40: 0 | CX40: 0 | CY40: 0 | CZ40: 0 | DA40: 0 | DB40: 0 | DC40: 0 | DD40: 0 | DE40: 0 | DF40: 0 | DG40: 0 | DH40: 0 | DI40: 0 | DJ40: 0 | DK40: 0 | DL40: 0 | DM40: 0 | DN40: 0 | DO40: 0 | DP40: 0 | DQ40: 0 | DR40: 0 | DS40: 0 | DT40: 0 | DU40: 0 | DV40: 0 | DW40: 0 | DX40: 0 | DY40: 0 | DZ40: 0 | EA40: 0 | EB40: 0 | EC40: 0 | ED40: 0 | EE40: 0 | EF40: 0 | EG40: 0 | EH40: 0 | EI40: 0 | EJ40: 0 | EK40: 0 | EL40: 0 | EM40: 0 | EN40: 0 | EO40: 0 | EP40: 0 | EQ40: 0 | ER40: 0 | ES40: 0 | ET40: 0 | EU40: 0 | EV40: 0 | EW40: 0 | EX40: 0 | EY40: 0 | EZ40: 0 | FA40: 0 | FB40: 0 | FC40: 0 | FD40: 0 | FE40: 0 | FF40: 0 | FG40: 0 | FH40: 0 | FI40: 0 | FJ40: 0 | FK40: 0 | FL40: 0 | FM40: 0 | FN40: 0 | FO40: 0 | FP40: 0 | FQ40: 0 | FR40: 0 | FS40: 0 | FT40: 0 | FU40: 0 | FV40: 0 | FW40: 0 | FX40: 0 | FY40: 0 | FZ40: 0 | GA40: 0 | GB40: 0 | GC40: 0 | GD40: 0 | GE40: 0 | GF40: 0 | GG40: 0 | GH40: 0 | GI40: 0 | GJ40: 0 | GK40: 0 | GL40: 0 | GM40: 0 | GN40: 0 | GO40: 0 | GP40: 0 | GQ40: 0 | GR40: =IF(AND(GR$5>$BG40,GR$5<=$BH40),GR131,0) -> 0 | GS40: 0 | GT40: 0 | GU40: 0 | GV40: 0 | GW40: 0 | GX40: 0 | GY40: 0 | GZ40: 0 | HA40: 0 | HB40: 0 | HC40: 0 | HD40: 0 | HE40: 0 | HF40: 0 | HG40: 0 | HH40: 0 | HI40: 0 | HJ40: 0 | HK40: 0 | HL40: 0 | HM40: 0 | HN40: 0 | HO40: 0 | HP40: 0 | HQ40: 0 | HR40: 0 | HS40: 0 | HT40: 0 | HU40: 0 | HV40: 0 | HW40: 0 | HX40: 0 | HY40: 0 | HZ40: 0 | IA40: 0 | IB40: 0 | IC40: 0 | ID40: 0 | IE40: 0 | IF40: 0 | IG40: 0 | IH40: 0 | II40: 0 | IJ40: 0 | IK40: 0 | IL40: 0 | IM40: 0 | IN40: 0 | IO40: 0 | IP40: 0 | IQ40: 0 | IR40: 0 | IS40: 0 | IT40: 0 | IU40: 0 | IV40: 0 | IW40: 0 | IX40: 0 | IY40: 0 | IZ40: 0 | JA40: 0 | JB40: 0 | JC40: 0 | JD40: 0 | JE40: 0 | JF40: 0 | JG40: 0 | JH40: 0 | JI40: 0 | JJ40: 0 | JK40: 0 | JL40: 0 | JM40: 0 | JN40: 0 | JO40: 0 | JP40: 0 | JQ40: 0 | JR40: 0 | JS40: 0 | JT40: 0 | JU40: 0 | JV40: 0 | JW40: 0 | JX40: 0 | JY40: 0 | JZ40: 0 | KA40: 0 | KB40: 0 | KC40: 0 | KD40: 0 | KE40: 0 | KF40: 0 | KG40: 0 | KH40: 0 | KI40: 0 | KJ40: 0 | KK40: 0 | KL40: 0 | KM40: 0 | KN40: 0 | KO40: 0 | KP40: 0 | KQ40: 0 | KR40: 0 | KS40: 0 | KT40: 0 | KU40: 0 | KV40: 0 | KW40: 0 | KX40: 0 | KY40: 0 | KZ40: 0 | LA40: 0 | LB40: 0 | LC40: 0 | LD40: 0 | LE40: 0 | LF40: 0 | LG40: 0 | LH40: 0 | LI40: 0 | LJ40: 0 | LK40: 0 | LL40: 0 | LM40: 0 | LN40: 0 | LO40: =IF(AND(LO$5>$BG40,LO$5<=$BH40),LO131,0) -> 0 | LP40: 0 | LQ40: 0 | LR40: 0 | LS40: 0 | LT40: 0 | LU40: 0 | LV40: 0 | LW40: 0 | LX40: 0 | LY40: 0 | LZ40: 0 | MA40: 0 | MB40: 0 | MC40: 0 | MD40: 0 | ME40: 0 | MF40: 0 | MG40: 0 | MH40: 0 | MI40: 0 | MJ40: 0 | MK40: 0 | ML40: 0 | MM40: 0 | MN40: 0 | MO40: 0 | MP40: 0 | MQ40: 0 | MR40: 0 | MS40: 0 | MT40: 0 | MU40: 0 | MV40: 0 | MW40: 0 | MX40: 0 | MY40: 0 | MZ40: 0 | NA40: 0 | NB40: 0 | NC40: 0 | ND40: 0 | NE40: 0 | NF40: 0 | NG40: 0 | NH40: 0 | NI40: 0 | NJ40: 0 | NK40: 0 | NL40: 0 | NM40: 0 | NN40: 0 | NO40: 0 | NP40: 0 | NQ40: 0 | NR40: 0 | NS40: 0 | NT40: 0 | NU40: 0 | NV40: 0 | NW40: 0 | NX40: 0 | NY40: 0 | NZ40: 0 | OA40: 0 | OB40: 0 | OC40: 0 | OD40: 0 | OE40: 0 | OF40: 0 | OG40: 0 | OH40: 0 | OI40: 0 | OJ40: 0 | OK40: 0 | OL40: 0 | OM40: 0 | ON40: 0 | OO40: 0 | OP40: 0 | OQ40: 0 | OR40: 0 | OS40: 0 | OT40: 0 | OU40: 0 | OV40: 0 | OW40: 0 | OX40: 0 | OY40: 0 | OZ40: 0 | PA40: 0 | PB40: 0 | PC40: 0 | PD40: 0 | PE40: 0 | PF40: 0 | PG40: 0 | PH40: 0 | PI40: 0 | PJ40: 0 | PK40: 0 | PL40: 0 | PM40: 0 | PN40: 0 | PO40: 0 | PP40: 0 | PQ40: 0 | PR40: 0 | PS40: 0 | PT40: 0 | PU40: 0 | PV40: 0 | PW40: 0 | PX40: 0 | PY40: 0 | PZ40: 0 | QA40: 0
AJ41: 1 | BN41: =IF(AND(BN$5>$BG41,BN$5<=$BH41),BN132,0) -> 0 | BO41: 0 | BP41: 0 | BQ41: 0 | BR41: 0 | BS41: 0 | BT41: 0 | BU41: 0 | BV41: 0 | BW41: 0 | BX41: 0 | BY41: 0 | BZ41: 0 | CA41: 0 | CB41: 0 | CC41: 0 | CD41: 0 | CE41: 0 | CF41: 0 | CG41: 0 | CH41: 0 | CI41: 0 | CJ41: 0 | CK41: 0 | CL41: 0 | CM41: 0 | CN41: 0 | CO41: 0 | CP41: 0 | CQ41: 0 | CR41: 0 | CS41: 0 | CT41: 0 | CU41: 0 | CV41: 0 | CW41: 0 | CX41: 0 | CY41: 0 | CZ41: 0 | DA41: 0 | DB41: 0 | DC41: 0 | DD41: 0 | DE41: 0 | DF41: 0 | DG41: 0 | DH41: 0 | DI41: 0 | DJ41: 0 | DK41: 0 | DL41: 0 | DM41: 0 | DN41: 0 | DO41: 0 | DP41: 0 | DQ41: 0 | DR41: 0 | DS41: 0 | DT41: 0 | DU41: 0 | DV41: 0 | DW41: 0 | DX41: 0 | DY41: 0 | DZ41: 0 | EA41: 0 | EB41: 0 | EC41: 0 | ED41: 0 | EE41: 0 | EF41: 0 | EG41: =IF(AND(EG$5>$BG41,EG$5<=$BH41),EG132,0) -> 0 | EH41: 0 | EI41: 0 | EJ41: 0 | EK41: 0 | EL41: 0 | EM41: 0 | EN41: 0 | EO41: 0 | EP41: 0 | EQ41: 0 | ER41: 0 | ES41: 0 | ET41: 0 | EU41: 0 | EV41: 0 | EW41: 0 | EX41: 0 | EY41: 0 | EZ41: 0 | FA41: 0 | FB41: 0 | FC41: 0 | FD41: 0 | FE41: 0 | FF41: 0 | FG41: 0 | FH41: 0 | FI41: 0 | FJ41: 0 | FK41: 0 | FL41: 0 | FM41: 0 | FN41: 0 | FO41: 0 | FP41: 0 | FQ41: 0 | FR41: 0 | FS41: 0 | FT41: 0 | FU41: 0 | FV41: 0 | FW41: 0 | FX41: 0 | FY41: 0 | FZ41: 0 | GA41: 0 | GB41: 0 | GC41: 0 | GD41: 0 | GE41: 0 | GF41: 0 | GG41: 0 | GH41: 0 | GI41: 0 | GJ41: 0 | GK41: 0 | GL41: 0 | GM41: 0 | GN41: 0 | GO41: 0 | GP41: 0 | GQ41: 0 | GR41: 0 | GS41: 0 | GT41: 0 | GU41: 0 | GV41: 0 | GW41: 0 | GX41: 0 | GY41: 0 | GZ41: 0 | HA41: 0 | HB41: 0 | HC41: 0 | HD41: 0 | HE41: 0 | HF41: 0 | HG41: 0 | HH41: 0 | HI41: 0 | HJ41: 0 | HK41: 0 | HL41: 0 | HM41: 0 | HN41: 0 | HO41: 0 | HP41: 0 | HQ41: 0 | HR41: 0 | HS41: 0 | HT41: 0 | HU41: 0 | HV41: 0 | HW41: 0 | HX41: 0 | HY41: 0 | HZ41: 0 | IA41: 0 | IB41: 0 | IC41: 0 | ID41: 0 | IE41: 0 | IF41: 0 | IG41: 0 | IH41: 0 | II41: 0 | IJ41: 0 | IK41: 0 | IL41: 0 | IM41: 0 | IN41: 0 | IO41: 0 | IP41: 0 | IQ41: 0 | IR41: 0 | IS41: 0 | IT41: 0 | IU41: 0 | IV41: 0 | IW41: 0 | IX41: 0 | IY41: 0 | IZ41: 0 | JA41: 0 | JB41: 0 | JC41: 0 | JD41: =IF(AND(JD$5>$BG41,JD$5<=$BH41),JD132,0) -> 0 | JE41: 0 | JF41: 0 | JG41: 0 | JH41: 0 | JI41: 0 | JJ41: 0 | JK41: 0 | JL41: 0 | JM41: 0 | JN41: 0 | JO41: 0 | JP41: 0 | JQ41: 0 | JR41: 0 | JS41: 0 | JT41: 0 | JU41: 0 | JV41: 0 | JW41: 0 | JX41: 0 | JY41: 0 | JZ41: 0 | KA41: 0 | KB41: 0 | KC41: 0 | KD41: 0 | KE41: 0 | KF41: 0 | KG41: 0 | KH41: 0 | KI41: 0 | KJ41: 0 | KK41: 0 | KL41: 0 | KM41: 0 | KN41: 0 | KO41: 0 | KP41: 0 | KQ41: 0 | KR41: 0 | KS41: 0 | KT41: 0 | KU41: 0 | KV41: 0 | KW41: 0 | KX41: 0 | KY41: 0 | KZ41: 0 | LA41: 0 | LB41: 0 | LC41: 0 | LD41: 0 | LE41: 0 | LF41: 0 | LG41: 0 | LH41: 0 | LI41: 0 | LJ41: 0 | LK41: 0 | LL41: 0 | LM41: 0 | LN41: 0 | LO41: 0 | LP41: 0 | LQ41: 0 | LR41: 0 | LS41: 0 | LT41: 0 | LU41: 0 | LV41: 0 | LW41: 0 | LX41: 0 | LY41: 0 | LZ41: 0 | MA41: 0 | MB41: 0 | MC41: 0 | MD41: 0 | ME41: 0 | MF41: 0 | MG41: 0 | MH41: 0 | MI41: 0 | MJ41: 0 | MK41: 0 | ML41: 0 | MM41: 0 | MN41: 0 | MO41: 0 | MP41: 0 | MQ41: 0 | MR41: 0 | MS41: 0 | MT41: 0 | MU41: 0 | MV41: 0 | MW41: 0 | MX41: 0 | MY41: 0 | MZ41: 0 | NA41: 0 | NB41: 0 | NC41: 0 | ND41: 0 | NE41: 0 | NF41: 0 | NG41: 0 | NH41: 0 | NI41: 0 | NJ41: 0 | NK41: 0 | NL41: 0 | NM41: 0 | NN41: 0 | NO41: 0 | NP41: 0 | NQ41: 0 | NR41: 0 | NS41: 0 | NT41: 0 | NU41: 0 | NV41: 0 | NW41: 0 | NX41: 0 | NY41: 0 | NZ41: 0 | OA41: 0 | OB41: 0 | OC41: 0 | OD41: 0 | OE41: 0 | OF41: 0 | OG41: 0 | OH41: 0 | OI41: 0 | OJ41: 0 | OK41: 0 | OL41: 0 | OM41: 0 | ON41: 0 | OO41: 0 | OP41: 0 | OQ41: 0 | OR41: 0 | OS41: 0 | OT41: 0 | OU41: 0 | OV41: 0 | OW41: 0 | OX41: 0 | OY41: 0 | OZ41: 0 | PA41: 0 | PB41: 0 | PC41: 0 | PD41: 0 | PE41: 0 | PF41: 0 | PG41: 0 | PH41: 0 | PI41: 0 | PJ41: 0 | PK41: 0 | PL41: 0 | PM41: 0 | PN41: 0 | PO41: 0 | PP41: 0 | PQ41: 0 | PR41: =IF(AND(PR$5>$BG41,PR$5<=$BH41),PR132,0) -> 0 | PS41: 0 | PT41: 0 | PU41: 0 | PV41: 0 | PW41: 0 | PX41: 0 | PY41: 0 | PZ41: 0 | QA41: 0
AJ42: 1 | BN42: =IF(AND(BN$5>$BG42,BN$5<=$BH42),BN133,0) -> 0 | BO42: 0 | BP42: 0 | BQ42: 0 | BR42: 0 | BS42: 0 | BT42: 0 | BU42: 0 | BV42: 0 | BW42: 0 | BX42: 0 | BY42: 0 | BZ42: 0 | CA42: 0 | CB42: 0 | CC42: 0 | CD42: 0 | CE42: 0 | CF42: 0 | CG42: 0 | CH42: 0 | CI42: 0 | CJ42: 0 | CK42: 0 | CL42: 0 | CM42: 0 | CN42: 0 | CO42: 0 | CP42: 0 | CQ42: 0 | CR42: 0 | CS42: 0 | CT42: 0 | CU42: 0 | CV42: 0 | CW42: 0 | CX42: 0 | CY42: 0 | CZ42: 0 | DA42: 0 | DB42: 0 | DC42: 0 | DD42: 0 | DE42: 0 | DF42: 0 | DG42: 0 | DH42: 0 | DI42: 0 | DJ42: 0 | DK42: 0 | DL42: 0 | DM42: 0 | DN42: 0 | DO42: 0 | DP42: 0 | DQ42: 0 | DR42: 0 | DS42: 0 | DT42: 0 | DU42: 0 | DV42: 0 | DW42: 0 | DX42: 0 | DY42: 0 | DZ42: =IF(AND(DZ$5>$BG42,DZ$5<=$BH42),DZ133,0) -> 0 | EA42: 0 | EB42: 0 | EC42: 0 | ED42: 0 | EE42: 0 | EF42: 0 | EG42: 0 | EH42: 0 | EI42: 0 | EJ42: 0 | EK42: 0 | EL42: 0 | EM42: 0 | EN42: 0 | EO42: 0 | EP42: 0 | EQ42: 0 | ER42: 0 | ES42: 0 | ET42: 0 | EU42: 0 | EV42: 0 | EW42: 0 | EX42: 0 | EY42: 0 | EZ42: 0 | FA42: 0 | FB42: 0 | FC42: 0 | FD42: 0 | FE42: 0 | FF42: 0 | FG42: 0 | FH42: 0 | FI42: 0 | FJ42: 0 | FK42: 0 | FL42: 0 | FM42: 0 | FN42: 0 | FO42: 0 | FP42: 0 | FQ42: 0 | FR42: 0 | FS42: 0 | FT42: 0 | FU42: 0 | FV42: 0 | FW42: 0 | FX42: 0 | FY42: 0 | FZ42: 0 | GA42: 0 | GB42: 0 | GC42: 0 | GD42: 0 | GE42: 0 | GF42: 0 | GG42: 0 | GH42: 0 | GI42: 0 | GJ42: 0 | GK42: 0 | GL42: 0 | GM42: 0 | GN42: 0 | GO42: 0 | GP42: 0 | GQ42: 0 | GR42: 0 | GS42: 0 | GT42: 0 | GU42: 0 | GV42: 0 | GW42: 0 | GX42: 0 | GY42: 0 | GZ42: 0 | HA42: 0 | HB42: 0 | HC42: 0 | HD42: 0 | HE42: 0 | HF42: 0 | HG42: 0 | HH42: 0 | HI42: 0 | HJ42: 0 | HK42: 0 | HL42: 0 | HM42: 0 | HN42: 0 | HO42: 0 | HP42: 0 | HQ42: 0 | HR42: 0 | HS42: 0 | HT42: 0 | HU42: 0 | HV42: 0 | HW42: 0 | HX42: 0 | HY42: 0 | HZ42: 0 | IA42: 0 | IB42: 0 | IC42: 0 | ID42: 0 | IE42: 0 | IF42: 0 | IG42: 0 | IH42: 0 | II42: 0 | IJ42: 0 | IK42: 0 | IL42: 0 | IM42: 0 | IN42: 0 | IO42: 0 | IP42: 0 | IQ42: 0 | IR42: 0 | IS42: 0 | IT42: 0 | IU42: 0 | IV42: 0 | IW42: 0 | IX42: 0 | IY42: 0 | IZ42: 0 | JA42: 0 | JB42: 0 | JC42: 0 | JD42: 0 | JE42: 0 | JF42: 0 | JG42: 0 | JH42: 0 | JI42: 0 | JJ42: 0 | JK42: 0 | JL42: 0 | JM42: 0 | JN42: 0 | JO42: 0 | JP42: 0 | JQ42: 0 | JR42: 0 | JS42: 0 | JT42: 0 | JU42: 0 | JV42: 0 | JW42: 0 | JX42: 0 | JY42: 0 | JZ42: 0 | KA42: 0 | KB42: 0 | KC42: 0 | KD42: 0 | KE42: 0 | KF42: 0 | KG42: 0 | KH42: 0 | KI42: 0 | KJ42: 0 | KK42: 0 | KL42: 0 | KM42: 0 | KN42: 0 | KO42: 0 | KP42: 0 | KQ42: 0 | KR42: 0 | KS42: 0 | KT42: 0 | KU42: 0 | KV42: 0 | KW42: 0 | KX42: 0 | KY42: 0 | KZ42: 0 | LA42: 0 | LB42: 0 | LC42: 0 | LD42: 0 | LE42: 0 | LF42: 0 | LG42: 0 | LH42: 0 | LI42: 0 | LJ42: 0 | LK42: 0 | LL42: 0 | LM42: 0 | LN42: 0 | LO42: 0 | LP42: 0 | LQ42: 0 | LR42: 0 | LS42: 0 | LT42: 0 | LU42: 0 | LV42: 0 | LW42: 0 | LX42: 0 | LY42: 0 | LZ42: 0 | MA42: 0 | MB42: 0 | MC42: 0 | MD42: 0 | ME42: 0 | MF42: 0 | MG42: 0 | MH42: 0 | MI42: 0 | MJ42: 0 | MK42: 0 | ML42: 0 | MM42: 0 | MN42: 0 | MO42: 0 | MP42: 0 | MQ42: 0 | MR42: 0 | MS42: 0 | MT42: 0 | MU42: 0 | MV42: 0 | MW42: 0 | MX42: 0 | MY42: 0 | MZ42: 0 | NA42: 0 | NB42: 0 | NC42: 0 | ND42: 0 | NE42: 0 | NF42: 0 | NG42: 0 | NH42: 0 | NI42: 0 | NJ42: 0 | NK42: 0 | NL42: 0 | NM42: 0 | NN42: 0 | NO42: 0 | NP42: 0 | NQ42: 0 | NR42: 0 | NS42: 0 | NT42: 0 | NU42: 0 | NV42: 0 | NW42: 0 | NX42: 0 | NY42: 0 | NZ42: 0 | OA42: =IF(AND(OA$5>$BG42,OA$5<=$BH42),OA133,0) -> 0 | OB42: 0 | OC42: 0 | OD42: 0 | OE42: 0 | OF42: 0 | OG42: 0 | OH42: 0 | OI42: 0 | OJ42: 0 | OK42: 0 | OL42: 0 | OM42: 0 | ON42: 0 | OO42: 0 | OP42: 0 | OQ42: 0 | OR42: 0 | OS42: 0 | OT42: 0 | OU42: 0 | OV42: 0 | OW42: 0 | OX42: 0 | OY42: 0 | OZ42: 0 | PA42: 0 | PB42: 0 | PC42: 0 | PD42: 0 | PE42: 0 | PF42: 0 | PG42: 0 | PH42: 0 | PI42: 0 | PJ42: 0 | PK42: 0 | PL42: 0 | PM42: 0 | PN42: 0 | PO42: 0 | PP42: 0 | PQ42: 0 | PR42: 0 | PS42: 0 | PT42: 0 | PU42: 0 | PV42: 0 | PW42: 0 | PX42: 0 | PY42: 0 | PZ42: 0 | QA42: 0
AJ43: 1 | BN43: =IF(AND(BN$5>$BG43,BN$5<=$BH43),BN134,0) -> 0 | BO43: 0 | BP43: 0 | BQ43: 0 | BR43: 0 | BS43: 0 | BT43: 0 | BU43: 0 | BV43: 0 | BW43: 0 | BX43: 0 | BY43: 0 | BZ43: 0 | CA43: 0 | CB43: 0 | CC43: 0 | CD43: 0 | CE43: 0 | CF43: 0 | CG43: 0 | CH43: 0 | CI43: 0 | CJ43: 0 | CK43: 0 | CL43: 0 | CM43: 0 | CN43: 0 | CO43: 0 | CP43: 0 | CQ43: 0 | CR43: 0 | CS43: 0 | CT43: 0 | CU43: 0 | CV43: 0 | CW43: 0 | CX43: 0 | CY43: 0 | CZ43: 0 | DA43: 0 | DB43: 0 | DC43: 0 | DD43: 0 | DE43: 0 | DF43: 0 | DG43: 0 | DH43: 0 | DI43: 0 | DJ43: 0 | DK43: 0 | DL43: 0 | DM43: 0 | DN43: 0 | DO43: 0 | DP43: 0 | DQ43: 0 | DR43: 0 | DS43: 0 | DT43: 0 | DU43: 0 | DV43: 0 | DW43: 0 | DX43: 0 | DY43: 0 | DZ43: 0 | EA43: 0 | EB43: 0 | EC43: 0 | ED43: 0 | EE43: 0 | EF43: 0 | EG43: 0 | EH43: 0 | EI43: 0 | EJ43: 0 | EK43: 0 | EL43: 0 | EM43: 0 | EN43: 0 | EO43: 0 | EP43: 0 | EQ43: 0 | ER43: 0 | ES43: 0 | ET43: 0 | EU43: 0 | EV43: 0 | EW43: 0 | EX43: 0 | EY43: 0 | EZ43: 0 | FA43: 0 | FB43: 0 | FC43: 0 | FD43: 0 | FE43: 0 | FF43: 0 | FG43: 0 | FH43: 0 | FI43: 0 | FJ43: 0 | FK43: 0 | FL43: 0 | FM43: 0 | FN43: 0 | FO43: 0 | FP43: 0 | FQ43: 0 | FR43: 0 | FS43: 0 | FT43: 0 | FU43: 0 | FV43: 0 | FW43: 0 | FX43: 0 | FY43: 0 | FZ43: 0 | GA43: 0 | GB43: 0 | GC43: 0 | GD43: 0 | GE43: 0 | GF43: 0 | GG43: 0 | GH43: 0 | GI43: 0 | GJ43: 0 | GK43: 0 | GL43: 0 | GM43: 0 | GN43: 0 | GO43: 0 | GP43: 0 | GQ43: 0 | GR43: 0 | GS43: 0 | GT43: 0 | GU43: 0 | GV43: 0 | GW43: 0 | GX43: 0 | GY43: 0 | GZ43: 0 | HA43: 0 | HB43: 0 | HC43: 0 | HD43: 0 | HE43: 0 | HF43: 0 | HG43: 0 | HH43: 0 | HI43: 0 | HJ43: 0 | HK43: 0 | HL43: 0 | HM43: 0 | HN43: 0 | HO43: 0 | HP43: 0 | HQ43: 0 | HR43: 0 | HS43: 0 | HT43: 0 | HU43: 0 | HV43: 0 | HW43: 0 | HX43: 0 | HY43: 0 | HZ43: 0 | IA43: 0 | IB43: 0 | IC43: 0 | ID43: 0 | IE43: 0 | IF43: 0 | IG43: 0 | IH43: 0 | II43: 0 | IJ43: 0 | IK43: 0 | IL43: 0 | IM43: 0 | IN43: 0 | IO43: 0 | IP43: 0 | IQ43: 0 | IR43: 0 | IS43: 0 | IT43: 0 | IU43: 0 | IV43: 0 | IW43: 0 | IX43: 0 | IY43: 0 | IZ43: 0 | JA43: 0 | JB43: 0 | JC43: 0 | JD43: 0 | JE43: 0 | JF43: 0 | JG43: 0 | JH43: 0 | JI43: 0 | JJ43: 0 | JK43: 0 | JL43: 0 | JM43: 0 | JN43: 0 | JO43: 0 | JP43: 0 | JQ43: 0 | JR43: 0 | JS43: 0 | JT43: 0 | JU43: 0 | JV43: 0 | JW43: 0 | JX43: 0 | JY43: 0 | JZ43: 0 | KA43: 0 | KB43: 0 | KC43: 0 | KD43: 0 | KE43: 0 | KF43: 0 | KG43: 0 | KH43: 0 | KI43: 0 | KJ43: 0 | KK43: 0 | KL43: 0 | KM43: 0 | KN43: 0 | KO43: 0 | KP43: 0 | KQ43: 0 | KR43: 0 | KS43: 0 | KT43: 0 | KU43: 0 | KV43: 0 | KW43: 0 | KX43: 0 | KY43: 0 | KZ43: 0 | LA43: 0 | LB43: 0 | LC43: 0 | LD43: 0 | LE43: 0 | LF43: 0 | LG43: 0 | LH43: 0 | LI43: 0 | LJ43: 0 | LK43: 0 | LL43: 0 | LM43: 0 | LN43: 0 | LO43: 0 | LP43: 0 | LQ43: 0 | LR43: 0 | LS43: 0 | LT43: 0 | LU43: 0 | LV43: 0 | LW43: 0 | LX43: 0 | LY43: 0 | LZ43: 0 | MA43: 0 | MB43: 0 | MC43: 0 | MD43: 0 | ME43: 0 | MF43: 0 | MG43: 0 | MH43: 0 | MI43: 0 | MJ43: 0 | MK43: 0 | ML43: 0 | MM43: 0 | MN43: 0 | MO43: 0 | MP43: 0 | MQ43: 0 | MR43: 0 | MS43: 0 | MT43: 0 | MU43: 0 | MV43: 0 | MW43: 0 | MX43: 0 | MY43: 0 | MZ43: 0 | NA43: 0 | NB43: 0 | NC43: 0 | ND43: 0 | NE43: 0 | NF43: 0 | NG43: 0 | NH43: 0 | NI43: 0 | NJ43: 0 | NK43: 0 | NL43: 0 | NM43: 0 | NN43: 0 | NO43: 0 | NP43: 0 | NQ43: 0 | NR43: 0 | NS43: 0 | NT43: 0 | NU43: 0 | NV43: 0 | NW43: 0 | NX43: 0 | NY43: 0 | NZ43: 0 | OA43: 0 | OB43: 0 | OC43: 0 | OD43: 0 | OE43: 0 | OF43: 0 | OG43: 0 | OH43: 0 | OI43: 0 | OJ43: 0 | OK43: 0 | OL43: 0 | OM43: 0 | ON43: 0 | OO43: 0 | OP43: 0 | OQ43: 0 | OR43: 0 | OS43: 0 | OT43: 0 | OU43: 0 | OV43: 0 | OW43: 0 | OX43: 0 | OY43: 0 | OZ43: 0 | PA43: 0 | PB43: 0 | PC43: 0 | PD43: 0 | PE43: 0 | PF43: 0 | PG43: 0 | PH43: 0 | PI43: 0 | PJ43: 0 | PK43: 0 | PL43: 0 | PM43: 0 | PN43: 0 | PO43: 0 | PP43: 0 | PQ43: 0 | PR43: 0 | PS43: 0 | PT43: 0 | PU43: 0 | PV43: 0 | PW43: 0 | PX43: 0 | PY43: 0 | PZ43: 0 | QA43: 0
AJ44: 1 | BN44: =IF(AND(BN$5>$BG44,BN$5<=$BH44),BN135,0) -> 0 | BO44: 0 | BP44: 0 | BQ44: 0 | BR44: 0 | BS44: 0 | BT44: 0 | BU44: 0 | BV44: 0 | BW44: 0 | BX44: 0 | BY44: 0 | BZ44: 0 | CA44: 0 | CB44: 0 | CC44: 0 | CD44: 0 | CE44: 0 | CF44: 0 | CG44: 0 | CH44: 0 | CI44: 0 | CJ44: 0 | CK44: 0 | CL44: 0 | CM44: 0 | CN44: 0 | CO44: 0 | CP44: 0 | CQ44: 0 | CR44: 0 | CS44: 0 | CT44: 0 | CU44: 0 | CV44: 0 | CW44: 0 | CX44: 0 | CY44: 0 | CZ44: 0 | DA44: 0 | DB44: 0 | DC44: 0 | DD44: 0 | DE44: 0 | DF44: 0 | DG44: 0 | DH44: 0 | DI44: 0 | DJ44: 0 | DK44: 0 | DL44: 0 | DM44: 0 | DN44: 0 | DO44: 0 | DP44: 0 | DQ44: 0 | DR44: 0 | DS44: 0 | DT44: 0 | DU44: 0 | DV44: 0 | DW44: 0 | DX44: 0 | DY44: 0 | DZ44: 0 | EA44: 0 | EB44: 0 | EC44: 0 | ED44: 0 | EE44: 0 | EF44: 0 | EG44: 0 | EH44: 0 | EI44: 0 | EJ44: 0 | EK44: 0 | EL44: 0 | EM44: 0 | EN44: 0 | EO44: 0 | EP44: 0 | EQ44: 0 | ER44: 0 | ES44: 0 | ET44: 0 | EU44: 0 | EV44: 0 | EW44: 0 | EX44: 0 | EY44: 0 | EZ44: 0 | FA44: 0 | FB44: 0 | FC44: 0 | FD44: 0 | FE44: 0 | FF44: 0 | FG44: 0 | FH44: 0 | FI44: 0 | FJ44: 0 | FK44: 0 | FL44: 0 | FM44: 0 | FN44: 0 | FO44: 0 | FP44: 0 | FQ44: 0 | FR44: 0 | FS44: 0 | FT44: 0 | FU44: 0 | FV44: 0 | FW44: 0 | FX44: 0 | FY44: 0 | FZ44: 0 | GA44: 0 | GB44: 0 | GC44: 0 | GD44: 0 | GE44: 0 | GF44: 0 | GG44: 0 | GH44: 0 | GI44: 0 | GJ44: 0 | GK44: 0 | GL44: 0 | GM44: 0 | GN44: 0 | GO44: 0 | GP44: 0 | GQ44: 0 | GR44: =IF(AND(GR$5>$BG44,GR$5<=$BH44),GR135,0) -> 0 | GS44: 0 | GT44: 0 | GU44: 0 | GV44: 0 | GW44: 0 | GX44: 0 | GY44: 0 | GZ44: 0 | HA44: 0 | HB44: 0 | HC44: 0 | HD44: 0 | HE44: 0 | HF44: 0 | HG44: 0 | HH44: 0 | HI44: 0 | HJ44: 0 | HK44: 0 | HL44: 0 | HM44: 0 | HN44: 0 | HO44: 0 | HP44: 0 | HQ44: 0 | HR44: 0 | HS44: 0 | HT44: 0 | HU44: 0 | HV44: 0 | HW44: 0 | HX44: 0 | HY44: 0 | HZ44: 0 | IA44: 0 | IB44: 0 | IC44: 0 | ID44: 0 | IE44: 0 | IF44: 0 | IG44: 0 | IH44: 0 | II44: 0 | IJ44: 0 | IK44: 0 | IL44: 0 | IM44: 0 | IN44: 0 | IO44: 0 | IP44: 0 | IQ44: 0 | IR44: 0 | IS44: 0 | IT44: 0 | IU44: 0 | IV44: 0 | IW44: 0 | IX44: 0 | IY44: 0 | IZ44: 0 | JA44: 0 | JB44: 0 | JC44: 0 | JD44: 0 | JE44: 0 | JF44: 0 | JG44: 0 | JH44: 0 | JI44: 0 | JJ44: 0 | JK44: 0 | JL44: 0 | JM44: 0 | JN44: 0 | JO44: 0 | JP44: 0 | JQ44: 0 | JR44: 0 | JS44: 0 | JT44: 0 | JU44: 0 | JV44: 0 | JW44: 0 | JX44: 0 | JY44: 0 | JZ44: 0 | KA44: 0 | KB44: 0 | KC44: 0 | KD44: 0 | KE44: 0 | KF44: 0 | KG44: 0 | KH44: 0 | KI44: 0 | KJ44: 0 | KK44: 0 | KL44: 0 | KM44: 0 | KN44: 0 | KO44: 0 | KP44: 0 | KQ44: 0 | KR44: 0 | KS44: 0 | KT44: 0 | KU44: 0 | KV44: 0 | KW44: 0 | KX44: 0 | KY44: 0 | KZ44: 0 | LA44: 0 | LB44: 0 | LC44: 0 | LD44: 0 | LE44: 0 | LF44: 0 | LG44: 0 | LH44: 0 | LI44: 0 | LJ44: 0 | LK44: 0 | LL44: 0 | LM44: 0 | LN44: 0 | LO44: =IF(AND(LO$5>$BG44,LO$5<=$BH44),LO135,0) -> 0 | LP44: 0 | LQ44: 0 | LR44: 0 | LS44: 0 | LT44: 0 | LU44: 0 | LV44: 0 | LW44: 0 | LX44: 0 | LY44: 0 | LZ44: 0 | MA44: 0 | MB44: 0 | MC44: 0 | MD44: 0 | ME44: 0 | MF44: 0 | MG44: 0 | MH44: 0 | MI44: 0 | MJ44: 0 | MK44: 0 | ML44: 0 | MM44: 0 | MN44: 0 | MO44: 0 | MP44: 0 | MQ44: 0 | MR44: 0 | MS44: 0 | MT44: 0 | MU44: 0 | MV44: 0 | MW44: 0 | MX44: 0 | MY44: 0 | MZ44: 0 | NA44: 0 | NB44: 0 | NC44: 0 | ND44: 0 | NE44: 0 | NF44: 0 | NG44: 0 | NH44: 0 | NI44: 0 | NJ44: 0 | NK44: 0 | NL44: 0 | NM44: 0 | NN44: 0 | NO44: 0 | NP44: 0 | NQ44: 0 | NR44: 0 | NS44: 0 | NT44: 0 | NU44: 0 | NV44: 0 | NW44: 0 | NX44: 0 | NY44: 0 | NZ44: 0 | OA44: 0 | OB44: 0 | OC44: 0 | OD44: 0 | OE44: 0 | OF44: 0 | OG44: 0 | OH44: 0 | OI44: 0 | OJ44: 0 | OK44: 0 | OL44: 0 | OM44: 0 | ON44: 0 | OO44: 0 | OP44: 0 | OQ44: 0 | OR44: 0 | OS44: 0 | OT44: 0 | OU44: 0 | OV44: 0 | OW44: 0 | OX44: 0 | OY44: 0 | OZ44: 0 | PA44: 0 | PB44: 0 | PC44: 0 | PD44: 0 | PE44: 0 | PF44: 0 | PG44: 0 | PH44: 0 | PI44: 0 | PJ44: 0 | PK44: 0 | PL44: 0 | PM44: 0 | PN44: 0 | PO44: 0 | PP44: 0 | PQ44: 0 | PR44: 0 | PS44: 0 | PT44: 0 | PU44: 0 | PV44: 0 | PW44: 0 | PX44: 0 | PY44: 0 | PZ44: 0 | QA44: 0
AJ45: 1 | BN45: =IF(AND(BN$5>$BG45,BN$5<=$BH45),BN136,0) -> 0 | BO45: 0 | BP45: 0 | BQ45: 0 | BR45: 0 | BS45: 0 | BT45: 0 | BU45: 0 | BV45: 0 | BW45: 0 | BX45: 0 | BY45: 0 | BZ45: 0 | CA45: 0 | CB45: 0 | CC45: 0 | CD45: 0 | CE45: 0 | CF45: 0 | CG45: 0 | CH45: 0 | CI45: 0 | CJ45: 0 | CK45: 0 | CL45: 0 | CM45: 0 | CN45: 0 | CO45: 0 | CP45: 0 | CQ45: 0 | CR45: 0 | CS45: 0 | CT45: 0 | CU45: 0 | CV45: 0 | CW45: 0 | CX45: 0 | CY45: 0 | CZ45: 0 | DA45: 0 | DB45: 0 | DC45: 0 | DD45: 0 | DE45: 0 | DF45: 0 | DG45: 0 | DH45: 0 | DI45: 0 | DJ45: 0 | DK45: 0 | DL45: 0 | DM45: 0 | DN45: 0 | DO45: 0 | DP45: 0 | DQ45: 0 | DR45: 0 | DS45: 0 | DT45: 0 | DU45: 0 | DV45: 0 | DW45: 0 | DX45: 0 | DY45: 0 | DZ45: 0 | EA45: 0 | EB45: 0 | EC45: 0 | ED45: 0 | EE45: 0 | EF45: 0 | EG45: =IF(AND(EG$5>$BG45,EG$5<=$BH45),EG136,0) -> 0 | EH45: 0 | EI45: 0 | EJ45: 0 | EK45: 0 | EL45: 0 | EM45: 0 | EN45: 0 | EO45: 0 | EP45: 0 | EQ45: 0 | ER45: 0 | ES45: 0 | ET45: 0 | EU45: 0 | EV45: 0 | EW45: 0 | EX45: 0 | EY45: 0 | EZ45: 0 | FA45: 0 | FB45: 0 | FC45: 0 | FD45: 0 | FE45: 0 | FF45: 0 | FG45: 0 | FH45: 0 | FI45: 0 | FJ45: 0 | FK45: 0 | FL45: 0 | FM45: 0 | FN45: 0 | FO45: 0 | FP45: 0 | FQ45: 0 | FR45: 0 | FS45: 0 | FT45: 0 | FU45: 0 | FV45: 0 | FW45: 0 | FX45: 0 | FY45: 0 | FZ45: 0 | GA45: 0 | GB45: 0 | GC45: 0 | GD45: 0 | GE45: 0 | GF45: 0 | GG45: 0 | GH45: 0 | GI45: 0 | GJ45: 0 | GK45: 0 | GL45: 0 | GM45: 0 | GN45: 0 | GO45: 0 | GP45: 0 | GQ45: 0 | GR45: 0 | GS45: 0 | GT45: 0 | GU45: 0 | GV45: 0 | GW45: 0 | GX45: 0 | GY45: 0 | GZ45: 0 | HA45: 0 | HB45: 0 | HC45: 0 | HD45: 0 | HE45: 0 | HF45: 0 | HG45: 0 | HH45: 0 | HI45: 0 | HJ45: 0 | HK45: 0 | HL45: 0 | HM45: 0 | HN45: 0 | HO45: 0 | HP45: 0 | HQ45: 0 | HR45: 0 | HS45: 0 | HT45: 0 | HU45: 0 | HV45: 0 | HW45: 0 | HX45: 0 | HY45: 0 | HZ45: 0 | IA45: 0 | IB45: 0 | IC45: 0 | ID45: 0 | IE45: 0 | IF45: 0 | IG45: 0 | IH45: 0 | II45: 0 | IJ45: 0 | IK45: 0 | IL45: 0 | IM45: 0 | IN45: 0 | IO45: 0 | IP45: 0 | IQ45: 0 | IR45: 0 | IS45: 0 | IT45: 0 | IU45: 0 | IV45: 0 | IW45: 0 | IX45: 0 | IY45: 0 | IZ45: 0 | JA45: 0 | JB45: 0 | JC45: 0 | JD45: =IF(AND(JD$5>$BG45,JD$5<=$BH45),JD136,0) -> 0 | JE45: 0 | JF45: 0 | JG45: 0 | JH45: 0 | JI45: 0 | JJ45: 0 | JK45: 0 | JL45: 0 | JM45: 0 | JN45: 0 | JO45: 0 | JP45: 0 | JQ45: 0 | JR45: 0 | JS45: 0 | JT45: 0 | JU45: 0 | JV45: 0 | JW45: 0 | JX45: 0 | JY45: 0 | JZ45: 0 | KA45: 0 | KB45: 0 | KC45: 0 | KD45: 0 | KE45: 0 | KF45: 0 | KG45: 0 | KH45: 0 | KI45: 0 | KJ45: 0 | KK45: 0 | KL45: 0 | KM45: 0 | KN45: 0 | KO45: 0 | KP45: 0 | KQ45: 0 | KR45: 0 | KS45: 0 | KT45: 0 | KU45: 0 | KV45: 0 | KW45: 0 | KX45: 0 | KY45: 0 | KZ45: 0 | LA45: 0 | LB45: 0 | LC45: 0 | LD45: 0 | LE45: 0 | LF45: 0 | LG45: 0 | LH45: 0 | LI45: 0 | LJ45: 0 | LK45: 0 | LL45: 0 | LM45: 0 | LN45: 0 | LO45: 0 | LP45: 0 | LQ45: 0 | LR45: 0 | LS45: 0 | LT45: 0 | LU45: 0 | LV45: 0 | LW45: 0 | LX45: 0 | LY45: 0 | LZ45: 0 | MA45: 0 | MB45: 0 | MC45: 0 | MD45: 0 | ME45: 0 | MF45: 0 | MG45: 0 | MH45: 0 | MI45: 0 | MJ45: 0 | MK45: 0 | ML45: 0 | MM45: 0 | MN45: 0 | MO45: 0 | MP45: 0 | MQ45: 0 | MR45: 0 | MS45: 0 | MT45: 0 | MU45: 0 | MV45: 0 | MW45: 0 | MX45: 0 | MY45: 0 | MZ45: 0 | NA45: 0 | NB45: 0 | NC45: 0 | ND45: 0 | NE45: 0 | NF45: 0 | NG45: 0 | NH45: 0 | NI45: 0 | NJ45: 0 | NK45: 0 | NL45: 0 | NM45: 0 | NN45: 0 | NO45: 0 | NP45: 0 | NQ45: 0 | NR45: 0 | NS45: 0 | NT45: 0 | NU45: 0 | NV45: 0 | NW45: 0 | NX45: 0 | NY45: 0 | NZ45: 0 | OA45: 0 | OB45: 0 | OC45: 0 | OD45: 0 | OE45: 0 | OF45: 0 | OG45: 0 | OH45: 0 | OI45: 0 | OJ45: 0 | OK45: 0 | OL45: 0 | OM45: 0 | ON45: 0 | OO45: 0 | OP45: 0 | OQ45: 0 | OR45: 0 | OS45: 0 | OT45: 0 | OU45: 0 | OV45: 0 | OW45: 0 | OX45: 0 | OY45: 0 | OZ45: 0 | PA45: 0 | PB45: 0 | PC45: 0 | PD45: 0 | PE45: 0 | PF45: 0 | PG45: 0 | PH45: 0 | PI45: 0 | PJ45: 0 | PK45: 0 | PL45: 0 | PM45: 0 | PN45: 0 | PO45: 0 | PP45: 0 | PQ45: 0 | PR45: 0 | PS45: 0 | PT45: 0 | PU45: 0 | PV45: 0 | PW45: 0 | PX45: 0 | PY45: 0 | PZ45: 0 | QA45: 0
AJ46: 1 | BN46: =IF(AND(BN$5>$BG46,BN$5<=$BH46),BN137,0) -> 0 | BO46: 0 | BP46: 0 | BQ46: 0 | BR46: 0 | BS46: 0 | BT46: 0 | BU46: 0 | BV46: 0 | BW46: 0 | BX46: 0 | BY46: 0 | BZ46: 0 | CA46: 0 | CB46: 0 | CC46: 0 | CD46: 0 | CE46: 0 | CF46: 0 | CG46: 0 | CH46: 0 | CI46: 0 | CJ46: 0 | CK46: 0 | CL46: 0 | CM46: 0 | CN46: 0 | CO46: 0 | CP46: 0 | CQ46: 0 | CR46: 0 | CS46: 0 | CT46: 0 | CU46: 0 | CV46: 0 | CW46: 0 | CX46: 0 | CY46: 0 | CZ46: 0 | DA46: 0 | DB46: 0 | DC46: 0 | DD46: 0 | DE46: 0 | DF46: 0 | DG46: 0 | DH46: 0 | DI46: 0 | DJ46: 0 | DK46: 0 | DL46: 0 | DM46: 0 | DN46: 0 | DO46: 0 | DP46: 0 | DQ46: 0 | DR46: 0 | DS46: 0 | DT46: 0 | DU46: 0 | DV46: 0 | DW46: 0 | DX46: 0 | DY46: 0 | DZ46: =IF(AND(DZ$5>$BG46,DZ$5<=$BH46),DZ137,0) -> 0 | EA46: 0 | EB46: 0 | EC46: 0 | ED46: 0 | EE46: 0 | EF46: 0 | EG46: 0 | EH46: 0 | EI46: 0 | EJ46: 0 | EK46: 0 | EL46: 0 | EM46: 0 | EN46: 0 | EO46: 0 | EP46: 0 | EQ46: 0 | ER46: 0 | ES46: 0 | ET46: 0 | EU46: 0 | EV46: 0 | EW46: 0 | EX46: 0 | EY46: 0 | EZ46: 0 | FA46: 0 | FB46: 0 | FC46: 0 | FD46: 0 | FE46: 0 | FF46: 0 | FG46: 0 | FH46: 0 | FI46: 0 | FJ46: 0 | FK46: 0 | FL46: 0 | FM46: 0 | FN46: 0 | FO46: 0 | FP46: 0 | FQ46: 0 | FR46: 0 | FS46: 0 | FT46: 0 | FU46: 0 | FV46: 0 | FW46: 0 | FX46: 0 | FY46: 0 | FZ46: 0 | GA46: 0 | GB46: 0 | GC46: 0 | GD46: 0 | GE46: 0 | GF46: 0 | GG46: 0 | GH46: 0 | GI46: 0 | GJ46: 0 | GK46: 0 | GL46: 0 | GM46: 0 | GN46: 0 | GO46: 0 | GP46: 0 | GQ46: 0 | GR46: 0 | GS46: 0 | GT46: 0 | GU46: 0 | GV46: 0 | GW46: 0 | GX46: 0 | GY46: 0 | GZ46: 0 | HA46: 0 | HB46: 0 | HC46: 0 | HD46: 0 | HE46: 0 | HF46: 0 | HG46: 0 | HH46: 0 | HI46: 0 | HJ46: 0 | HK46: 0 | HL46: 0 | HM46: 0 | HN46: 0 | HO46: 0 | HP46: 0 | HQ46: 0 | HR46: 0 | HS46: 0 | HT46: 0 | HU46: 0 | HV46: 0 | HW46: 0 | HX46: 0 | HY46: 0 | HZ46: 0 | IA46: 0 | IB46: 0 | IC46: 0 | ID46: 0 | IE46: 0 | IF46: 0 | IG46: 0 | IH46: 0 | II46: 0 | IJ46: 0 | IK46: 0 | IL46: 0 | IM46: 0 | IN46: 0 | IO46: 0 | IP46: 0 | IQ46: 0 | IR46: 0 | IS46: 0 | IT46: 0 | IU46: 0 | IV46: 0 | IW46: 0 | IX46: 0 | IY46: 0 | IZ46: 0 | JA46: 0 | JB46: 0 | JC46: 0 | JD46: 0 | JE46: 0 | JF46: 0 | JG46: 0 | JH46: 0 | JI46: 0 | JJ46: 0 | JK46: 0 | JL46: 0 | JM46: 0 | JN46: 0 | JO46: 0 | JP46: 0 | JQ46: 0 | JR46: 0 | JS46: 0 | JT46: 0 | JU46: 0 | JV46: 0 | JW46: 0 | JX46: 0 | JY46: 0 | JZ46: 0 | KA46: 0 | KB46: 0 | KC46: 0 | KD46: 0 | KE46: 0 | KF46: 0 | KG46: 0 | KH46: 0 | KI46: 0 | KJ46: 0 | KK46: 0 | KL46: 0 | KM46: 0 | KN46: 0 | KO46: 0 | KP46: 0 | KQ46: 0 | KR46: 0 | KS46: 0 | KT46: 0 | KU46: 0 | KV46: 0 | KW46: 0 | KX46: 0 | KY46: 0 | KZ46: 0 | LA46: 0 | LB46: 0 | LC46: 0 | LD46: 0 | LE46: 0 | LF46: 0 | LG46: 0 | LH46: 0 | LI46: 0 | LJ46: 0 | LK46: 0 | LL46: 0 | LM46: 0 | LN46: 0 | LO46: 0 | LP46: 0 | LQ46: 0 | LR46: 0 | LS46: 0 | LT46: 0 | LU46: 0 | LV46: 0 | LW46: 0 | LX46: 0 | LY46: 0 | LZ46: 0 | MA46: 0 | MB46: 0 | MC46: 0 | MD46: 0 | ME46: 0 | MF46: 0 | MG46: 0 | MH46: 0 | MI46: 0 | MJ46: 0 | MK46: 0 | ML46: 0 | MM46: 0 | MN46: 0 | MO46: 0 | MP46: 0 | MQ46: 0 | MR46: 0 | MS46: 0 | MT46: 0 | MU46: 0 | MV46: 0 | MW46: 0 | MX46: 0 | MY46: 0 | MZ46: 0 | NA46: 0 | NB46: 0 | NC46: 0 | ND46: 0 | NE46: 0 | NF46: 0 | NG46: 0 | NH46: 0 | NI46: 0 | NJ46: 0 | NK46: 0 | NL46: 0 | NM46: 0 | NN46: 0 | NO46: 0 | NP46: 0 | NQ46: 0 | NR46: 0 | NS46: 0 | NT46: 0 | NU46: 0 | NV46: 0 | NW46: 0 | NX46: 0 | NY46: 0 | NZ46: 0 | OA46: 0 | OB46: 0 | OC46: 0 | OD46: 0 | OE46: 0 | OF46: 0 | OG46: 0 | OH46: 0 | OI46: 0 | OJ46: 0 | OK46: 0 | OL46: 0 | OM46: 0 | ON46: 0 | OO46: 0 | OP46: 0 | OQ46: 0 | OR46: 0 | OS46: 0 | OT46: 0 | OU46: 0 | OV46: 0 | OW46: 0 | OX46: 0 | OY46: 0 | OZ46: 0 | PA46: 0 | PB46: 0 | PC46: 0 | PD46: 0 | PE46: 0 | PF46: 0 | PG46: 0 | PH46: 0 | PI46: 0 | PJ46: 0 | PK46: 0 | PL46: 0 | PM46: 0 | PN46: 0 | PO46: 0 | PP46: 0 | PQ46: 0 | PR46: =IF(AND(PR$5>$BG46,PR$5<=$BH46),PR137,0) -> 0 | PS46: 0 | PT46: 0 | PU46: 0 | PV46: 0 | PW46: 0 | PX46: 0 | PY46: 0 | PZ46: 0 | QA46: 0
AJ47: 1 | BN47: =IF(AND(BN$5>$BG47,BN$5<=$BH47),BN138,0) -> 0 | BO47: 0 | BP47: 0 | BQ47: 0 | BR47: 0 | BS47: 0 | BT47: 0 | BU47: 0 | BV47: 0 | BW47: 0 | BX47: 0 | BY47: 0 | BZ47: 0 | CA47: 0 | CB47: 0 | CC47: 0 | CD47: 0 | CE47: 0 | CF47: 0 | CG47: 0 | CH47: 0 | CI47: 0 | CJ47: 0 | CK47: 0 | CL47: 0 | CM47: 0 | CN47: 0 | CO47: 0 | CP47: 0 | CQ47: 0 | CR47: 0 | CS47: 0 | CT47: 0 | CU47: 0 | CV47: 0 | CW47: 0 | CX47: 0 | CY47: 0 | CZ47: 0 | DA47: 0 | DB47: 0 | DC47: 0 | DD47: 0 | DE47: 0 | DF47: 0 | DG47: 0 | DH47: 0 | DI47: 0 | DJ47: 0 | DK47: 0 | DL47: 0 | DM47: 0 | DN47: 0 | DO47: 0 | DP47: 0 | DQ47: 0 | DR47: 0 | DS47: 0 | DT47: 0 | DU47: 0 | DV47: 0 | DW47: 0 | DX47: 0 | DY47: 0 | DZ47: 0 | EA47: 0 | EB47: 0 | EC47: 0 | ED47: 0 | EE47: 0 | EF47: 0 | EG47: 0 | EH47: 0 | EI47: 0 | EJ47: 0 | EK47: 0 | EL47: 0 | EM47: 0 | EN47: 0 | EO47: 0 | EP47: 0 | EQ47: 0 | ER47: 0 | ES47: 0 | ET47: 0 | EU47: 0 | EV47: 0 | EW47: 0 | EX47: 0 | EY47: 0 | EZ47: 0 | FA47: 0 | FB47: 0 | FC47: 0 | FD47: 0 | FE47: 0 | FF47: 0 | FG47: 0 | FH47: 0 | FI47: 0 | FJ47: 0 | FK47: 0 | FL47: 0 | FM47: 0 | FN47: 0 | FO47: 0 | FP47: 0 | FQ47: 0 | FR47: 0 | FS47: 0 | FT47: 0 | FU47: 0 | FV47: 0 | FW47: 0 | FX47: 0 | FY47: 0 | FZ47: 0 | GA47: 0 | GB47: 0 | GC47: 0 | GD47: 0 | GE47: 0 | GF47: 0 | GG47: 0 | GH47: 0 | GI47: 0 | GJ47: 0 | GK47: 0 | GL47: 0 | GM47: 0 | GN47: 0 | GO47: 0 | GP47: 0 | GQ47: 0 | GR47: 0 | GS47: 0 | GT47: 0 | GU47: 0 | GV47: 0 | GW47: 0 | GX47: 0 | GY47: 0 | GZ47: 0 | HA47: 0 | HB47: 0 | HC47: 0 | HD47: 0 | HE47: 0 | HF47: 0 | HG47: 0 | HH47: 0 | HI47: 0 | HJ47: 0 | HK47: 0 | HL47: 0 | HM47: 0 | HN47: 0 | HO47: 0 | HP47: 0 | HQ47: 0 | HR47: 0 | HS47: 0 | HT47: 0 | HU47: 0 | HV47: 0 | HW47: 0 | HX47: 0 | HY47: 0 | HZ47: 0 | IA47: 0 | IB47: 0 | IC47: 0 | ID47: 0 | IE47: 0 | IF47: 0 | IG47: 0 | IH47: 0 | II47: 0 | IJ47: 0 | IK47: 0 | IL47: 0 | IM47: 0 | IN47: 0 | IO47: 0 | IP47: 0 | IQ47: 0 | IR47: 0 | IS47: 0 | IT47: 0 | IU47: 0 | IV47: 0 | IW47: 0 | IX47: 0 | IY47: 0 | IZ47: 0 | JA47: 0 | JB47: 0 | JC47: 0 | JD47: 0 | JE47: 0 | JF47: 0 | JG47: 0 | JH47: 0 | JI47: 0 | JJ47: 0 | JK47: 0 | JL47: 0 | JM47: 0 | JN47: 0 | JO47: 0 | JP47: 0 | JQ47: 0 | JR47: 0 | JS47: 0 | JT47: 0 | JU47: 0 | JV47: 0 | JW47: 0 | JX47: 0 | JY47: 0 | JZ47: 0 | KA47: 0 | KB47: 0 | KC47: 0 | KD47: 0 | KE47: 0 | KF47: 0 | KG47: 0 | KH47: 0 | KI47: 0 | KJ47: 0 | KK47: 0 | KL47: 0 | KM47: 0 | KN47: 0 | KO47: 0 | KP47: 0 | KQ47: 0 | KR47: 0 | KS47: 0 | KT47: 0 | KU47: 0 | KV47: 0 | KW47: 0 | KX47: 0 | KY47: 0 | KZ47: 0 | LA47: 0 | LB47: 0 | LC47: 0 | LD47: 0 | LE47: 0 | LF47: 0 | LG47: 0 | LH47: 0 | LI47: 0 | LJ47: 0 | LK47: 0 | LL47: 0 | LM47: 0 | LN47: 0 | LO47: 0 | LP47: 0 | LQ47: 0 | LR47: 0 | LS47: 0 | LT47: 0 | LU47: 0 | LV47: 0 | LW47: 0 | LX47: 0 | LY47: 0 | LZ47: 0 | MA47: 0 | MB47: 0 | MC47: 0 | MD47: 0 | ME47: 0 | MF47: 0 | MG47: 0 | MH47: 0 | MI47: 0 | MJ47: 0 | MK47: 0 | ML47: 0 | MM47: 0 | MN47: 0 | MO47: 0 | MP47: 0 | MQ47: 0 | MR47: 0 | MS47: 0 | MT47: 0 | MU47: 0 | MV47: 0 | MW47: 0 | MX47: 0 | MY47: 0 | MZ47: 0 | NA47: 0 | NB47: 0 | NC47: 0 | ND47: 0 | NE47: 0 | NF47: 0 | NG47: 0 | NH47: 0 | NI47: 0 | NJ47: 0 | NK47: 0 | NL47: 0 | NM47: 0 | NN47: 0 | NO47: 0 | NP47: 0 | NQ47: 0 | NR47: 0 | NS47: 0 | NT47: 0 | NU47: 0 | NV47: 0 | NW47: 0 | NX47: 0 | NY47: 0 | NZ47: 0 | OA47: =IF(AND(OA$5>$BG47,OA$5<=$BH47),OA138,0) -> 0 | OB47: 0 | OC47: 0 | OD47: 0 | OE47: 0 | OF47: 0 | OG47: 0 | OH47: 0 | OI47: 0 | OJ47: 0 | OK47: 0 | OL47: 0 | OM47: 0 | ON47: 0 | OO47: 0 | OP47: 0 | OQ47: 0 | OR47: 0 | OS47: 0 | OT47: 0 | OU47: 0 | OV47: 0 | OW47: 0 | OX47: 0 | OY47: 0 | OZ47: 0 | PA47: 0 | PB47: 0 | PC47: 0 | PD47: 0 | PE47: 0 | PF47: 0 | PG47: 0 | PH47: 0 | PI47: 0 | PJ47: 0 | PK47: 0 | PL47: 0 | PM47: 0 | PN47: 0 | PO47: 0 | PP47: 0 | PQ47: 0 | PR47: 0 | PS47: 0 | PT47: 0 | PU47: 0 | PV47: 0 | PW47: 0 | PX47: 0 | PY47: 0 | PZ47: 0 | QA47: 0
AJ48: 1 | BN48: =IF(AND(BN$5>$BG48,BN$5<=$BH48),BN139,0) -> 0 | BO48: 0 | BP48: 0 | BQ48: 0 | BR48: 0 | BS48: 0 | BT48: 0 | BU48: 0 | BV48: 0 | BW48: 0 | BX48: 0 | BY48: 0 | BZ48: 0 | CA48: 0 | CB48: 0 | CC48: 0 | CD48: 0 | CE48: 0 | CF48: 0 | CG48: 0 | CH48: 0 | CI48: 0 | CJ48: 0 | CK48: 0 | CL48: 0 | CM48: 0 | CN48: 0 | CO48: 0 | CP48: 0 | CQ48: 0 | CR48: 0 | CS48: 0 | CT48: 0 | CU48: 0 | CV48: 0 | CW48: 0 | CX48: 0 | CY48: 0 | CZ48: 0 | DA48: 0 | DB48: 0 | DC48: 0 | DD48: 0 | DE48: 0 | DF48: 0 | DG48: 0 | DH48: 0 | DI48: 0 | DJ48: 0 | DK48: 0 | DL48: 0 | DM48: 0 | DN48: 0 | DO48: 0 | DP48: 0 | DQ48: 0 | DR48: 0 | DS48: 0 | DT48: 0 | DU48: 0 | DV48: 0 | DW48: 0 | DX48: 0 | DY48: 0 | DZ48: 0 | EA48: 0 | EB48: 0 | EC48: 0 | ED48: 0 | EE48: 0 | EF48: 0 | EG48: 0 | EH48: 0 | EI48: 0 | EJ48: 0 | EK48: 0 | EL48: 0 | EM48: 0 | EN48: 0 | EO48: 0 | EP48: 0 | EQ48: 0 | ER48: 0 | ES48: 0 | ET48: 0 | EU48: 0 | EV48: 0 | EW48: 0 | EX48: 0 | EY48: 0 | EZ48: 0 | FA48: 0 | FB48: 0 | FC48: 0 | FD48: 0 | FE48: 0 | FF48: 0 | FG48: 0 | FH48: 0 | FI48: 0 | FJ48: 0 | FK48: 0 | FL48: 0 | FM48: 0 | FN48: 0 | FO48: 0 | FP48: 0 | FQ48: 0 | FR48: 0 | FS48: 0 | FT48: 0 | FU48: 0 | FV48: 0 | FW48: 0 | FX48: 0 | FY48: 0 | FZ48: 0 | GA48: 0 | GB48: 0 | GC48: 0 | GD48: 0 | GE48: 0 | GF48: 0 | GG48: 0 | GH48: 0 | GI48: 0 | GJ48: 0 | GK48: 0 | GL48: 0 | GM48: 0 | GN48: 0 | GO48: 0 | GP48: 0 | GQ48: 0 | GR48: =IF(AND(GR$5>$BG48,GR$5<=$BH48),GR139,0) -> 0 | GS48: 0 | GT48: 0 | GU48: 0 | GV48: 0 | GW48: 0 | GX48: 0 | GY48: 0 | GZ48: 0 | HA48: 0 | HB48: 0 | HC48: 0 | HD48: 0 | HE48: 0 | HF48: 0 | HG48: 0 | HH48: 0 | HI48: 0 | HJ48: 0 | HK48: 0 | HL48: 0 | HM48: 0 | HN48: 0 | HO48: 0 | HP48: 0 | HQ48: 0 | HR48: 0 | HS48: 0 | HT48: 0 | HU48: 0 | HV48: 0 | HW48: 0 | HX48: 0 | HY48: 0 | HZ48: 0 | IA48: 0 | IB48: 0 | IC48: 0 | ID48: 0 | IE48: 0 | IF48: 0 | IG48: 0 | IH48: 0 | II48: 0 | IJ48: 0 | IK48: 0 | IL48: 0 | IM48: 0 | IN48: 0 | IO48: 0 | IP48: 0 | IQ48: 0 | IR48: 0 | IS48: 0 | IT48: 0 | IU48: 0 | IV48: 0 | IW48: 0 | IX48: 0 | IY48: 0 | IZ48: 0 | JA48: 0 | JB48: 0 | JC48: 0 | JD48: 0 | JE48: 0 | JF48: 0 | JG48: 0 | JH48: 0 | JI48: 0 | JJ48: 0 | JK48: 0 | JL48: 0 | JM48: 0 | JN48: 0 | JO48: 0 | JP48: 0 | JQ48: 0 | JR48: 0 | JS48: 0 | JT48: 0 | JU48: 0 | JV48: 0 | JW48: 0 | JX48: 0 | JY48: 0 | JZ48: 0 | KA48: 0 | KB48: 0 | KC48: 0 | KD48: 0 | KE48: 0 | KF48: 0 | KG48: 0 | KH48: 0 | KI48: 0 | KJ48: 0 | KK48: 0 | KL48: 0 | KM48: 0 | KN48: 0 | KO48: 0 | KP48: 0 | KQ48: 0 | KR48: 0 | KS48: 0 | KT48: 0 | KU48: 0 | KV48: 0 | KW48: 0 | KX48: 0 | KY48: 0 | KZ48: 0 | LA48: 0 | LB48: 0 | LC48: 0 | LD48: 0 | LE48: 0 | LF48: 0 | LG48: 0 | LH48: 0 | LI48: 0 | LJ48: 0 | LK48: 0 | LL48: 0 | LM48: 0 | LN48: 0 | LO48: =IF(AND(LO$5>$BG48,LO$5<=$BH48),LO139,0) -> 0 | LP48: 0 | LQ48: 0 | LR48: 0 | LS48: 0 | LT48: 0 | LU48: 0 | LV48: 0 | LW48: 0 | LX48: 0 | LY48: 0 | LZ48: 0 | MA48: 0 | MB48: 0 | MC48: 0 | MD48: 0 | ME48: 0 | MF48: 0 | MG48: 0 | MH48: 0 | MI48: 0 | MJ48: 0 | MK48: 0 | ML48: 0 | MM48: 0 | MN48: 0 | MO48: 0 | MP48: 0 | MQ48: 0 | MR48: 0 | MS48: 0 | MT48: 0 | MU48: 0 | MV48: 0 | MW48: 0 | MX48: 0 | MY48: 0 | MZ48: 0 | NA48: 0 | NB48: 0 | NC48: 0 | ND48: 0 | NE48: 0 | NF48: 0 | NG48: 0 | NH48: 0 | NI48: 0 | NJ48: 0 | NK48: 0 | NL48: 0 | NM48: 0 | NN48: 0 | NO48: 0 | NP48: 0 | NQ48: 0 | NR48: 0 | NS48: 0 | NT48: 0 | NU48: 0 | NV48: 0 | NW48: 0 | NX48: 0 | NY48: 0 | NZ48: 0 | OA48: 0 | OB48: 0 | OC48: 0 | OD48: 0 | OE48: 0 | OF48: 0 | OG48: 0 | OH48: 0 | OI48: 0 | OJ48: 0 | OK48: 0 | OL48: 0 | OM48: 0 | ON48: 0 | OO48: 0 | OP48: 0 | OQ48: 0 | OR48: 0 | OS48: 0 | OT48: 0 | OU48: 0 | OV48: 0 | OW48: 0 | OX48: 0 | OY48: 0 | OZ48: 0 | PA48: 0 | PB48: 0 | PC48: 0 | PD48: 0 | PE48: 0 | PF48: 0 | PG48: 0 | PH48: 0 | PI48: 0 | PJ48: 0 | PK48: 0 | PL48: 0 | PM48: 0 | PN48: 0 | PO48: 0 | PP48: 0 | PQ48: 0 | PR48: 0 | PS48: 0 | PT48: 0 | PU48: 0 | PV48: 0 | PW48: 0 | PX48: 0 | PY48: 0 | PZ48: 0 | QA48: 0
AJ49: 1 | BN49: =IF(AND(BN$5>$BG49,BN$5<=$BH49),BN140,0) -> 0 | BO49: 0 | BP49: 0 | BQ49: 0 | BR49: 0 | BS49: 0 | BT49: 0 | BU49: 0 | BV49: 0 | BW49: 0 | BX49: 0 | BY49: 0 | BZ49: 0 | CA49: 0 | CB49: 0 | CC49: 0 | CD49: 0 | CE49: 0 | CF49: 0 | CG49: 0 | CH49: 0 | CI49: 0 | CJ49: 0 | CK49: 0 | CL49: 0 | CM49: 0 | CN49: 0 | CO49: 0 | CP49: 0 | CQ49: 0 | CR49: 0 | CS49: 0 | CT49: 0 | CU49: 0 | CV49: 0 | CW49: 0 | CX49: 0 | CY49: 0 | CZ49: 0 | DA49: 0 | DB49: 0 | DC49: 0 | DD49: 0 | DE49: 0 | DF49: 0 | DG49: 0 | DH49: 0 | DI49: 0 | DJ49: 0 | DK49: 0 | DL49: 0 | DM49: 0 | DN49: 0 | DO49: 0 | DP49: 0 | DQ49: 0 | DR49: 0 | DS49: 0 | DT49: 0 | DU49: 0 | DV49: 0 | DW49: 0 | DX49: 0 | DY49: 0 | DZ49: 0 | EA49: 0 | EB49: 0 | EC49: 0 | ED49: 0 | EE49: 0 | EF49: 0 | EG49: =IF(AND(EG$5>$BG49,EG$5<=$BH49),EG140,0) -> 0 | EH49: 0 | EI49: 0 | EJ49: 0 | EK49: 0 | EL49: 0 | EM49: 0 | EN49: 0 | EO49: 0 | EP49: 0 | EQ49: 0 | ER49: 0 | ES49: 0 | ET49: 0 | EU49: 0 | EV49: 0 | EW49: 0 | EX49: 0 | EY49: 0 | EZ49: 0 | FA49: 0 | FB49: 0 | FC49: 0 | FD49: 0 | FE49: 0 | FF49: 0 | FG49: 0 | FH49: 0 | FI49: 0 | FJ49: 0 | FK49: 0 | FL49: 0 | FM49: 0 | FN49: 0 | FO49: 0 | FP49: 0 | FQ49: 0 | FR49: 0 | FS49: 0 | FT49: 0 | FU49: 0 | FV49: 0 | FW49: 0 | FX49: 0 | FY49: 0 | FZ49: 0 | GA49: 0 | GB49: 0 | GC49: 0 | GD49: 0 | GE49: 0 | GF49: 0 | GG49: 0 | GH49: 0 | GI49: 0 | GJ49: 0 | GK49: 0 | GL49: 0 | GM49: 0 | GN49: 0 | GO49: 0 | GP49: 0 | GQ49: 0 | GR49: 0 | GS49: 0 | GT49: 0 | GU49: 0 | GV49: 0 | GW49: 0 | GX49: 0 | GY49: 0 | GZ49: 0 | HA49: 0 | HB49: 0 | HC49: 0 | HD49: 0 | HE49: 0 | HF49: 0 | HG49: 0 | HH49: 0 | HI49: 0 | HJ49: 0 | HK49: 0 | HL49: 0 | HM49: 0 | HN49: 0 | HO49: 0 | HP49: 0 | HQ49: 0 | HR49: 0 | HS49: 0 | HT49: 0 | HU49: 0 | HV49: 0 | HW49: 0 | HX49: 0 | HY49: 0 | HZ49: 0 | IA49: 0 | IB49: 0 | IC49: 0 | ID49: 0 | IE49: 0 | IF49: 0 | IG49: 0 | IH49: 0 | II49: 0 | IJ49: 0 | IK49: 0 | IL49: 0 | IM49: 0 | IN49: 0 | IO49: 0 | IP49: 0 | IQ49: 0 | IR49: 0 | IS49: 0 | IT49: 0 | IU49: 0 | IV49: 0 | IW49: 0 | IX49: 0 | IY49: 0 | IZ49: 0 | JA49: 0 | JB49: 0 | JC49: 0 | JD49: =IF(AND(JD$5>$BG49,JD$5<=$BH49),JD140,0) -> 0 | JE49: 0 | JF49: 0 | JG49: 0 | JH49: 0 | JI49: 0 | JJ49: 0 | JK49: 0 | JL49: 0 | JM49: 0 | JN49: 0 | JO49: 0 | JP49: 0 | JQ49: 0 | JR49: 0 | JS49: 0 | JT49: 0 | JU49: 0 | JV49: 0 | JW49: 0 | JX49: 0 | JY49: 0 | JZ49: 0 | KA49: 0 | KB49: 0 | KC49: 0 | KD49: 0 | KE49: 0 | KF49: 0 | KG49: 0 | KH49: 0 | KI49: 0 | KJ49: 0 | KK49: 0 | KL49: 0 | KM49: 0 | KN49: 0 | KO49: 0 | KP49: 0 | KQ49: 0 | KR49: 0 | KS49: 0 | KT49: 0 | KU49: 0 | KV49: 0 | KW49: 0 | KX49: 0 | KY49: 0 | KZ49: 0 | LA49: 0 | LB49: 0 | LC49: 0 | LD49: 0 | LE49: 0 | LF49: 0 | LG49: 0 | LH49: 0 | LI49: 0 | LJ49: 0 | LK49: 0 | LL49: 0 | LM49: 0 | LN49: 0 | LO49: 0 | LP49: 0 | LQ49: 0 | LR49: 0 | LS49: 0 | LT49: 0 | LU49: 0 | LV49: 0 | LW49: 0 | LX49: 0 | LY49: 0 | LZ49: 0 | MA49: 0 | MB49: 0 | MC49: 0 | MD49: 0 | ME49: 0 | MF49: 0 | MG49: 0 | MH49: 0 | MI49: 0 | MJ49: 0 | MK49: 0 | ML49: 0 | MM49: 0 | MN49: 0 | MO49: 0 | MP49: 0 | MQ49: 0 | MR49: 0 | MS49: 0 | MT49: 0 | MU49: 0 | MV49: 0 | MW49: 0 | MX49: 0 | MY49: 0 | MZ49: 0 | NA49: 0 | NB49: 0 | NC49: 0 | ND49: 0 | NE49: 0 | NF49: 0 | NG49: 0 | NH49: 0 | NI49: 0 | NJ49: 0 | NK49: 0 | NL49: 0 | NM49: 0 | NN49: 0 | NO49: 0 | NP49: 0 | NQ49: 0 | NR49: 0 | NS49: 0 | NT49: 0 | NU49: 0 | NV49: 0 | NW49: 0 | NX49: 0 | NY49: 0 | NZ49: 0 | OA49: 0 | OB49: 0 | OC49: 0 | OD49: 0 | OE49: 0 | OF49: 0 | OG49: 0 | OH49: 0 | OI49: 0 | OJ49: 0 | OK49: 0 | OL49: 0 | OM49: 0 | ON49: 0 | OO49: 0 | OP49: 0 | OQ49: 0 | OR49: 0 | OS49: 0 | OT49: 0 | OU49: 0 | OV49: 0 | OW49: 0 | OX49: 0 | OY49: 0 | OZ49: 0 | PA49: 0 | PB49: 0 | PC49: 0 | PD49: 0 | PE49: 0 | PF49: 0 | PG49: 0 | PH49: 0 | PI49: 0 | PJ49: 0 | PK49: 0 | PL49: 0 | PM49: 0 | PN49: 0 | PO49: 0 | PP49: 0 | PQ49: 0 | PR49: 0 | PS49: 0 | PT49: 0 | PU49: 0 | PV49: 0 | PW49: 0 | PX49: 0 | PY49: 0 | PZ49: 0 | QA49: 0
AJ50: 1 | BN50: =IF(AND(BN$5>$BG50,BN$5<=$BH50),BN141,0) -> 0 | BO50: 0 | BP50: 0 | BQ50: 0 | BR50: 0 | BS50: 0 | BT50: 0 | BU50: 0 | BV50: 0 | BW50: 0 | BX50: 0 | BY50: 0 | BZ50: 0 | CA50: 0 | CB50: 0 | CC50: 0 | CD50: 0 | CE50: 0 | CF50: 0 | CG50: 0 | CH50: 0 | CI50: 0 | CJ50: 0 | CK50: 0 | CL50: 0 | CM50: 0 | CN50: 0 | CO50: 0 | CP50: 0 | CQ50: 0 | CR50: 0 | CS50: 0 | CT50: 0 | CU50: 0 | CV50: 0 | CW50: 0 | CX50: 0 | CY50: 0 | CZ50: 0 | DA50: 0 | DB50: 0 | DC50: 0 | DD50: 0 | DE50: 0 | DF50: 0 | DG50: 0 | DH50: 0 | DI50: 0 | DJ50: 0 | DK50: 0 | DL50: 0 | DM50: 0 | DN50: 0 | DO50: 0 | DP50: 0 | DQ50: 0 | DR50: 0 | DS50: 0 | DT50: 0 | DU50: 0 | DV50: 0 | DW50: 0 | DX50: 0 | DY50: 0 | DZ50: =IF(AND(DZ$5>$BG50,DZ$5<=$BH50),DZ141,0) -> 0 | EA50: 0 | EB50: 0 | EC50: 0 | ED50: 0 | EE50: 0 | EF50: 0 | EG50: 0 | EH50: 0 | EI50: 0 | EJ50: 0 | EK50: 0 | EL50: 0 | EM50: 0 | EN50: 0 | EO50: 0 | EP50: 0 | EQ50: 0 | ER50: 0 | ES50: 0 | ET50: 0 | EU50: 0 | EV50: 0 | EW50: 0 | EX50: 0 | EY50: 0 | EZ50: 0 | FA50: 0 | FB50: 0 | FC50: 0 | FD50: 0 | FE50: 0 | FF50: 0 | FG50: 0 | FH50: 0 | FI50: 0 | FJ50: 0 | FK50: 0 | FL50: 0 | FM50: 0 | FN50: 0 | FO50: 0 | FP50: 0 | FQ50: 0 | FR50: 0 | FS50: 0 | FT50: 0 | FU50: 0 | FV50: 0 | FW50: 0 | FX50: 0 | FY50: 0 | FZ50: 0 | GA50: 0 | GB50: 0 | GC50: 0 | GD50: 0 | GE50: 0 | GF50: 0 | GG50: 0 | GH50: 0 | GI50: 0 | GJ50: 0 | GK50: 0 | GL50: 0 | GM50: 0 | GN50: 0 | GO50: 0 | GP50: 0 | GQ50: 0 | GR50: 0 | GS50: 0 | GT50: 0 | GU50: 0 | GV50: 0 | GW50: 0 | GX50: 0 | GY50: 0 | GZ50: 0 | HA50: 0 | HB50: 0 | HC50: 0 | HD50: 0 | HE50: 0 | HF50: 0 | HG50: 0 | HH50: 0 | HI50: 0 | HJ50: 0 | HK50: 0 | HL50: 0 | HM50: 0 | HN50: 0 | HO50: 0 | HP50: 0 | HQ50: 0 | HR50: 0 | HS50: 0 | HT50: 0 | HU50: 0 | HV50: 0 | HW50: 0 | HX50: 0 | HY50: 0 | HZ50: 0 | IA50: 0 | IB50: 0 | IC50: 0 | ID50: 0 | IE50: 0 | IF50: 0 | IG50: 0 | IH50: 0 | II50: 0 | IJ50: 0 | IK50: 0 | IL50: 0 | IM50: 0 | IN50: 0 | IO50: 0 | IP50: 0 | IQ50: 0 | IR50: 0 | IS50: 0 | IT50: 0 | IU50: 0 | IV50: 0 | IW50: 0 | IX50: 0 | IY50: 0 | IZ50: 0 | JA50: 0 | JB50: 0 | JC50: 0 | JD50: 0 | JE50: 0 | JF50: 0 | JG50: 0 | JH50: 0 | JI50: 0 | JJ50: 0 | JK50: 0 | JL50: 0 | JM50: 0 | JN50: 0 | JO50: 0 | JP50: 0 | JQ50: 0 | JR50: 0 | JS50: 0 | JT50: 0 | JU50: 0 | JV50: 0 | JW50: 0 | JX50: 0 | JY50: 0 | JZ50: 0 | KA50: 0 | KB50: 0 | KC50: 0 | KD50: 0 | KE50: 0 | KF50: 0 | KG50: 0 | KH50: 0 | KI50: 0 | KJ50: 0 | KK50: 0 | KL50: 0 | KM50: 0 | KN50: 0 | KO50: 0 | KP50: 0 | KQ50: 0 | KR50: 0 | KS50: 0 | KT50: 0 | KU50: 0 | KV50: 0 | KW50: 0 | KX50: 0 | KY50: 0 | KZ50: 0 | LA50: 0 | LB50: 0 | LC50: 0 | LD50: 0 | LE50: 0 | LF50: 0 | LG50: 0 | LH50: 0 | LI50: 0 | LJ50: 0 | LK50: 0 | LL50: 0 | LM50: 0 | LN50: 0 | LO50: 0 | LP50: 0 | LQ50: 0 | LR50: 0 | LS50: 0 | LT50: 0 | LU50: 0 | LV50: 0 | LW50: 0 | LX50: 0 | LY50: 0 | LZ50: 0 | MA50: 0 | MB50: 0 | MC50: 0 | MD50: 0 | ME50: 0 | MF50: 0 | MG50: 0 | MH50: 0 | MI50: 0 | MJ50: 0 | MK50: 0 | ML50: 0 | MM50: 0 | MN50: 0 | MO50: 0 | MP50: 0 | MQ50: 0 | MR50: 0 | MS50: 0 | MT50: 0 | MU50: 0 | MV50: 0 | MW50: 0 | MX50: 0 | MY50: 0 | MZ50: 0 | NA50: 0 | NB50: 0 | NC50: 0 | ND50: 0 | NE50: 0 | NF50: 0 | NG50: 0 | NH50: 0 | NI50: 0 | NJ50: 0 | NK50: 0 | NL50: 0 | NM50: 0 | NN50: 0 | NO50: 0 | NP50: 0 | NQ50: 0 | NR50: 0 | NS50: 0 | NT50: 0 | NU50: 0 | NV50: 0 | NW50: 0 | NX50: 0 | NY50: 0 | NZ50: 0 | OA50: 0 | OB50: 0 | OC50: 0 | OD50: 0 | OE50: 0 | OF50: 0 | OG50: 0 | OH50: 0 | OI50: 0 | OJ50: 0 | OK50: 0 | OL50: 0 | OM50: 0 | ON50: 0 | OO50: 0 | OP50: 0 | OQ50: 0 | OR50: 0 | OS50: 0 | OT50: 0 | OU50: 0 | OV50: 0 | OW50: 0 | OX50: 0 | OY50: 0 | OZ50: 0 | PA50: 0 | PB50: 0 | PC50: 0 | PD50: 0 | PE50: 0 | PF50: 0 | PG50: 0 | PH50: 0 | PI50: 0 | PJ50: 0 | PK50: 0 | PL50: 0 | PM50: 0 | PN50: 0 | PO50: 0 | PP50: 0 | PQ50: 0 | PR50: 0 | PS50: 0 | PT50: 0 | PU50: 0 | PV50: 0 | PW50: 0 | PX50: 0 | PY50: 0 | PZ50: 0 | QA50: 0
AJ51: 1 | BN51: =IF(AND(BN$5>$BG51,BN$5<=$BH51),BN142,0) -> 0 | BO51: 0 | BP51: 0 | BQ51: 0 | BR51: 0 | BS51: 0 | BT51: 0 | BU51: 0 | BV51: 0 | BW51: 0 | BX51: 0 | BY51: 0 | BZ51: 0 | CA51: 0 | CB51: 0 | CC51: 0 | CD51: 0 | CE51: 0 | CF51: 0 | CG51: 0 | CH51: 0 | CI51: 0 | CJ51: 0 | CK51: 0 | CL51: 0 | CM51: 0 | CN51: 0 | CO51: 0 | CP51: 0 | CQ51: 0 | CR51: 0 | CS51: 0 | CT51: 0 | CU51: 0 | CV51: 0 | CW51: 0 | CX51: 0 | CY51: 0 | CZ51: 0 | DA51: 0 | DB51: 0 | DC51: 0 | DD51: 0 | DE51: 0 | DF51: 0 | DG51: 0 | DH51: 0 | DI51: 0 | DJ51: 0 | DK51: 0 | DL51: 0 | DM51: 0 | DN51: 0 | DO51: 0 | DP51: 0 | DQ51: 0 | DR51: 0 | DS51: 0 | DT51: 0 | DU51: 0 | DV51: 0 | DW51: 0 | DX51: 0 | DY51: 0 | DZ51: 0 | EA51: 0 | EB51: 0 | EC51: 0 | ED51: 0 | EE51: 0 | EF51: 0 | EG51: 0 | EH51: 0 | EI51: 0 | EJ51: 0 | EK51: 0 | EL51: 0 | EM51: 0 | EN51: 0 | EO51: 0 | EP51: 0 | EQ51: 0 | ER51: 0 | ES51: 0 | ET51: 0 | EU51: 0 | EV51: 0 | EW51: 0 | EX51: 0 | EY51: 0 | EZ51: 0 | FA51: 0 | FB51: 0 | FC51: 0 | FD51: 0 | FE51: 0 | FF51: 0 | FG51: 0 | FH51: 0 | FI51: 0 | FJ51: 0 | FK51: 0 | FL51: 0 | FM51: 0 | FN51: 0 | FO51: 0 | FP51: 0 | FQ51: 0 | FR51: 0 | FS51: 0 | FT51: 0 | FU51: 0 | FV51: 0 | FW51: 0 | FX51: 0 | FY51: 0 | FZ51: 0 | GA51: 0 | GB51: 0 | GC51: 0 | GD51: 0 | GE51: 0 | GF51: 0 | GG51: 0 | GH51: 0 | GI51: 0 | GJ51: 0 | GK51: 0 | GL51: 0 | GM51: 0 | GN51: 0 | GO51: 0 | GP51: 0 | GQ51: 0 | GR51: 0 | GS51: 0 | GT51: 0 | GU51: 0 | GV51: 0 | GW51: 0 | GX51: 0 | GY51: 0 | GZ51: 0 | HA51: 0 | HB51: 0 | HC51: 0 | HD51: 0 | HE51: 0 | HF51: 0 | HG51: 0 | HH51: 0 | HI51: 0 | HJ51: 0 | HK51: 0 | HL51: 0 | HM51: 0 | HN51: 0 | HO51: 0 | HP51: 0 | HQ51: 0 | HR51: 0 | HS51: 0 | HT51: 0 | HU51: 0 | HV51: 0 | HW51: 0 | HX51: 0 | HY51: 0 | HZ51: 0 | IA51: 0 | IB51: 0 | IC51: 0 | ID51: 0 | IE51: 0 | IF51: 0 | IG51: 0 | IH51: 0 | II51: 0 | IJ51: 0 | IK51: 0 | IL51: 0 | IM51: 0 | IN51: 0 | IO51: 0 | IP51: 0 | IQ51: 0 | IR51: 0 | IS51: 0 | IT51: 0 | IU51: 0 | IV51: 0 | IW51: 0 | IX51: 0 | IY51: 0 | IZ51: 0 | JA51: 0 | JB51: 0 | JC51: 0 | JD51: 0 | JE51: 0 | JF51: 0 | JG51: 0 | JH51: 0 | JI51: 0 | JJ51: 0 | JK51: 0 | JL51: 0 | JM51: 0 | JN51: 0 | JO51: 0 | JP51: 0 | JQ51: 0 | JR51: 0 | JS51: 0 | JT51: 0 | JU51: 0 | JV51: 0 | JW51: 0 | JX51: 0 | JY51: 0 | JZ51: 0 | KA51: 0 | KB51: 0 | KC51: 0 | KD51: 0 | KE51: 0 | KF51: 0 | KG51: 0 | KH51: 0 | KI51: 0 | KJ51: 0 | KK51: 0 | KL51: 0 | KM51: 0 | KN51: 0 | KO51: 0 | KP51: 0 | KQ51: 0 | KR51: 0 | KS51: 0 | KT51: 0 | KU51: 0 | KV51: 0 | KW51: 0 | KX51: 0 | KY51: 0 | KZ51: 0 | LA51: 0 | LB51: 0 | LC51: 0 | LD51: 0 | LE51: 0 | LF51: 0 | LG51: 0 | LH51: 0 | LI51: 0 | LJ51: 0 | LK51: 0 | LL51: 0 | LM51: 0 | LN51: 0 | LO51: 0 | LP51: 0 | LQ51: 0 | LR51: 0 | LS51: 0 | LT51: 0 | LU51: 0 | LV51: 0 | LW51: 0 | LX51: 0 | LY51: 0 | LZ51: 0 | MA51: 0 | MB51: 0 | MC51: 0 | MD51: 0 | ME51: 0 | MF51: 0 | MG51: 0 | MH51: 0 | MI51: 0 | MJ51: 0 | MK51: 0 | ML51: 0 | MM51: 0 | MN51: 0 | MO51: 0 | MP51: 0 | MQ51: 0 | MR51: 0 | MS51: 0 | MT51: 0 | MU51: 0 | MV51: 0 | MW51: 0 | MX51: 0 | MY51: 0 | MZ51: 0 | NA51: 0 | NB51: 0 | NC51: 0 | ND51: 0 | NE51: 0 | NF51: 0 | NG51: 0 | NH51: 0 | NI51: 0 | NJ51: 0 | NK51: 0 | NL51: 0 | NM51: 0 | NN51: 0 | NO51: 0 | NP51: 0 | NQ51: 0 | NR51: 0 | NS51: 0 | NT51: 0 | NU51: 0 | NV51: 0 | NW51: 0 | NX51: 0 | NY51: 0 | NZ51: 0 | OA51: 0 | OB51: 0 | OC51: 0 | OD51: 0 | OE51: 0 | OF51: 0 | OG51: 0 | OH51: 0 | OI51: 0 | OJ51: 0 | OK51: 0 | OL51: 0 | OM51: 0 | ON51: 0 | OO51: 0 | OP51: 0 | OQ51: 0 | OR51: 0 | OS51: 0 | OT51: 0 | OU51: 0 | OV51: 0 | OW51: 0 | OX51: 0 | OY51: 0 | OZ51: 0 | PA51: 0 | PB51: 0 | PC51: 0 | PD51: 0 | PE51: 0 | PF51: 0 | PG51: 0 | PH51: 0 | PI51: 0 | PJ51: 0 | PK51: 0 | PL51: 0 | PM51: 0 | PN51: 0 | PO51: 0 | PP51: 0 | PQ51: 0 | PR51: =IF(AND(PR$5>$BG51,PR$5<=$BH51),PR142,0) -> 0 | PS51: 0 | PT51: 0 | PU51: 0 | PV51: 0 | PW51: 0 | PX51: 0 | PY51: 0 | PZ51: 0 | QA51: 0
AJ52: 1 | BN52: =IF(AND(BN$5>$BG52,BN$5<=$BH52),BN143,0) -> 0 | BO52: 0 | BP52: 0 | BQ52: 0 | BR52: 0 | BS52: 0 | BT52: 0 | BU52: 0 | BV52: 0 | BW52: 0 | BX52: 0 | BY52: 0 | BZ52: 0 | CA52: 0 | CB52: 0 | CC52: 0 | CD52: 0 | CE52: 0 | CF52: 0 | CG52: 0 | CH52: 0 | CI52: 0 | CJ52: 0 | CK52: 0 | CL52: 0 | CM52: 0 | CN52: 0 | CO52: 0 | CP52: 0 | CQ52: 0 | CR52: 0 | CS52: 0 | CT52: 0 | CU52: 0 | CV52: 0 | CW52: 0 | CX52: 0 | CY52: 0 | CZ52: 0 | DA52: 0 | DB52: 0 | DC52: 0 | DD52: 0 | DE52: 0 | DF52: 0 | DG52: 0 | DH52: 0 | DI52: 0 | DJ52: 0 | DK52: 0 | DL52: 0 | DM52: 0 | DN52: 0 | DO52: 0 | DP52: 0 | DQ52: 0 | DR52: 0 | DS52: 0 | DT52: 0 | DU52: 0 | DV52: 0 | DW52: 0 | DX52: 0 | DY52: 0 | DZ52: 0 | EA52: 0 | EB52: 0 | EC52: 0 | ED52: 0 | EE52: 0 | EF52: 0 | EG52: 0 | EH52: 0 | EI52: 0 | EJ52: 0 | EK52: 0 | EL52: 0 | EM52: 0 | EN52: 0 | EO52: 0 | EP52: 0 | EQ52: 0 | ER52: 0 | ES52: 0 | ET52: 0 | EU52: 0 | EV52: 0 | EW52: 0 | EX52: 0 | EY52: 0 | EZ52: 0 | FA52: 0 | FB52: 0 | FC52: 0 | FD52: 0 | FE52: 0 | FF52: 0 | FG52: 0 | FH52: 0 | FI52: 0 | FJ52: 0 | FK52: 0 | FL52: 0 | FM52: 0 | FN52: 0 | FO52: 0 | FP52: 0 | FQ52: 0 | FR52: 0 | FS52: 0 | FT52: 0 | FU52: 0 | FV52: 0 | FW52: 0 | FX52: 0 | FY52: 0 | FZ52: 0 | GA52: 0 | GB52: 0 | GC52: 0 | GD52: 0 | GE52: 0 | GF52: 0 | GG52: 0 | GH52: 0 | GI52: 0 | GJ52: 0 | GK52: 0 | GL52: 0 | GM52: 0 | GN52: 0 | GO52: 0 | GP52: 0 | GQ52: 0 | GR52: =IF(AND(GR$5>$BG52,GR$5<=$BH52),GR143,0) -> 0 | GS52: 0 | GT52: 0 | GU52: 0 | GV52: 0 | GW52: 0 | GX52: 0 | GY52: 0 | GZ52: 0 | HA52: 0 | HB52: 0 | HC52: 0 | HD52: 0 | HE52: 0 | HF52: 0 | HG52: 0 | HH52: 0 | HI52: 0 | HJ52: 0 | HK52: 0 | HL52: 0 | HM52: 0 | HN52: 0 | HO52: 0 | HP52: 0 | HQ52: 0 | HR52: 0 | HS52: 0 | HT52: 0 | HU52: 0 | HV52: 0 | HW52: 0 | HX52: 0 | HY52: 0 | HZ52: 0 | IA52: 0 | IB52: 0 | IC52: 0 | ID52: 0 | IE52: 0 | IF52: 0 | IG52: 0 | IH52: 0 | II52: 0 | IJ52: 0 | IK52: 0 | IL52: 0 | IM52: 0 | IN52: 0 | IO52: 0 | IP52: 0 | IQ52: 0 | IR52: 0 | IS52: 0 | IT52: 0 | IU52: 0 | IV52: 0 | IW52: 0 | IX52: 0 | IY52: 0 | IZ52: 0 | JA52: 0 | JB52: 0 | JC52: 0 | JD52: 0 | JE52: 0 | JF52: 0 | JG52: 0 | JH52: 0 | JI52: 0 | JJ52: 0 | JK52: 0 | JL52: 0 | JM52: 0 | JN52: 0 | JO52: 0 | JP52: 0 | JQ52: 0 | JR52: 0 | JS52: 0 | JT52: 0 | JU52: 0 | JV52: 0 | JW52: 0 | JX52: 0 | JY52: 0 | JZ52: 0 | KA52: 0 | KB52: 0 | KC52: 0 | KD52: 0 | KE52: 0 | KF52: 0 | KG52: 0 | KH52: 0 | KI52: 0 | KJ52: 0 | KK52: 0 | KL52: 0 | KM52: 0 | KN52: 0 | KO52: 0 | KP52: 0 | KQ52: 0 | KR52: 0 | KS52: 0 | KT52: 0 | KU52: 0 | KV52: 0 | KW52: 0 | KX52: 0 | KY52: 0 | KZ52: 0 | LA52: 0 | LB52: 0 | LC52: 0 | LD52: 0 | LE52: 0 | LF52: 0 | LG52: 0 | LH52: 0 | LI52: 0 | LJ52: 0 | LK52: 0 | LL52: 0 | LM52: 0 | LN52: 0 | LO52: =IF(AND(LO$5>$BG52,LO$5<=$BH52),LO143,0) -> 0 | LP52: 0 | LQ52: 0 | LR52: 0 | LS52: 0 | LT52: 0 | LU52: 0 | LV52: 0 | LW52: 0 | LX52: 0 | LY52: 0 | LZ52: 0 | MA52: 0 | MB52: 0 | MC52: 0 | MD52: 0 | ME52: 0 | MF52: 0 | MG52: 0 | MH52: 0 | MI52: 0 | MJ52: 0 | MK52: 0 | ML52: 0 | MM52: 0 | MN52: 0 | MO52: 0 | MP52: 0 | MQ52: 0 | MR52: 0 | MS52: 0 | MT52: 0 | MU52: 0 | MV52: 0 | MW52: 0 | MX52: 0 | MY52: 0 | MZ52: 0 | NA52: 0 | NB52: 0 | NC52: 0 | ND52: 0 | NE52: 0 | NF52: 0 | NG52: 0 | NH52: 0 | NI52: 0 | NJ52: 0 | NK52: 0 | NL52: 0 | NM52: 0 | NN52: 0 | NO52: 0 | NP52: 0 | NQ52: 0 | NR52: 0 | NS52: 0 | NT52: 0 | NU52: 0 | NV52: 0 | NW52: 0 | NX52: 0 | NY52: 0 | NZ52: 0 | OA52: =IF(AND(OA$5>$BG52,OA$5<=$BH52),OA143,0) -> 0 | OB52: 0 | OC52: 0 | OD52: 0 | OE52: 0 | OF52: 0 | OG52: 0 | OH52: 0 | OI52: 0 | OJ52: 0 | OK52: 0 | OL52: 0 | OM52: 0 | ON52: 0 | OO52: 0 | OP52: 0 | OQ52: 0 | OR52: 0 | OS52: 0 | OT52: 0 | OU52: 0 | OV52: 0 | OW52: 0 | OX52: 0 | OY52: 0 | OZ52: 0 | PA52: 0 | PB52: 0 | PC52: 0 | PD52: 0 | PE52: 0 | PF52: 0 | PG52: 0 | PH52: 0 | PI52: 0 | PJ52: 0 | PK52: 0 | PL52: 0 | PM52: 0 | PN52: 0 | PO52: 0 | PP52: 0 | PQ52: 0 | PR52: 0 | PS52: 0 | PT52: 0 | PU52: 0 | PV52: 0 | PW52: 0 | PX52: 0 | PY52: 0 | PZ52: 0 | QA52: 0
AJ53: 1 | BN53: =IF(AND(BN$5>$BG53,BN$5<=$BH53),BN144,0) -> 0 | BO53: 0 | BP53: 0 | BQ53: 0 | BR53: 0 | BS53: 0 | BT53: 0 | BU53: 0 | BV53: 0 | BW53: 0 | BX53: 0 | BY53: 0 | BZ53: 0 | CA53: 0 | CB53: 0 | CC53: 0 | CD53: 0 | CE53: 0 | CF53: 0 | CG53: 0 | CH53: 0 | CI53: 0 | CJ53: 0 | CK53: 0 | CL53: 0 | CM53: 0 | CN53: 0 | CO53: 0 | CP53: 0 | CQ53: 0 | CR53: 0 | CS53: 0 | CT53: 0 | CU53: 0 | CV53: 0 | CW53: 0 | CX53: 0 | CY53: 0 | CZ53: 0 | DA53: 0 | DB53: 0 | DC53: 0 | DD53: 0 | DE53: 0 | DF53: 0 | DG53: 0 | DH53: 0 | DI53: 0 | DJ53: 0 | DK53: 0 | DL53: 0 | DM53: 0 | DN53: 0 | DO53: 0 | DP53: 0 | DQ53: 0 | DR53: 0 | DS53: 0 | DT53: 0 | DU53: 0 | DV53: 0 | DW53: 0 | DX53: 0 | DY53: 0 | DZ53: 0 | EA53: 0 | EB53: 0 | EC53: 0 | ED53: 0 | EE53: 0 | EF53: 0 | EG53: =IF(AND(EG$5>$BG53,EG$5<=$BH53),EG144,0) -> 0 | EH53: 0 | EI53: 0 | EJ53: 0 | EK53: 0 | EL53: 0 | EM53: 0 | EN53: 0 | EO53: 0 | EP53: 0 | EQ53: 0 | ER53: 0 | ES53: 0 | ET53: 0 | EU53: 0 | EV53: 0 | EW53: 0 | EX53: 0 | EY53: 0 | EZ53: 0 | FA53: 0 | FB53: 0 | FC53: 0 | FD53: 0 | FE53: 0 | FF53: 0 | FG53: 0 | FH53: 0 | FI53: 0 | FJ53: 0 | FK53: 0 | FL53: 0 | FM53: 0 | FN53: 0 | FO53: 0 | FP53: 0 | FQ53: 0 | FR53: 0 | FS53: 0 | FT53: 0 | FU53: 0 | FV53: 0 | FW53: 0 | FX53: 0 | FY53: 0 | FZ53: 0 | GA53: 0 | GB53: 0 | GC53: 0 | GD53: 0 | GE53: 0 | GF53: 0 | GG53: 0 | GH53: 0 | GI53: 0 | GJ53: 0 | GK53: 0 | GL53: 0 | GM53: 0 | GN53: 0 | GO53: 0 | GP53: 0 | GQ53: 0 | GR53: 0 | GS53: 0 | GT53: 0 | GU53: 0 | GV53: 0 | GW53: 0 | GX53: 0 | GY53: 0 | GZ53: 0 | HA53: 0 | HB53: 0 | HC53: 0 | HD53: 0 | HE53: 0 | HF53: 0 | HG53: 0 | HH53: 0 | HI53: 0 | HJ53: 0 | HK53: 0 | HL53: 0 | HM53: 0 | HN53: 0 | HO53: 0 | HP53: 0 | HQ53: 0 | HR53: 0 | HS53: 0 | HT53: 0 | HU53: 0 | HV53: 0 | HW53: 0 | HX53: 0 | HY53: 0 | HZ53: 0 | IA53: 0 | IB53: 0 | IC53: 0 | ID53: 0 | IE53: 0 | IF53: 0 | IG53: 0 | IH53: 0 | II53: 0 | IJ53: 0 | IK53: 0 | IL53: 0 | IM53: 0 | IN53: 0 | IO53: 0 | IP53: 0 | IQ53: 0 | IR53: 0 | IS53: 0 | IT53: 0 | IU53: 0 | IV53: 0 | IW53: 0 | IX53: 0 | IY53: 0 | IZ53: 0 | JA53: 0 | JB53: 0 | JC53: 0 | JD53: =IF(AND(JD$5>$BG53,JD$5<=$BH53),JD144,0) -> 0 | JE53: 0 | JF53: 0 | JG53: 0 | JH53: 0 | JI53: 0 | JJ53: 0 | JK53: 0 | JL53: 0 | JM53: 0 | JN53: 0 | JO53: 0 | JP53: 0 | JQ53: 0 | JR53: 0 | JS53: 0 | JT53: 0 | JU53: 0 | JV53: 0 | JW53: 0 | JX53: 0 | JY53: 0 | JZ53: 0 | KA53: 0 | KB53: 0 | KC53: 0 | KD53: 0 | KE53: 0 | KF53: 0 | KG53: 0 | KH53: 0 | KI53: 0 | KJ53: 0 | KK53: 0 | KL53: 0 | KM53: 0 | KN53: 0 | KO53: 0 | KP53: 0 | KQ53: 0 | KR53: 0 | KS53: 0 | KT53: 0 | KU53: 0 | KV53: 0 | KW53: 0 | KX53: 0 | KY53: 0 | KZ53: 0 | LA53: 0 | LB53: 0 | LC53: 0 | LD53: 0 | LE53: 0 | LF53: 0 | LG53: 0 | LH53: 0 | LI53: 0 | LJ53: 0 | LK53: 0 | LL53: 0 | LM53: 0 | LN53: 0 | LO53: 0 | LP53: 0 | LQ53: 0 | LR53: 0 | LS53: 0 | LT53: 0 | LU53: 0 | LV53: 0 | LW53: 0 | LX53: 0 | LY53: 0 | LZ53: 0 | MA53: 0 | MB53: 0 | MC53: 0 | MD53: 0 | ME53: 0 | MF53: 0 | MG53: 0 | MH53: 0 | MI53: 0 | MJ53: 0 | MK53: 0 | ML53: 0 | MM53: 0 | MN53: 0 | MO53: 0 | MP53: 0 | MQ53: 0 | MR53: 0 | MS53: 0 | MT53: 0 | MU53: 0 | MV53: 0 | MW53: 0 | MX53: 0 | MY53: 0 | MZ53: 0 | NA53: 0 | NB53: 0 | NC53: 0 | ND53: 0 | NE53: 0 | NF53: 0 | NG53: 0 | NH53: 0 | NI53: 0 | NJ53: 0 | NK53: 0 | NL53: 0 | NM53: 0 | NN53: 0 | NO53: 0 | NP53: 0 | NQ53: 0 | NR53: 0 | NS53: 0 | NT53: 0 | NU53: 0 | NV53: 0 | NW53: 0 | NX53: 0 | NY53: 0 | NZ53: 0 | OA53: 0 | OB53: 0 | OC53: 0 | OD53: 0 | OE53: 0 | OF53: 0 | OG53: 0 | OH53: 0 | OI53: 0 | OJ53: 0 | OK53: 0 | OL53: 0 | OM53: 0 | ON53: 0 | OO53: 0 | OP53: 0 | OQ53: 0 | OR53: 0 | OS53: 0 | OT53: 0 | OU53: 0 | OV53: 0 | OW53: 0 | OX53: 0 | OY53: 0 | OZ53: 0 | PA53: 0 | PB53: 0 | PC53: 0 | PD53: 0 | PE53: 0 | PF53: 0 | PG53: 0 | PH53: 0 | PI53: 0 | PJ53: 0 | PK53: 0 | PL53: 0 | PM53: 0 | PN53: 0 | PO53: 0 | PP53: 0 | PQ53: 0 | PR53: 0 | PS53: 0 | PT53: 0 | PU53: 0 | PV53: 0 | PW53: 0 | PX53: 0 | PY53: 0 | PZ53: 0 | QA53: 0
AJ54: 1 | BN54: =IF(AND(BN$5>$BG54,BN$5<=$BH54),BN145,0) -> 0 | BO54: 0 | BP54: 0 | BQ54: 0 | BR54: 0 | BS54: 0 | BT54: 0 | BU54: 0 | BV54: 0 | BW54: 0 | BX54: 0 | BY54: 0 | BZ54: 0 | CA54: 0 | CB54: 0 | CC54: 0 | CD54: 0 | CE54: 0 | CF54: 0 | CG54: 0 | CH54: 0 | CI54: 0 | CJ54: 0 | CK54: 0 | CL54: 0 | CM54: 0 | CN54: 0 | CO54: 0 | CP54: 0 | CQ54: 0 | CR54: 0 | CS54: 0 | CT54: 0 | CU54: 0 | CV54: 0 | CW54: 0 | CX54: 0 | CY54: 0 | CZ54: 0 | DA54: 0 | DB54: 0 | DC54: 0 | DD54: 0 | DE54: 0 | DF54: 0 | DG54: 0 | DH54: 0 | DI54: 0 | DJ54: 0 | DK54: 0 | DL54: 0 | DM54: 0 | DN54: 0 | DO54: 0 | DP54: 0 | DQ54: 0 | DR54: 0 | DS54: 0 | DT54: 0 | DU54: 0 | DV54: 0 | DW54: 0 | DX54: 0 | DY54: 0 | DZ54: =IF(AND(DZ$5>$BG54,DZ$5<=$BH54),DZ145,0) -> 0 | EA54: 0 | EB54: 0 | EC54: 0 | ED54: 0 | EE54: 0 | EF54: 0 | EG54: 0 | EH54: 0 | EI54: 0 | EJ54: 0 | EK54: 0 | EL54: 0 | EM54: 0 | EN54: 0 | EO54: 0 | EP54: 0 | EQ54: 0 | ER54: 0 | ES54: 0 | ET54: 0 | EU54: 0 | EV54: 0 | EW54: 0 | EX54: 0 | EY54: 0 | EZ54: 0 | FA54: 0 | FB54: 0 | FC54: 0 | FD54: 0 | FE54: 0 | FF54: 0 | FG54: 0 | FH54: 0 | FI54: 0 | FJ54: 0 | FK54: 0 | FL54: 0 | FM54: 0 | FN54: 0 | FO54: 0 | FP54: 0 | FQ54: 0 | FR54: 0 | FS54: 0 | FT54: 0 | FU54: 0 | FV54: 0 | FW54: 0 | FX54: 0 | FY54: 0 | FZ54: 0 | GA54: 0 | GB54: 0 | GC54: 0 | GD54: 0 | GE54: 0 | GF54: 0 | GG54: 0 | GH54: 0 | GI54: 0 | GJ54: 0 | GK54: 0 | GL54: 0 | GM54: 0 | GN54: 0 | GO54: 0 | GP54: 0 | GQ54: 0 | GR54: 0 | GS54: 0 | GT54: 0 | GU54: 0 | GV54: 0 | GW54: 0 | GX54: 0 | GY54: 0 | GZ54: 0 | HA54: 0 | HB54: 0 | HC54: 0 | HD54: 0 | HE54: 0 | HF54: 0 | HG54: 0 | HH54: 0 | HI54: 0 | HJ54: 0 | HK54: 0 | HL54: 0 | HM54: 0 | HN54: 0 | HO54: 0 | HP54: 0 | HQ54: 0 | HR54: 0 | HS54: 0 | HT54: 0 | HU54: 0 | HV54: 0 | HW54: 0 | HX54: 0 | HY54: 0 | HZ54: 0 | IA54: 0 | IB54: 0 | IC54: 0 | ID54: 0 | IE54: 0 | IF54: 0 | IG54: 0 | IH54: 0 | II54: 0 | IJ54: 0 | IK54: 0 | IL54: 0 | IM54: 0 | IN54: 0 | IO54: 0 | IP54: 0 | IQ54: 0 | IR54: 0 | IS54: 0 | IT54: 0 | IU54: 0 | IV54: 0 | IW54: 0 | IX54: 0 | IY54: 0 | IZ54: 0 | JA54: 0 | JB54: 0 | JC54: 0 | JD54: 0 | JE54: 0 | JF54: 0 | JG54: 0 | JH54: 0 | JI54: 0 | JJ54: 0 | JK54: 0 | JL54: 0 | JM54: 0 | JN54: 0 | JO54: 0 | JP54: 0 | JQ54: 0 | JR54: 0 | JS54: 0 | JT54: 0 | JU54: 0 | JV54: 0 | JW54: 0 | JX54: 0 | JY54: 0 | JZ54: 0 | KA54: 0 | KB54: 0 | KC54: 0 | KD54: 0 | KE54: 0 | KF54: 0 | KG54: 0 | KH54: 0 | KI54: 0 | KJ54: 0 | KK54: 0 | KL54: 0 | KM54: 0 | KN54: 0 | KO54: 0 | KP54: 0 | KQ54: 0 | KR54: 0 | KS54: 0 | KT54: 0 | KU54: 0 | KV54: 0 | KW54: 0 | KX54: 0 | KY54: 0 | KZ54: 0 | LA54: 0 | LB54: 0 | LC54: 0 | LD54: 0 | LE54: 0 | LF54: 0 | LG54: 0 | LH54: 0 | LI54: 0 | LJ54: 0 | LK54: 0 | LL54: 0 | LM54: 0 | LN54: 0 | LO54: 0 | LP54: 0 | LQ54: 0 | LR54: 0 | LS54: 0 | LT54: 0 | LU54: 0 | LV54: 0 | LW54: 0 | LX54: 0 | LY54: 0 | LZ54: 0 | MA54: 0 | MB54: 0 | MC54: 0 | MD54: 0 | ME54: 0 | MF54: 0 | MG54: 0 | MH54: 0 | MI54: 0 | MJ54: 0 | MK54: 0 | ML54: 0 | MM54: 0 | MN54: 0 | MO54: 0 | MP54: 0 | MQ54: 0 | MR54: 0 | MS54: 0 | MT54: 0 | MU54: 0 | MV54: 0 | MW54: 0 | MX54: 0 | MY54: 0 | MZ54: 0 | NA54: 0 | NB54: 0 | NC54: 0 | ND54: 0 | NE54: 0 | NF54: 0 | NG54: 0 | NH54: 0 | NI54: 0 | NJ54: 0 | NK54: 0 | NL54: 0 | NM54: 0 | NN54: 0 | NO54: 0 | NP54: 0 | NQ54: 0 | NR54: 0 | NS54: 0 | NT54: 0 | NU54: 0 | NV54: 0 | NW54: 0 | NX54: 0 | NY54: 0 | NZ54: 0 | OA54: 0 | OB54: 0 | OC54: 0 | OD54: 0 | OE54: 0 | OF54: 0 | OG54: 0 | OH54: 0 | OI54: 0 | OJ54: 0 | OK54: 0 | OL54: 0 | OM54: 0 | ON54: 0 | OO54: 0 | OP54: 0 | OQ54: 0 | OR54: 0 | OS54: 0 | OT54: 0 | OU54: 0 | OV54: 0 | OW54: 0 | OX54: 0 | OY54: 0 | OZ54: 0 | PA54: 0 | PB54: 0 | PC54: 0 | PD54: 0 | PE54: 0 | PF54: 0 | PG54: 0 | PH54: 0 | PI54: 0 | PJ54: 0 | PK54: 0 | PL54: 0 | PM54: 0 | PN54: 0 | PO54: 0 | PP54: 0 | PQ54: 0 | PR54: 0 | PS54: 0 | PT54: 0 | PU54: 0 | PV54: 0 | PW54: 0 | PX54: 0 | PY54: 0 | PZ54: 0 | QA54: 0
AJ55: 1 | BN55: =IF(AND(BN$5>$BG55,BN$5<=$BH55),BN146,0) -> 0 | BO55: 0 | BP55: 0 | BQ55: 0 | BR55: 0 | BS55: 0 | BT55: 0 | BU55: 0 | BV55: 0 | BW55: 0 | BX55: 0 | BY55: 0 | BZ55: 0 | CA55: 0 | CB55: 0 | CC55: 0 | CD55: 0 | CE55: 0 | CF55: 0 | CG55: 0 | CH55: 0 | CI55: 0 | CJ55: 0 | CK55: 0 | CL55: 0 | CM55: 0 | CN55: 0 | CO55: 0 | CP55: 0 | CQ55: 0 | CR55: 0 | CS55: 0 | CT55: 0 | CU55: 0 | CV55: 0 | CW55: 0 | CX55: 0 | CY55: 0 | CZ55: 0 | DA55: 0 | DB55: 0 | DC55: 0 | DD55: 0 | DE55: 0 | DF55: 0 | DG55: 0 | DH55: 0 | DI55: 0 | DJ55: 0 | DK55: 0 | DL55: 0 | DM55: 0 | DN55: 0 | DO55: 0 | DP55: 0 | DQ55: 0 | DR55: 0 | DS55: 0 | DT55: 0 | DU55: 0 | DV55: 0 | DW55: 0 | DX55: 0 | DY55: 0 | DZ55: 0 | EA55: 0 | EB55: 0 | EC55: 0 | ED55: 0 | EE55: 0 | EF55: 0 | EG55: 0 | EH55: 0 | EI55: 0 | EJ55: 0 | EK55: 0 | EL55: 0 | EM55: 0 | EN55: 0 | EO55: 0 | EP55: 0 | EQ55: 0 | ER55: 0 | ES55: 0 | ET55: 0 | EU55: 0 | EV55: 0 | EW55: 0 | EX55: 0 | EY55: 0 | EZ55: 0 | FA55: 0 | FB55: 0 | FC55: 0 | FD55: 0 | FE55: 0 | FF55: 0 | FG55: 0 | FH55: 0 | FI55: 0 | FJ55: 0 | FK55: 0 | FL55: 0 | FM55: 0 | FN55: 0 | FO55: 0 | FP55: 0 | FQ55: 0 | FR55: 0 | FS55: 0 | FT55: 0 | FU55: 0 | FV55: 0 | FW55: 0 | FX55: 0 | FY55: 0 | FZ55: 0 | GA55: 0 | GB55: 0 | GC55: 0 | GD55: 0 | GE55: 0 | GF55: 0 | GG55: 0 | GH55: 0 | GI55: 0 | GJ55: 0 | GK55: 0 | GL55: 0 | GM55: 0 | GN55: 0 | GO55: 0 | GP55: 0 | GQ55: 0 | GR55: 0 | GS55: 0 | GT55: 0 | GU55: 0 | GV55: 0 | GW55: 0 | GX55: 0 | GY55: 0 | GZ55: 0 | HA55: 0 | HB55: 0 | HC55: 0 | HD55: 0 | HE55: 0 | HF55: 0 | HG55: 0 | HH55: 0 | HI55: 0 | HJ55: 0 | HK55: 0 | HL55: 0 | HM55: 0 | HN55: 0 | HO55: 0 | HP55: 0 | HQ55: 0 | HR55: 0 | HS55: 0 | HT55: 0 | HU55: 0 | HV55: 0 | HW55: 0 | HX55: 0 | HY55: 0 | HZ55: 0 | IA55: 0 | IB55: 0 | IC55: 0 | ID55: 0 | IE55: 0 | IF55: 0 | IG55: 0 | IH55: 0 | II55: 0 | IJ55: 0 | IK55: 0 | IL55: 0 | IM55: 0 | IN55: 0 | IO55: 0 | IP55: 0 | IQ55: 0 | IR55: 0 | IS55: 0 | IT55: 0 | IU55: 0 | IV55: 0 | IW55: 0 | IX55: 0 | IY55: 0 | IZ55: 0 | JA55: 0 | JB55: 0 | JC55: 0 | JD55: 0 | JE55: 0 | JF55: 0 | JG55: 0 | JH55: 0 | JI55: 0 | JJ55: 0 | JK55: 0 | JL55: 0 | JM55: 0 | JN55: 0 | JO55: 0 | JP55: 0 | JQ55: 0 | JR55: 0 | JS55: 0 | JT55: 0 | JU55: 0 | JV55: 0 | JW55: 0 | JX55: 0 | JY55: 0 | JZ55: 0 | KA55: 0 | KB55: 0 | KC55: 0 | KD55: 0 | KE55: 0 | KF55: 0 | KG55: 0 | KH55: 0 | KI55: 0 | KJ55: 0 | KK55: 0 | KL55: 0 | KM55: 0 | KN55: 0 | KO55: 0 | KP55: 0 | KQ55: 0 | KR55: 0 | KS55: 0 | KT55: 0 | KU55: 0 | KV55: 0 | KW55: 0 | KX55: 0 | KY55: 0 | KZ55: 0 | LA55: 0 | LB55: 0 | LC55: 0 | LD55: 0 | LE55: 0 | LF55: 0 | LG55: 0 | LH55: 0 | LI55: 0 | LJ55: 0 | LK55: 0 | LL55: 0 | LM55: 0 | LN55: 0 | LO55: 0 | LP55: 0 | LQ55: 0 | LR55: 0 | LS55: 0 | LT55: 0 | LU55: 0 | LV55: 0 | LW55: 0 | LX55: 0 | LY55: 0 | LZ55: 0 | MA55: 0 | MB55: 0 | MC55: 0 | MD55: 0 | ME55: 0 | MF55: 0 | MG55: 0 | MH55: 0 | MI55: 0 | MJ55: 0 | MK55: 0 | ML55: 0 | MM55: 0 | MN55: 0 | MO55: 0 | MP55: 0 | MQ55: 0 | MR55: 0 | MS55: 0 | MT55: 0 | MU55: 0 | MV55: 0 | MW55: 0 | MX55: 0 | MY55: 0 | MZ55: 0 | NA55: 0 | NB55: 0 | NC55: 0 | ND55: 0 | NE55: 0 | NF55: 0 | NG55: 0 | NH55: 0 | NI55: 0 | NJ55: 0 | NK55: 0 | NL55: 0 | NM55: 0 | NN55: 0 | NO55: 0 | NP55: 0 | NQ55: 0 | NR55: 0 | NS55: 0 | NT55: 0 | NU55: 0 | NV55: 0 | NW55: 0 | NX55: 0 | NY55: 0 | NZ55: 0 | OA55: 0 | OB55: 0 | OC55: 0 | OD55: 0 | OE55: 0 | OF55: 0 | OG55: 0 | OH55: 0 | OI55: 0 | OJ55: 0 | OK55: 0 | OL55: 0 | OM55: 0 | ON55: 0 | OO55: 0 | OP55: 0 | OQ55: 0 | OR55: 0 | OS55: 0 | OT55: 0 | OU55: 0 | OV55: 0 | OW55: 0 | OX55: 0 | OY55: 0 | OZ55: 0 | PA55: 0 | PB55: 0 | PC55: 0 | PD55: 0 | PE55: 0 | PF55: 0 | PG55: 0 | PH55: 0 | PI55: 0 | PJ55: 0 | PK55: 0 | PL55: 0 | PM55: 0 | PN55: 0 | PO55: 0 | PP55: 0 | PQ55: 0 | PR55: 0 | PS55: 0 | PT55: 0 | PU55: 0 | PV55: 0 | PW55: 0 | PX55: 0 | PY55: 0 | PZ55: 0 | QA55: 0
AJ56: 1 | BN56: =IF(AND(BN$5>$BG56,BN$5<=$BH56),BN147,0) -> 0 | BO56: 0 | BP56: 0 | BQ56: 0 | BR56: 0 | BS56: 0 | BT56: 0 | BU56: 0 | BV56: 0 | BW56: 0 | BX56: 0 | BY56: 0 | BZ56: 0 | CA56: 0 | CB56: 0 | CC56: 0 | CD56: 0 | CE56: 0 | CF56: 0 | CG56: 0 | CH56: 0 | CI56: 0 | CJ56: 0 | CK56: 0 | CL56: 0 | CM56: 0 | CN56: 0 | CO56: 0 | CP56: 0 | CQ56: 0 | CR56: 0 | CS56: 0 | CT56: 0 | CU56: 0 | CV56: 0 | CW56: 0 | CX56: 0 | CY56: 0 | CZ56: 0 | DA56: 0 | DB56: 0 | DC56: 0 | DD56: 0 | DE56: 0 | DF56: 0 | DG56: 0 | DH56: 0 | DI56: 0 | DJ56: 0 | DK56: 0 | DL56: 0 | DM56: 0 | DN56: 0 | DO56: 0 | DP56: 0 | DQ56: 0 | DR56: 0 | DS56: 0 | DT56: 0 | DU56: 0 | DV56: 0 | DW56: 0 | DX56: 0 | DY56: 0 | DZ56: 0 | EA56: 0 | EB56: 0 | EC56: 0 | ED56: 0 | EE56: 0 | EF56: 0 | EG56: 0 | EH56: 0 | EI56: 0 | EJ56: 0 | EK56: 0 | EL56: 0 | EM56: 0 | EN56: 0 | EO56: 0 | EP56: 0 | EQ56: 0 | ER56: 0 | ES56: 0 | ET56: 0 | EU56: 0 | EV56: 0 | EW56: 0 | EX56: 0 | EY56: 0 | EZ56: 0 | FA56: 0 | FB56: 0 | FC56: 0 | FD56: 0 | FE56: 0 | FF56: 0 | FG56: 0 | FH56: 0 | FI56: 0 | FJ56: 0 | FK56: 0 | FL56: 0 | FM56: 0 | FN56: 0 | FO56: 0 | FP56: 0 | FQ56: 0 | FR56: 0 | FS56: 0 | FT56: 0 | FU56: 0 | FV56: 0 | FW56: 0 | FX56: 0 | FY56: 0 | FZ56: 0 | GA56: 0 | GB56: 0 | GC56: 0 | GD56: 0 | GE56: 0 | GF56: 0 | GG56: 0 | GH56: 0 | GI56: 0 | GJ56: 0 | GK56: 0 | GL56: 0 | GM56: 0 | GN56: 0 | GO56: 0 | GP56: 0 | GQ56: 0 | GR56: =IF(AND(GR$5>$BG56,GR$5<=$BH56),GR147,0) -> 0 | GS56: 0 | GT56: 0 | GU56: 0 | GV56: 0 | GW56: 0 | GX56: 0 | GY56: 0 | GZ56: 0 | HA56: 0 | HB56: 0 | HC56: 0 | HD56: 0 | HE56: 0 | HF56: 0 | HG56: 0 | HH56: 0 | HI56: 0 | HJ56: 0 | HK56: 0 | HL56: 0 | HM56: 0 | HN56: 0 | HO56: 0 | HP56: 0 | HQ56: 0 | HR56: 0 | HS56: 0 | HT56: 0 | HU56: 0 | HV56: 0 | HW56: 0 | HX56: 0 | HY56: 0 | HZ56: 0 | IA56: 0 | IB56: 0 | IC56: 0 | ID56: 0 | IE56: 0 | IF56: 0 | IG56: 0 | IH56: 0 | II56: 0 | IJ56: 0 | IK56: 0 | IL56: 0 | IM56: 0 | IN56: 0 | IO56: 0 | IP56: 0 | IQ56: 0 | IR56: 0 | IS56: 0 | IT56: 0 | IU56: 0 | IV56: 0 | IW56: 0 | IX56: 0 | IY56: 0 | IZ56: 0 | JA56: 0 | JB56: 0 | JC56: 0 | JD56: 0 | JE56: 0 | JF56: 0 | JG56: 0 | JH56: 0 | JI56: 0 | JJ56: 0 | JK56: 0 | JL56: 0 | JM56: 0 | JN56: 0 | JO56: 0 | JP56: 0 | JQ56: 0 | JR56: 0 | JS56: 0 | JT56: 0 | JU56: 0 | JV56: 0 | JW56: 0 | JX56: 0 | JY56: 0 | JZ56: 0 | KA56: 0 | KB56: 0 | KC56: 0 | KD56: 0 | KE56: 0 | KF56: 0 | KG56: 0 | KH56: 0 | KI56: 0 | KJ56: 0 | KK56: 0 | KL56: 0 | KM56: 0 | KN56: 0 | KO56: 0 | KP56: 0 | KQ56: 0 | KR56: 0 | KS56: 0 | KT56: 0 | KU56: 0 | KV56: 0 | KW56: 0 | KX56: 0 | KY56: 0 | KZ56: 0 | LA56: 0 | LB56: 0 | LC56: 0 | LD56: 0 | LE56: 0 | LF56: 0 | LG56: 0 | LH56: 0 | LI56: 0 | LJ56: 0 | LK56: 0 | LL56: 0 | LM56: 0 | LN56: 0 | LO56: =IF(AND(LO$5>$BG56,LO$5<=$BH56),LO147,0) -> 0 | LP56: 0 | LQ56: 0 | LR56: 0 | LS56: 0 | LT56: 0 | LU56: 0 | LV56: 0 | LW56: 0 | LX56: 0 | LY56: 0 | LZ56: 0 | MA56: 0 | MB56: 0 | MC56: 0 | MD56: 0 | ME56: 0 | MF56: 0 | MG56: 0 | MH56: 0 | MI56: 0 | MJ56: 0 | MK56: 0 | ML56: 0 | MM56: 0 | MN56: 0 | MO56: 0 | MP56: 0 | MQ56: 0 | MR56: 0 | MS56: 0 | MT56: 0 | MU56: 0 | MV56: 0 | MW56: 0 | MX56: 0 | MY56: 0 | MZ56: 0 | NA56: 0 | NB56: 0 | NC56: 0 | ND56: 0 | NE56: 0 | NF56: 0 | NG56: 0 | NH56: 0 | NI56: 0 | NJ56: 0 | NK56: 0 | NL56: 0 | NM56: 0 | NN56: 0 | NO56: 0 | NP56: 0 | NQ56: 0 | NR56: 0 | NS56: 0 | NT56: 0 | NU56: 0 | NV56: 0 | NW56: 0 | NX56: 0 | NY56: 0 | NZ56: 0 | OA56: 0 | OB56: 0 | OC56: 0 | OD56: 0 | OE56: 0 | OF56: 0 | OG56: 0 | OH56: 0 | OI56: 0 | OJ56: 0 | OK56: 0 | OL56: 0 | OM56: 0 | ON56: 0 | OO56: 0 | OP56: 0 | OQ56: 0 | OR56: 0 | OS56: 0 | OT56: 0 | OU56: 0 | OV56: 0 | OW56: 0 | OX56: 0 | OY56: 0 | OZ56: 0 | PA56: 0 | PB56: 0 | PC56: 0 | PD56: 0 | PE56: 0 | PF56: 0 | PG56: 0 | PH56: 0 | PI56: 0 | PJ56: 0 | PK56: 0 | PL56: 0 | PM56: 0 | PN56: 0 | PO56: 0 | PP56: 0 | PQ56: 0 | PR56: =IF(AND(PR$5>$BG56,PR$5<=$BH56),PR147,0) -> 0 | PS56: 0 | PT56: 0 | PU56: 0 | PV56: 0 | PW56: 0 | PX56: 0 | PY56: 0 | PZ56: 0 | QA56: 0
AJ57: 1 | BN57: =IF(AND(BN$5>$BG57,BN$5<=$BH57),BN148,0) -> 0 | BO57: 0 | BP57: 0 | BQ57: 0 | BR57: 0 | BS57: 0 | BT57: 0 | BU57: 0 | BV57: 0 | BW57: 0 | BX57: 0 | BY57: 0 | BZ57: 0 | CA57: 0 | CB57: 0 | CC57: 0 | CD57: 0 | CE57: 0 | CF57: 0 | CG57: 0 | CH57: 0 | CI57: 0 | CJ57: 0 | CK57: 0 | CL57: 0 | CM57: 0 | CN57: 0 | CO57: 0 | CP57: 0 | CQ57: 0 | CR57: 0 | CS57: 0 | CT57: 0 | CU57: 0 | CV57: 0 | CW57: 0 | CX57: 0 | CY57: 0 | CZ57: 0 | DA57: 0 | DB57: 0 | DC57: 0 | DD57: 0 | DE57: 0 | DF57: 0 | DG57: 0 | DH57: 0 | DI57: 0 | DJ57: 0 | DK57: 0 | DL57: 0 | DM57: 0 | DN57: 0 | DO57: 0 | DP57: 0 | DQ57: 0 | DR57: 0 | DS57: 0 | DT57: 0 | DU57: 0 | DV57: 0 | DW57: 0 | DX57: 0 | DY57: 0 | DZ57: 0 | EA57: 0 | EB57: 0 | EC57: 0 | ED57: 0 | EE57: 0 | EF57: 0 | EG57: =IF(AND(EG$5>$BG57,EG$5<=$BH57),EG148,0) -> 0 | EH57: 0 | EI57: 0 | EJ57: 0 | EK57: 0 | EL57: 0 | EM57: 0 | EN57: 0 | EO57: 0 | EP57: 0 | EQ57: 0 | ER57: 0 | ES57: 0 | ET57: 0 | EU57: 0 | EV57: 0 | EW57: 0 | EX57: 0 | EY57: 0 | EZ57: 0 | FA57: 0 | FB57: 0 | FC57: 0 | FD57: 0 | FE57: 0 | FF57: 0 | FG57: 0 | FH57: 0 | FI57: 0 | FJ57: 0 | FK57: 0 | FL57: 0 | FM57: 0 | FN57: 0 | FO57: 0 | FP57: 0 | FQ57: 0 | FR57: 0 | FS57: 0 | FT57: 0 | FU57: 0 | FV57: 0 | FW57: 0 | FX57: 0 | FY57: 0 | FZ57: 0 | GA57: 0 | GB57: 0 | GC57: 0 | GD57: 0 | GE57: 0 | GF57: 0 | GG57: 0 | GH57: 0 | GI57: 0 | GJ57: 0 | GK57: 0 | GL57: 0 | GM57: 0 | GN57: 0 | GO57: 0 | GP57: 0 | GQ57: 0 | GR57: 0 | GS57: 0 | GT57: 0 | GU57: 0 | GV57: 0 | GW57: 0 | GX57: 0 | GY57: 0 | GZ57: 0 | HA57: 0 | HB57: 0 | HC57: 0 | HD57: 0 | HE57: 0 | HF57: 0 | HG57: 0 | HH57: 0 | HI57: 0 | HJ57: 0 | HK57: 0 | HL57: 0 | HM57: 0 | HN57: 0 | HO57: 0 | HP57: 0 | HQ57: 0 | HR57: 0 | HS57: 0 | HT57: 0 | HU57: 0 | HV57: 0 | HW57: 0 | HX57: 0 | HY57: 0 | HZ57: 0 | IA57: 0 | IB57: 0 | IC57: 0 | ID57: 0 | IE57: 0 | IF57: 0 | IG57: 0 | IH57: 0 | II57: 0 | IJ57: 0 | IK57: 0 | IL57: 0 | IM57: 0 | IN57: 0 | IO57: 0 | IP57: 0 | IQ57: 0 | IR57: 0 | IS57: 0 | IT57: 0 | IU57: 0 | IV57: 0 | IW57: 0 | IX57: 0 | IY57: 0 | IZ57: 0 | JA57: 0 | JB57: 0 | JC57: 0 | JD57: =IF(AND(JD$5>$BG57,JD$5<=$BH57),JD148,0) -> 0 | JE57: 0 | JF57: 0 | JG57: 0 | JH57: 0 | JI57: 0 | JJ57: 0 | JK57: 0 | JL57: 0 | JM57: 0 | JN57: 0 | JO57: 0 | JP57: 0 | JQ57: 0 | JR57: 0 | JS57: 0 | JT57: 0 | JU57: 0 | JV57: 0 | JW57: 0 | JX57: 0 | JY57: 0 | JZ57: 0 | KA57: 0 | KB57: 0 | KC57: 0 | KD57: 0 | KE57: 0 | KF57: 0 | KG57: 0 | KH57: 0 | KI57: 0 | KJ57: 0 | KK57: 0 | KL57: 0 | KM57: 0 | KN57: 0 | KO57: 0 | KP57: 0 | KQ57: 0 | KR57: 0 | KS57: 0 | KT57: 0 | KU57: 0 | KV57: 0 | KW57: 0 | KX57: 0 | KY57: 0 | KZ57: 0 | LA57: 0 | LB57: 0 | LC57: 0 | LD57: 0 | LE57: 0 | LF57: 0 | LG57: 0 | LH57: 0 | LI57: 0 | LJ57: 0 | LK57: 0 | LL57: 0 | LM57: 0 | LN57: 0 | LO57: 0 | LP57: 0 | LQ57: 0 | LR57: 0 | LS57: 0 | LT57: 0 | LU57: 0 | LV57: 0 | LW57: 0 | LX57: 0 | LY57: 0 | LZ57: 0 | MA57: 0 | MB57: 0 | MC57: 0 | MD57: 0 | ME57: 0 | MF57: 0 | MG57: 0 | MH57: 0 | MI57: 0 | MJ57: 0 | MK57: 0 | ML57: 0 | MM57: 0 | MN57: 0 | MO57: 0 | MP57: 0 | MQ57: 0 | MR57: 0 | MS57: 0 | MT57: 0 | MU57: 0 | MV57: 0 | MW57: 0 | MX57: 0 | MY57: 0 | MZ57: 0 | NA57: 0 | NB57: 0 | NC57: 0 | ND57: 0 | NE57: 0 | NF57: 0 | NG57: 0 | NH57: 0 | NI57: 0 | NJ57: 0 | NK57: 0 | NL57: 0 | NM57: 0 | NN57: 0 | NO57: 0 | NP57: 0 | NQ57: 0 | NR57: 0 | NS57: 0 | NT57: 0 | NU57: 0 | NV57: 0 | NW57: 0 | NX57: 0 | NY57: 0 | NZ57: 0 | OA57: =IF(AND(OA$5>$BG57,OA$5<=$BH57),OA148,0) -> 0 | OB57: 0 | OC57: 0 | OD57: 0 | OE57: 0 | OF57: 0 | OG57: 0 | OH57: 0 | OI57: 0 | OJ57: 0 | OK57: 0 | OL57: 0 | OM57: 0 | ON57: 0 | OO57: 0 | OP57: 0 | OQ57: 0 | OR57: 0 | OS57: 0 | OT57: 0 | OU57: 0 | OV57: 0 | OW57: 0 | OX57: 0 | OY57: 0 | OZ57: 0 | PA57: 0 | PB57: 0 | PC57: 0 | PD57: 0 | PE57: 0 | PF57: 0 | PG57: 0 | PH57: 0 | PI57: 0 | PJ57: 0 | PK57: 0 | PL57: 0 | PM57: 0 | PN57: 0 | PO57: 0 | PP57: 0 | PQ57: 0 | PR57: 0 | PS57: 0 | PT57: 0 | PU57: 0 | PV57: 0 | PW57: 0 | PX57: 0 | PY57: 0 | PZ57: 0 | QA57: 0
AJ58: 1 | BN58: =IF(AND(BN$5>$BG58,BN$5<=$BH58),BN149,0) -> 0 | BO58: 0 | BP58: 0 | BQ58: 0 | BR58: 0 | BS58: 0 | BT58: 0 | BU58: 0 | BV58: 0 | BW58: 0 | BX58: 0 | BY58: 0 | BZ58: 0 | CA58: 0 | CB58: 0 | CC58: 0 | CD58: 0 | CE58: 0 | CF58: 0 | CG58: 0 | CH58: 0 | CI58: 0 | CJ58: 0 | CK58: 0 | CL58: 0 | CM58: 0 | CN58: 0 | CO58: 0 | CP58: 0 | CQ58: 0 | CR58: 0 | CS58: 0 | CT58: 0 | CU58: 0 | CV58: 0 | CW58: 0 | CX58: 0 | CY58: 0 | CZ58: 0 | DA58: 0 | DB58: 0 | DC58: 0 | DD58: 0 | DE58: 0 | DF58: 0 | DG58: 0 | DH58: 0 | DI58: 0 | DJ58: 0 | DK58: 0 | DL58: 0 | DM58: 0 | DN58: 0 | DO58: 0 | DP58: 0 | DQ58: 0 | DR58: 0 | DS58: 0 | DT58: 0 | DU58: 0 | DV58: 0 | DW58: 0 | DX58: 0 | DY58: 0 | DZ58: =IF(AND(DZ$5>$BG58,DZ$5<=$BH58),DZ149,0) -> 0 | EA58: 0 | EB58: 0 | EC58: 0 | ED58: 0 | EE58: 0 | EF58: 0 | EG58: 0 | EH58: 0 | EI58: 0 | EJ58: 0 | EK58: 0 | EL58: 0 | EM58: 0 | EN58: 0 | EO58: 0 | EP58: 0 | EQ58: 0 | ER58: 0 | ES58: 0 | ET58: 0 | EU58: 0 | EV58: 0 | EW58: 0 | EX58: 0 | EY58: 0 | EZ58: 0 | FA58: 0 | FB58: 0 | FC58: 0 | FD58: 0 | FE58: 0 | FF58: 0 | FG58: 0 | FH58: 0 | FI58: 0 | FJ58: 0 | FK58: 0 | FL58: 0 | FM58: 0 | FN58: 0 | FO58: 0 | FP58: 0 | FQ58: 0 | FR58: 0 | FS58: 0 | FT58: 0 | FU58: 0 | FV58: 0 | FW58: 0 | FX58: 0 | FY58: 0 | FZ58: 0 | GA58: 0 | GB58: 0 | GC58: 0 | GD58: 0 | GE58: 0 | GF58: 0 | GG58: 0 | GH58: 0 | GI58: 0 | GJ58: 0 | GK58: 0 | GL58: 0 | GM58: 0 | GN58: 0 | GO58: 0 | GP58: 0 | GQ58: 0 | GR58: 0 | GS58: 0 | GT58: 0 | GU58: 0 | GV58: 0 | GW58: 0 | GX58: 0 | GY58: 0 | GZ58: 0 | HA58: 0 | HB58: 0 | HC58: 0 | HD58: 0 | HE58: 0 | HF58: 0 | HG58: 0 | HH58: 0 | HI58: 0 | HJ58: 0 | HK58: 0 | HL58: 0 | HM58: 0 | HN58: 0 | HO58: 0 | HP58: 0 | HQ58: 0 | HR58: 0 | HS58: 0 | HT58: 0 | HU58: 0 | HV58: 0 | HW58: 0 | HX58: 0 | HY58: 0 | HZ58: 0 | IA58: 0 | IB58: 0 | IC58: 0 | ID58: 0 | IE58: 0 | IF58: 0 | IG58: 0 | IH58: 0 | II58: 0 | IJ58: 0 | IK58: 0 | IL58: 0 | IM58: 0 | IN58: 0 | IO58: 0 | IP58: 0 | IQ58: 0 | IR58: 0 | IS58: 0 | IT58: 0 | IU58: 0 | IV58: 0 | IW58: 0 | IX58: 0 | IY58: 0 | IZ58: 0 | JA58: 0 | JB58: 0 | JC58: 0 | JD58: 0 | JE58: 0 | JF58: 0 | JG58: 0 | JH58: 0 | JI58: 0 | JJ58: 0 | JK58: 0 | JL58: 0 | JM58: 0 | JN58: 0 | JO58: 0 | JP58: 0 | JQ58: 0 | JR58: 0 | JS58: 0 | JT58: 0 | JU58: 0 | JV58: 0 | JW58: 0 | JX58: 0 | JY58: 0 | JZ58: 0 | KA58: 0 | KB58: 0 | KC58: 0 | KD58: 0 | KE58: 0 | KF58: 0 | KG58: 0 | KH58: 0 | KI58: 0 | KJ58: 0 | KK58: 0 | KL58: 0 | KM58: 0 | KN58: 0 | KO58: 0 | KP58: 0 | KQ58: 0 | KR58: 0 | KS58: 0 | KT58: 0 | KU58: 0 | KV58: 0 | KW58: 0 | KX58: 0 | KY58: 0 | KZ58: 0 | LA58: 0 | LB58: 0 | LC58: 0 | LD58: 0 | LE58: 0 | LF58: 0 | LG58: 0 | LH58: 0 | LI58: 0 | LJ58: 0 | LK58: 0 | LL58: 0 | LM58: 0 | LN58: 0 | LO58: 0 | LP58: 0 | LQ58: 0 | LR58: 0 | LS58: 0 | LT58: 0 | LU58: 0 | LV58: 0 | LW58: 0 | LX58: 0 | LY58: 0 | LZ58: 0 | MA58: 0 | MB58: 0 | MC58: 0 | MD58: 0 | ME58: 0 | MF58: 0 | MG58: 0 | MH58: 0 | MI58: 0 | MJ58: 0 | MK58: 0 | ML58: 0 | MM58: 0 | MN58: 0 | MO58: 0 | MP58: 0 | MQ58: 0 | MR58: 0 | MS58: 0 | MT58: 0 | MU58: 0 | MV58: 0 | MW58: 0 | MX58: 0 | MY58: 0 | MZ58: 0 | NA58: 0 | NB58: 0 | NC58: 0 | ND58: 0 | NE58: 0 | NF58: 0 | NG58: 0 | NH58: 0 | NI58: 0 | NJ58: 0 | NK58: 0 | NL58: 0 | NM58: 0 | NN58: 0 | NO58: 0 | NP58: 0 | NQ58: 0 | NR58: 0 | NS58: 0 | NT58: 0 | NU58: 0 | NV58: 0 | NW58: 0 | NX58: 0 | NY58: 0 | NZ58: 0 | OA58: 0 | OB58: 0 | OC58: 0 | OD58: 0 | OE58: 0 | OF58: 0 | OG58: 0 | OH58: 0 | OI58: 0 | OJ58: 0 | OK58: 0 | OL58: 0 | OM58: 0 | ON58: 0 | OO58: 0 | OP58: 0 | OQ58: 0 | OR58: 0 | OS58: 0 | OT58: 0 | OU58: 0 | OV58: 0 | OW58: 0 | OX58: 0 | OY58: 0 | OZ58: 0 | PA58: 0 | PB58: 0 | PC58: 0 | PD58: 0 | PE58: 0 | PF58: 0 | PG58: 0 | PH58: 0 | PI58: 0 | PJ58: 0 | PK58: 0 | PL58: 0 | PM58: 0 | PN58: 0 | PO58: 0 | PP58: 0 | PQ58: 0 | PR58: 0 | PS58: 0 | PT58: 0 | PU58: 0 | PV58: 0 | PW58: 0 | PX58: 0 | PY58: 0 | PZ58: 0 | QA58: 0
